Workbook

Sheet Basis - base - base
AE1: =HLOOKUP(AD3,Sprachentabelle!B2:D201,139,FALSE) -> référence à tableau 'remarques'
E2: =HLOOKUP(AD3,Sprachentabelle!B2:D201,5,FALSE) -> Rentabilité PV (données de base) | H2: ausblenden | I2: =IF(K2<>"",HLOOKUP(AD3,Sprachentabelle!B2:D201,142,FALSE),"") ->  | J2: ausblenden | K2: =IFERROR(Fehlerhandling!B17,"") ->  | M2: ausblenden | N2: ausblenden | O2: ausblenden | P2: ausblenden | Q2: ausblenden | R2: ausblenden | S2: ausblenden | T2: ausblenden | AC2: Sprache/langue/lingua: | AD2: français
E3: (kompatibel ab Excel-Version 2010) | AC3: Sprachecode | AD3: =IF(AD2="français",2,IF(AD2="italiano",3,1)) -> 2
B4: =HLOOKUP(AD3,Sprachentabelle!B2:D201,3,FALSE) -> Données | C4: 1.1 | E4: =HLOOKUP(AD3,Sprachentabelle!B2:D201,6,FALSE) -> Projet | G4: =HLOOKUP(AD3,Sprachentabelle!B2:D201,7,FALSE) -> Exploitant
C5: 1.2 | G5: =HLOOKUP(AD3,Sprachentabelle!B2:D201,8,FALSE) -> Site
C6: 1.3 | G6: =HLOOKUP(AD3,Sprachentabelle!B2:D201,9,FALSE) -> Description de l'installation
C7: 1.4 | G7: =HLOOKUP(AD3,Sprachentabelle!B2:D201,10,FALSE) -> Remarques
C8: 1.5 | G8: =HLOOKUP(AD3,Sprachentabelle!B2:D201,11,FALSE) -> TVA | I8: =HLOOKUP(AD3,Sprachentabelle!B2:D201,12,FALSE) -> Producteur | K8: non assujetti à la TVA | V8: =VLOOKUP(K8,Sprachentabelle!G4:H9,2,FALSE) -> 1 | W8: =HLOOKUP(AD3,Sprachentabelle!B2:D201,13,FALSE) -> Les Producteurs assujettis à la TVA doivent | Z8: 0.081 | AA8: =HLOOKUP(AD3,Sprachentabelle!B2:D201,14,FALSE) -> de TVA sur le chiffre d'affaires | AE8: 1)
C10: 2.1 | E10: =HLOOKUP(AD3,Sprachentabelle!B2:D201,15,FALSE) -> Données sur l'installation | G10: =HLOOKUP(AD3,Sprachentabelle!B2:D201,16,FALSE) -> Catégorie de l'installation | V10: ajoutée | W10: =IF(V11<=100,VLOOKUP(V10,Sprachentabelle!J4:K12,2,FALSE),IF(AND(VLOOKUP(V10,Sprachentabelle!J4:K12,2,FALSE)=3,O27>=DATE(2014,1,1)),2,VLOOKUP(V10,Sprachentabelle!J4:K12,2,FALSE))) -> 2 | AE10: 2)
C11: 2.2 | G11: =HLOOKUP(AD3,Sprachentabelle!B2:D201,17,FALSE) -> Puissance nominale de l'installation | V11: 2 | W11: =HLOOKUP(AD3,Sprachentabelle!B2:D201,18,FALSE) -> kWp | X11: =IF(K2="",IF(AND(V11>100,VLOOKUP(V10,Sprachentabelle!J4:K12,2,FALSE)=3,O27>=DATE(2014,1,1)),HLOOKUP(AD3,Sprachentabelle!B2:D201,137,FALSE),""),"") ->  | AE11: 3)
C12: 2.3 | G12: =HLOOKUP(AD3,Sprachentabelle!B2:D201,19,FALSE) -> Durée de vie de l'installation | V12: 30 | W12: =HLOOKUP(AD3,Sprachentabelle!B2:D201,20,FALSE) -> an(s) | X12: =HLOOKUP(AD3,Sprachentabelle!B2:D201,21,FALSE) -> à | Y12: =R27 -> 2053-12-31 | AA12: =HLOOKUP(AD3,Sprachentabelle!B2:D201,22,FALSE) -> (année en cours + durée de vie de l'installation) | AE12: 4)
C13: 2.4 | G13: =HLOOKUP(AD3,Sprachentabelle!B2:D201,23,FALSE) -> Durée de rétribution (valable de mise en service) | V13: 1 | W13: =HLOOKUP(AD3,Sprachentabelle!B2:D201,20,FALSE) -> an(s) | AE13: 5)
C14: 2.5 | G14: =HLOOKUP(AD3,Sprachentabelle!B2:D201,24,FALSE) -> Rendement énergétique annuel spécifique (sans tenir compte de la dégradation) | V14: 1000 | W14: =HLOOKUP(AD3,Sprachentabelle!B2:D201,25,FALSE) -> kWh/kWp (sans dégradation) | AE14: 6)
C15: 2.6 | G15: =HLOOKUP(AD3,Sprachentabelle!B2:D201,26,FALSE) -> Dégradation (linéaire) | I15: =HLOOKUP(AD3,Sprachentabelle!B2:D201,27,FALSE) -> Rendement après | K15: 30 | L15: =HLOOKUP(AD3,Sprachentabelle!B2:D201,28,FALSE) -> an(s) | V15: 80 | W15: =HLOOKUP(AD3,Sprachentabelle!B2:D201,29,FALSE) -> % de la puissance de départ | AE15: 7)
C16: 2.7 | G16: =HLOOKUP(AD3,Sprachentabelle!B2:D201,30,FALSE) -> Coûts spécifiques d'exploitation et d'entretien | V16: 0.03 | W16: =HLOOKUP(AD3,Sprachentabelle!B2:D201,31,FALSE) -> SFr./kWh | X16: =IF(K2="",HLOOKUP(AD3,Sprachentabelle!B2:D201,32,FALSE),"") -> (y c. TVA) | AE16: 8)
C18: 3.1 | E18: =HLOOKUP(AD3,Sprachentabelle!B2:D201,34,FALSE) -> Investissements | G18: =HLOOKUP(AD3,Sprachentabelle!B2:D201,35,FALSE) -> Somme d'investissement | V18: 10000 | W18: =HLOOKUP(AD3,Sprachentabelle!B2:D201,36,FALSE) -> SFr. | X18: =IF(K2="",IF(V8=2,HLOOKUP(AD3,Sprachentabelle!B2:D201,33,FALSE),HLOOKUP(AD3,Sprachentabelle!B2:D201,32,FALSE)),"") -> (y c. TVA) | AB18: =AND(V11>=AC18,V11<=AD18) -> TRUE | AC18: =IF(OR(W10=2,W10=1),HLOOKUP(J27,'EIV angebaut'!C1:AX8,5,TRUE),IF(W10=3,HLOOKUP(J27,'EIV integriert'!C1:AX8,5,TRUE),"")) -> 2 | AD18: =IF(OR(W10=2,W10=1),HLOOKUP(J27,'EIV angebaut'!C1:AX8,6,TRUE),IF(W10=3,HLOOKUP(J27,'EIV integriert'!C1:AX8,6,TRUE),"")) -> 50000 | AE18: 9)
C19: 3.2 | G19: =HLOOKUP(AD3,Sprachentabelle!B2:D201,37,FALSE) -> Promotion de l'investissement direct | U19: - | W19: =HLOOKUP(AD3,Sprachentabelle!B2:D201,36,FALSE) -> SFr. | AE19: 10)
C20: 3.3 | G20: =HLOOKUP(AD3,Sprachentabelle!B2:D201,164,FALSE) -> rétribution (selon le tarificateur de Pronovo) | U20: - | V20: 300 | W20: =HLOOKUP(AD3,Sprachentabelle!B2:D201,36,FALSE) -> SFr. | AB20: =HLOOKUP(AD3,Sprachentabelle!B2:D201,161,FALSE) -> PRU: Rétribution pour petites installations (délai de paiement 1-2 ans) | AC20: =(TEXT(HLOOKUP(AD3,Sprachentabelle!B2:D201,166,FALSE),"0")) -> Cliquez ici pour le tarificateur | AE20: 11)
C21: 3.4 | G21: =HLOOKUP(AD3,Sprachentabelle!B2:D201,160,FALSE) -> délai de rétribution | V21: 1 | W21: =HLOOKUP(AD3,Sprachentabelle!B2:D201,20,FALSE) -> an(s) | AB21: =HLOOKUP(AD3,Sprachentabelle!B2:D201,162,FALSE) -> GRU: Rétribution unique pour grandes installations (délai de paiement 1-2 ans) | AC21: =HYPERLINK(TEXT(HLOOKUP(AD3,Sprachentabelle!B2:D201,165,FALSE),"0")) -> https://pronovo.ch/fr/services/tarificateur/
C23: 4.1 | E23: =HLOOKUP(AD3,Sprachentabelle!B2:D201,38,FALSE) -> Structure des capitaux | G23: =HLOOKUP(AD3,Sprachentabelle!B2:D201,39,FALSE) -> Fonds propres | V23: =V18-V19-SUM(V24:V25) -> 10000 | W23: =HLOOKUP(AD3,Sprachentabelle!B2:D201,36,FALSE) -> SFr. | X23: =HLOOKUP(AD3,Sprachentabelle!B2:D201,40,FALSE) -> Durée | Y23: =V12 -> 30 | Z23: =HLOOKUP(AD3,Sprachentabelle!B2:D201,20,FALSE) -> an(s) | AB23: =HLOOKUP(AD3,Sprachentabelle!B2:D201,41,FALSE) -> Taux d'intérêt | AC23: 0.02 | AD23: =HLOOKUP(AD3,Sprachentabelle!B2:D201,42,FALSE) -> (p.a. nominal, y c. frais accessoires) | AE23: 12)
C24: 4.2 | G24: =HLOOKUP(AD3,Sprachentabelle!B2:D201,43,FALSE) -> Capital emprunté 1 | W24: =HLOOKUP(AD3,Sprachentabelle!B2:D201,36,FALSE) -> SFr. | X24: =HLOOKUP(AD3,Sprachentabelle!B2:D201,40,FALSE) -> Durée | Y24: 10 | Z24: =HLOOKUP(AD3,Sprachentabelle!B2:D201,20,FALSE) -> an(s) | AB24: =HLOOKUP(AD3,Sprachentabelle!B2:D201,44,FALSE) -> Taux d'intérêt | AC24: 0.01 | AE24: 13)
C25: 4.3 | G25: =HLOOKUP(AD3,Sprachentabelle!B2:D201,45,FALSE) -> Capital emprunté 2 | W25: =HLOOKUP(AD3,Sprachentabelle!B2:D201,36,FALSE) -> SFr. | X25: =HLOOKUP(AD3,Sprachentabelle!B2:D201,40,FALSE) -> Durée | Y25: 10 | Z25: =HLOOKUP(AD3,Sprachentabelle!B2:D201,20,FALSE) -> an(s) | AB25: =HLOOKUP(AD3,Sprachentabelle!B2:D201,44,FALSE) -> Taux d'intérêt
M26: Datum Periode ab | O26: Periode ab | P26: Periode bis | Q26: KEV bis | R26: Laufzeit bis
C27: 5.1 | E27: =HLOOKUP(AD3,Sprachentabelle!B2:D201,46,FALSE) -> Tarifs de rétribution/Phase | F27: =HLOOKUP(AD3,Sprachentabelle!B2:D201,47,FALSE) -> Phase 1 | G27: tarif propre | H27: =VLOOKUP(G27,Sprachentabelle!M4:N9,2,FALSE) -> 1 | I27: =HLOOKUP(AD3,Sprachentabelle!B2:D201,50,FALSE) -> dès (mise en service) | J27: =IF(M27="","",INDEX('Tarife freistehend'!$D$1:$AY$2,1,MATCH(M27,'Tarife freistehend'!$D$2:$AY$2,1))) -> 2023 | K27: janvier | L27: 2024 | M27: =IF(AND(K27<>"",L27>2008),DATE(L27,VLOOKUP(K27,Sprachentabelle!$V$4:$W$39,2,FALSE),1),"") -> 2024-01-01 | O27: =M27 -> 2024-01-01 | P27: =IF(J27<>"",HLOOKUP(J27,'Tarife freistehend'!D1:AX3,3,),"") -> 2024-12-31 | Q27: =IF(J27<>"",DATE(YEAR(O27)+V13,12,31),"") -> 2025-12-31 | R27: =DATE(YEAR(O27)+V12,MONTH(O27),1)-1 -> 2053-12-31 | U27: =HLOOKUP(AD3,Sprachentabelle!B2:D201,52,FALSE) -> rétribution de reprise | V27: 0.08 | W27: =IF(K2="",IF(V8=2,HLOOKUP(AD3,Sprachentabelle!B2:D201,53,FALSE),HLOOKUP(AD3,Sprachentabelle!B2:D201,53,FALSE)),"") -> SFr./kWh (y c. TVA) | X27: =HLOOKUP(AD3,Sprachentabelle!B2:D201,55,FALSE) -> Tarif d'achat / Tarif solair ZEV | Y27: 0.3 | Z27: =IF(K2="",IF(V8=2,HLOOKUP(AD3,Sprachentabelle!B2:D201,54,FALSE),HLOOKUP(AD3,Sprachentabelle!B2:D201,53,FALSE)),"") -> SFr./kWh (y c. TVA) | AB27: =HLOOKUP(AD3,Sprachentabelle!B2:D201,56,FALSE) -> Utilisation propre | AC27: 0.4 | AE27: 14)
C28: 5.2 | F28: =HLOOKUP(AD3,Sprachentabelle!B2:D201,48,FALSE) -> Phase 2 | G28: - | H28: =VLOOKUP(G28,Sprachentabelle!P4:Q12,2,FALSE) -> 3 | I28: =HLOOKUP(AD3,Sprachentabelle!B2:D201,51,FALSE) -> dès | J28: =IF(M28="","",INDEX('Tarife freistehend'!$D$1:$AY$2,1,MATCH(M28,'Tarife freistehend'!$D$2:$AY$2,1))) ->  | M28: =IF(AND(K28<>"",L28>2008),DATE(L28,VLOOKUP(K28,Sprachentabelle!$V$4:$W$39,2,FALSE),1),"") ->  | O28: =M28 ->  | P28: =IF(J28<>"",HLOOKUP(J28,'Tarife freistehend'!D1:AX3,3,),"") ->  | U28: =HLOOKUP(AD3,Sprachentabelle!B2:D201,52,FALSE) -> rétribution de reprise | V28: 0.15 | W28: =IF(K2="",IF(V8=2,HLOOKUP(AD3,Sprachentabelle!B2:D201,53,FALSE),HLOOKUP(AD3,Sprachentabelle!B2:D201,53,FALSE)),"") -> SFr./kWh (y c. TVA) | X28: =HLOOKUP(AD3,Sprachentabelle!B2:D201,55,FALSE) -> Tarif d'achat / Tarif solair ZEV | Y28: 0.2 | Z28: =IF(K2="",IF(V8=2,HLOOKUP(AD3,Sprachentabelle!B2:D201,54,FALSE),HLOOKUP(AD3,Sprachentabelle!B2:D201,53,FALSE)),"") -> SFr./kWh (y c. TVA) | AB28: =HLOOKUP(AD3,Sprachentabelle!B2:D201,56,FALSE) -> Utilisation propre | AC28: 0.4 | AD28: =VLOOKUP(HLOOKUP(J27,'Tarife freistehend'!D1:AX5,5,),Sprachentabelle!B2:D201,AD3,FALSE) -> définitif
C29: 5.3 | F29: =HLOOKUP(AD3,Sprachentabelle!B2:D201,49,FALSE) -> Phase 3 | G29: - | H29: =VLOOKUP(G29,Sprachentabelle!S4:T9,2,FALSE) -> 3 | I29: =HLOOKUP(AD3,Sprachentabelle!B2:D201,51,FALSE) -> dès | J29: =IF(M29="","",INDEX('Tarife freistehend'!$D$1:$AY$2,1,MATCH(M29,'Tarife freistehend'!$D$2:$AY$2,1))) ->  | M29: =IF(AND(K29<>"",L29>2008),DATE(L29,VLOOKUP(K29,Sprachentabelle!$V$4:$W$39,2,FALSE),1),"") ->  | O29: =M29 ->  | P29: =IF(J29<>"",HLOOKUP(J29,'Tarife freistehend'!D1:AX3,3,),"") ->  | U29: =HLOOKUP(AD3,Sprachentabelle!B2:D201,52,FALSE) -> rétribution de reprise | V29: 0.06 | W29: =IF(K2="",IF(V8=2,HLOOKUP(AD3,Sprachentabelle!B2:D201,53,FALSE),HLOOKUP(AD3,Sprachentabelle!B2:D201,53,FALSE)),"") -> SFr./kWh (y c. TVA) | X29: =HLOOKUP(AD3,Sprachentabelle!B2:D201,55,FALSE) -> Tarif d'achat / Tarif solair ZEV | Y29: 0.2 | Z29: =IF(K2="",IF(V8=2,HLOOKUP(AD3,Sprachentabelle!B2:D201,54,FALSE),HLOOKUP(AD3,Sprachentabelle!B2:D201,53,FALSE)),"") -> SFr./kWh (y c. TVA) | AB29: =HLOOKUP(AD3,Sprachentabelle!B2:D201,56,FALSE) -> Utilisation propre | AC29: 0.4
M30: Rückliefertarif | N30: Eigennutzungsgrad | O30: Bezugstarif | R30: Monate | S30: Jahre | T30: Tarif
B31: =HLOOKUP(AD3,Sprachentabelle!B2:D201,4,FALSE) -> Résultats | C31: 6.1 | E31: =HLOOKUP(AD3,Sprachentabelle!B2:D201,60,FALSE) -> Rendement sans tarifs de rachat | V31: =HLOOKUP(AD3,Sprachentabelle!B2:D201,61,FALSE) -> Rétribution | Y31: =HLOOKUP(AD3,Sprachentabelle!B2:D201,62,FALSE) -> Achat épargné
C32: 6.2 | E32: =IF(K2="",IF(V8=2,HLOOKUP(AD3,Sprachentabelle!B2:D201,33,FALSE),HLOOKUP(AD3,Sprachentabelle!B2:D201,32,FALSE)),"") -> (y c. TVA) | F32: =IFERROR(IF(AND(K2="",Varianten!B4<>"A"),1,0),0) -> 1 | G32: =IF(F32=1,HLOOKUP(AD3,Sprachentabelle!B2:D201,63,FALSE),"") -> Durée de rétribution de/à | I32: =IF(F32=1,IF(Varianten!B4="B",IF(O28<Q27,Q27+1,O28),IF(AND(Varianten!B4<>"A",Varianten!B4<>"B"),O27,"")),"") -> 2024-01-01 | K32: =IF(F32=1,IF(OR(Varianten!B4="B",Varianten!B4="C"),R27,IF(OR(Varianten!B4<>"A",Varianten!B4<>"B",Varianten!B4<>"C"),O28-1,"")),"") -> 2053-12-31 | M32: =IF(F32=1,IF(OR(Varianten!B4="C",Varianten!B4="D",Varianten!B4="E",Varianten!B4="F",Varianten!B4="G"),V27,IF(Varianten!B4="B",V28,)),) -> 0.08 | N32: =IF(F32=1,IF(OR(Varianten!B4="C",Varianten!B4="D",Varianten!B4="E",Varianten!B4="F",Varianten!B4="G"),AC27,IF(Varianten!B4="B",AC28,)),) -> 0.4 | O32: =IF(F32=1,IF(OR(Varianten!B4="C",Varianten!B4="D",Varianten!B4="E",Varianten!B4="F",Varianten!B4="G"),Y27,IF(Varianten!B4="B",Y28,)),) -> 0.3 | R32: =IF(F32=1,DATEDIF(I32,K32,"M")+1,"") -> 360 | S32: =IF(R32<>"",ROUND(R32/12,2),"") -> 30 | T32: =IF(F32=1,IF(Varianten!B4="B",V28,IF(AND(Varianten!B4<>"A",Varianten!B4<>"B"),V27,"")),"") -> 0.08 | V32: =IF(F32=1,V11*V14*M32*(1-N32)*(VLOOKUP(YEAR(I32)-YEAR(O27),'Degradation linear'!A5:C45,2,)+VLOOKUP(YEAR(K32)-YEAR(O27),'Degradation linear'!A5:C45,2,))/2,"") -> 86.72 | W32: =HLOOKUP(AD3,Sprachentabelle!B2:D201,64,FALSE) -> SFr./an | AB32: =IF(F32=1,V11*V14*O32*N32*(VLOOKUP(YEAR(I32)-YEAR(O27),'Degradation linear'!A5:C45,2,)+VLOOKUP(YEAR(K32)-YEAR(O27),'Degradation linear'!A5:C45,2,))/2,"") -> 216.8 | AC32: =HLOOKUP(AD3,Sprachentabelle!B2:D201,64,FALSE) -> SFr./an | AE32: 15)
C33: 6.3 | F33: =IFERROR(IF(AND(K2="",OR(Varianten!B4="E",Varianten!B4="F",Varianten!B4="G")),1,0),0) -> 0 | G33: =IF(F33=1,HLOOKUP(AD3,Sprachentabelle!B2:D201,63,FALSE),"") ->  | I33: =IF(F33=1,IF(Varianten!B4="E",IF(O29<Q27,Q27+1,O29),IF(OR(Varianten!B4="F",Varianten!B4="G"),O28,"")),"") ->  | K33: =IF(F33=1,IF(OR(Varianten!B4="E",Varianten!B4="F"),R27,IF(Varianten!B4="G",O29-1,"")),"") ->  | M33: =IF(F33=1,IF(OR(Varianten!B4="F",Varianten!B4="G"),V28,IF(Varianten!B4="E",V29,)),) -> 0 | N33: =IF(F33=1,IF(OR(Varianten!B4="F",Varianten!B4="G"),AC28,IF(Varianten!B4="E",AC29,)),) -> 0 | O33: =IF(F33=1,IF(OR(Varianten!B4="F",Varianten!B4="G"),Y28,IF(Varianten!B4="E",Y29,)),) -> 0 | R33: =IF(F33=1,DATEDIF(I33,K33,"M")+1,"") ->  | S33: =IF(R33<>"",ROUND(R33/12,2),"") ->  | T33: =IF(F33=1,IF(Varianten!B4="E",V29,IF(OR(Varianten!B4="F",Varianten!B4="G"),V28,"")),"") ->  | V33: =IF(F33=1,V11*V14*M33*(1-N33)*(VLOOKUP(YEAR(I33)-YEAR(O27),'Degradation linear'!A5:C45,2,)+VLOOKUP(YEAR(K33)-YEAR(O27),'Degradation linear'!A5:C45,2,))/2,"") ->  | W33: =HLOOKUP(AD3,Sprachentabelle!B2:D201,64,FALSE) -> SFr./an | AB33: =IF(F33=1,V11*V14*O33*N33*(VLOOKUP(YEAR(I33)-YEAR(O27),'Degradation linear'!A5:C45,2,)+VLOOKUP(YEAR(K33)-YEAR(O27),'Degradation linear'!A5:C45,2,))/2,"") ->  | AC33: =HLOOKUP(AD3,Sprachentabelle!B2:D201,64,FALSE) -> SFr./an
C34: 6.4 | F34: =IFERROR(IF(AND(K2="",Varianten!B4="G"),1,0),0) -> 0 | G34: =IF(F34=1,HLOOKUP(AD3,Sprachentabelle!B2:D201,63,FALSE),"") ->  | I34: =IF(F34=1,O29,"") ->  | K34: =IF(F34=1,R27,"") ->  | M34: =IF(F34=1,IF(Varianten!B4="G",V29,),) -> 0 | N34: =IF(F34=1,IF(Varianten!B4="G",AC29,),) -> 0 | O34: =IF(F34=1,IF(Varianten!B4="G",Y29,),) -> 0 | R34: =IF(F34=1,DATEDIF(I34,K34,"M")+1,"") ->  | S34: =IF(R34<>"",ROUND(R34/12,2),"") ->  | T34: =IF(F34=1,IF(OR(Varianten!B4="E",Varianten!B4="G"),V29,""),"") ->  | V34: =IF(F34=1,V11*V14*M34*(1-N34)*(VLOOKUP(YEAR(I34)-YEAR(O27),'Degradation linear'!A5:C45,2,)+VLOOKUP(YEAR(K34)-YEAR(O27),'Degradation linear'!A5:C45,2,))/2,"") ->  | W34: =HLOOKUP(AD3,Sprachentabelle!B2:D201,64,FALSE) -> SFr./an | AB34: =IF(F34=1,V11*V14*O34*N34*(VLOOKUP(YEAR(I34)-YEAR(O27),'Degradation linear'!A5:C45,2,)+VLOOKUP(YEAR(K34)-YEAR(O27),'Degradation linear'!A5:C45,2,))/2,"") ->  | AC34: =HLOOKUP(AD3,Sprachentabelle!B2:D201,64,FALSE) -> SFr./an
C35: 6.5 | F35: =IFERROR(IF(AND(K2="",Varianten!B4<>"A"),1,0),0) -> 1 | I35: =HLOOKUP(AD3,Sprachentabelle!B2:D201,65,FALSE) -> Ø Rendement | R35: =SUM(R32:R34) -> 360 | S35: =SUM(S32:S34) -> 30 | V35: =IF(F35=1,(IF(F32=1,S32*V32,0)+IF(F33=1,S33*V33,0)+IF(F34=1,S34*V34,0))/S35,"") -> 86.72 | W35: =HLOOKUP(AD3,Sprachentabelle!B2:D201,64,FALSE) -> SFr./an | AB35: =IF(F35=1,(IF(F32=1,S32*AB32,0)+IF(F33=1,S33*AB33,0)+IF(F34=1,S34*AB34,0))/S35,"") -> 216.8 | AC35: =HLOOKUP(AD3,Sprachentabelle!B2:D201,64,FALSE) -> SFr./an | AE35: 16)
C37: 7.1 | E37: =HLOOKUP(AD3,Sprachentabelle!B2:D201,66,FALSE) -> Rendement avec tarifs de rachat | I37: =HLOOKUP(AD3,Sprachentabelle!B2:D201,67,FALSE) -> Classe de puissance | K37: =HLOOKUP(AD3,Sprachentabelle!B2:D201,68,FALSE) -> Taille (kWp) | Q37: Tarif freistehend | R37: Tarif angebaut | S37: Tarif integriert | U37: =HLOOKUP(AD3,Sprachentabelle!B2:D201,69,FALSE) -> Tarif (SFr./kWh) | V37: =HLOOKUP(AD3,Sprachentabelle!B2:D201,61,FALSE) -> Rétribution | Y37: =HLOOKUP(AD3,Sprachentabelle!B2:D201,62,FALSE) -> Achat épargné | AE37: 17)
C38: 7.2 | E38: =HLOOKUP(AD3,Sprachentabelle!B2:D201,32,FALSE) -> (y c. TVA) | I38: =HLOOKUP(AD3,Sprachentabelle!B2:D201,70,FALSE) -> ≤ 10 kWp | J38: 10 | K38: =IF(AND(K2="",E39=1),IF(($V$11-J38)>=0,J38,$V$11),"") ->  | Q38: =INDEX('Tarife freistehend'!$C$1:$AW$10,MATCH($J38,'Tarife freistehend'!$C$1:$C$10,0),MATCH($J$27,'Tarife freistehend'!$C$1:$AX$1,0)) -> 0.09 | R38: =INDEX('Tarife angebaut'!$C$1:$AW$10,MATCH($J38,'Tarife angebaut'!$C$1:$C$10,0),MATCH($J$27,'Tarife angebaut'!$C$1:$AW$1,0)) -> 0.09 | S38: =INDEX('Tarife integriert'!$C$1:$AW$10,MATCH($J38,'Tarife integriert'!$C$1:$C$10,0),MATCH($J$27,'Tarife integriert'!$C$1:$AW$1,0)) -> 0.09 | U38: =IF(AND(K2="",E39=1),IF($W$10=1,Q38,IF($W$10=2,R38,IF($W$10=3,S38,))),"") -> 
C39: 7.3 | E39: =IFERROR(IF(OR(Varianten!B4="A",Varianten!B4="B",Varianten!B4="D",Varianten!B4="E"),1,0),0) -> 0 | I39: =HLOOKUP(AD3,Sprachentabelle!B2:D201,71,FALSE) -> ≤ 30 kWp | J39: 30 | K39: =IF(AND(K2="",E39=1),IF(($V$11-J39)>=0,J39-J38,$V$11-K38),"") ->  | Q39: =INDEX('Tarife freistehend'!$C$1:$AW$10,MATCH($J39,'Tarife freistehend'!$C$1:$C$10,0),MATCH($J$27,'Tarife freistehend'!$C$1:$AX$1,0)) -> 0.09 | R39: =INDEX('Tarife angebaut'!$C$1:$AW$10,MATCH($J39,'Tarife angebaut'!$C$1:$C$10,0),MATCH($J$27,'Tarife angebaut'!$C$1:$AW$1,0)) -> 0.09 | S39: =INDEX('Tarife integriert'!$C$1:$T$10,MATCH($J39,'Tarife integriert'!$C$1:$C$10,0),MATCH($J$27,'Tarife integriert'!$C$1:$T$1,0)) ->  | U39: =IF(AND(K2="",E39=1),IF($W$10=1,Q39,IF($W$10=2,R39,IF($W$10=3,S39,))),"") ->  | Y39: Bezugstarif | Z39: =IF(OR(Varianten!B4="A",Varianten!B4="B"),Y27,IF(OR(Varianten!B4="D",Varianten!B4="E"),Y28,)) -> 0
C40: 7.4 | F40: =IF(AND(K2="",E39=1),HLOOKUP(AD3,Sprachentabelle!B2:D201,75,FALSE),"") ->  | G40: =IF(AND(K2="",E39=1),J27,"") ->  | I40: =HLOOKUP(AD3,Sprachentabelle!B2:D201,72,FALSE) -> ≤ 100 kWp | J40: 100 | K40: =IF(AND(K2="",E39=1),IF(($V$11-J40)>=0,J40-J39,$V$11-K38-K39),"") ->  | Q40: =INDEX('Tarife freistehend'!$C$1:$AW$10,MATCH($J40,'Tarife freistehend'!$C$1:$C$10,0),MATCH($J$27,'Tarife freistehend'!$C$1:$AX$1,0)) -> 0.09 | R40: =INDEX('Tarife angebaut'!$C$1:$AW$10,MATCH($J40,'Tarife angebaut'!$C$1:$C$10,0),MATCH($J$27,'Tarife angebaut'!$C$1:$AW$1,0)) -> 0.09 | S40: =INDEX('Tarife integriert'!$C$1:$T$10,MATCH($J40,'Tarife integriert'!$C$1:$C$10,0),MATCH($J$27,'Tarife integriert'!$C$1:$T$1,0)) ->  | U40: =IF(AND(K2="",E39=1),IF($W$10=1,Q40,IF($W$10=2,R40,IF($W$10=3,S40,))),"") ->  | Y40: Eigennutzungsgrad | Z40: =IF(OR(Varianten!B4="A",Varianten!B4="B"),AC27,IF(OR(Varianten!B4="D",Varianten!B4="E"),AC28,)) -> 0
C41: 7.5 | F41: =IF(AND(K2="",E39=1),HLOOKUP(AD3,Sprachentabelle!B2:D201,98,FALSE),"") ->  | G41: =IF(K2="",IF(OR(Varianten!B4="A",Varianten!B4="B"),O27,IF(OR(Varianten!B4="D",Varianten!B4="E"),O28,"")),"") ->  | I41: =HLOOKUP(AD3,Sprachentabelle!B2:D201,73,FALSE) -> ≤ 1000 kWp | J41: 1000 | K41: =IF(AND(K2="",E39=1),IF(($V$11-J41)>=0,J41-J40,$V$11-K38-K39-K40),"") ->  | Q41: =INDEX('Tarife freistehend'!$C$1:$AW$10,MATCH($J41,'Tarife freistehend'!$C$1:$C$10,0),MATCH($J$27,'Tarife freistehend'!$C$1:$AX$1,0)) -> 0.09 | R41: =INDEX('Tarife angebaut'!$C$1:$AW$10,MATCH($J41,'Tarife angebaut'!$C$1:$C$10,0),MATCH($J$27,'Tarife angebaut'!$C$1:$AW$1,0)) -> 0.09 | S41: =INDEX('Tarife integriert'!$C$1:$T$10,MATCH($J41,'Tarife integriert'!$C$1:$C$10,0),MATCH($J$27,'Tarife integriert'!$C$1:$T$1,0)) ->  | U41: =IF(AND(K2="",E39=1),IF($W$10=1,Q41,IF($W$10=2,R41,IF($W$10=3,S41,))),"") ->  | Y41: Jahr Start | Z41: =YEAR(G41) ->  | AE41: 18)
C42: 7.6 | F42: =IF(AND(K2="",E39=1),HLOOKUP(AD3,Sprachentabelle!B2:D201,99,FALSE),"") ->  | G42: =IF(AND(K2="",E39=1),Q27,"") ->  | I42: =HLOOKUP(AD3,Sprachentabelle!B2:D201,74,FALSE) -> > 1000 kWp | J42: 9999999999 | K42: =IF(AND(K2="",E39=1),IF(($V$11-J42)>=0,J42-J41,$V$11-K38-K39-K40-K41),"") ->  | Q42: =INDEX('Tarife freistehend'!$C$1:$AW$10,MATCH($J42,'Tarife freistehend'!$C$1:$C$10,0),MATCH($J$27,'Tarife freistehend'!$C$1:$AX$1,0)) -> 0.09 | R42: =INDEX('Tarife angebaut'!$C$1:$AW$10,MATCH($J42,'Tarife angebaut'!$C$1:$C$10,0),MATCH($J$27,'Tarife angebaut'!$C$1:$AW$1,0)) -> 0.09 | S42: =INDEX('Tarife integriert'!$C$1:$T$10,MATCH($J42,'Tarife integriert'!$C$1:$C$10,0),MATCH($J$27,'Tarife integriert'!$C$1:$T$1,0)) ->  | U42: =IF(AND(K2="",E39=1),IF($W$10=1,Q42,IF($W$10=2,R42,IF($W$10=3,S42,))),"") ->  | Y42: Jahr Ende | Z42: =YEAR(G42) ->  | AE42: 19)
C43: 7.7 | G43: =HLOOKUP(AD3,Sprachentabelle!B2:D201,76,FALSE) -> Ø Rétribution (relative à la durée de rétribution) | K43: =IF(AND(K2="",E39=1),SUM(K38:K42),"") ->  | R43: =IF(OR(Varianten!B4="A",Varianten!B4="B",Varianten!B4="D",Varianten!B4="E"),DATEDIF(G41,G42,"M")+1,) -> 0 | S43: =IF(R43<>"",ROUND(R43/12,2),) -> 0 | U43: =IF(AND(K2="",E39=1),ROUND((K38*U38+K39*U39+K40*U40+K41*U41+K42*U42)/V11,3),"") ->  | V43: =IF(AND(K2="",E39=1),V11*V14*U43*(1-Z40)*VLOOKUP(((YEAR(G42)-YEAR(G41))/2)+YEAR(G41)-YEAR(O27)+1,'Degradation linear'!A5:C35,2),"") ->  | W43: =HLOOKUP(AD3,Sprachentabelle!B2:D201,64,FALSE) -> SFr./an | AB43: =IF(AND(K2="",E39=1),V11*V14*Z39*Z40*(VLOOKUP(Z41-YEAR(O27),'Degradation linear'!A5:C45,2,)+VLOOKUP(Z42-YEAR(O27),'Degradation linear'!A5:C45,2))/2,"") ->  | AC43: =HLOOKUP(AD3,Sprachentabelle!B2:D201,64,FALSE) -> SFr./an | AE43: 20)
C45: 8.1 | E45: =HLOOKUP(AD3,Sprachentabelle!B2:D201,77,FALSE) -> Indices | F45: =HLOOKUP(AD3,Sprachentabelle!B2:D201,78,FALSE) -> (relatifs à la durée de vie de l'installation) | I45: =HLOOKUP(AD3,Sprachentabelle!B2:D201,79,FALSE) -> Ø Production énergetique annuelle | V45: =IF(K2="",'Details - détails - dettagli'!AM45,"") -> 1800 | W45: =HLOOKUP(AD3,Sprachentabelle!B2:D201,153,FALSE) -> kWh/an | AE45: 21)
C46: 8.2 | I46: =HLOOKUP(AD3,Sprachentabelle!B2:D201,80,FALSE) -> Ø Rendement annuel | V46: =IF(K2="",'Details - détails - dettagli'!AN45,"") -> 0 | W46: =HLOOKUP(AD3,Sprachentabelle!B2:D201,64,FALSE) -> SFr./an | X46: =HLOOKUP(AD3,Sprachentabelle!B2:D201,93,FALSE) -> (Rétribution et tarifs d'entreprise électrique) | AD46: =ISERROR(IF(OR(Varianten!B4="B",Varianten!B4="D",Varianten!B4="E"),(S35*V35+S43*V43)/V12,IF(Varianten!B4="A",V43,IF(OR(Varianten!B4="C",Varianten!B4="F",Varianten!B4="G"),V35,"-")))) -> FALSE | AE46: 22)
C47: 8.3 | I47: ="Ø "&HLOOKUP(AD3,Sprachentabelle!B2:D201,62,FALSE) -> Ø Achat épargné | U47: + | V47: =IF(K2="",'Details - détails - dettagli'!AO45,"") -> 216 | W47: =HLOOKUP(AD3,Sprachentabelle!B2:D201,64,FALSE) -> SFr./an | AE47: 23)
C48: 8.4 | I48: =HLOOKUP(AD3,Sprachentabelle!B2:D201,81,FALSE) -> Ø TVA impôt sur le chiffre d'affaire | U48: - | V48: =IF(K2="",'Details - détails - dettagli'!AQ45,"") -> 0 | W48: =HLOOKUP(AD3,Sprachentabelle!B2:D201,64,FALSE) -> SFr./an | X48: =HLOOKUP(AD3,Sprachentabelle!B2:D201,94,FALSE) -> (TVA sur les rendements RPC) | AE48: 24)
C49: 8.5 | I49: =HLOOKUP(AD3,Sprachentabelle!B2:D201,82,FALSE) -> Ø TVA impôt préalable | U49: + | V49: =IF(K2="",'Details - détails - dettagli'!AR45,"") -> 0 | W49: =HLOOKUP(AD3,Sprachentabelle!B2:D201,64,FALSE) -> SFr./an | X49: =HLOOKUP(AD3,Sprachentabelle!B2:D201,95,FALSE) -> (impôt préalable sur les frais d'exploitation et d'entretien spécifiques) | AE49: 25)
C50: 8.6 | I50: =HLOOKUP(AD3,Sprachentabelle!B2:D201,83,FALSE) -> Ø Frais d'entretien | U50: - | V50: =IF(K2="",'Details - détails - dettagli'!AP45,"") -> 54 | W50: =HLOOKUP(AD3,Sprachentabelle!B2:D201,64,FALSE) -> SFr./an | AE50: 26)
C51: 8.7 | I51: =HLOOKUP(AD3,Sprachentabelle!B2:D201,84,FALSE) -> Ø Frais de fonds propres | U51: - | V51: =IF(K2="",'Details - détails - dettagli'!AU45,"") -> 433.3042462 | W51: =HLOOKUP(AD3,Sprachentabelle!B2:D201,64,FALSE) -> SFr./an | X51: =HLOOKUP(AD3,Sprachentabelle!B2:D201,96,FALSE) -> (ammortissement et intérêts) | AE51: 27)
C52: 8.8 | I52: =HLOOKUP(AD3,Sprachentabelle!B2:D201,85,FALSE) -> Ø Frais du capital emprunté | U52: - | V52: =IF(K2="",SUM('Details - détails - dettagli'!AV45:AW45),"") -> 0 | W52: =HLOOKUP(AD3,Sprachentabelle!B2:D201,64,FALSE) -> SFr./an | X52: =HLOOKUP(AD3,Sprachentabelle!B2:D201,96,FALSE) -> (ammortissement et intérêts) | AE52: 28)
C53: 8.9 | I53: =HLOOKUP(AD3,Sprachentabelle!B2:D201,86,FALSE) -> Ø Rendement net | V53: =IF(K2="",V46+V47-V48+V49-V50-V51-V52,"") -> -271.3042462 | W53: =HLOOKUP(AD3,Sprachentabelle!B2:D201,64,FALSE) -> SFr./an | AE53: 29)
C54: 8.1 | I54: =HLOOKUP(AD3,Sprachentabelle!B2:D201,87,FALSE) -> Valeur du capital (VAN) | K54: =HLOOKUP(AD3,Sprachentabelle!B2:D201,90,FALSE) -> (valeur actuelle nette) | V54: =IF(K2="",'Details - détails - dettagli'!BA44,"") -> -4081.823617 | W54: =HLOOKUP(AD3,Sprachentabelle!B2:D201,36,FALSE) -> SFr. | X54: =IF(OR(V54<0,ISERROR(V54),K2<>""),"",HLOOKUP(AD3,Sprachentabelle!B2:D201,97,FALSE)) ->  | AA54: =IF(OR(V54<0,ISERROR(V54),K2<>""),0,1) -> 0 | AE54: 30)
C55: 8.11 | I55: =HLOOKUP(AD3,Sprachentabelle!B2:D201,88,FALSE) -> Payback | K55: =HLOOKUP(AD3,Sprachentabelle!B2:D201,91,FALSE) -> (temps d'amortissement) | V55: =IF(K2="",IF(ISERROR(VLOOKUP(1,'Details - détails - dettagli'!BD13:BE43,2,FALSE)),"n/a",VLOOKUP(1,'Details - détails - dettagli'!BD13:BE43,2,FALSE)),"") -> n/a | W55: =HLOOKUP(AD3,Sprachentabelle!B2:D201,20,FALSE) -> an(s) | X55: =IF(K2="",IF('Details - détails - dettagli'!BF44>0,HLOOKUP(AD3,Sprachentabelle!B2:D201,158,FALSE),""),"") ->  | AE55: 31)
C56: 8.12 | I56: =HLOOKUP(AD3,Sprachentabelle!B2:D201,89,FALSE) -> Frais par kWh | K56: =HLOOKUP(AD3,Sprachentabelle!B2:D201,92,FALSE) -> (frais de production) | V56: =IF(K2="",SUM('Details - détails - dettagli'!AP44,'Details - détails - dettagli'!AQ44,-'Details - détails - dettagli'!AR44,'Details - détails - dettagli'!AU44,'Details - détails - dettagli'!AV44,'Details - détails - dettagli'!AW44)/'Details - détails - dettagli'!AM44,"") -> 0.2707245812 | W56: =HLOOKUP(AD3,Sprachentabelle!B2:D201,31,FALSE) -> SFr./kWh | AE56: 32)
L59: V: | U59: 15/08/2024 | V59: Copyright by Swissolar

Sheet Details - détails - dettagli (hidden)
C1: ausblenden | D1: =HLOOKUP('Basis - base - base'!AD3,Sprachentabelle!B2:D201,100,FALSE) -> Rentabilité PV (données détaillées) | I1: ausblenden | J1: ausblenden | K1: ausblenden | M1: ausblenden | N1: ausblenden | O1: ausblenden | P1: ausblenden | Q1: ausblenden | R1: ausblenden | T1: ausblenden | U1: ausblenden | V1: ausblenden | W1: ausblenden | X1: ausblenden | Y1: ausblenden | AA1: ausblenden | AB1: ausblenden | AC1: ausblenden | AD1: ausblenden | AE1: ausblenden | AF1: ausblenden | AH1: ausblenden | AI1: ausblenden | AJ1: ausblenden | AK1: ausblenden | AL1: ausblenden | AS1: ausblenden | AT1: ausblenden | AZ1: ausblenden | BD1: ausblenden | BE1: ausblenden
D3: =HLOOKUP('Basis - base - base'!AD3,Sprachentabelle!B2:D201,133,FALSE) -> Tarifs de rétribution | E3: =HLOOKUP('Basis - base - base'!AD3,Sprachentabelle!B2:D201,105,FALSE) -> Date de | F3: =HLOOKUP('Basis - base - base'!AD3,Sprachentabelle!B2:D201,106,FALSE) -> Date à | G3: =HLOOKUP('Basis - base - base'!AD3,Sprachentabelle!B2:D201,52,FALSE) -> rétribution de reprise | L3: =HLOOKUP('Basis - base - base'!AD3,Sprachentabelle!B2:D201,56,FALSE) -> Utilisation propre | S3: =HLOOKUP('Basis - base - base'!AD3,Sprachentabelle!B2:D201,55,FALSE) -> Tarif d'achat / Tarif solair ZEV | AM3: =HLOOKUP('Basis - base - base'!AD3,Sprachentabelle!B2:D201,134,FALSE) -> Structure des capitaux | AN3: =HLOOKUP('Basis - base - base'!AD3,Sprachentabelle!B2:D201,107,FALSE) -> Somme | AP3: =HLOOKUP('Basis - base - base'!AD3,Sprachentabelle!B2:D201,40,FALSE) -> Durée | AS3: Laufzeit EIV | AT3: EIV | AV3: =HLOOKUP('Basis - base - base'!AD3,Sprachentabelle!B2:D201,108,FALSE) -> Taux d'intérêt (p.a. nominal, y c. frais annexes)
D4: =HLOOKUP('Basis - base - base'!AD3,Sprachentabelle!B2:D201,101,FALSE) -> Phase Rétribution | E4: ='Basis - base - base'!G41 ->  | F4: ='Basis - base - base'!G42 ->  | G4: =IF('Basis - base - base'!U43="",0,'Basis - base - base'!U43) -> 0 | L4: ='Basis - base - base'!Z40 -> 0 | S4: ='Basis - base - base'!Z39 -> 0 | AM4: =HLOOKUP('Basis - base - base'!AD3,Sprachentabelle!B2:D201,39,FALSE) -> Fonds propres | AN4: ='Basis - base - base'!V23 -> 10000 | AP4: ='Basis - base - base'!Y23 -> 30 | AS4: ='Basis - base - base'!V21 -> 1 | AT4: ='Basis - base - base'!V20 -> 300 | AV4: ='Basis - base - base'!AC23 -> 0.02
D5: =HLOOKUP('Basis - base - base'!AD3,Sprachentabelle!B2:D201,102,FALSE) -> Phase 1 Tarif EE | E5: ='Basis - base - base'!I32 -> 2024-01-01 | F5: ='Basis - base - base'!K32 -> 2053-12-31 | G5: ='Basis - base - base'!M32 -> 0.08 | L5: ='Basis - base - base'!N32 -> 0.4 | S5: ='Basis - base - base'!O32 -> 0.3 | AM5: =HLOOKUP('Basis - base - base'!AD3,Sprachentabelle!B2:D201,43,FALSE) -> Capital emprunté 1 | AN5: ='Basis - base - base'!V24 -> 0 | AP5: ='Basis - base - base'!Y24 -> 10 | AV5: ='Basis - base - base'!AC24 -> 0.01
D6: =HLOOKUP('Basis - base - base'!AD3,Sprachentabelle!B2:D201,103,FALSE) -> Phase 2 Tarif EE | E6: ='Basis - base - base'!I33 ->  | F6: ='Basis - base - base'!K33 ->  | G6: ='Basis - base - base'!M33 -> 0 | L6: ='Basis - base - base'!N33 -> 0 | S6: ='Basis - base - base'!O33 -> 0 | AM6: =HLOOKUP('Basis - base - base'!AD3,Sprachentabelle!B2:D201,45,FALSE) -> Capital emprunté 2 | AN6: ='Basis - base - base'!V25 -> 0 | AP6: ='Basis - base - base'!Y25 -> 10 | AV6: ='Basis - base - base'!AC25 -> 0
D7: =HLOOKUP('Basis - base - base'!AD3,Sprachentabelle!B2:D201,104,FALSE) -> Phase 3 Tarif EE | E7: ='Basis - base - base'!I34 ->  | F7: ='Basis - base - base'!K34 ->  | G7: ='Basis - base - base'!M34 -> 0 | L7: ='Basis - base - base'!N34 -> 0 | S7: ='Basis - base - base'!O34 -> 0
AY8: =HLOOKUP('Basis - base - base'!AD3,Sprachentabelle!B2:D201,87,FALSE) -> Valeur du capital (VAN) | BA8: =SUM(BA12:BA43) -> -4081.823617 | BC8: =IF(BA8>=0,HLOOKUP('Basis - base - base'!AD3,Sprachentabelle!B2:D201,97,FALSE),"") -> 
E10: =HLOOKUP('Basis - base - base'!AD3,Sprachentabelle!B2:D201,109,FALSE) -> Année | F10: =HLOOKUP('Basis - base - base'!AD3,Sprachentabelle!B2:D201,105,FALSE) -> Date de | G10: =HLOOKUP('Basis - base - base'!AD3,Sprachentabelle!B2:D201,106,FALSE) -> Date à | H10: =HLOOKUP('Basis - base - base'!AD3,Sprachentabelle!B2:D201,110,FALSE) -> Durée de la période | I10: Überschneidung Anfang KEV-Phase | J10: Überschneidung Ende KEV-Phase | K10: Anz. Monate in KEV-Phase | L10: =HLOOKUP('Basis - base - base'!AD3,Sprachentabelle!B2:D201,111,FALSE) -> Nb mois au tarif RPC | M10: Vergütungstarif KEV | N10: eigener Bezugstarif KEV-Phase | O10: Eigennutzun gsgrad KEV-Phase | P10: Überschneidung Anfang Phase 1 eigener Tarif | Q10: Überschneidung Ende Phase 1 eigener Tarif | R10: Anz. Monate in Phase 1 eigener Tarif | S10: =HLOOKUP('Basis - base - base'!AD3,Sprachentabelle!B2:D201,112,FALSE) -> Nb mois au Tarif EE Phase 1 | T10: eigener Tarif Phase 1 | U10: eigener Bezugstarif Phase 1 | V10: Eigennutzungsgrad eigener Tarif Phase 1 | W10: Überschneidung Anfang eigener Tarif Phase 2 | X10: Überschneidung Ende eigener Tarif Phase 2 | Y10: Anz. Monate in Phase 2 eigener Tarif | Z10: =HLOOKUP('Basis - base - base'!AD3,Sprachentabelle!B2:D201,113,FALSE) -> Nb mois au Tarif EE Phase 2 | AA10: eigener Tarif Phase 2 | AB10: eigener Bezugstarif Phase 2 | AC10: Eigennutzungsgrad eigener Tarif Phase 2 | AD10: Überschneidung Anfang eigener Tarif Phase 3 | AE10: Überschneidung Ende eigener Tarif Phase 3 | AF10: Anz. Monate in Phase 3 eigener Tarif | AG10: =HLOOKUP('Basis - base - base'!AD3,Sprachentabelle!B2:D201,114,FALSE) -> Nb mois au Tarif EE Phase 3 | AH10: eigener Tarif Phase 3 | AI10: eigener Bezugstarif Phase 3 | AJ10: Eigennutzungsgrad eigener Tarif Phase 3 | AK10: Total Monate Vergütung | AL10: Anz. ganze Jahre Vergütung | AM10: =HLOOKUP('Basis - base - base'!AD3,Sprachentabelle!B2:D201,115,FALSE) -> Rendement énergétique annuel | AN10: =HLOOKUP('Basis - base - base'!AD3,Sprachentabelle!B2:D201,116,FALSE) -> Rendement | AO10: =HLOOKUP('Basis - base - base'!AD3,Sprachentabelle!B2:D201,62,FALSE) -> Achat épargné | AP10: =HLOOKUP('Basis - base - base'!AD3,Sprachentabelle!B2:D201,117,FALSE) -> Exploitation & entretien | AQ10: =HLOOKUP('Basis - base - base'!AD3,Sprachentabelle!B2:D201,118,FALSE) -> TVA | AR10: =HLOOKUP('Basis - base - base'!AD3,Sprachentabelle!B2:D201,119,FALSE) -> Impôt anticipé coûts d'exploitation et entretien | AS10: Eigenkapital Verzinsung jährlich ohne EIV | AT10: Verzinsung EIV | AU10: =HLOOKUP('Basis - base - base'!AD3,Sprachentabelle!B2:D201,120,FALSE) -> Fonds propres (intérêts annuels) | AV10: =HLOOKUP('Basis - base - base'!AD3,Sprachentabelle!B2:D201,43,FALSE) -> Capital emprunté 1 | AW10: =HLOOKUP('Basis - base - base'!AD3,Sprachentabelle!B2:D201,45,FALSE) -> Capital emprunté 2 | AX10: =HLOOKUP('Basis - base - base'!AD3,Sprachentabelle!B2:D201,163,FALSE) -> paiement rétribution | AY10: =HLOOKUP('Basis - base - base'!AD3,Sprachentabelle!B2:D201,121,FALSE) -> Cash Flow net | AZ10: NPV (Hilfsspalte) | BA10: =HLOOKUP('Basis - base - base'!AD3,Sprachentabelle!B2:D201,122,FALSE) -> Valeur du capital (VAN) | BB10: =HLOOKUP('Basis - base - base'!AD3,Sprachentabelle!B2:D201,138,FALSE) -> Développement du capital Cash Flow net | BC10: =HLOOKUP('Basis - base - base'!AD3,Sprachentabelle!B2:D201,123,FALSE) -> Développement du capital VAN | BD10: Payback (Hilfsspalte 1) | BE10: Payback (Hilfsspalte 2) | BF10: =HLOOKUP('Basis - base - base'!AD3,Sprachentabelle!B2:D201,124,FALSE) -> Remarques
H11: =HLOOKUP('Basis - base - base'!AD3,Sprachentabelle!B2:D201,125,FALSE) -> [Mois] | I11: [Monate] | J11: [Monate] | K11: [Monate] | L11: =HLOOKUP('Basis - base - base'!AD3,Sprachentabelle!B2:D201,125,FALSE) -> [Mois] | M11: [SFr.] | N11: [SFr.] | P11: [Monate] | Q11: [Monate] | R11: [Monate] | S11: =HLOOKUP('Basis - base - base'!AD3,Sprachentabelle!B2:D201,125,FALSE) -> [Mois] | T11: [SFr.] | U11: [SFr.] | W11: [Monate] | Y11: [Monate] | Z11: =HLOOKUP('Basis - base - base'!AD3,Sprachentabelle!B2:D201,125,FALSE) -> [Mois] | AA11: [SFr.] | AB11: [SFr.] | AD11: [Monate] | AE11: [Monate] | AF11: [Monate] | AG11: =HLOOKUP('Basis - base - base'!AD3,Sprachentabelle!B2:D201,125,FALSE) -> [Mois] | AH11: [SFr.] | AI11: [SFr.] | AK11: [Monate] | AL11: [Jahre] | AM11: =HLOOKUP('Basis - base - base'!AD3,Sprachentabelle!B2:D201,126,FALSE) -> [kWh] | AN11: =HLOOKUP('Basis - base - base'!AD3,Sprachentabelle!B2:D201,127,FALSE) -> [SFr.] | AO11: =HLOOKUP('Basis - base - base'!AD3,Sprachentabelle!B2:D201,127,FALSE) -> [SFr.] | AP11: =HLOOKUP('Basis - base - base'!AD3,Sprachentabelle!B2:D201,127,FALSE) -> [SFr.] | AQ11: =HLOOKUP('Basis - base - base'!AD3,Sprachentabelle!B2:D201,127,FALSE) -> [SFr.] | AR11: =HLOOKUP('Basis - base - base'!AD3,Sprachentabelle!B2:D201,127,FALSE) -> [SFr.] | AS11: [SFr.] | AT11: [SFr.] | AU11: =HLOOKUP('Basis - base - base'!AD3,Sprachentabelle!B2:D201,128,FALSE) -> rente [SFr.] | AV11: =HLOOKUP('Basis - base - base'!AD3,Sprachentabelle!B2:D201,128,FALSE) -> rente [SFr.] | AW11: =HLOOKUP('Basis - base - base'!AD3,Sprachentabelle!B2:D201,128,FALSE) -> rente [SFr.] | AX11: =HLOOKUP('Basis - base - base'!AD3,Sprachentabelle!B2:D201,127,FALSE) -> [SFr.] | AY11: =HLOOKUP('Basis - base - base'!AD3,Sprachentabelle!B2:D201,127,FALSE) -> [SFr.] | AZ11: [SFr.] | BA11: =HLOOKUP('Basis - base - base'!AD3,Sprachentabelle!B2:D201,127,FALSE) -> [SFr.] | BB11: =HLOOKUP('Basis - base - base'!AD3,Sprachentabelle!B2:D201,127,FALSE) -> [SFr.] | BC11: =HLOOKUP('Basis - base - base'!AD3,Sprachentabelle!B2:D201,127,FALSE) -> [SFr.]
D12: 0 | E12: 0 | AY12: =-AN4 -> -10000 | AZ12: =AY12 -> -10000 | BA12: =IF(ISERROR(AZ12),0,AZ12) -> -10000
C13: TRUE | D13: 1 | E13: =IF(C13=TRUE,D13,"") -> 1 | F13: =IF(C13=TRUE,'Basis - base - base'!O27,"") -> 2024-01-01 | G13: =IF(C13=TRUE,DATE(YEAR(F13),12,31),"") -> 2024-12-31 | H13: =DATEDIF(F13,G13,"m")+1 -> 12 | I13: =IF(AND($F13<$E$4,$G13>=$E$4,$G13<=$F$4),DATEDIF($E$4,$G13,"m")+1,0) -> 0 | J13: =IF(AND($G13>$F$4,$F13>=$E$4,$F13<=$F$4),DATEDIF($F13,$F$4,"m")+1,0) -> 0 | K13: =IF(AND($F13>=$E$4,$G13<=$F$4),DATEDIF($F13,$G13,"m")+1,0) -> 0 | L13: =SUM(I13:K13) -> 0 | M13: =$G$4 -> 0 | N13: =$S$4 -> 0 | O13: =$L$4 -> 0 | P13: =IF(AND($F13<$E$5,$G13>=$E$5,$G13<=$F$5),DATEDIF($E$5,$G13,"m")+1,0) -> 0 | Q13: =IF(AND($G13>$F$5,$F13>=$E$5,$F13<=$F$5),DATEDIF($F13,$F$5,"m")+1,0) -> 0 | R13: =IF(AND($F13>=$E$5,$G13<=$F$5),DATEDIF($F13,$G13,"m")+1,0) -> 12 | S13: =SUM(P13:R13) -> 12 | T13: =$G$5 -> 0.08 | U13: =$S$5 -> 0.3 | V13: =$L$5 -> 0.4 | W13: =IF(AND($F13<$E$6,$G13>=$E$6,$G13<=$F$6),DATEDIF($E$6,$G13,"m")+1,0) -> 0 | X13: =IF(AND($G13>$F$6,$F13>=$E$6,$F13<=$F$6),DATEDIF($F13,$F$6,"m")+1,0) -> 0 | Y13: =IF(AND($F13>=$E$6,$G13<=$F$6),DATEDIF($F13,$G13,"m")+1,0) -> 0 | Z13: =SUM(W13:Y13) -> 0 | AA13: =$G$6 -> 0 | AB13: =$S$6 -> 0 | AC13: =$L$6 -> 0 | AD13: =IF(AND($F13<$E$7,$G13>=$E$7,$G13<=$F$7),DATEDIF($E$7,$G13,"m")+1,0) -> 0 | AE13: =IF(AND($G13>$F$7,$F13>=$E$7,$F13<=$F$7),DATEDIF($F13,$F$7,"m")+1,0) -> 0 | AF13: =IF(AND($F13>=$E$7,$G13<=$F$7),DATEDIF($F13,$G13,"m")+1,0) -> 0 | AG13: =SUM(AD13:AF13) -> 0 | AH13: =$G$7 -> 0 | AI13: =$S$7 -> 0 | AJ13: =$L$7 -> 0 | AK13: =L13+S13+Y13+AF13 -> 12 | AL13: =IF(OR(AK13=12,AL12>0),AL12+1,0) -> 1 | AM13: ='Basis - base - base'!$V$11*'Basis - base - base'!$V$14*VLOOKUP(E13,'Degradation linear'!$A$5:$C$37,3,TRUE) -> 1993.333333 | AN13: =(L13*M13*(1-O13)+S13*T13*(1-V13)+Z13*AA13*(1-AC13)+AG13*AH13*(1-AJ13))/12*AM13 -> 95.68 | AO13: =(L13*N13*O13+S13*U13*V13+Z13*AB13*AC13+AG13*AI13*AJ13)/12*AM13 -> 239.2 | AP13: =AM13/12*H13*'Basis - base - base'!$V$16 -> 59.8 | AQ13: =IF('Basis - base - base'!$V$8=2,AN13*'Basis - base - base'!$Z$8,0) -> 0 | AR13: =IF('Basis - base - base'!$V$8=2,AP13*'Basis - base - base'!$Z$8,0) -> 0 | AS13: =IF(C13=TRUE,IF(AND(AL13>=0,AL13<=$AP$4),IF($AV$4=0,($AN$4-$AT$4)/$AP$4,VLOOKUP($AV$4*100,Annuität!$C$3:$D$10003,2,TRUE)*($AN$4-$AT$4))/12*H13,0),0) -> 433.1042462 | AT13: =IF(C13=TRUE,IF(AND(AL13>=0,AL13<=$AS$4),(IF($AV$4=0,($AT$4)/$AS$4,VLOOKUP($AV$4*100,Annuität!$I$3:$J$10003,2,TRUE)*($AT$4))-($AT$4)/$AS$4)/12*H13,0),0) -> 6 | AU13: =AS13+AT13 -> 439.1042462 | AV13: =IF(C13=TRUE,IF(AND(AL13>0,AL13<=$AP$5),IF($AV$5=0,$AN$5/$AP$5,VLOOKUP($AV$5*100,Annuität!$E$3:$F$10003,2,TRUE)*$AN$5),0),0) -> 0 | AW13: =IF(C13=TRUE,IF(AND(AL13>0,AL13<=$AP$6),IF($AV$6=0,$AN$6/$AP$6,VLOOKUP($AV$6*100,Annuität!$G$3:$H$10003,2,TRUE)*$AN$6),0),0) -> 0 | AX13: =IF(AL13='Basis - base - base'!$V$21,'Basis - base - base'!$V$20,0) -> 300 | AY13: =AN13+AO13-AP13-AQ13+AR13-AV13-AW13+AX13 -> 575.08 | AZ13: =AY13*(1+$AV$4)^-E13 -> 563.8039216 | BA13: =IF(ISERROR(AZ13),0,AZ13) -> 563.8039216 | BB13: =IF(ISERROR(AY13),,AY12+AY13) -> -9424.92 | BC13: =IF(ISERROR(AZ13),,BA12+BA13) -> -9436.196078 | BD13: =IF(OR(BC13<0,ISERROR(BC13),BC13=""),0,1) -> 0 | BE13: 0 | BF13: =IF(AY13<0,HLOOKUP('Basis - base - base'!AD3,Sprachentabelle!B2:D201,159,FALSE),"") -> 
C14: =IF(DATE(YEAR(G13),MONTH(G13),DAY(G13)+1)<='Basis - base - base'!$R$27,TRUE,FALSE) -> TRUE | D14: 2 | E14: 2 | F14: =IF(C14=TRUE,G13+1,"") -> 2025-01-01 | G14: =IF(C14=TRUE,IF(DATE(YEAR(F14)+1,MONTH(F14),DAY(F14)-1)>'Basis - base - base'!$R$27,'Basis - base - base'!$R$27,DATE(YEAR(F14)+1,MONTH(F14),DAY(F14)-1)),"") -> 2025-12-31 | H14: =DATEDIF(F14,G14,"m")+1 -> 12 | I14: =IF(AND($F14<$E$4,$G14>=$E$4,$G14<=$F$4),DATEDIF($E$4,$G14,"m")+1,0) -> 0 | J14: =IF(AND($G14>$F$4,$F14>=$E$4,$F14<=$F$4),DATEDIF($F14,$F$4,"m")+1,0) -> 0 | K14: =IF(AND($F14>=$E$4,$G14<=$F$4),DATEDIF($F14,$G14,"m")+1,0) -> 0 | L14: =SUM(I14:K14) -> 0 | M14: =$G$4 -> 0 | N14: =$S$4 -> 0 | O14: =$L$4 -> 0 | P14: =IF(AND($F14<$E$5,$G14>=$E$5,$G14<=$F$5),DATEDIF($E$5,$G14,"m")+1,0) -> 0 | Q14: =IF(AND($G14>$F$5,$F14>=$E$5,$F14<=$F$5),DATEDIF($F14,$F$5,"m")+1,0) -> 0 | R14: =IF(AND($F14>=$E$5,$G14<=$F$5),DATEDIF($F14,$G14,"m")+1,0) -> 12 | S14: =SUM(P14:R14) -> 12 | T14: =$G$5 -> 0.08 | U14: =$S$5 -> 0.3 | V14: =$L$5 -> 0.4 | W14: =IF(AND($F14<$E$6,$G14>=$E$6,$G14<=$F$6),DATEDIF($E$6,$G14,"m")+1,0) -> 0 | X14: =IF(AND($G14>$F$6,$F14>=$E$6,$F14<=$F$6),DATEDIF($F14,$F$6,"m")+1,0) -> 0 | Y14: =IF(AND($F14>=$E$6,$G14<=$F$6),DATEDIF($F14,$G14,"m")+1,0) -> 0 | Z14: =SUM(W14:Y14) -> 0 | AA14: =$G$6 -> 0 | AB14: =$S$6 -> 0 | AC14: 0 | AD14: =IF(AND($F14<$E$7,$G14>=$E$7,$G14<=$F$7),DATEDIF($E$7,$G14,"m")+1,0) -> 0 | AE14: =IF(AND($G14>$F$7,$F14>=$E$7,$F14<=$F$7),DATEDIF($F14,$F$7,"m")+1,0) -> 0 | AF14: =IF(AND($F14>=$E$7,$G14<=$F$7),DATEDIF($F14,$G14,"m")+1,0) -> 0 | AG14: =SUM(AD14:AF14) -> 0 | AH14: =$G$7 -> 0 | AI14: =$S$7 -> 0 | AJ14: 0 | AK14: 12 | AL14: =IF(OR(AK14=12,AL13>0),AL13+1,0) -> 2 | AM14: ='Basis - base - base'!$V$11*'Basis - base - base'!$V$14*VLOOKUP(E14,'Degradation linear'!$A$5:$C$37,3,TRUE) -> 1980 | AN14: =(L14*M14*(1-O14)+S14*T14*(1-V14)+Z14*AA14*(1-AC14)+AG14*AH14*(1-AJ14))/12*AM14 -> 95.04 | AO14: =(L14*N14*O14+S14*U14*V14+Z14*AB14*AC14+AG14*AI14*AJ14)/12*AM14 -> 237.6 | AP14: =AM14/12*H14*'Basis - base - base'!$V$16 -> 59.4 | AQ14: =IF('Basis - base - base'!$V$8=2,AN14*'Basis - base - base'!$Z$8,0) -> 0 | AR14: =IF('Basis - base - base'!$V$8=2,AP14*'Basis - base - base'!$Z$8,0) -> 0 | AS14: =IF(C14=TRUE,IF(AND(AL14>=0,AL14<=$AP$4),IF($AV$4=0,($AN$4-$AT$4)/$AP$4,VLOOKUP($AV$4*100,Annuität!$C$3:$D$10003,2,TRUE)*($AN$4-$AT$4))/12*H14,0),0) -> 433.1042462 | AT14: =IF(C14=TRUE,IF(AND(AL14>=0,AL14<=$AS$4),(IF($AV$4=0,($AT$4)/$AS$4,VLOOKUP($AV$4*100,Annuität!$I$3:$J$10003,2,TRUE)*($AT$4))-($AT$4)/$AS$4)/12*H14,0),0) -> 0 | AU14: =AS14+AT14 -> 433.1042462 | AV14: =IF(C14=TRUE,IF(AND(AL14>0,AL14<=$AP$5),IF($AV$5=0,$AN$5/$AP$5,VLOOKUP($AV$5*100,Annuität!$E$3:$F$10003,2,TRUE)*$AN$5),0),0) -> 0 | AW14: =IF(C14=TRUE,IF(AND(AL14>0,AL14<=$AP$6),IF($AV$6=0,$AN$6/$AP$6,VLOOKUP($AV$6*100,Annuität!$G$3:$H$10003,2,TRUE)*$AN$6),0),0) -> 0 | AX14: =IF(AL14='Basis - base - base'!$V$21,'Basis - base - base'!$V$20,0) -> 0 | AY14: 273.24 | AZ14: 262.6297578 | BA14: =IF(ISERROR(AZ14),0,AZ14) -> 262.6297578 | BB14: =IF(ISERROR(AY14),,BB13+AY14) -> -9151.68 | BC14: =IF(ISERROR(AZ14),"",BC13+BA14) -> -9173.566321 | BD14: =IF(OR(BC14<0,ISERROR(BC14),BC14=""),0,IF(OR(BC13<0,ISERROR(BC13),BC13=""),1,0)) -> 0 | BE14: 1 | BF14: =IF(AY14<0,HLOOKUP('Basis - base - base'!AD3,Sprachentabelle!B2:D201,159,FALSE),"") -> 
C15: =IF(DATE(YEAR(G14),MONTH(G14),DAY(G14)+1)<='Basis - base - base'!$R$27,TRUE,FALSE) -> TRUE | D15: 3 | E15: 3 | F15: =IF(C15=TRUE,DATE(YEAR(G14),MONTH(G14),DAY(G14)+1),"") -> 2026-01-01 | G15: =IF(C15=TRUE,IF(DATE(YEAR(F15)+1,MONTH(F15),DAY(F15)-1)>'Basis - base - base'!$R$27,'Basis - base - base'!$R$27,DATE(YEAR(F15)+1,MONTH(F15),DAY(F15)-1)),"") -> 2026-12-31 | H15: 12 | I15: 0 | J15: 0 | K15: 0 | L15: 0 | M15: 0 | N15: 0 | O15: 0 | P15: 0 | Q15: 0 | R15: 12 | S15: 12 | T15: 0.08 | U15: 0.3 | V15: 0.4 | W15: 0 | X15: 0 | Y15: 0 | Z15: 0 | AA15: 0 | AB15: 0 | AC15: 0 | AD15: 0 | AE15: 0 | AF15: 0 | AG15: 0 | AH15: 0 | AI15: 0 | AJ15: 0 | AK15: 12 | AL15: 3 | AM15: ='Basis - base - base'!$V$11*'Basis - base - base'!$V$14*VLOOKUP(E15,'Degradation linear'!$A$5:$C$37,3,TRUE) -> 1966.666667 | AN15: 94.4 | AO15: 236 | AP15: =AM15/12*H15*'Basis - base - base'!$V$16 -> 59 | AQ15: =IF('Basis - base - base'!$V$8=2,AN15*'Basis - base - base'!$Z$8,0) -> 0 | AR15: =IF('Basis - base - base'!$V$8=2,AP15*'Basis - base - base'!$Z$8,0) -> 0 | AS15: =IF(C15=TRUE,IF(AND(AL15>=0,AL15<=$AP$4),IF($AV$4=0,($AN$4-$AT$4)/$AP$4,VLOOKUP($AV$4*100,Annuität!$C$3:$D$10003,2,TRUE)*($AN$4-$AT$4))/12*H15,0),0) -> 433.1042462 | AT15: =IF(C15=TRUE,IF(AND(AL15>=0,AL15<=$AS$4),(IF($AV$4=0,($AT$4)/$AS$4,VLOOKUP($AV$4*100,Annuität!$I$3:$J$10003,2,TRUE)*($AT$4))-($AT$4)/$AS$4)/12*H15,0),0) -> 0 | AU15: 433.1042462 | AV15: =IF(C15=TRUE,IF(AND(AL15>0,AL15<=$AP$5),IF($AV$5=0,$AN$5/$AP$5,VLOOKUP($AV$5*100,Annuität!$E$3:$F$10003,2,TRUE)*$AN$5),0),0) -> 0 | AW15: =IF(C15=TRUE,IF(AND(AL15>0,AL15<=$AP$6),IF($AV$6=0,$AN$6/$AP$6,VLOOKUP($AV$6*100,Annuität!$G$3:$H$10003,2,TRUE)*$AN$6),0),0) -> 0 | AX15: =IF(AL15='Basis - base - base'!$V$21,'Basis - base - base'!$V$20,0) -> 0 | AY15: 271.4 | AZ15: 255.7462816 | BA15: =IF(ISERROR(AZ15),0,AZ15) -> 255.7462816 | BB15: =IF(ISERROR(AY15),,BB14+AY15) -> -8880.28 | BC15: =IF(ISERROR(AZ15),"",BC14+BA15) -> -8917.820039 | BD15: =IF(OR(BC15<0,ISERROR(BC15),BC15=""),0,IF(OR(BC14<0,ISERROR(BC14),BC14=""),1,0)) -> 0 | BE15: 2 | BF15: =IF(AY15<0,HLOOKUP('Basis - base - base'!AD3,Sprachentabelle!B2:D201,159,FALSE),"") -> 
C16: =IF(DATE(YEAR(G15),MONTH(G15),DAY(G15)+1)<='Basis - base - base'!$R$27,TRUE,FALSE) -> TRUE | D16: 4 | E16: 4 | F16: 2027-01-01 | G16: =IF(C16=TRUE,IF(DATE(YEAR(F16)+1,MONTH(F16),DAY(F16)-1)>'Basis - base - base'!$R$27,'Basis - base - base'!$R$27,DATE(YEAR(F16)+1,MONTH(F16),DAY(F16)-1)),"") -> 2027-12-31 | H16: 12 | I16: 0 | J16: 0 | K16: 0 | L16: 0 | M16: 0 | N16: 0 | O16: 0 | P16: 0 | Q16: 0 | R16: 12 | S16: 12 | T16: 0.08 | U16: 0.3 | V16: 0.4 | W16: 0 | X16: 0 | Y16: 0 | Z16: 0 | AA16: 0 | AB16: 0 | AC16: 0 | AD16: 0 | AE16: 0 | AF16: 0 | AG16: 0 | AH16: 0 | AI16: 0 | AJ16: 0 | AK16: 12 | AL16: 4 | AM16: ='Basis - base - base'!$V$11*'Basis - base - base'!$V$14*VLOOKUP(E16,'Degradation linear'!$A$5:$C$37,3,TRUE) -> 1953.333333 | AN16: 93.76 | AO16: 234.4 | AP16: =AM16/12*H16*'Basis - base - base'!$V$16 -> 58.6 | AQ16: =IF('Basis - base - base'!$V$8=2,AN16*'Basis - base - base'!$Z$8,0) -> 0 | AR16: =IF('Basis - base - base'!$V$8=2,AP16*'Basis - base - base'!$Z$8,0) -> 0 | AS16: =IF(C16=TRUE,IF(AND(AL16>=0,AL16<=$AP$4),IF($AV$4=0,($AN$4-$AT$4)/$AP$4,VLOOKUP($AV$4*100,Annuität!$C$3:$D$10003,2,TRUE)*($AN$4-$AT$4))/12*H16,0),0) -> 433.1042462 | AT16: =IF(C16=TRUE,IF(AND(AL16>=0,AL16<=$AS$4),(IF($AV$4=0,($AT$4)/$AS$4,VLOOKUP($AV$4*100,Annuität!$I$3:$J$10003,2,TRUE)*($AT$4))-($AT$4)/$AS$4)/12*H16,0),0) -> 0 | AU16: 433.1042462 | AV16: =IF(C16=TRUE,IF(AND(AL16>0,AL16<=$AP$5),IF($AV$5=0,$AN$5/$AP$5,VLOOKUP($AV$5*100,Annuität!$E$3:$F$10003,2,TRUE)*$AN$5),0),0) -> 0 | AW16: =IF(C16=TRUE,IF(AND(AL16>0,AL16<=$AP$6),IF($AV$6=0,$AN$6/$AP$6,VLOOKUP($AV$6*100,Annuität!$G$3:$H$10003,2,TRUE)*$AN$6),0),0) -> 0 | AX16: =IF(AL16='Basis - base - base'!$V$21,'Basis - base - base'!$V$20,0) -> 0 | AY16: 269.56 | AZ16: 249.031773 | BA16: 249.031773 | BB16: -8610.72 | BC16: -8668.788266 | BD16: 0 | BE16: 3 | BF16: =IF(AY16<0,HLOOKUP('Basis - base - base'!AD3,Sprachentabelle!B2:D201,159,FALSE),"") -> 
C17: =IF(DATE(YEAR(G16),MONTH(G16),DAY(G16)+1)<='Basis - base - base'!$R$27,TRUE,FALSE) -> TRUE | D17: 5 | E17: 5 | F17: 2028-01-01 | G17: =IF(C17=TRUE,IF(DATE(YEAR(F17)+1,MONTH(F17),DAY(F17)-1)>'Basis - base - base'!$R$27,'Basis - base - base'!$R$27,DATE(YEAR(F17)+1,MONTH(F17),DAY(F17)-1)),"") -> 2028-12-31 | H17: 12 | I17: 0 | J17: 0 | K17: 0 | L17: 0 | M17: 0 | N17: 0 | O17: 0 | P17: 0 | Q17: 0 | R17: 12 | S17: 12 | T17: 0.08 | U17: 0.3 | V17: 0.4 | W17: 0 | X17: 0 | Y17: 0 | Z17: 0 | AA17: 0 | AB17: 0 | AC17: 0 | AD17: 0 | AE17: 0 | AF17: 0 | AG17: 0 | AH17: 0 | AI17: 0 | AJ17: 0 | AK17: 12 | AL17: 5 | AM17: ='Basis - base - base'!$V$11*'Basis - base - base'!$V$14*VLOOKUP(E17,'Degradation linear'!$A$5:$C$37,3,TRUE) -> 1940 | AN17: 93.12 | AO17: 232.8 | AP17: =AM17/12*H17*'Basis - base - base'!$V$16 -> 58.2 | AQ17: =IF('Basis - base - base'!$V$8=2,AN17*'Basis - base - base'!$Z$8,0) -> 0 | AR17: =IF('Basis - base - base'!$V$8=2,AP17*'Basis - base - base'!$Z$8,0) -> 0 | AS17: =IF(C17=TRUE,IF(AND(AL17>=0,AL17<=$AP$4),IF($AV$4=0,($AN$4-$AT$4)/$AP$4,VLOOKUP($AV$4*100,Annuität!$C$3:$D$10003,2,TRUE)*($AN$4-$AT$4))/12*H17,0),0) -> 433.1042462 | AT17: =IF(C17=TRUE,IF(AND(AL17>=0,AL17<=$AS$4),(IF($AV$4=0,($AT$4)/$AS$4,VLOOKUP($AV$4*100,Annuität!$I$3:$J$10003,2,TRUE)*($AT$4))-($AT$4)/$AS$4)/12*H17,0),0) -> 0 | AU17: 433.1042462 | AV17: =IF(C17=TRUE,IF(AND(AL17>0,AL17<=$AP$5),IF($AV$5=0,$AN$5/$AP$5,VLOOKUP($AV$5*100,Annuität!$E$3:$F$10003,2,TRUE)*$AN$5),0),0) -> 0 | AW17: =IF(C17=TRUE,IF(AND(AL17>0,AL17<=$AP$6),IF($AV$6=0,$AN$6/$AP$6,VLOOKUP($AV$6*100,Annuität!$G$3:$H$10003,2,TRUE)*$AN$6),0),0) -> 0 | AX17: =IF(AL17='Basis - base - base'!$V$21,'Basis - base - base'!$V$20,0) -> 0 | AY17: 267.72 | AZ17: 242.4822524 | BA17: 242.4822524 | BB17: -8343 | BC17: -8426.306014 | BD17: 0 | BE17: 4 | BF17: =IF(AY17<0,HLOOKUP('Basis - base - base'!AD3,Sprachentabelle!B2:D201,159,FALSE),"") -> 
C18: =IF(DATE(YEAR(G17),MONTH(G17),DAY(G17)+1)<='Basis - base - base'!$R$27,TRUE,FALSE) -> TRUE | D18: 6 | E18: 6 | F18: 2029-01-01 | G18: =IF(C18=TRUE,IF(DATE(YEAR(F18)+1,MONTH(F18),DAY(F18)-1)>'Basis - base - base'!$R$27,'Basis - base - base'!$R$27,DATE(YEAR(F18)+1,MONTH(F18),DAY(F18)-1)),"") -> 2029-12-31 | H18: 12 | I18: 0 | J18: 0 | K18: 0 | L18: 0 | M18: 0 | N18: 0 | O18: 0 | P18: 0 | Q18: 0 | R18: 12 | S18: 12 | T18: 0.08 | U18: 0.3 | V18: 0.4 | W18: 0 | X18: 0 | Y18: 0 | Z18: 0 | AA18: 0 | AB18: 0 | AC18: 0 | AD18: 0 | AE18: 0 | AF18: 0 | AG18: 0 | AH18: 0 | AI18: 0 | AJ18: 0 | AK18: 12 | AL18: 6 | AM18: ='Basis - base - base'!$V$11*'Basis - base - base'!$V$14*VLOOKUP(E18,'Degradation linear'!$A$5:$C$37,3,TRUE) -> 1926.666667 | AN18: 92.48 | AO18: 231.2 | AP18: =AM18/12*H18*'Basis - base - base'!$V$16 -> 57.8 | AQ18: =IF('Basis - base - base'!$V$8=2,AN18*'Basis - base - base'!$Z$8,0) -> 0 | AR18: =IF('Basis - base - base'!$V$8=2,AP18*'Basis - base - base'!$Z$8,0) -> 0 | AS18: =IF(C18=TRUE,IF(AND(AL18>=0,AL18<=$AP$4),IF($AV$4=0,($AN$4-$AT$4)/$AP$4,VLOOKUP($AV$4*100,Annuität!$C$3:$D$10003,2,TRUE)*($AN$4-$AT$4))/12*H18,0),0) -> 433.1042462 | AT18: =IF(C18=TRUE,IF(AND(AL18>=0,AL18<=$AS$4),(IF($AV$4=0,($AT$4)/$AS$4,VLOOKUP($AV$4*100,Annuität!$I$3:$J$10003,2,TRUE)*($AT$4))-($AT$4)/$AS$4)/12*H18,0),0) -> 0 | AU18: 433.1042462 | AV18: =IF(C18=TRUE,IF(AND(AL18>0,AL18<=$AP$5),IF($AV$5=0,$AN$5/$AP$5,VLOOKUP($AV$5*100,Annuität!$E$3:$F$10003,2,TRUE)*$AN$5),0),0) -> 0 | AW18: =IF(C18=TRUE,IF(AND(AL18>0,AL18<=$AP$6),IF($AV$6=0,$AN$6/$AP$6,VLOOKUP($AV$6*100,Annuität!$G$3:$H$10003,2,TRUE)*$AN$6),0),0) -> 0 | AX18: =IF(AL18='Basis - base - base'!$V$21,'Basis - base - base'!$V$20,0) -> 0 | AY18: 265.88 | AZ18: 236.0938311 | BA18: 236.0938311 | BB18: -8077.12 | BC18: -8190.212183 | BD18: 0 | BE18: 5 | BF18: =IF(AY18<0,HLOOKUP('Basis - base - base'!AD3,Sprachentabelle!B2:D201,159,FALSE),"") -> 
C19: =IF(DATE(YEAR(G18),MONTH(G18),DAY(G18)+1)<='Basis - base - base'!$R$27,TRUE,FALSE) -> TRUE | D19: 7 | E19: 7 | F19: 2030-01-01 | G19: =IF(C19=TRUE,IF(DATE(YEAR(F19)+1,MONTH(F19),DAY(F19)-1)>'Basis - base - base'!$R$27,'Basis - base - base'!$R$27,DATE(YEAR(F19)+1,MONTH(F19),DAY(F19)-1)),"") -> 2030-12-31 | H19: 12 | I19: 0 | J19: 0 | K19: 0 | L19: 0 | M19: 0 | N19: 0 | O19: 0 | P19: 0 | Q19: 0 | R19: 12 | S19: 12 | T19: 0.08 | U19: 0.3 | V19: 0.4 | W19: 0 | X19: 0 | Y19: 0 | Z19: 0 | AA19: 0 | AB19: 0 | AC19: 0 | AD19: 0 | AE19: 0 | AF19: 0 | AG19: 0 | AH19: 0 | AI19: 0 | AJ19: 0 | AK19: 12 | AL19: 7 | AM19: ='Basis - base - base'!$V$11*'Basis - base - base'!$V$14*VLOOKUP(E19,'Degradation linear'!$A$5:$C$37,3,TRUE) -> 1913.333333 | AN19: 91.84 | AO19: 229.6 | AP19: =AM19/12*H19*'Basis - base - base'!$V$16 -> 57.4 | AQ19: =IF('Basis - base - base'!$V$8=2,AN19*'Basis - base - base'!$Z$8,0) -> 0 | AR19: =IF('Basis - base - base'!$V$8=2,AP19*'Basis - base - base'!$Z$8,0) -> 0 | AS19: =IF(C19=TRUE,IF(AND(AL19>=0,AL19<=$AP$4),IF($AV$4=0,($AN$4-$AT$4)/$AP$4,VLOOKUP($AV$4*100,Annuität!$C$3:$D$10003,2,TRUE)*($AN$4-$AT$4))/12*H19,0),0) -> 433.1042462 | AT19: =IF(C19=TRUE,IF(AND(AL19>=0,AL19<=$AS$4),(IF($AV$4=0,($AT$4)/$AS$4,VLOOKUP($AV$4*100,Annuität!$I$3:$J$10003,2,TRUE)*($AT$4))-($AT$4)/$AS$4)/12*H19,0),0) -> 0 | AU19: 433.1042462 | AV19: =IF(C19=TRUE,IF(AND(AL19>0,AL19<=$AP$5),IF($AV$5=0,$AN$5/$AP$5,VLOOKUP($AV$5*100,Annuität!$E$3:$F$10003,2,TRUE)*$AN$5),0),0) -> 0 | AW19: =IF(C19=TRUE,IF(AND(AL19>0,AL19<=$AP$6),IF($AV$6=0,$AN$6/$AP$6,VLOOKUP($AV$6*100,Annuität!$G$3:$H$10003,2,TRUE)*$AN$6),0),0) -> 0 | AX19: =IF(AL19='Basis - base - base'!$V$21,'Basis - base - base'!$V$20,0) -> 0 | AY19: 264.04 | AZ19: 229.8627096 | BA19: 229.8627096 | BB19: -7813.08 | BC19: -7960.349473 | BD19: 0 | BE19: 6 | BF19: =IF(AY19<0,HLOOKUP('Basis - base - base'!AD3,Sprachentabelle!B2:D201,159,FALSE),"") -> 
C20: =IF(DATE(YEAR(G19),MONTH(G19),DAY(G19)+1)<='Basis - base - base'!$R$27,TRUE,FALSE) -> TRUE | D20: 8 | E20: 8 | F20: 2031-01-01 | G20: =IF(C20=TRUE,IF(DATE(YEAR(F20)+1,MONTH(F20),DAY(F20)-1)>'Basis - base - base'!$R$27,'Basis - base - base'!$R$27,DATE(YEAR(F20)+1,MONTH(F20),DAY(F20)-1)),"") -> 2031-12-31 | H20: 12 | I20: 0 | J20: 0 | K20: 0 | L20: 0 | M20: 0 | N20: 0 | O20: 0 | P20: 0 | Q20: 0 | R20: 12 | S20: 12 | T20: 0.08 | U20: 0.3 | V20: 0.4 | W20: 0 | X20: 0 | Y20: 0 | Z20: 0 | AA20: 0 | AB20: 0 | AC20: 0 | AD20: 0 | AE20: 0 | AF20: 0 | AG20: 0 | AH20: 0 | AI20: 0 | AJ20: 0 | AK20: 12 | AL20: 8 | AM20: ='Basis - base - base'!$V$11*'Basis - base - base'!$V$14*VLOOKUP(E20,'Degradation linear'!$A$5:$C$37,3,TRUE) -> 1900 | AN20: 91.2 | AO20: 228 | AP20: =AM20/12*H20*'Basis - base - base'!$V$16 -> 57 | AQ20: =IF('Basis - base - base'!$V$8=2,AN20*'Basis - base - base'!$Z$8,0) -> 0 | AR20: =IF('Basis - base - base'!$V$8=2,AP20*'Basis - base - base'!$Z$8,0) -> 0 | AS20: =IF(C20=TRUE,IF(AND(AL20>=0,AL20<=$AP$4),IF($AV$4=0,($AN$4-$AT$4)/$AP$4,VLOOKUP($AV$4*100,Annuität!$C$3:$D$10003,2,TRUE)*($AN$4-$AT$4))/12*H20,0),0) -> 433.1042462 | AT20: =IF(C20=TRUE,IF(AND(AL20>=0,AL20<=$AS$4),(IF($AV$4=0,($AT$4)/$AS$4,VLOOKUP($AV$4*100,Annuität!$I$3:$J$10003,2,TRUE)*($AT$4))-($AT$4)/$AS$4)/12*H20,0),0) -> 0 | AU20: 433.1042462 | AV20: =IF(C20=TRUE,IF(AND(AL20>0,AL20<=$AP$5),IF($AV$5=0,$AN$5/$AP$5,VLOOKUP($AV$5*100,Annuität!$E$3:$F$10003,2,TRUE)*$AN$5),0),0) -> 0 | AW20: =IF(C20=TRUE,IF(AND(AL20>0,AL20<=$AP$6),IF($AV$6=0,$AN$6/$AP$6,VLOOKUP($AV$6*100,Annuität!$G$3:$H$10003,2,TRUE)*$AN$6),0),0) -> 0 | AX20: =IF(AL20='Basis - base - base'!$V$21,'Basis - base - base'!$V$20,0) -> 0 | AY20: 262.2 | AZ20: 223.7851753 | BA20: 223.7851753 | BB20: -7550.88 | BC20: -7736.564298 | BD20: 0 | BE20: 7 | BF20: =IF(AY20<0,HLOOKUP('Basis - base - base'!AD3,Sprachentabelle!B2:D201,159,FALSE),"") -> 
C21: =IF(DATE(YEAR(G20),MONTH(G20),DAY(G20)+1)<='Basis - base - base'!$R$27,TRUE,FALSE) -> TRUE | D21: 9 | E21: 9 | F21: 2032-01-01 | G21: =IF(C21=TRUE,IF(DATE(YEAR(F21)+1,MONTH(F21),DAY(F21)-1)>'Basis - base - base'!$R$27,'Basis - base - base'!$R$27,DATE(YEAR(F21)+1,MONTH(F21),DAY(F21)-1)),"") -> 2032-12-31 | H21: 12 | I21: 0 | J21: 0 | K21: 0 | L21: 0 | M21: 0 | N21: 0 | O21: 0 | P21: 0 | Q21: 0 | R21: 12 | S21: 12 | T21: 0.08 | U21: 0.3 | V21: 0.4 | W21: 0 | X21: 0 | Y21: 0 | Z21: 0 | AA21: 0 | AB21: 0 | AC21: 0 | AD21: 0 | AE21: 0 | AF21: 0 | AG21: 0 | AH21: 0 | AI21: 0 | AJ21: 0 | AK21: 12 | AL21: 9 | AM21: ='Basis - base - base'!$V$11*'Basis - base - base'!$V$14*VLOOKUP(E21,'Degradation linear'!$A$5:$C$37,3,TRUE) -> 1886.666667 | AN21: 90.56 | AO21: 226.4 | AP21: =AM21/12*H21*'Basis - base - base'!$V$16 -> 56.6 | AQ21: =IF('Basis - base - base'!$V$8=2,AN21*'Basis - base - base'!$Z$8,0) -> 0 | AR21: =IF('Basis - base - base'!$V$8=2,AP21*'Basis - base - base'!$Z$8,0) -> 0 | AS21: =IF(C21=TRUE,IF(AND(AL21>=0,AL21<=$AP$4),IF($AV$4=0,($AN$4-$AT$4)/$AP$4,VLOOKUP($AV$4*100,Annuität!$C$3:$D$10003,2,TRUE)*($AN$4-$AT$4))/12*H21,0),0) -> 433.1042462 | AT21: =IF(C21=TRUE,IF(AND(AL21>=0,AL21<=$AS$4),(IF($AV$4=0,($AT$4)/$AS$4,VLOOKUP($AV$4*100,Annuität!$I$3:$J$10003,2,TRUE)*($AT$4))-($AT$4)/$AS$4)/12*H21,0),0) -> 0 | AU21: 433.1042462 | AV21: =IF(C21=TRUE,IF(AND(AL21>0,AL21<=$AP$5),IF($AV$5=0,$AN$5/$AP$5,VLOOKUP($AV$5*100,Annuität!$E$3:$F$10003,2,TRUE)*$AN$5),0),0) -> 0 | AW21: =IF(C21=TRUE,IF(AND(AL21>0,AL21<=$AP$6),IF($AV$6=0,$AN$6/$AP$6,VLOOKUP($AV$6*100,Annuität!$G$3:$H$10003,2,TRUE)*$AN$6),0),0) -> 0 | AX21: =IF(AL21='Basis - base - base'!$V$21,'Basis - base - base'!$V$20,0) -> 0 | AY21: 260.36 | AZ21: 217.857601 | BA21: 217.857601 | BB21: -7290.52 | BC21: -7518.706697 | BD21: 0 | BE21: 8 | BF21: =IF(AY21<0,HLOOKUP('Basis - base - base'!AD3,Sprachentabelle!B2:D201,159,FALSE),"") -> 
C22: =IF(DATE(YEAR(G21),MONTH(G21),DAY(G21)+1)<='Basis - base - base'!$R$27,TRUE,FALSE) -> TRUE | D22: 10 | E22: 10 | F22: 2033-01-01 | G22: =IF(C22=TRUE,IF(DATE(YEAR(F22)+1,MONTH(F22),DAY(F22)-1)>'Basis - base - base'!$R$27,'Basis - base - base'!$R$27,DATE(YEAR(F22)+1,MONTH(F22),DAY(F22)-1)),"") -> 2033-12-31 | H22: 12 | I22: 0 | J22: 0 | K22: 0 | L22: 0 | M22: 0 | N22: 0 | O22: 0 | P22: 0 | Q22: 0 | R22: 12 | S22: 12 | T22: 0.08 | U22: 0.3 | V22: 0.4 | W22: 0 | X22: 0 | Y22: 0 | Z22: 0 | AA22: 0 | AB22: 0 | AC22: 0 | AD22: 0 | AE22: 0 | AF22: 0 | AG22: 0 | AH22: 0 | AI22: 0 | AJ22: 0 | AK22: 12 | AL22: 10 | AM22: ='Basis - base - base'!$V$11*'Basis - base - base'!$V$14*VLOOKUP(E22,'Degradation linear'!$A$5:$C$37,3,TRUE) -> 1873.333333 | AN22: 89.92 | AO22: 224.8 | AP22: =AM22/12*H22*'Basis - base - base'!$V$16 -> 56.2 | AQ22: =IF('Basis - base - base'!$V$8=2,AN22*'Basis - base - base'!$Z$8,0) -> 0 | AR22: =IF('Basis - base - base'!$V$8=2,AP22*'Basis - base - base'!$Z$8,0) -> 0 | AS22: =IF(C22=TRUE,IF(AND(AL22>=0,AL22<=$AP$4),IF($AV$4=0,($AN$4-$AT$4)/$AP$4,VLOOKUP($AV$4*100,Annuität!$C$3:$D$10003,2,TRUE)*($AN$4-$AT$4))/12*H22,0),0) -> 433.1042462 | AT22: =IF(C22=TRUE,IF(AND(AL22>=0,AL22<=$AS$4),(IF($AV$4=0,($AT$4)/$AS$4,VLOOKUP($AV$4*100,Annuität!$I$3:$J$10003,2,TRUE)*($AT$4))-($AT$4)/$AS$4)/12*H22,0),0) -> 0 | AU22: 433.1042462 | AV22: =IF(C22=TRUE,IF(AND(AL22>0,AL22<=$AP$5),IF($AV$5=0,$AN$5/$AP$5,VLOOKUP($AV$5*100,Annuität!$E$3:$F$10003,2,TRUE)*$AN$5),0),0) -> 0 | AW22: =IF(C22=TRUE,IF(AND(AL22>0,AL22<=$AP$6),IF($AV$6=0,$AN$6/$AP$6,VLOOKUP($AV$6*100,Annuität!$G$3:$H$10003,2,TRUE)*$AN$6),0),0) -> 0 | AX22: =IF(AL22='Basis - base - base'!$V$21,'Basis - base - base'!$V$20,0) -> 0 | AY22: 258.52 | AZ22: 212.0764425 | BA22: 212.0764425 | BB22: -7032 | BC22: -7306.630254 | BD22: 0 | BE22: 9 | BF22: =IF(AY22<0,HLOOKUP('Basis - base - base'!AD3,Sprachentabelle!B2:D201,159,FALSE),"") -> 
C23: =IF(DATE(YEAR(G22),MONTH(G22),DAY(G22)+1)<='Basis - base - base'!$R$27,TRUE,FALSE) -> TRUE | D23: 11 | E23: 11 | F23: 2034-01-01 | G23: =IF(C23=TRUE,IF(DATE(YEAR(F23)+1,MONTH(F23),DAY(F23)-1)>'Basis - base - base'!$R$27,'Basis - base - base'!$R$27,DATE(YEAR(F23)+1,MONTH(F23),DAY(F23)-1)),"") -> 2034-12-31 | H23: 12 | I23: 0 | J23: 0 | K23: 0 | L23: 0 | M23: 0 | N23: 0 | O23: 0 | P23: 0 | Q23: 0 | R23: 12 | S23: 12 | T23: 0.08 | U23: 0.3 | V23: 0.4 | W23: 0 | X23: 0 | Y23: 0 | Z23: 0 | AA23: 0 | AB23: 0 | AC23: 0 | AD23: 0 | AE23: 0 | AF23: 0 | AG23: 0 | AH23: 0 | AI23: 0 | AJ23: 0 | AK23: 12 | AL23: 11 | AM23: ='Basis - base - base'!$V$11*'Basis - base - base'!$V$14*VLOOKUP(E23,'Degradation linear'!$A$5:$C$37,3,TRUE) -> 1860 | AN23: 89.28 | AO23: 223.2 | AP23: =AM23/12*H23*'Basis - base - base'!$V$16 -> 55.8 | AQ23: =IF('Basis - base - base'!$V$8=2,AN23*'Basis - base - base'!$Z$8,0) -> 0 | AR23: =IF('Basis - base - base'!$V$8=2,AP23*'Basis - base - base'!$Z$8,0) -> 0 | AS23: =IF(C23=TRUE,IF(AND(AL23>=0,AL23<=$AP$4),IF($AV$4=0,($AN$4-$AT$4)/$AP$4,VLOOKUP($AV$4*100,Annuität!$C$3:$D$10003,2,TRUE)*($AN$4-$AT$4))/12*H23,0),0) -> 433.1042462 | AT23: =IF(C23=TRUE,IF(AND(AL23>=0,AL23<=$AS$4),(IF($AV$4=0,($AT$4)/$AS$4,VLOOKUP($AV$4*100,Annuität!$I$3:$J$10003,2,TRUE)*($AT$4))-($AT$4)/$AS$4)/12*H23,0),0) -> 0 | AU23: 433.1042462 | AV23: =IF(C23=TRUE,IF(AND(AL23>0,AL23<=$AP$5),IF($AV$5=0,$AN$5/$AP$5,VLOOKUP($AV$5*100,Annuität!$E$3:$F$10003,2,TRUE)*$AN$5),0),0) -> 0 | AW23: =IF(C23=TRUE,IF(AND(AL23>0,AL23<=$AP$6),IF($AV$6=0,$AN$6/$AP$6,VLOOKUP($AV$6*100,Annuität!$G$3:$H$10003,2,TRUE)*$AN$6),0),0) -> 0 | AX23: =IF(AL23='Basis - base - base'!$V$21,'Basis - base - base'!$V$20,0) -> 0 | AY23: 256.68 | AZ23: 206.4382369 | BA23: 206.4382369 | BB23: -6775.32 | BC23: -7100.192017 | BD23: 0 | BE23: 10 | BF23: =IF(AY23<0,HLOOKUP('Basis - base - base'!AD3,Sprachentabelle!B2:D201,159,FALSE),"") -> 
C24: =IF(DATE(YEAR(G23),MONTH(G23),DAY(G23)+1)<='Basis - base - base'!$R$27,TRUE,FALSE) -> TRUE | D24: 12 | E24: 12 | F24: 2035-01-01 | G24: =IF(C24=TRUE,IF(DATE(YEAR(F24)+1,MONTH(F24),DAY(F24)-1)>'Basis - base - base'!$R$27,'Basis - base - base'!$R$27,DATE(YEAR(F24)+1,MONTH(F24),DAY(F24)-1)),"") -> 2035-12-31 | H24: 12 | I24: 0 | J24: 0 | K24: 0 | L24: 0 | M24: 0 | N24: 0 | O24: 0 | P24: 0 | Q24: 0 | R24: 12 | S24: 12 | T24: 0.08 | U24: 0.3 | V24: 0.4 | W24: 0 | X24: 0 | Y24: 0 | Z24: 0 | AA24: 0 | AB24: 0 | AC24: 0 | AD24: 0 | AE24: 0 | AF24: 0 | AG24: 0 | AH24: 0 | AI24: 0 | AJ24: 0 | AK24: 12 | AL24: 12 | AM24: ='Basis - base - base'!$V$11*'Basis - base - base'!$V$14*VLOOKUP(E24,'Degradation linear'!$A$5:$C$37,3,TRUE) -> 1846.666667 | AN24: 88.64 | AO24: 221.6 | AP24: =AM24/12*H24*'Basis - base - base'!$V$16 -> 55.4 | AQ24: =IF('Basis - base - base'!$V$8=2,AN24*'Basis - base - base'!$Z$8,0) -> 0 | AR24: =IF('Basis - base - base'!$V$8=2,AP24*'Basis - base - base'!$Z$8,0) -> 0 | AS24: =IF(C24=TRUE,IF(AND(AL24>=0,AL24<=$AP$4),IF($AV$4=0,($AN$4-$AT$4)/$AP$4,VLOOKUP($AV$4*100,Annuität!$C$3:$D$10003,2,TRUE)*($AN$4-$AT$4))/12*H24,0),0) -> 433.1042462 | AT24: =IF(C24=TRUE,IF(AND(AL24>=0,AL24<=$AS$4),(IF($AV$4=0,($AT$4)/$AS$4,VLOOKUP($AV$4*100,Annuität!$I$3:$J$10003,2,TRUE)*($AT$4))-($AT$4)/$AS$4)/12*H24,0),0) -> 0 | AU24: 433.1042462 | AV24: =IF(C24=TRUE,IF(AND(AL24>0,AL24<=$AP$5),IF($AV$5=0,$AN$5/$AP$5,VLOOKUP($AV$5*100,Annuität!$E$3:$F$10003,2,TRUE)*$AN$5),0),0) -> 0 | AW24: =IF(C24=TRUE,IF(AND(AL24>0,AL24<=$AP$6),IF($AV$6=0,$AN$6/$AP$6,VLOOKUP($AV$6*100,Annuität!$G$3:$H$10003,2,TRUE)*$AN$6),0),0) -> 0 | AX24: =IF(AL24='Basis - base - base'!$V$21,'Basis - base - base'!$V$20,0) -> 0 | AY24: 254.84 | AZ24: 200.9396009 | BA24: 200.9396009 | BB24: -6520.48 | BC24: -6899.252416 | BD24: 0 | BE24: 11 | BF24: =IF(AY24<0,HLOOKUP('Basis - base - base'!AD3,Sprachentabelle!B2:D201,159,FALSE),"") -> 
C25: =IF(DATE(YEAR(G24),MONTH(G24),DAY(G24)+1)<='Basis - base - base'!$R$27,TRUE,FALSE) -> TRUE | D25: 13 | E25: 13 | F25: 2036-01-01 | G25: =IF(C25=TRUE,IF(DATE(YEAR(F25)+1,MONTH(F25),DAY(F25)-1)>'Basis - base - base'!$R$27,'Basis - base - base'!$R$27,DATE(YEAR(F25)+1,MONTH(F25),DAY(F25)-1)),"") -> 2036-12-31 | H25: 12 | I25: 0 | J25: 0 | K25: 0 | L25: 0 | M25: 0 | N25: 0 | O25: 0 | P25: 0 | Q25: 0 | R25: 12 | S25: 12 | T25: 0.08 | U25: 0.3 | V25: 0.4 | W25: 0 | X25: 0 | Y25: 0 | Z25: 0 | AA25: 0 | AB25: 0 | AC25: 0 | AD25: 0 | AE25: 0 | AF25: 0 | AG25: 0 | AH25: 0 | AI25: 0 | AJ25: 0 | AK25: 12 | AL25: 13 | AM25: ='Basis - base - base'!$V$11*'Basis - base - base'!$V$14*VLOOKUP(E25,'Degradation linear'!$A$5:$C$37,3,TRUE) -> 1833.333333 | AN25: 88 | AO25: 220 | AP25: =AM25/12*H25*'Basis - base - base'!$V$16 -> 55 | AQ25: =IF('Basis - base - base'!$V$8=2,AN25*'Basis - base - base'!$Z$8,0) -> 0 | AR25: =IF('Basis - base - base'!$V$8=2,AP25*'Basis - base - base'!$Z$8,0) -> 0 | AS25: =IF(C25=TRUE,IF(AND(AL25>=0,AL25<=$AP$4),IF($AV$4=0,($AN$4-$AT$4)/$AP$4,VLOOKUP($AV$4*100,Annuität!$C$3:$D$10003,2,TRUE)*($AN$4-$AT$4))/12*H25,0),0) -> 433.1042462 | AT25: =IF(C25=TRUE,IF(AND(AL25>=0,AL25<=$AS$4),(IF($AV$4=0,($AT$4)/$AS$4,VLOOKUP($AV$4*100,Annuität!$I$3:$J$10003,2,TRUE)*($AT$4))-($AT$4)/$AS$4)/12*H25,0),0) -> 0 | AU25: 433.1042462 | AV25: =IF(C25=TRUE,IF(AND(AL25>0,AL25<=$AP$5),IF($AV$5=0,$AN$5/$AP$5,VLOOKUP($AV$5*100,Annuität!$E$3:$F$10003,2,TRUE)*$AN$5),0),0) -> 0 | AW25: =IF(C25=TRUE,IF(AND(AL25>0,AL25<=$AP$6),IF($AV$6=0,$AN$6/$AP$6,VLOOKUP($AV$6*100,Annuität!$G$3:$H$10003,2,TRUE)*$AN$6),0),0) -> 0 | AX25: =IF(AL25='Basis - base - base'!$V$21,'Basis - base - base'!$V$20,0) -> 0 | AY25: 253 | AZ25: 195.5772288 | BA25: 195.5772288 | BB25: -6267.48 | BC25: -6703.675188 | BD25: 0 | BE25: 12 | BF25: =IF(AY25<0,HLOOKUP('Basis - base - base'!AD3,Sprachentabelle!B2:D201,159,FALSE),"") -> 
C26: =IF(DATE(YEAR(G25),MONTH(G25),DAY(G25)+1)<='Basis - base - base'!$R$27,TRUE,FALSE) -> TRUE | D26: 14 | E26: 14 | F26: 2037-01-01 | G26: =IF(C26=TRUE,IF(DATE(YEAR(F26)+1,MONTH(F26),DAY(F26)-1)>'Basis - base - base'!$R$27,'Basis - base - base'!$R$27,DATE(YEAR(F26)+1,MONTH(F26),DAY(F26)-1)),"") -> 2037-12-31 | H26: 12 | I26: 0 | J26: 0 | K26: 0 | L26: 0 | M26: 0 | N26: 0 | O26: 0 | P26: 0 | Q26: 0 | R26: 12 | S26: 12 | T26: 0.08 | U26: 0.3 | V26: 0.4 | W26: 0 | X26: 0 | Y26: 0 | Z26: 0 | AA26: 0 | AB26: 0 | AC26: 0 | AD26: 0 | AE26: 0 | AF26: 0 | AG26: 0 | AH26: 0 | AI26: 0 | AJ26: 0 | AK26: 12 | AL26: 14 | AM26: ='Basis - base - base'!$V$11*'Basis - base - base'!$V$14*VLOOKUP(E26,'Degradation linear'!$A$5:$C$37,3,TRUE) -> 1820 | AN26: 87.36 | AO26: 218.4 | AP26: =AM26/12*H26*'Basis - base - base'!$V$16 -> 54.6 | AQ26: =IF('Basis - base - base'!$V$8=2,AN26*'Basis - base - base'!$Z$8,0) -> 0 | AR26: =IF('Basis - base - base'!$V$8=2,AP26*'Basis - base - base'!$Z$8,0) -> 0 | AS26: =IF(C26=TRUE,IF(AND(AL26>=0,AL26<=$AP$4),IF($AV$4=0,($AN$4-$AT$4)/$AP$4,VLOOKUP($AV$4*100,Annuität!$C$3:$D$10003,2,TRUE)*($AN$4-$AT$4))/12*H26,0),0) -> 433.1042462 | AT26: =IF(C26=TRUE,IF(AND(AL26>=0,AL26<=$AS$4),(IF($AV$4=0,($AT$4)/$AS$4,VLOOKUP($AV$4*100,Annuität!$I$3:$J$10003,2,TRUE)*($AT$4))-($AT$4)/$AS$4)/12*H26,0),0) -> 0 | AU26: 433.1042462 | AV26: =IF(C26=TRUE,IF(AND(AL26>0,AL26<=$AP$5),IF($AV$5=0,$AN$5/$AP$5,VLOOKUP($AV$5*100,Annuität!$E$3:$F$10003,2,TRUE)*$AN$5),0),0) -> 0 | AW26: =IF(C26=TRUE,IF(AND(AL26>0,AL26<=$AP$6),IF($AV$6=0,$AN$6/$AP$6,VLOOKUP($AV$6*100,Annuität!$G$3:$H$10003,2,TRUE)*$AN$6),0),0) -> 0 | AX26: =IF(AL26='Basis - base - base'!$V$21,'Basis - base - base'!$V$20,0) -> 0 | AY26: 251.16 | AZ26: 190.3478912 | BA26: 190.3478912 | BB26: -6016.32 | BC26: -6513.327296 | BD26: 0 | BE26: 13 | BF26: =IF(AY26<0,HLOOKUP('Basis - base - base'!AD3,Sprachentabelle!B2:D201,159,FALSE),"") -> 
C27: =IF(DATE(YEAR(G26),MONTH(G26),DAY(G26)+1)<='Basis - base - base'!$R$27,TRUE,FALSE) -> TRUE | D27: 15 | E27: 15 | F27: 2038-01-01 | G27: =IF(C27=TRUE,IF(DATE(YEAR(F27)+1,MONTH(F27),DAY(F27)-1)>'Basis - base - base'!$R$27,'Basis - base - base'!$R$27,DATE(YEAR(F27)+1,MONTH(F27),DAY(F27)-1)),"") -> 2038-12-31 | H27: 12 | I27: 0 | J27: 0 | K27: 0 | L27: 0 | M27: 0 | N27: 0 | O27: 0 | P27: 0 | Q27: 0 | R27: 12 | S27: 12 | T27: 0.08 | U27: 0.3 | V27: 0.4 | W27: 0 | X27: 0 | Y27: 0 | Z27: 0 | AA27: 0 | AB27: 0 | AC27: 0 | AD27: 0 | AE27: 0 | AF27: 0 | AG27: 0 | AH27: 0 | AI27: 0 | AJ27: 0 | AK27: 12 | AL27: 15 | AM27: ='Basis - base - base'!$V$11*'Basis - base - base'!$V$14*VLOOKUP(E27,'Degradation linear'!$A$5:$C$37,3,TRUE) -> 1806.666667 | AN27: 86.72 | AO27: 216.8 | AP27: =AM27/12*H27*'Basis - base - base'!$V$16 -> 54.2 | AQ27: =IF('Basis - base - base'!$V$8=2,AN27*'Basis - base - base'!$Z$8,0) -> 0 | AR27: =IF('Basis - base - base'!$V$8=2,AP27*'Basis - base - base'!$Z$8,0) -> 0 | AS27: =IF(C27=TRUE,IF(AND(AL27>=0,AL27<=$AP$4),IF($AV$4=0,($AN$4-$AT$4)/$AP$4,VLOOKUP($AV$4*100,Annuität!$C$3:$D$10003,2,TRUE)*($AN$4-$AT$4))/12*H27,0),0) -> 433.1042462 | AT27: =IF(C27=TRUE,IF(AND(AL27>=0,AL27<=$AS$4),(IF($AV$4=0,($AT$4)/$AS$4,VLOOKUP($AV$4*100,Annuität!$I$3:$J$10003,2,TRUE)*($AT$4))-($AT$4)/$AS$4)/12*H27,0),0) -> 0 | AU27: 433.1042462 | AV27: =IF(C27=TRUE,IF(AND(AL27>0,AL27<=$AP$5),IF($AV$5=0,$AN$5/$AP$5,VLOOKUP($AV$5*100,Annuität!$E$3:$F$10003,2,TRUE)*$AN$5),0),0) -> 0 | AW27: =IF(C27=TRUE,IF(AND(AL27>0,AL27<=$AP$6),IF($AV$6=0,$AN$6/$AP$6,VLOOKUP($AV$6*100,Annuität!$G$3:$H$10003,2,TRUE)*$AN$6),0),0) -> 0 | AX27: =IF(AL27='Basis - base - base'!$V$21,'Basis - base - base'!$V$20,0) -> 0 | AY27: 249.32 | AZ27: 185.2484325 | BA27: 185.2484325 | BB27: -5767 | BC27: -6328.078864 | BD27: 0 | BE27: 14 | BF27: =IF(AY27<0,HLOOKUP('Basis - base - base'!AD3,Sprachentabelle!B2:D201,159,FALSE),"") -> 
C28: =IF(DATE(YEAR(G27),MONTH(G27),DAY(G27)+1)<='Basis - base - base'!$R$27,TRUE,FALSE) -> TRUE | D28: 16 | E28: 16 | F28: 2039-01-01 | G28: =IF(C28=TRUE,IF(DATE(YEAR(F28)+1,MONTH(F28),DAY(F28)-1)>'Basis - base - base'!$R$27,'Basis - base - base'!$R$27,DATE(YEAR(F28)+1,MONTH(F28),DAY(F28)-1)),"") -> 2039-12-31 | H28: 12 | I28: 0 | J28: 0 | K28: 0 | L28: 0 | M28: 0 | N28: 0 | O28: 0 | P28: 0 | Q28: 0 | R28: 12 | S28: 12 | T28: 0.08 | U28: 0.3 | V28: 0.4 | W28: 0 | X28: 0 | Y28: 0 | Z28: 0 | AA28: 0 | AB28: 0 | AC28: 0 | AD28: 0 | AE28: 0 | AF28: 0 | AG28: 0 | AH28: 0 | AI28: 0 | AJ28: 0 | AK28: 12 | AL28: 16 | AM28: ='Basis - base - base'!$V$11*'Basis - base - base'!$V$14*VLOOKUP(E28,'Degradation linear'!$A$5:$C$37,3,TRUE) -> 1793.333333 | AN28: 86.08 | AO28: 215.2 | AP28: =AM28/12*H28*'Basis - base - base'!$V$16 -> 53.8 | AQ28: =IF('Basis - base - base'!$V$8=2,AN28*'Basis - base - base'!$Z$8,0) -> 0 | AR28: =IF('Basis - base - base'!$V$8=2,AP28*'Basis - base - base'!$Z$8,0) -> 0 | AS28: =IF(C28=TRUE,IF(AND(AL28>=0,AL28<=$AP$4),IF($AV$4=0,($AN$4-$AT$4)/$AP$4,VLOOKUP($AV$4*100,Annuität!$C$3:$D$10003,2,TRUE)*($AN$4-$AT$4))/12*H28,0),0) -> 433.1042462 | AT28: =IF(C28=TRUE,IF(AND(AL28>=0,AL28<=$AS$4),(IF($AV$4=0,($AT$4)/$AS$4,VLOOKUP($AV$4*100,Annuität!$I$3:$J$10003,2,TRUE)*($AT$4))-($AT$4)/$AS$4)/12*H28,0),0) -> 0 | AU28: 433.1042462 | AV28: =IF(C28=TRUE,IF(AND(AL28>0,AL28<=$AP$5),IF($AV$5=0,$AN$5/$AP$5,VLOOKUP($AV$5*100,Annuität!$E$3:$F$10003,2,TRUE)*$AN$5),0),0) -> 0 | AW28: =IF(C28=TRUE,IF(AND(AL28>0,AL28<=$AP$6),IF($AV$6=0,$AN$6/$AP$6,VLOOKUP($AV$6*100,Annuität!$G$3:$H$10003,2,TRUE)*$AN$6),0),0) -> 0 | AX28: =IF(AL28='Basis - base - base'!$V$21,'Basis - base - base'!$V$20,0) -> 0 | AY28: 247.48 | AZ28: 180.27577 | BA28: 180.27577 | BB28: -5519.52 | BC28: -6147.803094 | BD28: 0 | BE28: 15 | BF28: =IF(AY28<0,HLOOKUP('Basis - base - base'!AD3,Sprachentabelle!B2:D201,159,FALSE),"") -> 
C29: =IF(DATE(YEAR(G28),MONTH(G28),DAY(G28)+1)<='Basis - base - base'!$R$27,TRUE,FALSE) -> TRUE | D29: 17 | E29: 17 | F29: 2040-01-01 | G29: =IF(C29=TRUE,IF(DATE(YEAR(F29)+1,MONTH(F29),DAY(F29)-1)>'Basis - base - base'!$R$27,'Basis - base - base'!$R$27,DATE(YEAR(F29)+1,MONTH(F29),DAY(F29)-1)),"") -> 2040-12-31 | H29: 12 | I29: 0 | J29: 0 | K29: 0 | L29: 0 | M29: 0 | N29: 0 | O29: 0 | P29: 0 | Q29: 0 | R29: 12 | S29: 12 | T29: 0.08 | U29: 0.3 | V29: 0.4 | W29: 0 | X29: 0 | Y29: 0 | Z29: 0 | AA29: 0 | AB29: 0 | AC29: 0 | AD29: 0 | AE29: 0 | AF29: 0 | AG29: 0 | AH29: 0 | AI29: 0 | AJ29: 0 | AK29: 12 | AL29: 17 | AM29: ='Basis - base - base'!$V$11*'Basis - base - base'!$V$14*VLOOKUP(E29,'Degradation linear'!$A$5:$C$37,3,TRUE) -> 1780 | AN29: 85.44 | AO29: 213.6 | AP29: =AM29/12*H29*'Basis - base - base'!$V$16 -> 53.4 | AQ29: =IF('Basis - base - base'!$V$8=2,AN29*'Basis - base - base'!$Z$8,0) -> 0 | AR29: =IF('Basis - base - base'!$V$8=2,AP29*'Basis - base - base'!$Z$8,0) -> 0 | AS29: =IF(C29=TRUE,IF(AND(AL29>=0,AL29<=$AP$4),IF($AV$4=0,($AN$4-$AT$4)/$AP$4,VLOOKUP($AV$4*100,Annuität!$C$3:$D$10003,2,TRUE)*($AN$4-$AT$4))/12*H29,0),0) -> 433.1042462 | AT29: =IF(C29=TRUE,IF(AND(AL29>=0,AL29<=$AS$4),(IF($AV$4=0,($AT$4)/$AS$4,VLOOKUP($AV$4*100,Annuität!$I$3:$J$10003,2,TRUE)*($AT$4))-($AT$4)/$AS$4)/12*H29,0),0) -> 0 | AU29: 433.1042462 | AV29: =IF(C29=TRUE,IF(AND(AL29>0,AL29<=$AP$5),IF($AV$5=0,$AN$5/$AP$5,VLOOKUP($AV$5*100,Annuität!$E$3:$F$10003,2,TRUE)*$AN$5),0),0) -> 0 | AW29: =IF(C29=TRUE,IF(AND(AL29>0,AL29<=$AP$6),IF($AV$6=0,$AN$6/$AP$6,VLOOKUP($AV$6*100,Annuität!$G$3:$H$10003,2,TRUE)*$AN$6),0),0) -> 0 | AX29: =IF(AL29='Basis - base - base'!$V$21,'Basis - base - base'!$V$20,0) -> 0 | AY29: 245.64 | AZ29: 175.4268918 | BA29: 175.4268918 | BB29: -5273.88 | BC29: -5972.376202 | BD29: 0 | BE29: 16 | BF29: =IF(AY29<0,HLOOKUP('Basis - base - base'!AD3,Sprachentabelle!B2:D201,159,FALSE),"") -> 
C30: =IF(DATE(YEAR(G29),MONTH(G29),DAY(G29)+1)<='Basis - base - base'!$R$27,TRUE,FALSE) -> TRUE | D30: 18 | E30: 18 | F30: 2041-01-01 | G30: =IF(C30=TRUE,IF(DATE(YEAR(F30)+1,MONTH(F30),DAY(F30)-1)>'Basis - base - base'!$R$27,'Basis - base - base'!$R$27,DATE(YEAR(F30)+1,MONTH(F30),DAY(F30)-1)),"") -> 2041-12-31 | H30: 12 | I30: 0 | J30: 0 | K30: 0 | L30: 0 | M30: 0 | N30: 0 | O30: 0 | P30: 0 | Q30: 0 | R30: 12 | S30: 12 | T30: 0.08 | U30: 0.3 | V30: 0.4 | W30: 0 | X30: 0 | Y30: 0 | Z30: 0 | AA30: 0 | AB30: 0 | AC30: 0 | AD30: 0 | AE30: 0 | AF30: 0 | AG30: 0 | AH30: 0 | AI30: 0 | AJ30: 0 | AK30: 12 | AL30: 18 | AM30: ='Basis - base - base'!$V$11*'Basis - base - base'!$V$14*VLOOKUP(E30,'Degradation linear'!$A$5:$C$37,3,TRUE) -> 1766.666667 | AN30: 84.8 | AO30: 212 | AP30: =AM30/12*H30*'Basis - base - base'!$V$16 -> 53 | AQ30: =IF('Basis - base - base'!$V$8=2,AN30*'Basis - base - base'!$Z$8,0) -> 0 | AR30: =IF('Basis - base - base'!$V$8=2,AP30*'Basis - base - base'!$Z$8,0) -> 0 | AS30: =IF(C30=TRUE,IF(AND(AL30>=0,AL30<=$AP$4),IF($AV$4=0,($AN$4-$AT$4)/$AP$4,VLOOKUP($AV$4*100,Annuität!$C$3:$D$10003,2,TRUE)*($AN$4-$AT$4))/12*H30,0),0) -> 433.1042462 | AT30: =IF(C30=TRUE,IF(AND(AL30>=0,AL30<=$AS$4),(IF($AV$4=0,($AT$4)/$AS$4,VLOOKUP($AV$4*100,Annuität!$I$3:$J$10003,2,TRUE)*($AT$4))-($AT$4)/$AS$4)/12*H30,0),0) -> 0 | AU30: 433.1042462 | AV30: =IF(C30=TRUE,IF(AND(AL30>0,AL30<=$AP$5),IF($AV$5=0,$AN$5/$AP$5,VLOOKUP($AV$5*100,Annuität!$E$3:$F$10003,2,TRUE)*$AN$5),0),0) -> 0 | AW30: =IF(C30=TRUE,IF(AND(AL30>0,AL30<=$AP$6),IF($AV$6=0,$AN$6/$AP$6,VLOOKUP($AV$6*100,Annuität!$G$3:$H$10003,2,TRUE)*$AN$6),0),0) -> 0 | AX30: =IF(AL30='Basis - base - base'!$V$21,'Basis - base - base'!$V$20,0) -> 0 | AY30: 243.8 | AZ30: 170.6988556 | BA30: 170.6988556 | BB30: -5030.08 | BC30: -5801.677346 | BD30: 0 | BE30: 17 | BF30: =IF(AY30<0,HLOOKUP('Basis - base - base'!AD3,Sprachentabelle!B2:D201,159,FALSE),"") -> 
C31: =IF(DATE(YEAR(G30),MONTH(G30),DAY(G30)+1)<='Basis - base - base'!$R$27,TRUE,FALSE) -> TRUE | D31: 19 | E31: 19 | F31: 2042-01-01 | G31: =IF(C31=TRUE,IF(DATE(YEAR(F31)+1,MONTH(F31),DAY(F31)-1)>'Basis - base - base'!$R$27,'Basis - base - base'!$R$27,DATE(YEAR(F31)+1,MONTH(F31),DAY(F31)-1)),"") -> 2042-12-31 | H31: 12 | I31: 0 | J31: 0 | K31: 0 | L31: 0 | M31: 0 | N31: 0 | O31: 0 | P31: 0 | Q31: 0 | R31: 12 | S31: 12 | T31: 0.08 | U31: 0.3 | V31: 0.4 | W31: 0 | X31: 0 | Y31: 0 | Z31: 0 | AA31: 0 | AB31: 0 | AC31: 0 | AD31: 0 | AE31: 0 | AF31: 0 | AG31: 0 | AH31: 0 | AI31: 0 | AJ31: 0 | AK31: 12 | AL31: 19 | AM31: ='Basis - base - base'!$V$11*'Basis - base - base'!$V$14*VLOOKUP(E31,'Degradation linear'!$A$5:$C$37,3,TRUE) -> 1753.333333 | AN31: 84.16 | AO31: 210.4 | AP31: =AM31/12*H31*'Basis - base - base'!$V$16 -> 52.6 | AQ31: =IF('Basis - base - base'!$V$8=2,AN31*'Basis - base - base'!$Z$8,0) -> 0 | AR31: =IF('Basis - base - base'!$V$8=2,AP31*'Basis - base - base'!$Z$8,0) -> 0 | AS31: =IF(C31=TRUE,IF(AND(AL31>=0,AL31<=$AP$4),IF($AV$4=0,($AN$4-$AT$4)/$AP$4,VLOOKUP($AV$4*100,Annuität!$C$3:$D$10003,2,TRUE)*($AN$4-$AT$4))/12*H31,0),0) -> 433.1042462 | AT31: =IF(C31=TRUE,IF(AND(AL31>=0,AL31<=$AS$4),(IF($AV$4=0,($AT$4)/$AS$4,VLOOKUP($AV$4*100,Annuität!$I$3:$J$10003,2,TRUE)*($AT$4))-($AT$4)/$AS$4)/12*H31,0),0) -> 0 | AU31: 433.1042462 | AV31: =IF(C31=TRUE,IF(AND(AL31>0,AL31<=$AP$5),IF($AV$5=0,$AN$5/$AP$5,VLOOKUP($AV$5*100,Annuität!$E$3:$F$10003,2,TRUE)*$AN$5),0),0) -> 0 | AW31: =IF(C31=TRUE,IF(AND(AL31>0,AL31<=$AP$6),IF($AV$6=0,$AN$6/$AP$6,VLOOKUP($AV$6*100,Annuität!$G$3:$H$10003,2,TRUE)*$AN$6),0),0) -> 0 | AX31: =IF(AL31='Basis - base - base'!$V$21,'Basis - base - base'!$V$20,0) -> 0 | AY31: 241.96 | AZ31: 166.0887866 | BA31: 166.0887866 | BB31: -4788.12 | BC31: -5635.58856 | BD31: 0 | BE31: 18 | BF31: =IF(AY31<0,HLOOKUP('Basis - base - base'!AD3,Sprachentabelle!B2:D201,159,FALSE),"") -> 
C32: =IF(DATE(YEAR(G31),MONTH(G31),DAY(G31)+1)<='Basis - base - base'!$R$27,TRUE,FALSE) -> TRUE | D32: 20 | E32: 20 | F32: 2043-01-01 | G32: =IF(C32=TRUE,IF(DATE(YEAR(F32)+1,MONTH(F32),DAY(F32)-1)>'Basis - base - base'!$R$27,'Basis - base - base'!$R$27,DATE(YEAR(F32)+1,MONTH(F32),DAY(F32)-1)),"") -> 2043-12-31 | H32: 12 | I32: 0 | J32: 0 | K32: 0 | L32: 0 | M32: 0 | N32: 0 | O32: 0 | P32: 0 | Q32: 0 | R32: 12 | S32: 12 | T32: 0.08 | U32: 0.3 | V32: 0.4 | W32: 0 | X32: 0 | Y32: 0 | Z32: 0 | AA32: 0 | AB32: 0 | AC32: 0 | AD32: 0 | AE32: 0 | AF32: 0 | AG32: 0 | AH32: 0 | AI32: 0 | AJ32: 0 | AK32: 12 | AL32: 20 | AM32: ='Basis - base - base'!$V$11*'Basis - base - base'!$V$14*VLOOKUP(E32,'Degradation linear'!$A$5:$C$37,3,TRUE) -> 1740 | AN32: 83.52 | AO32: 208.8 | AP32: =AM32/12*H32*'Basis - base - base'!$V$16 -> 52.2 | AQ32: =IF('Basis - base - base'!$V$8=2,AN32*'Basis - base - base'!$Z$8,0) -> 0 | AR32: =IF('Basis - base - base'!$V$8=2,AP32*'Basis - base - base'!$Z$8,0) -> 0 | AS32: =IF(C32=TRUE,IF(AND(AL32>=0,AL32<=$AP$4),IF($AV$4=0,($AN$4-$AT$4)/$AP$4,VLOOKUP($AV$4*100,Annuität!$C$3:$D$10003,2,TRUE)*($AN$4-$AT$4))/12*H32,0),0) -> 433.1042462 | AT32: =IF(C32=TRUE,IF(AND(AL32>=0,AL32<=$AS$4),(IF($AV$4=0,($AT$4)/$AS$4,VLOOKUP($AV$4*100,Annuität!$I$3:$J$10003,2,TRUE)*($AT$4))-($AT$4)/$AS$4)/12*H32,0),0) -> 0 | AU32: 433.1042462 | AV32: =IF(C32=TRUE,IF(AND(AL32>0,AL32<=$AP$5),IF($AV$5=0,$AN$5/$AP$5,VLOOKUP($AV$5*100,Annuität!$E$3:$F$10003,2,TRUE)*$AN$5),0),0) -> 0 | AW32: =IF(C32=TRUE,IF(AND(AL32>0,AL32<=$AP$6),IF($AV$6=0,$AN$6/$AP$6,VLOOKUP($AV$6*100,Annuität!$G$3:$H$10003,2,TRUE)*$AN$6),0),0) -> 0 | AX32: =IF(AL32='Basis - base - base'!$V$21,'Basis - base - base'!$V$20,0) -> 0 | AY32: 240.12 | AZ32: 161.5938765 | BA32: 161.5938765 | BB32: -4548 | BC32: -5473.994683 | BD32: 0 | BE32: 19 | BF32: =IF(AY32<0,HLOOKUP('Basis - base - base'!AD3,Sprachentabelle!B2:D201,159,FALSE),"") -> 
C33: =IF(DATE(YEAR(G32),MONTH(G32),DAY(G32)+1)<='Basis - base - base'!$R$27,TRUE,FALSE) -> TRUE | D33: 21 | E33: 21 | F33: 2044-01-01 | G33: =IF(C33=TRUE,IF(DATE(YEAR(F33)+1,MONTH(F33),DAY(F33)-1)>'Basis - base - base'!$R$27,'Basis - base - base'!$R$27,DATE(YEAR(F33)+1,MONTH(F33),DAY(F33)-1)),"") -> 2044-12-31 | H33: 12 | I33: 0 | J33: 0 | K33: 0 | L33: 0 | M33: 0 | N33: 0 | O33: 0 | P33: 0 | Q33: 0 | R33: 12 | S33: 12 | T33: 0.08 | U33: 0.3 | V33: 0.4 | W33: 0 | X33: 0 | Y33: 0 | Z33: 0 | AA33: 0 | AB33: 0 | AC33: 0 | AD33: 0 | AE33: 0 | AF33: 0 | AG33: 0 | AH33: 0 | AI33: 0 | AJ33: 0 | AK33: 12 | AL33: 21 | AM33: ='Basis - base - base'!$V$11*'Basis - base - base'!$V$14*VLOOKUP(E33,'Degradation linear'!$A$5:$C$37,3,TRUE) -> 1726.666667 | AN33: 82.88 | AO33: 207.2 | AP33: =AM33/12*H33*'Basis - base - base'!$V$16 -> 51.8 | AQ33: =IF('Basis - base - base'!$V$8=2,AN33*'Basis - base - base'!$Z$8,0) -> 0 | AR33: =IF('Basis - base - base'!$V$8=2,AP33*'Basis - base - base'!$Z$8,0) -> 0 | AS33: =IF(C33=TRUE,IF(AND(AL33>=0,AL33<=$AP$4),IF($AV$4=0,($AN$4-$AT$4)/$AP$4,VLOOKUP($AV$4*100,Annuität!$C$3:$D$10003,2,TRUE)*($AN$4-$AT$4))/12*H33,0),0) -> 433.1042462 | AT33: =IF(C33=TRUE,IF(AND(AL33>=0,AL33<=$AS$4),(IF($AV$4=0,($AT$4)/$AS$4,VLOOKUP($AV$4*100,Annuität!$I$3:$J$10003,2,TRUE)*($AT$4))-($AT$4)/$AS$4)/12*H33,0),0) -> 0 | AU33: 433.1042462 | AV33: =IF(C33=TRUE,IF(AND(AL33>0,AL33<=$AP$5),IF($AV$5=0,$AN$5/$AP$5,VLOOKUP($AV$5*100,Annuität!$E$3:$F$10003,2,TRUE)*$AN$5),0),0) -> 0 | AW33: =IF(C33=TRUE,IF(AND(AL33>0,AL33<=$AP$6),IF($AV$6=0,$AN$6/$AP$6,VLOOKUP($AV$6*100,Annuität!$G$3:$H$10003,2,TRUE)*$AN$6),0),0) -> 0 | AX33: =IF(AL33='Basis - base - base'!$V$21,'Basis - base - base'!$V$20,0) -> 0 | AY33: 238.28 | AZ33: 157.2113816 | BA33: 157.2113816 | BB33: -4309.72 | BC33: -5316.783302 | BD33: 0 | BE33: 20 | BF33: =IF(AY33<0,HLOOKUP('Basis - base - base'!AD3,Sprachentabelle!B2:D201,159,FALSE),"") -> 
C34: =IF(DATE(YEAR(G33),MONTH(G33),DAY(G33)+1)<='Basis - base - base'!$R$27,TRUE,FALSE) -> TRUE | D34: 22 | E34: 22 | F34: 2045-01-01 | G34: =IF(C34=TRUE,IF(DATE(YEAR(F34)+1,MONTH(F34),DAY(F34)-1)>'Basis - base - base'!$R$27,'Basis - base - base'!$R$27,DATE(YEAR(F34)+1,MONTH(F34),DAY(F34)-1)),"") -> 2045-12-31 | H34: 12 | I34: 0 | J34: 0 | K34: 0 | L34: 0 | M34: 0 | N34: 0 | O34: 0 | P34: 0 | Q34: 0 | R34: 12 | S34: 12 | T34: 0.08 | U34: 0.3 | V34: 0.4 | W34: 0 | X34: 0 | Y34: 0 | Z34: 0 | AA34: 0 | AB34: 0 | AC34: 0 | AD34: 0 | AE34: 0 | AF34: 0 | AG34: 0 | AH34: 0 | AI34: 0 | AJ34: 0 | AK34: 12 | AL34: 22 | AM34: ='Basis - base - base'!$V$11*'Basis - base - base'!$V$14*VLOOKUP(E34,'Degradation linear'!$A$5:$C$37,3,TRUE) -> 1713.333333 | AN34: 82.24 | AO34: 205.6 | AP34: =AM34/12*H34*'Basis - base - base'!$V$16 -> 51.4 | AQ34: =IF('Basis - base - base'!$V$8=2,AN34*'Basis - base - base'!$Z$8,0) -> 0 | AR34: =IF('Basis - base - base'!$V$8=2,AP34*'Basis - base - base'!$Z$8,0) -> 0 | AS34: =IF(C34=TRUE,IF(AND(AL34>=0,AL34<=$AP$4),IF($AV$4=0,($AN$4-$AT$4)/$AP$4,VLOOKUP($AV$4*100,Annuität!$C$3:$D$10003,2,TRUE)*($AN$4-$AT$4))/12*H34,0),0) -> 433.1042462 | AT34: =IF(C34=TRUE,IF(AND(AL34>=0,AL34<=$AS$4),(IF($AV$4=0,($AT$4)/$AS$4,VLOOKUP($AV$4*100,Annuität!$I$3:$J$10003,2,TRUE)*($AT$4))-($AT$4)/$AS$4)/12*H34,0),0) -> 0 | AU34: 433.1042462 | AV34: =IF(C34=TRUE,IF(AND(AL34>0,AL34<=$AP$5),IF($AV$5=0,$AN$5/$AP$5,VLOOKUP($AV$5*100,Annuität!$E$3:$F$10003,2,TRUE)*$AN$5),0),0) -> 0 | AW34: =IF(C34=TRUE,IF(AND(AL34>0,AL34<=$AP$6),IF($AV$6=0,$AN$6/$AP$6,VLOOKUP($AV$6*100,Annuität!$G$3:$H$10003,2,TRUE)*$AN$6),0),0) -> 0 | AX34: =IF(AL34='Basis - base - base'!$V$21,'Basis - base - base'!$V$20,0) -> 0 | AY34: 236.44 | AZ34: 152.9386217 | BA34: 152.9386217 | BB34: -4073.28 | BC34: -5163.84468 | BD34: 0 | BE34: 21 | BF34: =IF(AY34<0,HLOOKUP('Basis - base - base'!AD3,Sprachentabelle!B2:D201,159,FALSE),"") -> 
C35: =IF(DATE(YEAR(G34),MONTH(G34),DAY(G34)+1)<='Basis - base - base'!$R$27,TRUE,FALSE) -> TRUE | D35: 23 | E35: 23 | F35: 2046-01-01 | G35: =IF(C35=TRUE,IF(DATE(YEAR(F35)+1,MONTH(F35),DAY(F35)-1)>'Basis - base - base'!$R$27,'Basis - base - base'!$R$27,DATE(YEAR(F35)+1,MONTH(F35),DAY(F35)-1)),"") -> 2046-12-31 | H35: 12 | I35: 0 | J35: 0 | K35: 0 | L35: 0 | M35: 0 | N35: 0 | O35: 0 | P35: 0 | Q35: 0 | R35: 12 | S35: 12 | T35: 0.08 | U35: 0.3 | V35: 0.4 | W35: 0 | X35: 0 | Y35: 0 | Z35: 0 | AA35: 0 | AB35: 0 | AC35: 0 | AD35: 0 | AE35: 0 | AF35: 0 | AG35: 0 | AH35: 0 | AI35: 0 | AJ35: 0 | AK35: 12 | AL35: 23 | AM35: ='Basis - base - base'!$V$11*'Basis - base - base'!$V$14*VLOOKUP(E35,'Degradation linear'!$A$5:$C$37,3,TRUE) -> 1700 | AN35: 81.6 | AO35: 204 | AP35: =AM35/12*H35*'Basis - base - base'!$V$16 -> 51 | AQ35: =IF('Basis - base - base'!$V$8=2,AN35*'Basis - base - base'!$Z$8,0) -> 0 | AR35: =IF('Basis - base - base'!$V$8=2,AP35*'Basis - base - base'!$Z$8,0) -> 0 | AS35: =IF(C35=TRUE,IF(AND(AL35>=0,AL35<=$AP$4),IF($AV$4=0,($AN$4-$AT$4)/$AP$4,VLOOKUP($AV$4*100,Annuität!$C$3:$D$10003,2,TRUE)*($AN$4-$AT$4))/12*H35,0),0) -> 433.1042462 | AT35: =IF(C35=TRUE,IF(AND(AL35>=0,AL35<=$AS$4),(IF($AV$4=0,($AT$4)/$AS$4,VLOOKUP($AV$4*100,Annuität!$I$3:$J$10003,2,TRUE)*($AT$4))-($AT$4)/$AS$4)/12*H35,0),0) -> 0 | AU35: 433.1042462 | AV35: =IF(C35=TRUE,IF(AND(AL35>0,AL35<=$AP$5),IF($AV$5=0,$AN$5/$AP$5,VLOOKUP($AV$5*100,Annuität!$E$3:$F$10003,2,TRUE)*$AN$5),0),0) -> 0 | AW35: =IF(C35=TRUE,IF(AND(AL35>0,AL35<=$AP$6),IF($AV$6=0,$AN$6/$AP$6,VLOOKUP($AV$6*100,Annuität!$G$3:$H$10003,2,TRUE)*$AN$6),0),0) -> 0 | AX35: =IF(AL35='Basis - base - base'!$V$21,'Basis - base - base'!$V$20,0) -> 0 | AY35: 234.6 | AZ35: 148.7729783 | BA35: 148.7729783 | BB35: -3838.68 | BC35: -5015.071702 | BD35: 0 | BE35: 22 | BF35: =IF(AY35<0,HLOOKUP('Basis - base - base'!AD3,Sprachentabelle!B2:D201,159,FALSE),"") -> 
C36: =IF(DATE(YEAR(G35),MONTH(G35),DAY(G35)+1)<='Basis - base - base'!$R$27,TRUE,FALSE) -> TRUE | D36: 24 | E36: 24 | F36: 2047-01-01 | G36: =IF(C36=TRUE,IF(DATE(YEAR(F36)+1,MONTH(F36),DAY(F36)-1)>'Basis - base - base'!$R$27,'Basis - base - base'!$R$27,DATE(YEAR(F36)+1,MONTH(F36),DAY(F36)-1)),"") -> 2047-12-31 | H36: 12 | I36: 0 | J36: 0 | K36: 0 | L36: 0 | M36: 0 | N36: 0 | O36: 0 | P36: 0 | Q36: 0 | R36: 12 | S36: 12 | T36: 0.08 | U36: 0.3 | V36: 0.4 | W36: 0 | X36: 0 | Y36: 0 | Z36: 0 | AA36: 0 | AB36: 0 | AC36: 0 | AD36: 0 | AE36: 0 | AF36: 0 | AG36: 0 | AH36: 0 | AI36: 0 | AJ36: 0 | AK36: 12 | AL36: 24 | AM36: ='Basis - base - base'!$V$11*'Basis - base - base'!$V$14*VLOOKUP(E36,'Degradation linear'!$A$5:$C$37,3,TRUE) -> 1686.666667 | AN36: 80.96 | AO36: 202.4 | AP36: =AM36/12*H36*'Basis - base - base'!$V$16 -> 50.6 | AQ36: =IF('Basis - base - base'!$V$8=2,AN36*'Basis - base - base'!$Z$8,0) -> 0 | AR36: =IF('Basis - base - base'!$V$8=2,AP36*'Basis - base - base'!$Z$8,0) -> 0 | AS36: =IF(C36=TRUE,IF(AND(AL36>=0,AL36<=$AP$4),IF($AV$4=0,($AN$4-$AT$4)/$AP$4,VLOOKUP($AV$4*100,Annuität!$C$3:$D$10003,2,TRUE)*($AN$4-$AT$4))/12*H36,0),0) -> 433.1042462 | AT36: =IF(C36=TRUE,IF(AND(AL36>=0,AL36<=$AS$4),(IF($AV$4=0,($AT$4)/$AS$4,VLOOKUP($AV$4*100,Annuität!$I$3:$J$10003,2,TRUE)*($AT$4))-($AT$4)/$AS$4)/12*H36,0),0) -> 0 | AU36: 433.1042462 | AV36: =IF(C36=TRUE,IF(AND(AL36>0,AL36<=$AP$5),IF($AV$5=0,$AN$5/$AP$5,VLOOKUP($AV$5*100,Annuität!$E$3:$F$10003,2,TRUE)*$AN$5),0),0) -> 0 | AW36: =IF(C36=TRUE,IF(AND(AL36>0,AL36<=$AP$6),IF($AV$6=0,$AN$6/$AP$6,VLOOKUP($AV$6*100,Annuität!$G$3:$H$10003,2,TRUE)*$AN$6),0),0) -> 0 | AX36: =IF(AL36='Basis - base - base'!$V$21,'Basis - base - base'!$V$20,0) -> 0 | AY36: 232.76 | AZ36: 144.7118935 | BA36: 144.7118935 | BB36: -3605.92 | BC36: -4870.359808 | BD36: 0 | BE36: 23 | BF36: =IF(AY36<0,HLOOKUP('Basis - base - base'!AD3,Sprachentabelle!B2:D201,159,FALSE),"") -> 
C37: =IF(DATE(YEAR(G36),MONTH(G36),DAY(G36)+1)<='Basis - base - base'!$R$27,TRUE,FALSE) -> TRUE | D37: 25 | E37: 25 | F37: 2048-01-01 | G37: =IF(C37=TRUE,IF(DATE(YEAR(F37)+1,MONTH(F37),DAY(F37)-1)>'Basis - base - base'!$R$27,'Basis - base - base'!$R$27,DATE(YEAR(F37)+1,MONTH(F37),DAY(F37)-1)),"") -> 2048-12-31 | H37: 12 | I37: 0 | J37: 0 | K37: 0 | L37: 0 | M37: 0 | N37: 0 | O37: 0 | P37: 0 | Q37: 0 | R37: 12 | S37: 12 | T37: 0.08 | U37: 0.3 | V37: 0.4 | W37: 0 | X37: 0 | Y37: 0 | Z37: 0 | AA37: 0 | AB37: 0 | AC37: 0 | AD37: 0 | AE37: 0 | AF37: 0 | AG37: 0 | AH37: 0 | AI37: 0 | AJ37: 0 | AK37: 12 | AL37: 25 | AM37: ='Basis - base - base'!$V$11*'Basis - base - base'!$V$14*VLOOKUP(E37,'Degradation linear'!$A$5:$C$37,3,TRUE) -> 1673.333333 | AN37: 80.32 | AO37: 200.8 | AP37: =AM37/12*H37*'Basis - base - base'!$V$16 -> 50.2 | AQ37: =IF('Basis - base - base'!$V$8=2,AN37*'Basis - base - base'!$Z$8,0) -> 0 | AR37: =IF('Basis - base - base'!$V$8=2,AP37*'Basis - base - base'!$Z$8,0) -> 0 | AS37: =IF(C37=TRUE,IF(AND(AL37>=0,AL37<=$AP$4),IF($AV$4=0,($AN$4-$AT$4)/$AP$4,VLOOKUP($AV$4*100,Annuität!$C$3:$D$10003,2,TRUE)*($AN$4-$AT$4))/12*H37,0),0) -> 433.1042462 | AT37: =IF(C37=TRUE,IF(AND(AL37>=0,AL37<=$AS$4),(IF($AV$4=0,($AT$4)/$AS$4,VLOOKUP($AV$4*100,Annuität!$I$3:$J$10003,2,TRUE)*($AT$4))-($AT$4)/$AS$4)/12*H37,0),0) -> 0 | AU37: 433.1042462 | AV37: =IF(C37=TRUE,IF(AND(AL37>0,AL37<=$AP$5),IF($AV$5=0,$AN$5/$AP$5,VLOOKUP($AV$5*100,Annuität!$E$3:$F$10003,2,TRUE)*$AN$5),0),0) -> 0 | AW37: =IF(C37=TRUE,IF(AND(AL37>0,AL37<=$AP$6),IF($AV$6=0,$AN$6/$AP$6,VLOOKUP($AV$6*100,Annuität!$G$3:$H$10003,2,TRUE)*$AN$6),0),0) -> 0 | AX37: =IF(AL37='Basis - base - base'!$V$21,'Basis - base - base'!$V$20,0) -> 0 | AY37: 230.92 | AZ37: 140.7528686 | BA37: 140.7528686 | BB37: -3375 | BC37: -4729.60694 | BD37: 0 | BE37: 24 | BF37: =IF(AY37<0,HLOOKUP('Basis - base - base'!AD3,Sprachentabelle!B2:D201,159,FALSE),"") -> 
C38: =IF(DATE(YEAR(G37),MONTH(G37),DAY(G37)+1)<='Basis - base - base'!$R$27,TRUE,FALSE) -> TRUE | D38: 26 | E38: 26 | F38: 2049-01-01 | G38: =IF(C38=TRUE,IF(DATE(YEAR(F38)+1,MONTH(F38),DAY(F38)-1)>'Basis - base - base'!$R$27,'Basis - base - base'!$R$27,DATE(YEAR(F38)+1,MONTH(F38),DAY(F38)-1)),"") -> 2049-12-31 | H38: 12 | I38: 0 | J38: 0 | K38: 0 | L38: 0 | M38: 0 | N38: 0 | O38: 0 | P38: 0 | Q38: 0 | R38: 12 | S38: 12 | T38: 0.08 | U38: 0.3 | V38: 0.4 | W38: 0 | X38: 0 | Y38: 0 | Z38: 0 | AA38: 0 | AB38: 0 | AC38: 0 | AD38: 0 | AE38: 0 | AF38: 0 | AG38: 0 | AH38: 0 | AI38: 0 | AJ38: 0 | AK38: 12 | AL38: 26 | AM38: ='Basis - base - base'!$V$11*'Basis - base - base'!$V$14*VLOOKUP(E38,'Degradation linear'!$A$5:$C$37,3,TRUE) -> 1660 | AN38: 79.68 | AO38: 199.2 | AP38: =AM38/12*H38*'Basis - base - base'!$V$16 -> 49.8 | AQ38: =IF('Basis - base - base'!$V$8=2,AN38*'Basis - base - base'!$Z$8,0) -> 0 | AR38: =IF('Basis - base - base'!$V$8=2,AP38*'Basis - base - base'!$Z$8,0) -> 0 | AS38: =IF(C38=TRUE,IF(AND(AL38>=0,AL38<=$AP$4),IF($AV$4=0,($AN$4-$AT$4)/$AP$4,VLOOKUP($AV$4*100,Annuität!$C$3:$D$10003,2,TRUE)*($AN$4-$AT$4))/12*H38,0),0) -> 433.1042462 | AT38: =IF(C38=TRUE,IF(AND(AL38>=0,AL38<=$AS$4),(IF($AV$4=0,($AT$4)/$AS$4,VLOOKUP($AV$4*100,Annuität!$I$3:$J$10003,2,TRUE)*($AT$4))-($AT$4)/$AS$4)/12*H38,0),0) -> 0 | AU38: 433.1042462 | AV38: =IF(C38=TRUE,IF(AND(AL38>0,AL38<=$AP$5),IF($AV$5=0,$AN$5/$AP$5,VLOOKUP($AV$5*100,Annuität!$E$3:$F$10003,2,TRUE)*$AN$5),0),0) -> 0 | AW38: =IF(C38=TRUE,IF(AND(AL38>0,AL38<=$AP$6),IF($AV$6=0,$AN$6/$AP$6,VLOOKUP($AV$6*100,Annuität!$G$3:$H$10003,2,TRUE)*$AN$6),0),0) -> 0 | AX38: =IF(AL38='Basis - base - base'!$V$21,'Basis - base - base'!$V$20,0) -> 0 | AY38: 229.08 | AZ38: 136.8934626 | BA38: 136.8934626 | BB38: -3145.92 | BC38: -4592.713477 | BD38: 0 | BE38: 25 | BF38: =IF(AY38<0,HLOOKUP('Basis - base - base'!AD3,Sprachentabelle!B2:D201,159,FALSE),"") -> 
C39: =IF(DATE(YEAR(G38),MONTH(G38),DAY(G38)+1)<='Basis - base - base'!$R$27,TRUE,FALSE) -> TRUE | D39: 27 | E39: =IF(C39=TRUE,D39,"") -> 27 | F39: 2050-01-01 | G39: =IF(C39=TRUE,IF(DATE(YEAR(F39)+1,MONTH(F39),DAY(F39)-1)>'Basis - base - base'!$R$27,'Basis - base - base'!$R$27,DATE(YEAR(F39)+1,MONTH(F39),DAY(F39)-1)),"") -> 2050-12-31 | H39: 12 | I39: 0 | J39: 0 | K39: 0 | L39: 0 | M39: 0 | N39: 0 | O39: 0 | P39: 0 | Q39: 0 | R39: 12 | S39: 12 | T39: 0.08 | U39: 0.3 | V39: 0.4 | W39: 0 | X39: 0 | Y39: 0 | Z39: 0 | AA39: 0 | AB39: 0 | AC39: 0 | AD39: 0 | AE39: 0 | AF39: 0 | AG39: 0 | AH39: 0 | AI39: 0 | AJ39: 0 | AK39: 12 | AL39: 27 | AM39: ='Basis - base - base'!$V$11*'Basis - base - base'!$V$14*VLOOKUP(E39,'Degradation linear'!$A$5:$C$37,3,TRUE) -> 1646.666667 | AN39: 79.04 | AO39: 197.6 | AP39: =AM39/12*H39*'Basis - base - base'!$V$16 -> 49.4 | AQ39: =IF('Basis - base - base'!$V$8=2,AN39*'Basis - base - base'!$Z$8,0) -> 0 | AR39: =IF('Basis - base - base'!$V$8=2,AP39*'Basis - base - base'!$Z$8,0) -> 0 | AS39: =IF(C39=TRUE,IF(AND(AL39>=0,AL39<=$AP$4),IF($AV$4=0,($AN$4-$AT$4)/$AP$4,VLOOKUP($AV$4*100,Annuität!$C$3:$D$10003,2,TRUE)*($AN$4-$AT$4))/12*H39,0),0) -> 433.1042462 | AT39: =IF(C39=TRUE,IF(AND(AL39>=0,AL39<=$AS$4),(IF($AV$4=0,($AT$4)/$AS$4,VLOOKUP($AV$4*100,Annuität!$I$3:$J$10003,2,TRUE)*($AT$4))-($AT$4)/$AS$4)/12*H39,0),0) -> 0 | AU39: 433.1042462 | AV39: =IF(C39=TRUE,IF(AND(AL39>0,AL39<=$AP$5),IF($AV$5=0,$AN$5/$AP$5,VLOOKUP($AV$5*100,Annuität!$E$3:$F$10003,2,TRUE)*$AN$5),0),0) -> 0 | AW39: =IF(C39=TRUE,IF(AND(AL39>0,AL39<=$AP$6),IF($AV$6=0,$AN$6/$AP$6,VLOOKUP($AV$6*100,Annuität!$G$3:$H$10003,2,TRUE)*$AN$6),0),0) -> 0 | AX39: =IF(AL39='Basis - base - base'!$V$21,'Basis - base - base'!$V$20,0) -> 0 | AY39: 227.24 | AZ39: 133.1312909 | BA39: 133.1312909 | BB39: -2918.68 | BC39: -4459.582186 | BD39: 0 | BE39: 26 | BF39: =IF(AY39<0,HLOOKUP('Basis - base - base'!AD3,Sprachentabelle!B2:D201,159,FALSE),"") -> 
C40: =IF(DATE(YEAR(G39),MONTH(G39),DAY(G39)+1)<='Basis - base - base'!$R$27,TRUE,FALSE) -> TRUE | D40: 28 | E40: =IF(C40=TRUE,D40,"") -> 28 | F40: 2051-01-01 | G40: =IF(C40=TRUE,IF(DATE(YEAR(F40)+1,MONTH(F40),DAY(F40)-1)>'Basis - base - base'!$R$27,'Basis - base - base'!$R$27,DATE(YEAR(F40)+1,MONTH(F40),DAY(F40)-1)),"") -> 2051-12-31 | H40: 12 | I40: 0 | J40: 0 | K40: 0 | L40: 0 | M40: 0 | N40: 0 | O40: 0 | P40: 0 | Q40: 0 | R40: 12 | S40: 12 | T40: 0.08 | U40: 0.3 | V40: 0.4 | W40: 0 | X40: 0 | Y40: 0 | Z40: 0 | AA40: 0 | AB40: 0 | AC40: 0 | AD40: 0 | AE40: 0 | AF40: 0 | AG40: 0 | AH40: 0 | AI40: 0 | AJ40: 0 | AK40: 12 | AL40: 28 | AM40: ='Basis - base - base'!$V$11*'Basis - base - base'!$V$14*VLOOKUP(E40,'Degradation linear'!$A$5:$C$37,3,TRUE) -> 1633.333333 | AN40: 78.4 | AO40: 196 | AP40: =AM40/12*H40*'Basis - base - base'!$V$16 -> 49 | AQ40: =IF('Basis - base - base'!$V$8=2,AN40*'Basis - base - base'!$Z$8,0) -> 0 | AR40: =IF('Basis - base - base'!$V$8=2,AP40*'Basis - base - base'!$Z$8,0) -> 0 | AS40: =IF(C40=TRUE,IF(AND(AL40>=0,AL40<=$AP$4),IF($AV$4=0,($AN$4-$AT$4)/$AP$4,VLOOKUP($AV$4*100,Annuität!$C$3:$D$10003,2,TRUE)*($AN$4-$AT$4))/12*H40,0),0) -> 433.1042462 | AT40: =IF(C40=TRUE,IF(AND(AL40>=0,AL40<=$AS$4),(IF($AV$4=0,($AT$4)/$AS$4,VLOOKUP($AV$4*100,Annuität!$I$3:$J$10003,2,TRUE)*($AT$4))-($AT$4)/$AS$4)/12*H40,0),0) -> 0 | AU40: 433.1042462 | AV40: =IF(C40=TRUE,IF(AND(AL40>0,AL40<=$AP$5),IF($AV$5=0,$AN$5/$AP$5,VLOOKUP($AV$5*100,Annuität!$E$3:$F$10003,2,TRUE)*$AN$5),0),0) -> 0 | AW40: =IF(C40=TRUE,IF(AND(AL40>0,AL40<=$AP$6),IF($AV$6=0,$AN$6/$AP$6,VLOOKUP($AV$6*100,Annuität!$G$3:$H$10003,2,TRUE)*$AN$6),0),0) -> 0 | AX40: =IF(AL40='Basis - base - base'!$V$21,'Basis - base - base'!$V$20,0) -> 0 | AY40: 225.4 | AZ40: 129.4640242 | BA40: 129.4640242 | BB40: -2693.28 | BC40: -4330.118162 | BD40: 0 | BE40: 27 | BF40: =IF(AY40<0,HLOOKUP('Basis - base - base'!AD3,Sprachentabelle!B2:D201,159,FALSE),"") -> 
C41: =IF(DATE(YEAR(G40),MONTH(G40),DAY(G40)+1)<='Basis - base - base'!$R$27,TRUE,FALSE) -> TRUE | D41: 29 | E41: =IF(C41=TRUE,D41,"") -> 29 | F41: 2052-01-01 | G41: =IF(C41=TRUE,IF(DATE(YEAR(F41)+1,MONTH(F41),DAY(F41)-1)>'Basis - base - base'!$R$27,'Basis - base - base'!$R$27,DATE(YEAR(F41)+1,MONTH(F41),DAY(F41)-1)),"") -> 2052-12-31 | H41: 12 | I41: 0 | J41: 0 | K41: 0 | L41: 0 | M41: 0 | N41: 0 | O41: 0 | P41: 0 | Q41: 0 | R41: 12 | S41: 12 | T41: 0.08 | U41: 0.3 | V41: 0.4 | W41: 0 | X41: 0 | Y41: 0 | Z41: 0 | AA41: 0 | AB41: 0 | AC41: 0 | AD41: 0 | AE41: 0 | AF41: 0 | AG41: 0 | AH41: 0 | AI41: 0 | AJ41: 0 | AK41: 12 | AL41: 29 | AM41: ='Basis - base - base'!$V$11*'Basis - base - base'!$V$14*VLOOKUP(E41,'Degradation linear'!$A$5:$C$37,3,TRUE) -> 1620 | AN41: 77.76 | AO41: 194.4 | AP41: =AM41/12*H41*'Basis - base - base'!$V$16 -> 48.6 | AQ41: =IF('Basis - base - base'!$V$8=2,AN41*'Basis - base - base'!$Z$8,0) -> 0 | AR41: =IF('Basis - base - base'!$V$8=2,AP41*'Basis - base - base'!$Z$8,0) -> 0 | AS41: =IF(C41=TRUE,IF(AND(AL41>=0,AL41<=$AP$4),IF($AV$4=0,($AN$4-$AT$4)/$AP$4,VLOOKUP($AV$4*100,Annuität!$C$3:$D$10003,2,TRUE)*($AN$4-$AT$4))/12*H41,0),0) -> 433.1042462 | AT41: =IF(C41=TRUE,IF(AND(AL41>=0,AL41<=$AS$4),(IF($AV$4=0,($AT$4)/$AS$4,VLOOKUP($AV$4*100,Annuität!$I$3:$J$10003,2,TRUE)*($AT$4))-($AT$4)/$AS$4)/12*H41,0),0) -> 0 | AU41: =AS41+AT41 -> 433.1042462 | AV41: =IF(C41=TRUE,IF(AND(AL41>0,AL41<=$AP$5),IF($AV$5=0,$AN$5/$AP$5,VLOOKUP($AV$5*100,Annuität!$E$3:$F$10003,2,TRUE)*$AN$5),0),0) -> 0 | AW41: =IF(C41=TRUE,IF(AND(AL41>0,AL41<=$AP$6),IF($AV$6=0,$AN$6/$AP$6,VLOOKUP($AV$6*100,Annuität!$G$3:$H$10003,2,TRUE)*$AN$6),0),0) -> 0 | AX41: =IF(AL41='Basis - base - base'!$V$21,'Basis - base - base'!$V$20,0) -> 0 | AY41: 223.56 | AZ41: 125.8893873 | BA41: 125.8893873 | BB41: -2469.72 | BC41: -4204.228775 | BD41: 0 | BE41: 28 | BF41: =IF(AY41<0,HLOOKUP('Basis - base - base'!AD3,Sprachentabelle!B2:D201,159,FALSE),"") -> 
C42: =IF(DATE(YEAR(G41),MONTH(G41),DAY(G41)+1)<='Basis - base - base'!$R$27,TRUE,FALSE) -> TRUE | D42: 30 | E42: =IF(C42=TRUE,D42,"") -> 30 | F42: =IF(C42=TRUE,DATE(YEAR(G41),MONTH(G41),DAY(G41)+1),"") -> 2053-01-01 | G42: =IF(C42=TRUE,IF(DATE(YEAR(F42)+1,MONTH(F42),DAY(F42)-1)>'Basis - base - base'!$R$27,'Basis - base - base'!$R$27,DATE(YEAR(F42)+1,MONTH(F42),DAY(F42)-1)),"") -> 2053-12-31 | H42: 12 | I42: 0 | J42: 0 | K42: 0 | L42: 0 | M42: 0 | N42: 0 | O42: 0 | P42: 0 | Q42: 0 | R42: 12 | S42: 12 | T42: 0.08 | U42: 0.3 | V42: 0.4 | W42: 0 | X42: 0 | Y42: 0 | Z42: 0 | AA42: 0 | AB42: 0 | AC42: 0 | AD42: 0 | AE42: 0 | AF42: 0 | AG42: 0 | AH42: 0 | AI42: 0 | AJ42: 0 | AK42: 12 | AL42: 30 | AM42: ='Basis - base - base'!$V$11*'Basis - base - base'!$V$14*VLOOKUP(E42,'Degradation linear'!$A$5:$C$37,3,TRUE) -> 1606.666667 | AN42: 77.12 | AO42: 192.8 | AP42: =AM42/12*H42*'Basis - base - base'!$V$16 -> 48.2 | AQ42: =IF('Basis - base - base'!$V$8=2,AN42*'Basis - base - base'!$Z$8,0) -> 0 | AR42: =IF('Basis - base - base'!$V$8=2,AP42*'Basis - base - base'!$Z$8,0) -> 0 | AS42: =IF(C42=TRUE,IF(AND(AL42>=0,AL42<=$AP$4),IF($AV$4=0,($AN$4-$AT$4)/$AP$4,VLOOKUP($AV$4*100,Annuität!$C$3:$D$10003,2,TRUE)*($AN$4-$AT$4))/12*H42,0),0) -> 433.1042462 | AT42: =IF(C42=TRUE,IF(AND(AL42>=0,AL42<=$AS$4),(IF($AV$4=0,($AT$4)/$AS$4,VLOOKUP($AV$4*100,Annuität!$I$3:$J$10003,2,TRUE)*($AT$4))-($AT$4)/$AS$4)/12*H42,0),0) -> 0 | AU42: 433.1042462 | AV42: =IF(C42=TRUE,IF(AND(AL42>0,AL42<=$AP$5),IF($AV$5=0,$AN$5/$AP$5,VLOOKUP($AV$5*100,Annuität!$E$3:$F$10003,2,TRUE)*$AN$5),0),0) -> 0 | AW42: =IF(C42=TRUE,IF(AND(AL42>0,AL42<=$AP$6),IF($AV$6=0,$AN$6/$AP$6,VLOOKUP($AV$6*100,Annuität!$G$3:$H$10003,2,TRUE)*$AN$6),0),0) -> 0 | AX42: =IF(AL42='Basis - base - base'!$V$21,'Basis - base - base'!$V$20,0) -> 0 | AY42: 221.72 | AZ42: 122.4051575 | BA42: 122.4051575 | BB42: -2248 | BC42: -4081.823617 | BD42: 0 | BE42: 29 | BF42: =IF(AY42<0,HLOOKUP('Basis - base - base'!AD3,Sprachentabelle!B2:D201,159,FALSE),"") -> 
C43: =IF(DATE(YEAR(G42),MONTH(G42),DAY(G42)+1)<='Basis - base - base'!$R$27,TRUE,FALSE) -> FALSE | D43: 31 | E43: =IF(C43=TRUE,D43,"") ->  | F43: =IF(C43=TRUE,DATE(YEAR(G42),MONTH(G42),DAY(G42)+1),"") ->  | G43: =IF(C43=TRUE,IF(DATE(YEAR(F43)+1,MONTH(F43),DAY(F43)-1)>'Basis - base - base'!$R$27,'Basis - base - base'!$R$27,DATE(YEAR(F43)+1,MONTH(F43),DAY(F43)-1)),"") ->  | I43: 0 | J43: 0 | L43: =SUM(I43:K43) ->  | M43: 0 | N43: 0 | O43: 0 | P43: 0 | Q43: 0 | R43: 0 | S43: 0 | T43: 0.08 | U43: 0.3 | V43: 0.4 | W43: 0 | X43: 0 | AA43: 0 | AB43: 0 | AC43: 0 | AD43: 0 | AE43: 0 | AH43: 0 | AI43: 0 | AJ43: 0 | AM43: ='Basis - base - base'!$V$11*'Basis - base - base'!$V$14*VLOOKUP(E43,'Degradation linear'!$A$5:$C$37,3,TRUE) ->  | AP43: =AM43/12*H43*'Basis - base - base'!$V$16 ->  | AQ43: =IF('Basis - base - base'!$V$8=2,AN43*'Basis - base - base'!$Z$8,0) -> 0 | AR43: =IF('Basis - base - base'!$V$8=2,AP43*'Basis - base - base'!$Z$8,0) -> 0 | AS43: =IF(C43=TRUE,IF(AND(AL43>=0,AL43<=$AP$4),IF($AV$4=0,($AN$4-$AT$4)/$AP$4,VLOOKUP($AV$4*100,Annuität!$C$3:$D$10003,2,TRUE)*($AN$4-$AT$4))/12*H43,0),0) -> 0 | AT43: =IF(C43=TRUE,IF(AND(AL43>=0,AL43<=$AS$4),(IF($AV$4=0,($AT$4)/$AS$4,VLOOKUP($AV$4*100,Annuität!$I$3:$J$10003,2,TRUE)*($AT$4))-($AT$4)/$AS$4)/12*H43,0),0) -> 0 | AU43: 0 | AV43: =IF(C43=TRUE,IF(AND(AL43>0,AL43<=$AP$5),IF($AV$5=0,$AN$5/$AP$5,VLOOKUP($AV$5*100,Annuität!$E$3:$F$10003,2,TRUE)*$AN$5),0),0) -> 0 | AW43: =IF(C43=TRUE,IF(AND(AL43>0,AL43<=$AP$6),IF($AV$6=0,$AN$6/$AP$6,VLOOKUP($AV$6*100,Annuität!$G$3:$H$10003,2,TRUE)*$AN$6),0),0) -> 0 | AX43: =IF(AL43='Basis - base - base'!$V$21,'Basis - base - base'!$V$20,0) ->  | BA43: 0 | BB43: 0 | BD43: 0 | BE43: 30 | BF43: =IF(AY43<0,HLOOKUP('Basis - base - base'!AD3,Sprachentabelle!B2:D201,159,FALSE),"") -> 
G44: =HLOOKUP('Basis - base - base'!AD3,Sprachentabelle!B2:D201,129,FALSE) -> Mois | H44: =SUMIF(H13:H43,"<1E+307") -> 360 | AG44: =HLOOKUP('Basis - base - base'!AD3,Sprachentabelle!B2:D201,131,FALSE) -> Total | AJ44: Monate | AK44: =SUMIF(AK13:AK43,"<1E+307") -> 360 | AM44: =SUMIF(AM13:AM43,"<1E+307") -> 54000 | AN44: 0 | AO44: 6480 | AP44: 1620 | AQ44: 0 | AR44: 0 | AU44: 12999.12739 | AV44: 0 | AW44: 0 | AY44: =SUMIF(AY12:AY43,"<1E+307") -> -2248 | BA44: =SUMIF(BA12:BA43,"<1E+307") -> -4081.823617 | BF44: =COUNTIF(BF12:BF43,HLOOKUP('Basis - base - base'!AD3,Sprachentabelle!B2:D201,159,FALSE)) -> 0
G45: =HLOOKUP('Basis - base - base'!AD3,Sprachentabelle!B2:D201,130,FALSE) -> Années | H45: =H44/12 -> 30 | AG45: Ø | AJ45: Jahre | AK45: =AK44/12 -> 30 | AM45: =AM44/(H44/12) -> 1800 | AN45: =AN44/(H44/12) -> 0 | AO45: =AO44/(H44/12) -> 216 | AP45: =AP44/(H44/12) -> 54 | AQ45: =AQ44/(H44/12) -> 0 | AR45: =AR44/(H44/12) -> 0 | AU45: =IF(AP4>0,AU44/AP4,0) -> 433.3042462 | AV45: =IF(AP5>0,AV44/AP4,0) -> 0 | AW45: =IF(AP6>0,AW44/AP4,0) -> 0
S51: ='Basis - base - base'!L59 -> V: | Z51: ='Basis - base - base'!U59 -> 15/08/2024

Sheet Sprachentabelle (hidden)
B1: Labels | F1: Dropdown MWST-Pflicht | G1: =IF('Basis - base - base'!$AD$2="français","DD_MWST_Pflicht_fr",IF('Basis - base - base'!$AD$2="italiano","DD_MWST_Pflicht_it","DD_MWST_Pflicht_de")) -> DD_MWST_Pflicht_fr | I1: Dropdown Anlagen-Kategorie | J1: =IF('Basis - base - base'!$AD$2="français","DD_Anlagen_Kategorie_fr",IF('Basis - base - base'!$AD$2="italiano","DD_Anlagen_Kategorie_it","DD_Anlagen_Kategorie_de")) -> DD_Anlagen_Kategorie_fr | L1: Dropdown Phase 1 | M1: =IF('Basis - base - base'!$AD$2="français","DD_Phase1_fr",IF('Basis - base - base'!$AD$2="italiano","DD_Phase1_it","DD_Phase1_de")) -> DD_Phase1_fr | O1: Dropdown Phase 2 | P1: =IF('Basis - base - base'!$AD$2="français","DD_Phase2_fr",IF('Basis - base - base'!$AD$2="italiano","DD_Phase2_it","DD_Phase2_de")) -> DD_Phase2_fr | R1: Dropdown Phase 3 | S1: =IF('Basis - base - base'!$AD$2="français","DD_Phase3_fr",IF('Basis - base - base'!$AD$2="italiano","DD_Phase3_it","DD_Phase3_de")) -> DD_Phase3_fr | U1: Dropdown Datum | V1: =IF('Basis - base - base'!$AD$2="français","DD_Monat_fr",IF('Basis - base - base'!$AD$2="italiano","DD_Monat_it","DD_Monat_de")) -> DD_Monat_fr
A2: Sprachcode | B2: 1 | C2: 2 | D2: 3
A3: Sprache | B3: deutsch | C3: français | D3: italiano | E3: Bemerkungen | F3: Sprache | G3: Text | H3: Hilfs-Code | I3: Sprache | J3: Text | K3: Hilfs-Code | L3: Sprache | M3: Text | N3: Hilfs-Code | O3: Sprache | P3: Text | Q3: Hilfs-Code | R3: Sprache | S3: Text | T3: Hilfs-Code | U3: Sprache | V3: Monat | W3: Hilfs-Code | X3: Jahr
A4: 3 | B4: Eingaben | C4: Données | D4: Variabili | F4: deutsch | G4: nicht MWST-pflichtig | H4: 1 | I4: deutsch | J4: freistehend | K4: 1 | L4: deutsch | M4: eigener Tarif | N4: 1 | O4: deutsch | P4: - | Q4: 3 | R4: deutsch | S4: - | T4: 3 | U4: deutsch | V4: Januar | W4: 1 | X4: 2009
A5: =A4+1 -> 4 | B5: Resultate | C5: Résultats | D5: Risultati | F5: deutsch | G5: MWST-pflichtig | H5: 2 | I5: deutsch | J5: angebaut | K5: 2 | L5: deutsch | M5: KEV | N5: 2 | O5: deutsch | P5: eigener Tarif | Q5: 1 | R5: deutsch | S5: eigener Tarif | T5: 1 | U5: deutsch | V5: Februar | W5: 2 | X5: 2010
A6: =A5+1 -> 5 | B6: PV-Wirtschaftlichkeit (Basisdaten) | C6: Rentabilité PV (données de base) | D6: Economicità FV (dati di base) | F6: français | G6: non assujetti à la TVA | H6: 1 | I6: deutsch | J6: integriert | K6: 3 | L6: français | M6: tarif propre | N6: 1 | O6: deutsch | P6: KEV | Q6: 2 | R6: français | S6: - | T6: 3 | U6: deutsch | V6: März | W6: 3 | X6: 2011
A7: 6 | B7: Projekt | C7: Projet | D7: Progetto | F7: français | G7: assujetti à la TVA | H7: 2 | I7: français | J7: isolée | K7: 1 | L7: français | M7: RPC | N7: 2 | O7: français | P7: - | Q7: 3 | R7: français | S7: tarif propre | T7: 1 | U7: deutsch | V7: April | W7: 4 | X7: 2012
A8: 7 | B8: Betreiber | C8: Exploitant | D8: Gestore | F8: italiano | G8: non asoggettato IVA | H8: 1 | I8: français | J8: ajoutée | K8: 2 | L8: italiano | M8: tariffa az. el. | N8: 1 | O8: français | P8: tarif propre | Q8: 1 | R8: italiano | S8: - | T8: 3 | U8: deutsch | V8: Mai | W8: 5 | X8: 2013
A9: 8 | B9: Standort | C9: Site | D9: Ubicazione | F9: italiano | G9: Asoggettato ad IVA | H9: 2 | I9: français | J9: intégrée | K9: 3 | L9: italiano | M9: RIC | N9: 2 | O9: français | P9: RPC | Q9: 2 | R9: italiano | S9: tariffa az. el. | T9: 1 | U9: deutsch | V9: Juni | W9: 6 | X9: 2014
A10: 9 | B10: Bezeichnung PV-Anlage | C10: Description de l'installation | D10: Definizione impianto FV | I10: italiano | J10: isolato | K10: 1 | O10: italiano | P10: - | Q10: 3 | U10: deutsch | V10: Juli | W10: 7 | X10: 2015
A11: 10 | B11: Bemerkungen | C11: Remarques | D11: Osservazioni | I11: italiano | J11: annesso | K11: 2 | O11: italiano | P11: tariffa az. el. | Q11: 1 | U11: deutsch | V11: August | W11: 8 | X11: 2016
A12: 11 | B12: MWST | C12: TVA | D12: IVA | I12: italiano | J12: integrato | K12: 3 | O12: italiano | P12: RIC | Q12: 2 | U12: deutsch | V12: September | W12: 9 | X12: 2017
A13: 12 | B13: Produzent | C13: Producteur | D13: Produttore | U13: deutsch | V13: Oktober | W13: 10 | X13: 2018
A14: 13 | B14: MWST-pflichtige Produzenten müssen | C14: Les Producteurs assujettis à la TVA doivent | D14: I produttori assoggettati all'IVA devono versare | U14: deutsch | V14: November | W14: 11 | X14: 2019
A15: 14 | B15: MWST auf den Erträgen abliefern | C15: de TVA sur le chiffre d'affaires | D15: di IVA sui ricavi | U15: deutsch | V15: Dezember | W15: 12 | X15: 2020
A16: 15 | B16: Anlagendaten | C16: Données sur l'installation | D16: Dati dell'impianto | U16: français | V16: janvier | W16: 1 | X16: 2021
A17: 16 | B17: Anlagen-Kategorie | C17: Catégorie de l'installation | D17: Categoria dell'impianto | U17: français | V17: février | W17: 2 | X17: 2022
A18: 17 | B18: Anlagen-Nennleistung | C18: Puissance nominale de l'installation | D18: Potenza nominale dell'impianto | U18: français | V18: mars | W18: 3 | X18: 2023
A19: 18 | B19: kWp | C19: kWp | D19: kWp | U19: français | V19: avril | W19: 4 | X19: 2024
A20: 19 | B20: Anlagen-Lebensdauer | C20: Durée de vie de l'installation | D20: Durata di vita dell'impianto | U20: français | V20: mai | W20: 5 | X20: 2025
A21: 20 | B21: Jahr(e) | C21: an(s) | D21: anni | U21: français | V21: juin | W21: 6 | X21: 2026
A22: 21 | B22: bis | C22: à | D22: fino al | U22: français | V22: juillet | W22: 7 | X22: 2027
A23: 22 | B23: (laufendes Jahr + Anlagen-Lebensdauer) | C23: (année en cours + durée de vie de l'installation) | D23: anno in corso + durata di vita dell'impianto | U23: français | V23: août | W23: 8 | X23: 2028
A24: 23 | B24: Vergütungsdauer (gilt ab Inbetriebnahme) | C24: Durée de rétribution (valable de mise en service) | D24: Periodo remunerazione (valido dal periodo messa in funzione) | U24: français | V24: septembre | W24: 9 | X24: 2029
A25: 24 | B25: spezifischer Jahresenergieertrag (ohne Berücksichtigung der Degredation) | C25: Rendement énergétique annuel spécifique (sans tenir compte de la dégradation) | D25: resa energetica annua specifica | U25: français | V25: octobre | W25: 10 | X25: 2030
A26: 25 | B26: kWh/kWp (ohne Degradation) | C26: kWh/kWp (sans dégradation) | D26: kWh/kWp (senza degrado) | U26: français | V26: novembre | W26: 11 | X26: 2031
A27: 26 | B27: Degradation (linear) | C27: Dégradation (linéaire) | D27: Degrado (lineare) | U27: français | V27: décembre | W27: 12 | X27: 2032
A28: 27 | B28: Ertrag nach | C28: Rendement après | D28: Resa dopo | U28: italiano | V28: gennaio | W28: 1 | X28: 2033
A29: 28 | B29: Jahr(en) | C29: an(s) | D29: anni | U29: italiano | V29: febbraio | W29: 2 | X29: 2034
A30: 29 | B30: % der Anfangsleistung | C30: % de la puissance de départ | D30: % della potenza iniziale | U30: italiano | V30: marzo | W30: 3 | X30: 2035
A31: 30 | B31: spezifische Betriebs- und Unterhaltskosten | C31: Coûts spécifiques d'exploitation et d'entretien | D31: costi specifici di gestione e manutenzione | U31: italiano | V31: aprile | W31: 4 | X31: 2036
A32: 31 | B32: SFr./kWh | C32: SFr./kWh | D32: SFr./kWh | U32: italiano | V32: maggio | W32: 5 | X32: 2037
A33: 32 | B33: (inkl. MWST) | C33: (y c. TVA) | D33: (IVA incl.) | U33: italiano | V33: giugno | W33: 6 | X33: 2038
A34: 33 | B34: (exkl. MWST) | C34: (n c. TVA) | D34: (IVA escl.) | U34: italiano | V34: luglio | W34: 7 | X34: 2039
A35: 34 | B35: Investition | C35: Investissements | D35: Investimento | U35: italiano | V35: agosto | W35: 8 | X35: 2040
A36: 35 | B36: Investitionssumme | C36: Somme d'investissement | D36: Somma d'investimento | U36: italiano | V36: settembre | W36: 9 | X36: 2041
A37: 36 | B37: SFr. | C37: SFr. | D37: SFr. | U37: italiano | V37: ottobre | W37: 10 | X37: 2042
A38: 37 | B38: Direkte Förderung auf Investitionssumme | C38: Promotion de l'investissement direct | D38: Promozione degli investimenti diretto | U38: italiano | V38: novembre | W38: 11 | X38: 2043
A39: 38 | B39: Kapitalstruktur | C39: Structure des capitaux | D39: Struttura del capitale | U39: italiano | V39: dicembre | W39: 12 | X39: 2044
A40: 39 | B40: Eigenkapital | C40: Fonds propres | D40: Capitale proprio | X40: 2045
A41: 40 | B41: Laufzeit | C41: Durée | D41: Durata | X41: 2046
A42: 41 | B42: Kalkulationszinssatz | C42: Taux d'intérêt | D42: Tasso d'int. del capitale | X42: 2047
A43: 42 | B43: (p.a. nominal, inkl. Nebenkosten) | C43: (p.a. nominal, y c. frais accessoires) | D43: (p.a. nominale, incl. costi aggiuntivi) | E43: Zeilenumbruch beachten | X43: 2048
A44: 43 | B44: Fremdkapital 1 | C44: Capital emprunté 1 | D44: Capitale di terzi 1 | X44: 2049
A45: 44 | B45: Zinssatz | C45: Taux d'intérêt | D45: Tasso d'int. | X45: 2050
A46: 45 | B46: Fremdkapital 2 | C46: Capital emprunté 2 | D46: Capitale di terzi 2 | X46: 2051
A47: 46 | B47: Vergütungstarife/Phase | C47: Tarifs de rétribution/Phase | D47: Tariffe rimunerazione/Fase | X47: 2052
A48: 47 | B48: Phase 1 | C48: Phase 1 | D48: Fase 1 | X48: 2053
A49: 48 | B49: Phase 2 | C49: Phase 2 | D49: Fase 2 | X49: 2054
A50: 49 | B50: Phase 3 | C50: Phase 3 | D50: Fase 3 | X50: 2055
A51: 50 | B51: ab (Inbetriebnahme-Periode) | C51: dès (mise en service) | D51: dal (periodo messa in funzione)
A52: 51 | B52: ab | C52: dès | D52: dal
A53: 52 | B53: Abnahmevergütung | C53: rétribution de reprise | D53: tariffa di ripresa
A54: 53 | B54: SFr./kWh (inkl. MWST) | C54: SFr./kWh (y c. TVA) | D54: SFr./kWh (IVA incl.)
A55: 54 | B55: SFr./kWh (exkl. MWST) | C55: SFr./kWh (n c. TVA) | D55: SFr./kWh (IVA escl.)
A56: 55 | B56: Bezugstarif / Solarstromtarif ZEV | C56: Tarif d'achat / Tarif solair ZEV | D56: tariffa acquisto / tarriffa solare ZEV
A57: 56 | B57: Eigennutzungsgrad | C57: Utilisation propre | D57: Grado di autoconsumo
A58: 57 | B58: Vergütungstarif | C58: Tarif de rétribution | D58: Tariffa rimunerazione
A59: 58 | B59: definitiv | C59: définitif | D59: definitivamente
A60: 59 | B60: provisorisch | C60: provisoirement | D60: provvisoriamente
A61: 60 | B61: Ertrag ohne Einspeisevergütung | C61: Rendement sans tarifs de rachat | D61: Ricavi senza tariffa di riacquisto
A62: 61 | B62: Rücklieferung | C62: Rétribution | D62: Immissione in rete
A63: 62 | B63: eingesparter Bezug | C63: Achat épargné | D63: risparmio sull'energia acquistata
A64: 63 | B64: Vergütungsdauer von/bis | C64: Durée de rétribution de/à | D64: Periodo remunerazione dal/al
A65: 64 | B65: SFr./Jahr | C65: SFr./an | D65: SFr./anno
A66: 65 | B66: Ø Ertrag | C66: Ø Rendement | D66: Ø Ricavi
A67: 66 | B67: Ertrag mit Einspeisevergütung | C67: Rendement avec tarifs de rachat | D67: Ricavi da tariffa di riacquisto
A68: 67 | B68: Leistungsklasse | C68: Classe de puissance | D68: Classe di potenza
A69: 68 | B69: Grösse (kWp) | C69: Taille (kWp) | D69: Dimensioni (kWp)
A70: =A69+1 -> 69 | B70: Tarif (SFr./kWh) | C70: Tarif (SFr./kWh) | D70: Tariffa (SFr./kWh)
A71: 70 | B71: ≤ 10 kWp | C71: ≤ 10 kWp | D71: ≤ 10 kWp
A72: 71 | B72: ≤ 30 kWp | C72: ≤ 30 kWp | D72: ≤ 30 kWp
A73: 72 | B73: ≤ 100 kWp | C73: ≤ 100 kWp | D73: ≤ 100 kWp
A74: 73 | B74: ≤ 1000 kWp | C74: ≤ 1000 kWp | D74: ≤ 1000 kWp
A75: 74 | B75: > 1000 kWp | C75: > 1000 kWp | D75: > 1000 kWp
A76: 75 | B76: IBN-Periode | C76: Période mis en fonct. | D76: Periodo messa in funz.
A77: 76 | B77: Ø Einspeisevergütung (bezogen auf Vergütungsdauer) | C77: Ø Rétribution (relative à la durée de rétribution) | D77: Ø retribuzione (riferirsi a durata di retribuzione)
A78: 77 | B78: Kennzahlen | C78: Indices | D78: Indicatori
A79: 78 | B79: (bezogen auf die Anlagen-Lebensdauer) | C79: (relatifs à la durée de vie de l'installation) | D79: (riferiti alla durata di vita dell'impianto)
A80: 79 | B80: Ø Jahresenergieertrag | C80: Ø Production énergetique annuelle | D80: Ø Resa energetica annua
A81: 80 | B81: Ø Jahresertrag | C81: Ø Rendement annuel | D81: Ø Ricavo annuo
A82: 81 | B82: Ø MWST-Umsatzsteuer | C82: Ø TVA impôt sur le chiffre d'affaire | D82: Ø IVA sul fatturato
A83: 82 | B83: Ø MWST-Vorsteuer | C83: Ø TVA impôt préalable | D83: Ø IVA precedente
A84: 83 | B84: Ø Unterhaltsaufwand | C84: Ø Frais d'entretien | D84: Ø Spese di gestione
A85: 84 | B85: Ø Eigenkapitalkosten | C85: Ø Frais de fonds propres | D85: Ø Costo del capitale proprio
A86: 85 | B86: Ø Fremdkapitalkosten | C86: Ø Frais du capital emprunté | D86: Ø Costo del capitale di terzi
A87: 86 | B87: Ø Nettoertrag | C87: Ø Rendement net | D87: Ø Ricavo netto
A88: 87 | B88: Kapitalbarwert (NPV) | C88: Valeur du capital (VAN) | D88: Valore attuale netto (VAN - NPV)
A89: 88 | B89: Payback | C89: Payback | D89: Payback
A90: 89 | B90: kWh-Kosten | C90: Frais par kWh | D90: costo al kWh
A91: 90 | B91: (Nettogegenwartswert) | C91: (valeur actuelle nette) | D91: (valore attuale netto)
A92: 91 | B92: (dyn. Amortisationsrechnung) | C92: (temps d'amortissement) | D92: (tempo di ammortamento)
A93: 92 | B93: (Gestehungskosten) | C93: (frais de production) | D93: (costi di produzione)
A94: 93 | B94: (Einspeisevergütung und eigener Tarif) | C94: (Rétribution et tarifs d'entreprise électrique) | D94: (retribuzione e tariffa az. el.)
A95: 94 | B95: (Umsatzsteuer auf den Rücklieferungs-Erträgen) | C95: (TVA sur les rendements RPC) | D95: (imposta sugli utili RIC)
A96: 95 | B96: (Vorsteuerabzug auf den spezifischen Betriebs- und Unterhaltskosten) | C96: (impôt préalable sur les frais d'exploitation et d'entretien spécifiques) | D96: (Deduzione dell'imposta precedente per i costi specifici di gestione e manutenzione)
A97: 96 | B97: (Amortisation + Zinsen) | C97: (ammortissement et intérêts) | D97: (Ammortamento + interessi)
A98: 97 | B98: Investition ist sehr vorteilhaft | C98: l'investissement est très bénéfique | D98: Investimento è molto vantaggioso
A99: 98 | B99: Vergütungsdauer von | C99: Durée de rétribution de | D99: Periodo remunerazione dal
A100: 99 | B100: Vergütungsdauer bis | C100: Durée de rétribution à | D100: Periodo remunerazione al
A101: 100 | B101: PV-Wirtschaftlichkeit (Detaildaten) | C101: Rentabilité PV (données détaillées) | D101: Economicità FV (dati dettagliati)
A102: 101 | B102: Phase Einspeisevergütung | C102: Phase Rétribution | D102: Fase retribuzione
A103: 102 | B103: Phase 1 eigener Tarif | C103: Phase 1 Tarif EE | D103: Fase tariffa az. el. 1
A104: 103 | B104: Phase 2 eigener Tarif | C104: Phase 2 Tarif EE | D104: Fase tariffa az. el. 2
A105: 104 | B105: Phase 3 eigener Tarif | C105: Phase 3 Tarif EE | D105: Fase tariffa az. el. 3
A106: 105 | B106: Datum von | C106: Date de | D106: Data dal
A107: 106 | B107: Datum bis | C107: Date à | D107: Data al
A108: 107 | B108: Summe | C108: Somme | D108: Somma
A109: 108 | B109: Zinssatz (p.a. nominal, inkl. Nebenkosten) | C109: Taux d'intérêt (p.a. nominal, y c. frais annexes) | D109: Tasso d'interesse (p.a. nominale, incl. spese acessorie) | E109: Zeilenumbruch beachten
A110: 109 | B110: Jahr | C110: Année | D110: Anno
A111: 110 | B111: Perioden- dauer | C111: Durée de la période | D111: Durata | E111: Zeilenumbruch beachten
A112: 111 | B112: Anz. Monate zum KEV-Tarif | C112: Nb mois au tarif RPC | D112: Numero di mesi a tariffa RIC | E112: Zeilenumbruch beachten
A113: 112 | B113: Anz. Monate zum eigenen Tarif Phase 1 | C113: Nb mois au Tarif EE Phase 1 | D113: Numero di mesi a tariffa fase az. el. 1 | E113: Zeilenumbruch beachten
A114: 113 | B114: Anz. Monate zum eigenen Tarif Phase 2 | C114: Nb mois au Tarif EE Phase 2 | D114: Numero di mesi a tariffa fase az. el. 2 | E114: Zeilenumbruch beachten
A115: 114 | B115: Anz. Monate zum eigenen Tarif Phase 3 | C115: Nb mois au Tarif EE Phase 3 | D115: Numero di mesi a tariffa fase az. el. 3 | E115: Zeilenumbruch beachten
A116: 115 | B116: Jahresenergie- ertrag | C116: Rendement énergétique annuel | D116: Resa energetica annua | E116: Zeilenumbruch beachten
A117: 116 | B117: Ertrag | C117: Rendement | D117: Ricavi
A118: 117 | B118: Betrieb & Unterhalt | C118: Exploitation & entretien | D118: Gestione & manutenzione | E118: Zeilenumbruch beachten
A119: 118 | B119: MWST-Umsatzsteuer | C119: TVA | D119: IVA sui ricavi
A120: 119 | B120: MWST-Vorsteuer Betriebs- und Unterhaltskosten | C120: Impôt anticipé coûts d'exploitation et entretien | D120: IVA precedente Costi di gestione e manutenzione | E120: Zeilenumbruch beachten
A121: 120 | B121: Eigenkapital (Verzinsung jährlich) | C121: Fonds propres (intérêts annuels) | D121: Capitale proprio (interesse annuo)
A122: 121 | B122: Cash Flow netto | C122: Cash Flow net | D122: Cash Flow netto
A123: 122 | B123: Barwert Cash Flow netto (NPV) | C123: Valeur du capital (VAN) | D123: Valora attuale netto Cash Flow (VAN) | E123: Zeilenumbruch beachten
A124: 123 | B124: Kapital- entwicklung NPV | C124: Développement du capital VAN | D124: Sviluppo del capitale VAN | E124: Zeilenumbruch beachten
A125: 124 | B125: Hinweise | C125: Remarques | D125: Osservazioni
A126: 125 | B126: [Monate] | C126: [Mois] | D126: [Mesi]
A127: 126 | B127: [kWh] | C127: [kWh] | D127: [kWh]
A128: 127 | B128: [SFr.] | C128: [SFr.] | D128: [SFr.]
A129: 128 | B129: Annuität [SFr.] | C129: rente [SFr.] | D129: Annualità [SFr.]
A130: 129 | B130: Monate | C130: Mois | D130: Mesi
A131: 130 | B131: Jahre | C131: Années | D131: Anni
A132: 131 | B132: Total | C132: Total | D132: Totale
A133: 132 | B133: fehlerhafte od. unvollständige Eingabe | C133: entrée erronée ou incomplète | D133: ingresso erronei o incompleti
A134: =A133+1 -> 133 | B134: Vergütungstarife | C134: Tarifs de rétribution | D134: Tariffe rimunerazione
A135: 134 | B135: Kapitalstruktur | C135: Structure des capitaux | D135: Struttura del capitale
A136: 135 | B136: ermittelte Einmalvergütung (EIV): | C136: rétribution unique (RU) déterminé: | D136: rimunerazione unica (RU) determinato:
A137: 136 | B137: keine Einmalvergütung | C137: sans versement ponctuel | D137: rimunerazione unica non possibile
A138: 137 | B138: für integrierte Anlagen mit IBN ab 1.1.2014 und einer Leistung über 100 kWp wird die Tarifkategorie "angebaut" angewendet | C138: pour les systèmes intégrés mise en service dès 1.1.2014 et avec plus de 100 kWp, le tarif catégorie "ajoutée" appliqué | D138: per impianti integrato periodo messa in funzione dal 1.1.2014 e con oltre 100 kWp, la categoria tariffaria "annesso​​" applicata
A139: 138 | B139: Kapital- entwicklung Cash Flow netto | C139: Développement du capital Cash Flow net | D139: Sviluppo del capitale Cash Flow netto
A140: 139 | B140: Verweis auf Tabellenblatt 'Notizen' | C140: référence à tableau 'remarques' | D140: riferimento alla tabella 'note'
A141: 140 | B141: Anlagen bis 10 kWp und einem IBN-Datum ab 1.1.2014 erhalten keine Einspeisevergütung sondern eine Einmalvergütung | C141: Les installations jusqu'à 10 kWp et mises en service après le 1.1.2014 ne reçoivent pas de tarifs de rachat mais versement ponctuel | D141: Impianti fino a 10 kWp e messa in esercizio a partire dal 1.1.2014 non ricevono la rimunerazione tariffa di riacquisto ma rimunerazione unica | E141: Zeilenumbruch beachten
A142: 141 | B142: Anlagen mit IBN-Datum älter als 1.1.2014 und Einspeisevergütung können keine Eigennutzung geltend machen | C142: Les installations mises en service avant le 1.1.2014 recevant une rétribution ne peuvent pas faire valoir la propre consommation | D142: Impianti con una data di messa in esercizio precedente il 1.1.2014 e con remunerazione non possono far valere il consumo proprio | E142: Zeilenumbruch beachten
A143: 142 | B143: Fehlermeldung: | C143: Message d'erreur: | D143: Messaggio di errore:
A144: 143 | B144: Varianten-Wahl für Vergütungsphasen ungültig | C144: Sélection de variantes pour phases de rétribution non valable | D144: Scelta non valida delle varianti per le fasi di remunerazione
A145: 144 | B145: bitte Inbetriebnahme-Periode wählen | C145: Veuillez indiquer la période de mise en service | D145: p.f. scegliere il periodo di messa in esercizio
A146: 145 | B146: bitte 'Periode ab' für Phase 2 wählen | C146: Veuillez indiquer "Période dès" pour la phase 2 | D146: p.f. scegliere 'Periodo dal' per la fase 2
A147: 146 | B147: bitte 'Periode ab' für Phase 3 wählen | C147: Veuillez indiquer "Période dès" pour la phase 3 | D147: p.f. scegliere 'Periodo dal' per la fase 3
A148: 147 | B148: Zeitüberschneidung bei Phase 1 und Phase 2 | C148: Recoupement de temps pour phase 1 et phase 2 | D148: Sovrapposizione temporale per la fase 1 e fase 2
A149: 148 | B149: Zeitüberschneidung bei Phase 2 und Phase 3 | C149: Recoupement de temps pour phase 2 et phase 3 | D149: Sovrapposizione temporale per la fase 2 e fase 3
A150: 149 | B150: Zeitüberschneidung bei Einspeisevergütung-Phase und Phase 2 | C150: Recoupement de temps pour phase rétribution et phase 2 | D150: Sovrapposizione temporale per la fase retribuzione e la fase 2
A151: 150 | B151: Zeitüberschneidung bei Einspeisevergütung-Phase und Phase 3 | C151: Recoupement de temps pour phase rétribution et phase 3 | D151: Sovrapposizione temporale per la fase retribuzione e la fase 3
A152: 151 | B152: Zeitüberschneidung bei Phase 2 und Anlagen-Lebensdauer | C152: Recoupement de temps pour phase 2 et durée de vie de l'installation | D152: Sovrapposizione per la fase 2 e la durata di vita dell'impianto
A153: 152 | B153: Zeitüberschneidung bei Phase 3 und Anlagen-Lebensdauer | C153: Recoupement de temps pour phase 3 et durée de vie de l'installation | D153: Sovrapposizione per la fase 3 e la durata di vita dell'impianto
A154: 153 | B154: kWh/Jahr | C154: kWh/an | D154: kWh/anno
A155: 154 | B155: fehlende zwingende Eingaben | C155: Indications obligatoires manquantes | D155: dati indispensabili mancanti
A156: 155 | B156: Anlagen-Lebensdauer kleiner als Vergütungsdauer | C156: Durée de vie de l'installation inférieure à la durée de rétribution | D156: Durata di vita dell'impianto inferiore alla durata di remunerazione
A157: 156 | B157: Anlagen-Lebensdauer kleiner als Laufzeit Fremdkapital 1 | C157: Durée de vie de l'installation inférieure à la durée du capital emprunté 1 | D157: Durata di vita dell'impianto inferiore alla durata ammortamento capitale di terzi 1
A158: 157 | B158: Anlagen-Lebensdauer kleiner als Laufzeit Fremdkapital 2 | C158: Durée de vie de l'installation inférieure à la durée du capital emprunté 2 | D158: Durata di vita dell'impianto inferiore alla durata ammortamento capitale di terzi 2
A159: 158 | B159: negativer Cashflow, siehe Tabellenblatt 'Details' | C159: Cashflow négatif, référence à tableau 'détail' | D159: Cashflow negativo, riferimento alla tabella 'dettagli'
A160: 159 | B160: negativer Cashflow | C160: Cashflow négatif | D160: Cashflow negativo
A161: 160 | B161: Zahlungsfrist Einmalvergütung | C161: délai de rétribution | D161: termine di pagamento rimunerazione unica
A162: 161 | B162: KLEIV: Kleine Einmalvergütung (Zahlungsfrist 1-2 Jahre) | C162: PRU: Rétribution pour petites installations (délai de paiement 1-2 ans) | D162: RUP: Rimunerazione unica per piccoli impianti (termine di pagamento 1-2 anni)
A163: 162 | B163: GREIV: Grosse Einmalvergütung (Zahlungsfrist 1-2 Jahre) | C163: GRU: Rétribution unique pour grandes installations (délai de paiement 1-2 ans) | D163: RUG: Rimunerazione unica per grandi impianti (termine di pagamento 1-2 anni)
A164: 163 | B164: Auszahlung Einmalvergütung | C164: paiement rétribution | D164: pagamento rimunerazione unica
A165: 164 | B165: Einmalvergütung (gemäss Pronovo Tarifrechner) | C165: rétribution (selon le tarificateur de Pronovo) | D165: rimunerazione unica (secondo il calcolatroe del tasso di Pronovo)
A166: 165 | B166: https://pronovo.ch/de/services/tarifrechner/ | C166: https://pronovo.ch/fr/services/tarificateur/ | D166: https://pronovo.ch/it/servizi/calcolatore-delle-tariffe/
A167: 166 | B167: Hier geht's zum Tarifrechner | C167: Cliquez ici pour le tarificateur | D167: Clicca qui per il calcolatore del tasso
A168: 167
A169: 168
A170: 169
A171: 170
A172: 171
A173: 172
A174: 173
A175: 174
A176: 175
A177: 176
A178: 177
A179: 178
A180: 179
A181: 180
A182: 181
A183: 182
A184: 183
A185: 184
A186: 185
A187: 186
A188: 187
A189: 188
A190: 189
A191: 190
A192: 191
A193: 192
A194: 193
A195: 194
A196: 195
A197: 196
A198: =A197+1 -> 197
A199: 198
A200: 199
... 1 more rows

Sheet Notizen - remarques - note
C1: Begriff | D1: Erklärung | F1: Terme | G1: Définition | I1: Definizione | J1: Spiegazione
A2: =ROW(A2)-1 -> 1 | B2: =A2&")" -> 1) | C2: MWST | D2: MWST-pflichtige Produzenten müssen die Umsatzsteuer auf den Erträgen abliefern, im Gegenzug können sie jedoch die Vorsteuern bei den Investitionen geltend machen. MWST-pflichtig: - Investitionssumme exkl. MWST erfassen - EW-Vergütungstarife inkl. MWST erfassen nicht MWST-pflichtig: - Investitionssumme inkl. MWST erfassen - EW-Vergütungstarife inkl. MWST erfassen | F2: TVA | G2: Les producteurs assujettis à la TVA doivent payer la TVA sur leur chiffre d’affaires, en revanche ils peuvent déduire l’impôt préalable sur les investissements. Assujetti à la TVA: - Saisir la somme d’investissement hors TVA - Saisir les tarifs de rémunération de l’entreprise électrique TVA comprise Non assujetti à la TVA: - Saisir la somme d’investissement TVA comprise - Saisir les tarifs de rémunération de l’entreprise électrique TVA comprise | I2: IVA | J2: I produttori assoggettati all'IVA devono versare l'IVA sui ricavi dalla vendita della corrente, ma nel contempo possono rivendicare l'IVA precedente versata per l'investimento. Soggetti all'IVA: - registrare l'investimento IVA esclusa - registrare la tariffa di ripresa dell'azienda elettrica IVA inclusa Non soggetti all'IVA: - registrare l'investimento IVA inclusa - registrare la tariffa di ripresa dell'azienda elettrica IVA inclusa
A3: =ROW(A3)-1 -> 2 | B3: =A3&")" -> 2) | C3: Anlagen-Kategorie | D3: gemäss Verordnung | F3: Catégorie d’installation | G3: Selon ordonnance | I3: Categoria dell'impianto | J3: secondo l'Ordinanza
A4: 3 | B4: 3) | C4: Anlagen-Nennleistung | D4: installierte DC-Gesamtleistung der Solargeneratoren | F4: Puissance nominale des installations | G4: Puissance DC totale installée des générateurs solaires | I4: Potenza nominale dell'impianto | J4: potenza installata DC complessiva del generatore solare
A5: 4 | B5: 4) | C5: Anlagen-Lebensdauer | D5: erwartete Anlagen-Lebensdauer (Eingabe: max. 30 Jahre) Hinweis: die Dauer der Einspeisevergütung gemäss KEV beträgt 20 oder 25 Jahre (beträgt die Anlagen-Lebensdauer bspw. 30 Jahre, kann nach der KEV-Vergütungsdauer mit einem EW-Tarif kalkuliert werden (Beispiel: Phase 1 EW-Tarif (Wartefrist), Phase 2 KEV, Phase 3 EW-Tarif) (errechnete lineare Degradation aus Punkt 2.6 wird auf Anlagen-Lebensdauer hochgerechnet) | F5: Durée de vie des installations | G5: Durée de vie escomptée de l'installation (saisie : max. 30 ans) Remarque : la durée de la rétribution pour l’injection de courant selon la RPC est de 20 ou 25 ans (si la durée de vie de l’installation est de 30 ans par exemple, le calcul pour la période après le temps de rétribution de la RPC peut être effectué avec un tarif d’entreprise électrique) Exemple : Phase 1 Tarif de l’entreprise électrique (délai d’attente), Phase 2 RPC, Phase 3 Tarif de l’entreprise électrique) (La dégradation linéaire calculée à partir du point 2.5 est extrapolée sur la durée de vie) | I5: Durata di vita dell'impianto | J5: durata di vita prevista dell'impianto (immissione dato: max. 30 anni) Avviso: la durata della tariffa per l'immissione in rete secondo RIC è di 20 oppure 25 anni. Se la durata prevista dell'impianto è di 30 anni, si può considerare la tariffa versata dall'azienda elettrica dopo la fase RIC. (Esempio: Fase 1 tariffa az. el. (periodo d'attesa), Fase 2 RIC, Fase 3 tariffa az. el . (viene considerato il degrado lineare della produzione nel corso della durata di vita, sec. dato immesso al pto. 2.5)
A6: 5 | B6: 5) | C6: KEV-Vergütungsdauer (gilt ab Inbetriebnahme) | D6: Die maximale KEV-Vergütungsdauer beträgt 15, 20 oder 25 Jahre, je nach Inbetriebnahmedatum der PV-Anlage. Die KEV-Vergütungsdauer gilt ab der Inbetriebnahme der PV-Anlage. Die Vergütungsdauer beträgt: a. bei einer Inbetriebnahme bis zum 31. Dezember 2013: 25 Jahre; b. bei einer Inbetriebnahme ab 1. Januar 2014 bis zum 31. Dezember 2017: 20 Jahre; c. bei einer Inbetriebnahme ab 1. Januar 2018: 15 Jahre. | F6: Durée de rétribution de RPC (valable de mise en service) | G6: La durée maximale de la rétribution RPC est de 15, 20 ou 25 ans, selon la date d’entrée en fonction de l’installation PV. La durée de rétribution RPC commence au moment de la mise en service de l’installation. La durée de rétribution est: a. de 25 ans en cas de mise en service le 31 décembre 2013 au plus tard; b. de 20 ans en cas de mise en service entre le 1er janvier 2014 et le 31 décembre 2017; c. de 15 ans en cas de mise en service à partir du 1er janvier 2018. | I6: Periodo remunerazione da RIC (valido dal periodo messa in funzione) | J6: La durata massima di rimunerazione RIC è di 15, 20 o 25 anni, a seconda della data di messa in esercizio dell’impianto FV. La durata di rimunerazione RIC vale dalla messa in esercizio. La durata della rimunerazione è di: a. in caso di messa in esercizio entro il 31 dicembre 2013: 25 anni; b. in caso di messa in esercizio nel periodo compreso tra il 1° gennaio 2014 e il 31 dicembre 2017: 20 anni; c. in caso di messa in esercizio dopo il 1° gennaio 2018: 15 anni.
A7: 6 | B7: 6) | C7: spezifischer Jahresenergieertrag | D7: erwarteter Jahresertrag in kWh/kWp (ohne Degradation) Standardwert von 950 kWh/kWp entspricht dem Durchschnitt im Schweizer Mittelland bei Ausrichtung nach Süden und 20°-30° Neigung | F7: Production énergétique annuelle spécifique | G7: Production annuelle escomptée en kWh/kWp (sans dégradation) La valeur standard de 950 kWh/kWp correspond à la moyenne sur le plateau suisse pour une orientation sud et une inclinaison de 20°-30°. | I7: Resa energetica annua specifica: | J7: resa energetica annua specifica prevista (senza degrado) Valori standard, per orientamento sud e inclinazione tra 20 e 30 °: Altopiano svizzero: 950 kWh/kWp Sud delle Alpi: 1'000 kWh/kWp
A8: 7 | B8: 7) | C8: Degradation | D8: erwartete Leistung nach einer bestimmten Zeit in Prozent der Anfangsleistung, wird beim Berechnen des mittleren Jahresenergieertrags und der Kapitalverzinsung berücksichtigt Der Vorgabewert von 80% nach 25 Jahren entspricht den aktuell geltenden Leistungsgarantien der meisten PV-Modulhersteller. (errechnete lineare Degradation wird auf Anlagen-Lebensdauer (Punkt. 2.3) hochgerechnet) | F8: Dégradation | G8: Puissance escomptée après un certain temps, exprimée en pourcentage de la puissance initiale. En tenir compte lors du calcul de la production annuelle moyenne et des intérêts du capital. Une valeur par défaut fixée à 80% après 25 ans correspond aux garanties de performance actuellement en vigueur de la plupart des fabricants de panneaux photovoltaïques. (la dégradation linéaire calculée est extrapolée sur la durée de vie de l’installation (point 2.3) | I8: Degrado | J8: Potenza prevista dopo un certo tempo in percento rispetto alla potenza iniziale. Il degrado è considerato nel calcolo della resa energetica media annua e dell'interesse sul capitale. Il dato proposto del 80% dopo 25 anni corrisponde alle attuali garanzie sulla potenza fornite dalla maggior parte dei fabbricanti di PV. (degrado lineare calcolato sulla durata di vita punto 2.3)
A9: 8 | B9: 8) | C9: spezifische Betriebs- und Unterhaltskosten | D9: erwartete Unterhaltskosten (gemäss Untersuchungen liegen die Unterhaltskosten zwischen 0.04 SFr./kWh und 0.08SFr./kWh, inkl. MWST) Referenzkosten (inkl. MWST): ≤100kW: 0.03 SFr./kWh ≤1000 kW: 0.045SFr./kWh >1000kW: 0.04 SFr./kWh Beispiele: Service, Reinigung, Wechselrichter-Ersatz | F9: Frais spécifiques d’exploitation et d’entretien | G9: Frais d’entretien prévus (selon des études, les frais d’entretien se situent entre 0.04 CHF/kWh et 0.08 CHF/kWh, TVA comprise) Coûts de référence (TVA comprise) : ≤100kW: 0.03 CHF/kWh ≤1000 kW: 0.045 CHF/kWh >1000kW: 0.04 CHF/kWh Exemples : Service, nettoyage, remplacement de l’onduleur | I9: Costi specifici di gestione e manutenzione | J9: Costi di manutenzione previsti (in base a indagini risulta che i costi di gestione si aggirano tra 0.04 SFr./kWh e 0.08 SFr./kWh, IVA escl.) Costi di riferimento (IVA incl.): ≤100kW: 0.03 SFr./kWh ≤1000 kW: 0.045 SFr./kWh >1000kW: 0.04 SFr./kWh Esempi: servizio, pulizia, sostituzione ondulatore
A10: 9 | B10: 9) | C10: Investitionskosten | D10: alle für die Realisierung benötigten Investitionskosten inkl. Investitionsnebenkosten MWST-pflichtige Produzenten: -> exkl. MWST nicht MWST-pflichtige Produzenten: -> inkl. MWST | F10: Frais d’investissement | G10: Tous les frais d’investissement nécessaires à la réalisation, y compris les frais annexes d‘investissement Producteurs assujettis à la TVA: -> hors TVA Producteurs non assujettis à la TVA: -> TVA comprise | I10: Costi di investimento | J10: Tutte le spese necessarie alla realizzazione dell'impianto, anche quelle collaterali Produttori assoggettati all'IVA: -> IVA escl. Produttori non assoggettati all'IVA: -> IVA incl.
A11: 10 | B11: 10) | C11: Direkte Förderung auf die Investitionssumme | D11: Die direkte Förderung auf die Investitionssumme beinhaltet alle Summen (z.B. der öffentlichen Hand, des Elektrizitätswerks), welche direkt bei der Inbetriebnahme - also zum Investitionszeitpunkt - geleistet werden. | F11: promotion de l'investissement direct | G11: Les promotion de l'investissement direct sur la somme d’investissement contiennent toutes les sommes (p. ex. des pouvoirs publics, de la centrale électrique) attribuées directement lors de la mise en service – donc au moment de l’investissement. | I11: promozione degli investimenti diretto | J11: Gli aiuti finanziari all'investimento rappresentano la somma delle promozione degli investimenti diretto (p.es. da enti pubblici, aziende elettriche, ecc.) che vengono percepite direttamente all'inizio dell'esercizio, ossia al momento dell'investimento.
B12: 11) | C12: Einmalvergütung | D12: Die Einmalvergütung (KLEIV und GREIV) bezieht sich auf die Förderung nach der Energieverordung vom Bund. (Pronovo) Die eingegebene Zahlungsfrist wird dabei berücksichtigt. KLEIV < 100kWp (Zahlungsfrist 1-2 Jahre) GREIV > 100kWp bis 50MWp (Zahlungsfrist 2-3 Jahre) Es ist auch möglich die maximale KLEIV mit der entsprechenden Zahlungsfrist für kleinere Anlagen zu beziehen. | F12: rétribution | G12: La rétribution (RUP et RUG) s'appuie sur l'ordonnance sur l'énergie. (Pronovo) Le délai de paiement est considéré. RUP < 100 kWp (délai de paiement 1-2 ans) RUG > 100kWp à 50 MWp (délai de paiement 2-3 ans) C'est possible de prendre le maximum RUP avec le délai de paiment court si la puissance est plus grand que 100kWp. | I12: rimuneratione unica | J12: La rimuneratione unica (RUP e RUG) riferisi a l'ordinanza sull'energia. (Pronovo) Sarà neccessario di considerare la termine di pagamento della rimunerazione . RUP < 100 kWp (termine di pagamento rimunerazione 1-2 anni) RUG > 100kWp à 50 MWp (termine di pagamento rimunerazione 2-3 anni) É possibile prendere la massima RUP con la termine di pagamento corto quando la potenza é superiore 100 kWp.
A13: 12 | B13: 12) | C13: Eigenkapital | D13: alle für die Realisierung benötigten Investitionsmittel nach Abzug von Förderleistungen und Fremdkapital Investitionskosten (3.1) - Förderungen (3.2) - Fremkapital 1 (4.2) - Fremdkapital 2 (4.3) = Eigenkapital Eigenkapital-Zinssatz (=Investitions-Kalkulations-Zinssatz): - wird für die Diskontierung (Abzinsung) bei der Ermittlung des Kapitalwerts verwendet - 1% -> Rendite von Obligationen der Schweizerischen Eidgenossenschaft (Stand Ende 2012) | F13: Fonds propres | G13: Tous les moyens d’investissement nécessaires à la réalisation après déduction des subventions et du capital emprunté. Frais d’investissements (3.1) - subventions (3.2) - emprunts 1 (4.2) – emprunts 2 (4.3) = fonds propres Taux d’intérêts pour les capitaux propres (= taux d‘intérêts d’investissement) : - est utilisé pour l’escompte obtenu lors de l’évaluation de la valeur du capital - 1% -> rendements des obligations de la Confédération suisse (état fin 2012) | I13: Capitale proprio | J13: tutti i mezzi necessari per l'investimento dopo deduzione degli aiuti finanziari e del capitale di terzi Capitale proprio = Costi di investimento (3.1) - Aiuti finanziari (3.2) - Capitale di terzi 1 (4.2) - Capitale di terzi 2 (4.3) Tasso di interesse sul capitale proprio (tasso di interesse di calcolo sull'investimento): - viene utilizzato per la determinazione della resa del capitale - 1% -> Rendita di obbligazioni della Confederazione Svizzera (stato fine 2012)
A14: 13 | B14: 13) | C14: Fremdkapital | D14: Fremdkapital-Zinssatz: Die Zinszahlungen sowie die Amortisationen werden nach der Annuitäten-Methode ermittelt (jährlich gleichbleibende Zahlungen) | F14: Capital emprunté | G14: Taux d’intérêts des emprunts : Les intérêts et l’amortissement sont calculés selon la méthode des annuités (paiements annuels constants) | I14: Capitale di terzi | J14: Tasso di interesse sul capitale di terzi: Gli interessi e l'ammortamento sono calcolati con il metodo delle annualità (costi annui costanti)
A15: 14 | B15: 14) | C15: Vergütungstarife/Phasen | D15: die Phasen mit den Vergütungstarifen müssen mit der Anlage-Lebensdauer übereinstimmen! mögliche Varianten für Vergütungstarife: A: KEV / - / - B: KEV / EW-Tarif / - C: EW-Tarif / - / - D: EW-Tarif / KEV / - E: EW-Tarif / KEV / EW-Tarif F: EW-Tarif / EW-Tarif / - G: EW-Tarif / EW-Tarif / EW-Tarif die zur Auswahl stehenden Perioden richten sich nach den KEV-Perioden (auch unterjährige Absenkungen möglich) Inbetriebnahmeperiode: Für die IBN-Periode wird als Startdatum der Mittelwert (Periodenmitte) gesetzt. Rückliefertarif: Vergütungsarif für die ins öffentliche Stromnetz eingespiesene Energie (für MWST-pflichtige Produzenten muss hier der Rückliefertarif inkl. MWST angegeben werden) Bezugstarif: Einkaufstarif für die vom öffentlichen Stromnetz bezogene Energie (für MWST-pflichtige Produzenten muss hier der Rückliefertarif inkl. MWST angegeben werden) | F15: Tarifs de rétribution/Phase | G15: Les phases avec les tarifs de rétribution doivent correspondre à la durée de vie de l’installation ! Variantes possibles pour les tarifs de rétribution (EE = entreprise électrique): A: RPC/ - / - B: RPC / Tarif EE / - C: Tarif EE / - / - D: Tarif EE / RPC / - E: Tarif EE / RPC / Tarif EE F: Tarif EE / Tarif EE / - G: Tarif EE / Tarif EE / Tarif EE Les périodes à choix se basent sur les périodes RPC (des abaissements en cours d’année sont possibles) Période de mise en service : Pour la mise en service, la date de commencement est fixée selon la valeur moyenne (milieu de la période). Tarif de rétribution : Tarif payé pour l’énergie injectée dans le réseau public (pour les producteurs assujettis à la TVA, le tarif de rétribution doit être indiqué TVA comprise). Tarif d’achat : Tarif valable pour l’énergie achetée au réseau public (pour les producteurs assujettis à la TVA, le tarif doit être indiqué TVA comprise) | I15: Tariffe rimunerazione/Fase | J15: Le varie fasi con le tariffe di rimunerazione devono corrispondere con la durata di vita dell'impianto! possibili varianti per le tariffe di rimunerazione: A: RIC/ - / - B: RIC / tariffa azienda elettrica (az. el.) / - C: tariffa az. el. / - / - D: tariffa az. el. / RIC / - E: tariffa az. el. / RIC / tariffa az. el. F: tariffa az. el. / tariffa az. el. / - G: tariffa az. el. / tariffa az. el. / tariffa az. el. i periodii da scegliere si basano sui periodi della RIC (con possibili adeguamenti delle tariffe anche nel corso dell'anno) Periodo di messa in servizio: Per il periodo di messa in servizio viene considerata quale data di inizio dell'esercizio la media (metà dei periodi). Tariffa di rimunerazione per l'immissione in rete: Tariffa per la rimunerazione dell'energia immessa in rete (per i produttori assoggettati all'IVA inserire qui la tariffa IVA inclusa) Tariffa di acquisto (di elettricità dalla rete): Tariffa per l'acquisto di elettricità dalla rete elettrica pubblica (per i produttori assoggettati all'IVA inserire qui la tariffa IVA inclusa)
A16: 15 | B16: 15) | C16: Ertrag ohne KEV | D16: Rücklieferung: Erträge aus Tarifen, welche anstelle, vor oder nach der KEV-Periode gelten -> Beispiele: Rückvergütungs-Tarif örtliches Elektrizitätswerk, Tarif aus Förderprogramm eingesparter Bezug: eingesparter Strombezug zum geltenden Bezugstarif (Hochtarif) Inbetriebnahmeperiode: Für die Inbetriebnahmeperiode wird als Startdatum der Mittelwert (Periodenmitte) gesetzt. | F16: Rendements sans RPC | G16: Rétribution : Rendements venant de tarifs valables avant ou après la période RPC, ou en remplacement de celle-ci -> Exemples : rétribution au tarif de l’entreprise électrique locale, tarif issu d’un programme d’encouragement. Achat de courant épargné : Achat de courant épargné au tarif d’achat en vigueur (tarif plein) Période de mise en service : Pour la mise en service, la date de commencement est fixée selon la valeur moyenne (milieu de la période). | I16: Ricavi senza RIC | J16: Immissione in rete: Ricavi derivanti dalle tariffe applicate al posto, prima o dopo il periodo RIC -> Esempio: tariffa di ripresa applicata dall'azienda elettrica locale, tariffa promozionale Risparmi sull'acquisto: Risparmi grazie alla corrente che non si è dovuto acquistare, alla tariffa in vigore (tariffa alta) Periodo di messa in funzione: Per il periodo di messa in funzione, quale data di inizio si utilizza la media (metà del periodo).
A17: 16 | B17: 16) | C17: Ø Ertrag ohne KEV | D17: gewichtete Mittelwerte über die betroffenen Perioden | F17: Ø rendement sans RPC | G17: Moyennes pondérées pour les périodes concernées | I17: Ø Ricavi senza RIC | J17: Valore medio sul periodo considerato
A18: 17 | B18: 17) | C18: Ertrag KEV | D18: folgende Faktoren bestimmen den KEV-Tarif: - Anlagenkategorie - Inbetriebnahme-Periode - Anlagen-Nennleistung die KEV-Vergütungsdauer beträgt 20 oder 25 Jahre ab Inbetriebnahmedatum (jeweils bis 31. Dezember des IBN-Jahres + 20/25 Jahre) bei KEV-Zuschlag nach der Inbetriebnahme: KEV-Vergütungsdauer = Inbetriebnahmejahr + 20/25 Jahre - Jahr KEV-Zuschlag Inbetriebnahmeperiode: Für die IBN-Periode wird als Startdatum der Mittelwert (Periodenmitte) gesetzt. | F18: Rendement avec RPC | G18: Les facteurs suivants déterminent le tarif RPC : - Catégorie d‘installation - Période de mise en service - Puissance nominale des installations La durée de rétribution RPC est de 20 ou 25 ans à partir de la mise en service (jusqu’au 31 décembre de l’année de mise en service + 20/25 ans) Pour un supplément RPC après la mise en service : Durée de rétribution RPC = année de mise en service + 20/25 ans – années supplément RPC Période de mise en service : Pour la mise en service, la date de commencement est fixée selon la valeur moyenne (milieu de la période). | I18: Ricavi RIC | J18: La tariffa RIC dipende dai fattori seguenti: - Categoria dell'impianto - Periodo di messa in funzione - Potenza nominale dell'impianto La durata della RIC è di 20 oppure 25 anni a partire dalla data di messa in funzione MIF (fino al 31 dicembre dell'anno di MIF + 20/25 anni) In caso di supplemento RIC dopo la messa in funzione: Durata rimunerazione RIC = Anno di messa in esercizio + 20/25 anni - anni supplemento RIC Periodo di messa in funzione: Per il periodo di messa in funzione quale data di inizio si utilizza la media (metà del periodo).
A19: 18 | B19: 18) | C19: KEV-Vergütungsdauer von | D19: Die KEV-Vergütungsdauer wird im Wirtschaftlichkeits-Rechner ab der Mitte der IBN-Periode berechnet. | F19: Durée de rétribution de | G19: Dans le calculateur, la durée de rétribution RPC est calculée depuis la moitié de la période de mise en service. | I19: Periodo remunerazione dal | J19: Nel calcolatore di economicità la durata di rimunerazione RIC è calcolata a partire dalla metà del periodo di messa in esercizio.
A20: 19 | B20: 19) | C20: KEV-Vergütungsdauer bis | D20: Die maximale KEV-Vergütungsdauer wird immer ab Jahresende des Inbetriebnahmejahrs plus die jeweilige KEV-Vergütungslaufzeit berechnet. | F20: Durée de rétribution à | G20: La durée maximale de rétribution RPC est toujours calculée à partir de la fin de l’année de mise en service plus la durée respective de rétribution RPC. | I20: Periodo remunerazione al | J20: La durata massima di rimunerazione RIC è sempre calcolata a partire dalla fine dell’anno di messa in esercizio più il rispettivo periodo di rimunerazione RIC.
A21: 20 | B21: 20) | C21: Ø KEV-Vergütungstarif | D21: gewichteter Mittelwert aus den KEV-Vergütungstarifen | F21: Ø tarif de rétribution RPC | G21: Moyenne pondérée tirée des tarifs de rétribution RPC | I21: Ø Tariffa di rimunerazione RIC | J21: media ponderata delle tariffe RIC
A22: 21 | B22: 21) | C22: Ø Jahresenergieertrag | D22: spezifischer Jahresenergieertrag x Anlagenleistung (Degradation über gesamte Laufzeit berücksichtigt) | F22: Ø production énergétique annuelle | G22: Production énergétique annuelle spécifique x puissance de l‘installation (dégradation retenue sur tout le temps de fonctionnement) | I22: Ø Resa energetica annua | J22: resa energetica annua specifica x potenza nominale dell'impianto (considerando il degrado durante la durata di vita)
A23: 22 | B23: 22) | C23: Ø Jahresertrag | D23: Ø Jahresertrag aus Ertrag ohne KEV und Ertrag mit KEV über die gesamte Lebensdauer | F23: Ø rendement annuel | G23: Ø rendement annuel venant du rendement sans RPC et rendement avec RPC sur toute la durée de vie | I23: Ø Ricavo annuo | J23: Ø ricavo annuo, da ricavo senza RIC e ricavo da RIC lungo tutta la durata di vita
A24: 22 | B24: 23) | C24: Ø eingesparter Bezug | D24: Ø eingesparter Bezug über die gesamte Lebensdauer | F24: Ø Achat épargné | G24: Ø Achat épargné sur toute la durée de vie | I24: Ø risparmio sull'energia acpuistata | J24: Ø risparmio sull'energia acpuistata lungo tutta la durata di vita
A25: 24 | B25: 24) | C25: MWST-Umsatzsteuer | D25: MWST-pflichtige Produzenten müssen auf den KEV-Erträgen die MWST-Umsatzsteuer abliefern | F25: TVA Impôts sur le chiffre d’affaires | G25: Les producteurs assujettis à la TVA sont tenus de verser la TVA sur les rendements RPC | I25: IVA sui ricavi | J25: I produttori assoggettati all'IVA devono pagare l'IVA sui ricavi dalla RIC
A26: 25 | B26: 25) | C26: MWST-Vorsteuer | D26: MWST-pflichtige Produzenten können auf den Betriebs- und Unterhaltskosten die MWST-Vorsteuer geltend machen | F26: TVA impôt préalable | G26: Les producteurs assujettis à la TVA peuvent déduire l’impôt préalable sur les frais d’exploitation et d’entretien. | I26: IVA precedente | J26: I produttori assoggettati all'IVA hanno il diritto di rivendicare l'IVA pagata per i costi di gestione e manutenzione
A27: 26 | B27: 26) | C27: Ø Unterhaltsaufwand | D27: spezifische Unterhaltskosten x Ø Jahresenergieertrag | F27: Ø frais d’entretien | G27: Frais d’entretien spécifiques x Ø production énergétique annuelle | I27: Ø Spese di gestione | J27: spese specifiche di gestione x Ø resa energetica annua
A28: 27 | B28: 27) | C28: Ø Eigenkapitalkosten | D28: Ø Kosten für die Amortisation und Verzinsung des Eigenkapitals | F28: Ø frais de fonds propres | G28: Ø Frais pour l’amortissement et les intérêts du capital propre | I28: Ø Costi del capitale proprio | J28: Ø costi per l'ammortamento e l'interesse del capitale proprio
A29: 28 | B29: 28) | C29: Ø Fremdkapitalkosten | D29: Ø Kosten für die Amortisation und Verzinsung des Fremdkapitals | F29: Ø frais du capital emprunté | G29: Ø frais pour l’amortissement et les intérêts des emprunts | I29: Ø Costi del capitale di terzi | J29: Ø costi per l'ammortamento e l'interesse del capitale di terzi
A30: 29 | B30: 29) | C30: Ø Nettoertrag | D30: Ø Jahresertrag (KEV- und EW-Tarife, Rücklieferung + eingesparter Bezug) - Ø MWST-Umsatzsteuer + Ø MWST-Vorsteuer - Ø Unterhaltsaufwand - Ø Eigenkapitalkosten - Ø Fremdkapitalkosten | F30: Rendement net | G30: Ø Rendement net (tarifs RPC et entreprise électrique, rétribution + achat de courant épargné) - Ø TVA, impôt sur le chiffre d’affaire + Ø impôt préalable TVA - Ø frais d’entretien - Ø frais de fonds propres - Ø frais du capital emprunté | I30: Ø Ricavo netto | J30: Ø Ricavo annuo (tariffa RIC e tariffa az. El., immissione in rete e risparmio sugli acquisti dalla rete) - Ø IVA sul ricavo + Ø IVA precedente - Ø spese di gestione - Ø costi del capitale proprio - Ø costi del capitale di terzi
A31: 30 | B31: 30) | C31: Kapitalwert | D31: Der Kapitalwert zum Investitionszeitpunkt ist die Summe aller mit dem Kalkulationszinssatz abgezinsten Zahlungen (Ein- und Auszahlungen). Der Kalkulationszinssatz (Verzinsung des Investitionsprojekts) wird in der Höhe einer alternativen Investitions-Rendite angegeben. (siehe Zinssatz Eigenkapital) Ist der Kapitalwert positiv, ist die Investition sehr vorteilhaft. | F31: Valeur du capital | G31: La valeur du capital au moment de l’investissement est la somme de tous les versements décomptés au taux d’intérêt de calcul (encaissements et paiements). Le taux d’intérêts de calcul (intérêts du projet d’investissement) est indiqué à hauteur d’un rendement d’investissement alternatif (voir Taux d‘intérêts de calcul pour le capital propre). | I31: Valore attuale netto | J31: Il valore attuale netto al momento dell'investimento è la somma attualizzata di tutti i flussi di cassa (entrate ed uscite) riferiti al tasso di interesse del capitale. Il tasso di interesse del capitale (interesse sul progetto di investimento) è indicato sotto forma di resa di un investimento alternativo (vedi interesse del capitale proprio). Se il valore attuale netto è positivo, significa che l'investimento è molto vantaggioso rispetto ad un investimento alternativo delle risorse tenendo conto del tasso di interesse sul capitale.
A32: 31 | B32: 31) | C32: Payback | D32: Die Paybackdauer gibt an, nach welcher Zeitdauer der Kapitaleinsatz wieder zurückgewonnen ist | F32: Payback (récupération de l’investissement) | G32: La durée de récupération de l’investissement indique après quelle durée l’engagement du capital est récupéré | I32: Payback (tempo di ritorno) | J32: Il tempo di ritorno indica dopo quanto tempo i ricavi generati permettono di recuperare il capitale per l'investimento.
A33: 32 | B33: 32) | C33: kWh-Kosten | D33: die kWh-Kosten entsprechen den Gestehungskosten | F33: Frais par kWh | G33: Les frais kWh correspondent aux frais de production | I33: Costi del kWh | J33: i costi del kWh sono i costi di produzione
A34: 33
A35: 34

Sheet Glossar - glossaire - glossario
A1: Begriff | B1: Erklärung | D1: Terme | E1: Définition | G1: Definizione | H1: Spiegazione
A2: Anlagen-Kategorie | B2: Anlagen-Kategorie: freistehend - Anlagen ohne konstruktive Verbindung zu Bauten - Beispiel: Anlage im Garten oder Brachland angebaut - Anlagen mit konstruktiver Verbindung zu Bauten und einzig der Stromproduktion dienend - Anlagen an Befestigungssystemen auf Flachdächern oder auf einem Ziegeldach montiert integriert - Anlagen, die in Bauten integriert sind und eine Doppelfunktion wahrnehmen - Photovoltaik-Module anstelle von Ziegeln oder Fassadenelementen, in Schallschutzwänden integriert | D2: Catégorie d'installation | E2: Catégorie d'installation: isolée - Installation sans liaison construite avec un bâtiment - Exemple: installation dans le jardin ou sur un terrain en friche surperposée - Installation avec une liaison construite avec un bâtiment et qui sert uniquement à la production d'electricité - Exemple: Installation montée sur un toit plat ou en tuiles avec un système de fixation intégrée - Installation intégrée à un bâtiment et qui a une double fonction - Exemple: Modules photovoltaïques au lieu des tuiles ou éléments de façade, intégrés dans des parois d'isolation acoustique | G2: Categorie di impianto | H2: Categorie di impianto: isolato - Impianti che non hanno alcun collegamento architettonico con una costruzione - Esempio: impianti in giardini o su terreni incolti annesso - Impianti collegati architettonicamente a una costruzione o ad altri impianti di un'infrastruttura e destinati esclusivamente alla produzione di elettricità - EsempioImpianti posati sui tetti piani con un sistema di fissaggio o montati su un tetto di tegole. integrato - Impianti integrati in un edificio e adibiti a una duplice funzione - moduli fotovoltaici inseriti al posto delle tegole o di elementi della facciata, moduli integrati in pareti insonorizzanti.
A3: Anlagen-Nennleistung | B3: Die DC-Nennleistung von Photovoltaikanlagen wird mit der Masseinheit Wp (Watt Peak) oder kWp angegeben und bezieht sich auf die Leistung bei international geltenden Standard-Testbedingungen (STC), die in etwa der maximalen Sonneneinstrahlung in der Schweiz entspricht. STC (standard test conditions): 25° Modultemperatur, 1000 W/m², Luftmasse 1.5 | D3: Puissance nominale de l'installation | E3: La puissance nominale DC des installations photovoltaïques est indiquée par l'unité de mesure Wp (Watt Peak) ou kWp et se réfère à la puissance dans des conditions de test standard internationales (STC), qui correspondent approximativement au rayonnement solaire maximal en Suisse. STC (standard test conditions): température des modules de 25°, 1000 W/m², masse de l'air 1.5 | G3: Potenza nominale dell'impianto | H3: La potenza nominale DC di impianti fotovoltaici è indicata con l'unità di misura Wp (Watt Peak) oppure kWp e si riferisce alla potenza alle condizioni standardizzate di test a livello internazionale (STC), che per la Svizzera corrispondono grossomodo all'irraggiamento solare massimo. STC (standard test conditions): 25 °C di temperature dei moduli , 1000 W/m², massa d'aria 1.5
A4: Annuität | B4: Die Annuität (Annuitätsfaktor) ist ein Rechenwert zur Berechnung von jährlichen Zins- und Tilgungszahlungen der Investition und wird zur Berechnung der Kapitalverzinsung verwendet. -> siehe auch Tilgung, Amortisation | D4: Annuité | E4: L'annuité (facteur d'annuité) est une valeur pour le calcul des intérêts et de l'amortissement annuel des investissements et est utilisée pour le calcul des intérêts sur des capitaux. -> voir aussi Remboursement, amortissement | G4: Annualità | H4: L'annualità (fattore di annualità) è un parametro per il calcolo dei costi annuali per l'interesse e l'ammortamento dell'investimento ed è utilizzato per il calcolo dell'interesse del capitale. -> vedi anche ammortamento
A5: Degradation | B5: Die Degradation (von lat. degrado „herabsetzen“) wird in der Photovoltaik die Leistungsminderung der Solarzellen über einen definierten Zeitraum bezeichnet. In den Kalkulationen wird beim Berechnen des mittleren Jahresenergieertrags und der Kapitalverzinsung die Degradation jeweils berücksichtigt. Der Vorgabewert von 80% nach 25 Jahren entspricht den aktuell geltenden Leistungsgarantien der meisten PV-Modulhersteller. Diese Angabe wird in den Kalkulationen jeweils in linearer Funktion auf die Laufzeit hochgerechnet). | D5: Dégradation | E5: En photovoltaïque, la dégradation désigne la diminution de puissance des cellules solaires sur une durée déterminée. Dans les calculs du rendement énergétique annuel moyen et des intérêts des capitaux, on tient compte de la dégradation. La valeur donnée de 80% après 25 ans correspond aux garanties de puissance actuellement valables de la plupart des fabricants de modules PV. Cette donnée est calculée comme fonction linéaire sur la durée. | G5: Degrado | H5: Il degrado è definito come la riduzione della potenza delle celle solari durante un certo periodo di tempo. Nei calcolo della resa energetica media annua e dell'interesse del capitale si tiene conto del degrado. Il valore proposto del 80% dopo 25 anni corrisponde alle garanzie attualmente fornite dalla maggior parte dei fabbricanti di moduli. Questo dato è calcolato con una funzione lineare nel corso degli anni.
A6: Eigennutzungsgrad | B6: Der Eigennutzungsgrad gibt an, welchen Anteil der von der Photovoltaikanlage erzeugten Energie selbst genutzt (ins gemessene Netz eingespiesen) und nicht verkauft wird. Beispiele von Eigennutzungsgrad: - ca. 15-20% ohne Berücksichtigung des täglichen Solarstrom-Produktionsverlaufs - ca. 30-40% bei Berücksichtung des täglichen Solarstrom-Produktionsverlaufs - bis ca. 80% mit Hilfe von elektronischen Schaltgeräten, welche den zeitlichen Stromverbrauch des täglichen Solarstrom-Produktionsverlaufs anpassen (Smart Metering) | D6: Degré d'utilisation propre | E6: Le degré d'utilisation propre indique quelle part de l'énergie produite par l'installation photovoltaïque pourrait être utilisée pour la propre consommation du propriétaire (injectée dans le réseau mesuré) et non vendue. Exemples du degré d'utilisation propre: - env. 15-20% sans tenir compte du profil de production d'électricité solaire quotidien - env. 30-40% en tenant compte du profil de production d'électricité solaire quotidien - jusqu'à env. 80% au moyen de commutateurs électroniques qui adaptent la consommation horaire au profil de production d'électricité solaire quotidien (smart metering) | G6: Grado di autoconsumo | H6: Il grado di autoconsumo indica la quota parte di energia prodotta dall'impianto fotovoltaico che viene utilizzata direttamente sul posto (immessa nella rete interna) e non venduta alla rete. Esempi di gradi di autoconsumo: - ca. 15-20% se non viene considerato l'andamento giornaliero della produzione di elettricità solare - ca. 30-40% se viene considerato l'andamento giornaliero della produzione di elettricità solare - fino a ca. 80% con l'ausilio di commutatori elettronici, che adeguano il consumo elettrico all'andamento giornaliero della produzione di elettrcità solare (Smart Metering).
A7: Förderung (auf Investitionssumme) | B7: Die Förderung auf die Investitionssumme beinhaltet alle Summen (z.B. der öffentlichen Hand, des Elektrizitätswerks), welche direkt bei der Inbetriebnahme - also zum Investitionszeitpunkt - geleistet werden. | D7: Subvention (sur la somme d'investissement) | E7: La subvention sur les sommes d'investissement comprend toutes les sommes (p.ex. des pouvoirs publics, de l'entreprise électrique) qui sont versées directement lors de la mise en service, donc au moment de l'investissement. | G7: Aiuti finanziari (all'investimento) | H7: Gli aiuti finanziari all'investimento rappresentano la somma delle sovvenzioni (p.es. da enti pubblici, aziende elettriche, ecc.) che vengono percepite direttamente all'inizio dell'esercizio, ossia al momento dell'investimento.
A8: Investitionssumme | B8: Die Investitionskosten umfassen alle für die Realisierung benötigten Investitionskosten. | D8: Somme d'investissement | E8: Les coûts d'investissement comprennent tous les coûts d'investissement nécessaires à la réalisation. | G8: Investimento | H8: I costi di investimento comprendono tutte le spese necessario per la realizzazione dell'impianto.
A9: Kalkulationszinssatz Eigenkapital (p.a. nominal) | B9: Mit Hilfe des Kalkulationszinssatzes wird der Preis für das Eigenkapital in die Kalkulation mit eingerechnet. Die Höhe des Zinssatzes entspricht der Rendite einer alternativen Finanzanlage. p.a.: per annum ("pro Jahr") nominal: Der Nominalzins ist der Zins, den man für einen Kredit oder ein Darlehen zahlen muss. Darin sind keine Bearbeitungsgebühren sowie weitere anfallende Kosten berücksichtigt. | D9: Taux d'intérêt pour le capital propre (p.a. nominal) | E9: Le prix pour le capital propre est intégré au calcul au moyen du taux d'intérêt de calcul. La hauteur du taux d'intérêt correspond au rendement d'un placement financier alternatif. p.a.: par année nominal: l'intérêt nominal est l'intérêt qui doit être versé pour un crédit ou un prêt. Ne sont pas compris les frais de dossier et d'autres coûts. | G9: Tasso d'interesse del capitale proprio (p.a. nominale) | H9: Grazie al tasso di interesse del capitale si tiene conto del prezzo del capitale proprio. L'ammontare del tasso di interesse equivale alla resa economica di un investimento alternativo. p.a.: per annum ("per anno") nominale: l'interesse nominale è l'interesse che bisogna pagare per ottenere un credito o un prestito. Esso non comprende nessuna commissione o altri costi.
A10: Kapitalwert (NPV) | B10: = Net Present Value (oder Nettobarwert, Discounted Cash Flow, Nettogegenwartswert, Barwert aller Zahlungen) Der Kapitalwert zum Zeitpunkt 0 ist die Summe aller mit dem Kalkulationszinssatz abgezinsten Zahlungen (Ein- und Auszahlungen). Der Kapitalwert dient u. a. der Beurteilung von Investitionsobjekten. Der Kalkulationszinssatz (Verzinsung des Investitionsprojekts) wird in der Höhe einer alternativen Investitions-Rendite angegeben. (siehe Zinssatz Eigenkapital) Ist der Kapitalwert positiv, ist die Investition gegenüber einer alternativen Investition mit dem Kalkulationszinssatz sehr vorteilhaft. | D10: Valeur actuelle nette (NPV) | E10: = Net Present Value La valeur actuelle nette à une date 0 est la somme de tous les versements décomptés au taux d'intérêt de calcul (encaissements et paiements). La valeur du capital sert notamment à l'évaluation d'objets d'investissement. Le taux d'intérêt de calcul (pour la calcul des intérêt du projet d'investissement) est indiqué à hauteur d'un rendement d'investissement alternatif (voir taux d'intérêts pour le capital propre). Si le calculateur retourne une valeur du capital positive, alors l'investissement est rentable. | G10: Valore attuale netto (VAN - NPV) | H10: = Net Present Value (o valore attuale netto VAN, Discounted Cash Flow) Il valore attuale netto al momento 0 è la somma attualizzata di tutti i flussi di cassa (entrate ed uscite) riferiti al tasso di interesse del capitale. Il valore attuale netto serve tra l'altro a valutare gli oggetti di investimento. Il tasso di interesse del capitale (interesse sul progetto di investimento) è indicato sotto forma di resa di un investimento alternativo (vedi interesse del capitale proprio). Se il valore attuale netto è positivo, significa che l'investimento è molto vantaggioso rispetto ad un investimento alternativo delle risorse tenendo conto del tasso di interesse sul capitale.
A11: Payback | B11: Die Paybackdauer gibt an, nach welcher Zeit der Kapitaleinsatz für die Investition aus den direkten Erträgen wieder zurückgewonnen ist. | D11: Payback | E11: La durée de payback indique après quelle période de temps l'engagement du capital pour l'investissement est remboursé. | G11: Payback (tempo di rimborso) | H11: Il tempo di ritorno indica dopo quanto tempo i ricavi generati permettono di recuperare il capitale per l'investimento.
A12: spezifische Betriebs- und Unterhaltskosten | B12: Die Rückstellungen für die Wartungs-, Betriebs- und Unterhaltskosten sind unter anderem von der Anlagengrösse abhängig. In diesen Kosten sind folgende Positionen berücksichtigt: - allgemeine Wartung der PV-Anlage - Reinigung der Module - Fernüberwachung - Service und Instandhaltung der Wechselrichter - allenfalls Service-Vertrag - für PV-Anlagen ab 30 kW AC -> Aufwand der Lastgangmessung Ein Grossteil der Unterhaltskosten entfällt aber auf den Ersatz defekter Wechselrichter (ca. alle 10 Jahre). | D12: Coûts d'exploitation et d'entretien spécifiques | E12: Les provisions pour les coûts de maintenance, d'exploitation et d'entretien dépendent de la taille de l'installation. Ces coûts comprennent les positions suivantes: - entretien général de l'installation PV - nettoyage des panneaux - surveillance à distance - service et maintenance de l'onduleur - éventuellement contrat de service - pour les installations PV dès 30 kW AC -> dépenses pour la mesure de la courbe de charge Une grande part des coûts d'entretien est causée par le remplacement d'onduleurs défectueux (env. tous les 10 ans). | G12: Costi specifici di gestione e manutenzione | H12: Gli accantonamenti per la gestione e la manutenzione dipendono tra le altre cose dalle dimensioni del'impianto. Questi costi includono le posizioni seguenti: - manutenzione completa dell'impianto FV - pulizia dei moduli - sorveglianza a distanza - servizio e manutenzione ondulatore - contratto di manutenzione - per impianti FV di almeno30 kW AC -> spese per le misure del profilo di carico Una parte importante delle spese di gestione è da ricondurre alla sostituzione di ondulatori difettosi (ca. ogni 10 anni).
A13: spezifischer Jahresenergieertrag | B13: Der spezifische Jahresertrag einer Photovoltaikanlage ist der Ertrag an elektrischer Energie, der durch ein kW installierte Leistung an einem betrachteten Standort in einem Jahr erreicht werden kann. Ein typischer spezifischer Jahresertrag einer Photovoltaikanlage in der Schweiz beträgt ungefähr 920-950 kWh/kWp pro Jahr (bei Ausrichtung nach Süden und 20°-30° Neigung). | D13: Rendement énergétique annuel spécifique | E13: Le rendement annuel spécifique d'une installation PV est le rendement en énergie électrique qui peut être atteint par année pour un kW de puissance installé à un emplacement spécifique. Un rendement annuel spécifique typique d'une installation PV en Suisse comprend environ 920-950 kWh/kWp par année (orientation sud et inclinaison de 20°-30°). | G13: Resa energetica annua specifica | H13: La resa energetica annua specifica di un impianto fotovoltaico è la resa annua in elettricità per kW di potenza installata per un determinato luogo. Per la Svizzera i valori tipici variano tra 920-950 kWh/kWp (Altipiano) e oltre 1'000 kWh/kWp (Sud delle Alpi), per impianti orientati a sud ed inclinati tra 20 e 30 °.
A14: Tilgung, Amortisation | B14: Eine Tilgung ist die Rückzahlung einer langfristigen Schuld in Form von Teilbeträgen. Diesem Wirtschaftlichkeits-Rechner liegt das Annuitätenmodell zugrunde, bei welchem die Summe aus Zins und Tilgungszahlungen (Annuität) in den einzelnen Perioden der Laufzeit konstant bleibt. Die Höhe der Annuität wird finanzmathematisch so ermittelt, dass die Summe der Tilgungen und die jeweiligen Zinsen auf die Restschuld das Darlehen über die vereinbarte Laufzeit hinweg genau tilgen. | D14: Remboursement, amortissement | E14: L'amortissement est le remboursement d'une dette contractée à long terme sous forme de montants périodiques. Ce calculateur de rentabilité comprend un modèle d'annuités fixes dans lequel la somme des intérêts et du remboursement d'amortissement (annuité) reste constant dans chaque période de la durée du prêt. La hauteur des annuités est calculée de manière à ce que la somme des montants à rembourser et les intérêts correspondants sur la dette restante soient remboursés exactement sur la durée du prêt. | G14: Ammortamento | H14: L'ammortamento è il rimborso di un debito a lungo termine sotto forma di contributi parziali. Questo parametro si basa sul modello delle annualità, nel quale la somma di ammortamento e interessi rimane costante nel tempo. L'annualità è calcolata matematicamente dal punto di vista finanziario in modo che la somma di ammortamento e interessi vada ad annullare il debito rimanente entro la durata di utilizzo concordata.
A15: Zinssatz (p.a. nominal) | B15: Der Zinssatz ist der in Prozent ausgedrückte Preis für geliehenes Kapital, also der Zins als Prozentangabe. p.a.: per annum ("pro Jahr") nominal: Der Nominalzins ist der Zins, den man für einen Kredit oder ein Darlehen zahlen muss. Darin sind keine Bearbeitungsgebühren sowie weitere anfallende Kosten berücksichtigt. | D15: Taux d'intérêt (p.a. nominal) | E15: Le taux d'intérêt est le prix d'un capital prêté exprimé en pour-cent, donc l'intérêt en pour-cent. p.a.: par année nominal: l'intérêt nominal est l'intérêt qui doit être versé pour un crédit ou un prêt. Ne sont pas compris les frais de dossier et d'autres coûts. | G15: Tasso di interesse (p.a. nominale) | H15: Il tasso di interesse è il prezzo, epressso in percento, del capitale richiesto in prestito. p.a.: per annum ("per anno") nominale: l'interesse nominale è l'interesse che bisogna pagare per ottenere un credito o un prestito. Esso non comprende nessuna commissione o altri costi.

Sheet Kalkulation (hidden)
A1: Jahr | B1: Vergütungstyp
A2: 1 | B2: =IF(('Basis - base - base'!$J$28-'Basis - base - base'!$J$27)>=Kalkulation!A2,'Basis - base - base'!$G$27,IF('Basis - base - base'!$G$28<>"-",'Basis - base - base'!$G$28,'Basis - base - base'!$G$27)) -> 
A3: 2 | B3: =IF(('Basis - base - base'!$J$28-'Basis - base - base'!$J$27)>=Kalkulation!A3,'Basis - base - base'!$G$27,IF('Basis - base - base'!$G$28<>"-",'Basis - base - base'!$G$28,'Basis - base - base'!$G$27)) -> 
A4: 3 | B4: =IF(('Basis - base - base'!$J$28-'Basis - base - base'!$J$27)>=Kalkulation!A4,'Basis - base - base'!$G$27,IF('Basis - base - base'!$G$28<>"-",'Basis - base - base'!$G$28,'Basis - base - base'!$G$27)) -> 
A5: 4 | B5: =IF(('Basis - base - base'!$J$28-'Basis - base - base'!$J$27)>=Kalkulation!A5,'Basis - base - base'!$G$27,IF('Basis - base - base'!$G$28<>"-",'Basis - base - base'!$G$28,'Basis - base - base'!$G$27)) -> 
A6: 5 | B6: =IF(('Basis - base - base'!$J$28-'Basis - base - base'!$J$27)>=Kalkulation!A6,'Basis - base - base'!$G$27,IF('Basis - base - base'!$G$28<>"-",'Basis - base - base'!$G$28,'Basis - base - base'!$G$27)) -> 
A7: 6 | B7: =IF(('Basis - base - base'!$J$28-'Basis - base - base'!$J$27)>=Kalkulation!A7,'Basis - base - base'!$G$27,IF('Basis - base - base'!$G$28<>"-",'Basis - base - base'!$G$28,'Basis - base - base'!$G$27)) -> 
A8: 7 | B8: =IF(('Basis - base - base'!$J$28-'Basis - base - base'!$J$27)>=Kalkulation!A8,'Basis - base - base'!$G$27,IF('Basis - base - base'!$G$28<>"-",'Basis - base - base'!$G$28,'Basis - base - base'!$G$27)) -> 
A9: 8 | B9: =IF(('Basis - base - base'!$J$28-'Basis - base - base'!$J$27)>=Kalkulation!A9,'Basis - base - base'!$G$27,IF('Basis - base - base'!$G$28<>"-",'Basis - base - base'!$G$28,'Basis - base - base'!$G$27)) -> 
A10: 9 | B10: =IF(('Basis - base - base'!$J$28-'Basis - base - base'!$J$27)>=Kalkulation!A10,'Basis - base - base'!$G$27,IF('Basis - base - base'!$G$28<>"-",'Basis - base - base'!$G$28,'Basis - base - base'!$G$27)) -> 
A11: 10 | B11: =IF(('Basis - base - base'!$J$28-'Basis - base - base'!$J$27)>=Kalkulation!A11,'Basis - base - base'!$G$27,IF('Basis - base - base'!$G$28<>"-",'Basis - base - base'!$G$28,'Basis - base - base'!$G$27)) -> 
A12: 11 | B12: =IF(('Basis - base - base'!$J$28-'Basis - base - base'!$J$27)>=Kalkulation!A12,'Basis - base - base'!$G$27,IF('Basis - base - base'!$G$28<>"-",'Basis - base - base'!$G$28,'Basis - base - base'!$G$27)) -> 
A13: 12 | B13: =IF(('Basis - base - base'!$J$28-'Basis - base - base'!$J$27)>=Kalkulation!A13,'Basis - base - base'!$G$27,IF('Basis - base - base'!$G$28<>"-",'Basis - base - base'!$G$28,'Basis - base - base'!$G$27)) -> 
A14: 13 | B14: =IF(('Basis - base - base'!$J$28-'Basis - base - base'!$J$27)>=Kalkulation!A14,'Basis - base - base'!$G$27,IF('Basis - base - base'!$G$28<>"-",'Basis - base - base'!$G$28,'Basis - base - base'!$G$27)) -> 
A15: 14 | B15: =IF(('Basis - base - base'!$J$28-'Basis - base - base'!$J$27)>=Kalkulation!A15,'Basis - base - base'!$G$27,IF('Basis - base - base'!$G$28<>"-",'Basis - base - base'!$G$28,'Basis - base - base'!$G$27)) -> 
A16: 15 | B16: =IF(('Basis - base - base'!$J$28-'Basis - base - base'!$J$27)>=Kalkulation!A16,'Basis - base - base'!$G$27,IF('Basis - base - base'!$G$28<>"-",'Basis - base - base'!$G$28,'Basis - base - base'!$G$27)) -> 
A17: 16 | B17: =IF(('Basis - base - base'!$J$28-'Basis - base - base'!$J$27)>=Kalkulation!A17,'Basis - base - base'!$G$27,IF('Basis - base - base'!$G$28<>"-",'Basis - base - base'!$G$28,'Basis - base - base'!$G$27)) -> 
A18: 17 | B18: =IF(('Basis - base - base'!$J$28-'Basis - base - base'!$J$27)>=Kalkulation!A18,'Basis - base - base'!$G$27,IF('Basis - base - base'!$G$28<>"-",'Basis - base - base'!$G$28,'Basis - base - base'!$G$27)) -> 
A19: 18 | B19: =IF(('Basis - base - base'!$J$28-'Basis - base - base'!$J$27)>=Kalkulation!A19,'Basis - base - base'!$G$27,IF('Basis - base - base'!$G$28<>"-",'Basis - base - base'!$G$28,'Basis - base - base'!$G$27)) -> 
A20: 19 | B20: =IF(('Basis - base - base'!$J$28-'Basis - base - base'!$J$27)>=Kalkulation!A20,'Basis - base - base'!$G$27,IF('Basis - base - base'!$G$28<>"-",'Basis - base - base'!$G$28,'Basis - base - base'!$G$27)) -> 
A21: 20 | B21: =IF(('Basis - base - base'!$J$28-'Basis - base - base'!$J$27)>=Kalkulation!A21,'Basis - base - base'!$G$27,IF('Basis - base - base'!$G$28<>"-",'Basis - base - base'!$G$28,'Basis - base - base'!$G$27)) -> 
A22: 21 | B22: =IF(('Basis - base - base'!$J$28-'Basis - base - base'!$J$27)>=Kalkulation!A22,'Basis - base - base'!$G$27,IF('Basis - base - base'!$G$28<>"-",'Basis - base - base'!$G$28,'Basis - base - base'!$G$27)) -> 
A23: 22 | B23: =IF(('Basis - base - base'!$J$28-'Basis - base - base'!$J$27)>=Kalkulation!A23,'Basis - base - base'!$G$27,IF('Basis - base - base'!$G$28<>"-",'Basis - base - base'!$G$28,'Basis - base - base'!$G$27)) -> 
A24: 23 | B24: =IF(('Basis - base - base'!$J$28-'Basis - base - base'!$J$27)>=Kalkulation!A24,'Basis - base - base'!$G$27,IF('Basis - base - base'!$G$28<>"-",'Basis - base - base'!$G$28,'Basis - base - base'!$G$27)) -> 
A25: 24 | B25: =IF(('Basis - base - base'!$J$28-'Basis - base - base'!$J$27)>=Kalkulation!A25,'Basis - base - base'!$G$27,IF('Basis - base - base'!$G$28<>"-",'Basis - base - base'!$G$28,'Basis - base - base'!$G$27)) -> 
A26: 25 | B26: =IF(('Basis - base - base'!$J$28-'Basis - base - base'!$J$27)>=Kalkulation!A26,'Basis - base - base'!$G$27,IF('Basis - base - base'!$G$28<>"-",'Basis - base - base'!$G$28,'Basis - base - base'!$G$27)) -> 

Sheet Berechnung EIV (hidden)
A1: Berechnung der Einmalvergütung
A3: Eingaben (aus Basis)
A4: Anlagenkategorie | B4: ='Basis - base - base'!V10 -> ajoutée | C4: ='Basis - base - base'!W10 -> 2
A5: Anlagen-Nennleistung | B5: ='Basis - base - base'!V11 -> 2 | C5: kWp
A6: ab (Inbetriebnahme-Periode) | B6: ='Basis - base - base'!J27 -> 2023 | C6: Jahr | D6: =INDEX('EIV angebaut'!C1:AX12,12,MATCH($B$6,'EIV angebaut'!$C$1:$AX$1,0)) -> 2024
A9: Kleine Einmalvergütung KLEIV | B9: Leistung | C9: integriert | D9: angebaut
A10: Grundbeitrag | C10: =IF(B5>0,INDEX('EIV integriert'!C1:AX10,7,MATCH($B$6,'EIV integriert'!$C$1:$AX$1,0)),0) -> 770 | D10: =IF(B5>0,INDEX('EIV angebaut'!C1:AX10,7,MATCH($B$6,'EIV angebaut'!$C$1:$AX$1,0))) -> 700
A11: Klasse <30kWp | B11: =IF(B5<=30,B5,30) -> 2 | C11: =B11*INDEX('EIV integriert'!C1:AX10,8,MATCH($B$6,'EIV integriert'!$C$1:$AX$1,0)) -> 840 | D11: =B11*INDEX('EIV angebaut'!C1:AX10,8,MATCH($B$6,'EIV angebaut'!$C$1:$AX$1,0)) -> 760
A12: Klasse <100kWp | B12: =IF(B5-B11<=100-30,B5-B11,70) -> 0 | C12: =B12*INDEX('EIV integriert'!C1:AX10,9,MATCH($B$6,'EIV integriert'!$C$1:$AX$1,0)) -> 0 | D12: =B12*INDEX('EIV angebaut'!C1:AX10,9,MATCH($B$6,'EIV angebaut'!$C$1:$AX$1,0)) -> 0
A13: Klasse >100kWp | B13: =IF(B5-B11-B12>0,B5-B11-B12,0) -> 0 | C13: =B13*INDEX('EIV integriert'!C1:AX10,10,MATCH($B$6,'EIV integriert'!$C$1:$AX$1,0)) -> 0 | D13: =B13*INDEX('EIV angebaut'!C1:AX10,10,MATCH($B$6,'EIV angebaut'!$C$1:$AX$1,0)) -> 0
A14: Total | B14: =SUM(B11:B13) -> 2 | C14: =SUM(C10:C13) -> 1610 | D14: =SUM(D10:D13) -> 1460
B17: integriert | C17: angebaut | D17: definitiv
A18: Vergütung KLEIV | B18: =SUM(C10:C12) -> 1610 | C18: =SUM(D10:D12) -> 1460 | D18: =IF($C$4=3,B18,C18) -> 1460
A19: Vergütung GREIV | B19: =SUM(C10:C13) -> 1610 | C19: =SUM(D10:D13) -> 1460 | D19: =IF(B5>=100,IF(AND($C$4=3,D6<2013),B19,C19),"-") -> -

Sheet EIV angebaut (hidden)
B1: Periode | C1: ='Tarife freistehend'!D1 -> 2009 | D1: ='Tarife freistehend'!E1 -> 2010 | E1: ='Tarife freistehend'!F1 -> 2011 | F1: ='Tarife freistehend'!G1 -> 2012 (1.1.) | G1: ='Tarife freistehend'!H1 -> 2012 (1.3.) | H1: ='Tarife freistehend'!I1 -> 2012 (1.10.) | I1: ='Tarife freistehend'!J1 -> 2013 | J1: ='Tarife freistehend'!K1 -> 2014 | K1: ='Tarife freistehend'!L1 -> 2015 (1.1.) | L1: ='Tarife freistehend'!M1 -> 2015 (1.4.) | M1: ='Tarife freistehend'!N1 -> 2015 (1.10.) | N1: ='Tarife freistehend'!O1 -> 2016 (1.1) | O1: ='Tarife freistehend'!P1 -> 2016 (1.4.) | P1: ='Tarife freistehend'!Q1 -> 2016 (1.10) | Q1: ='Tarife freistehend'!R1 -> 2017 (1.1) | R1: ='Tarife freistehend'!S1 -> 2017 (1.4) | S1: ='Tarife freistehend'!T1 -> 2018 (1.1) | T1: ='Tarife freistehend'!U1 -> 2018 (1.4) | U1: ='Tarife freistehend'!V1 -> 2019 (1.1) | V1: ='Tarife freistehend'!W1 -> 2019 (1.4) | W1: ='Tarife freistehend'!X1 -> 2020 (1.1) | X1: ='Tarife freistehend'!Y1 -> 2020 (1.4) | Y1: ='Tarife freistehend'!Z1 -> 2021 (1.1.) | Z1: ='Tarife freistehend'!AA1 -> 2021 (1.4.) | AA1: ='Tarife freistehend'!AB1 -> 2022 | AB1: ='Tarife freistehend'!AC1 -> 2023 | AC1: ='Tarife freistehend'!AD1 -> 2024 | AD1: ='Tarife freistehend'!AE1 -> 2025 | AE1: ='Tarife freistehend'!AF1 -> 2026 | AF1: ='Tarife freistehend'!AG1 -> 2027 | AG1: ='Tarife freistehend'!AH1 -> 2028 | AH1: ='Tarife freistehend'!AI1 -> 2029 | AI1: ='Tarife freistehend'!AJ1 -> 2030 | AJ1: ='Tarife freistehend'!AK1 -> 2031 | AK1: ='Tarife freistehend'!AL1 -> 2032 | AL1: ='Tarife freistehend'!AM1 -> 2033 | AM1: ='Tarife freistehend'!AN1 -> 2034 | AN1: ='Tarife freistehend'!AO1 -> 2035 | AO1: ='Tarife freistehend'!AP1 -> 2036 | AP1: ='Tarife freistehend'!AQ1 -> 2037 | AQ1: ='Tarife freistehend'!AR1 -> 2038 | AR1: ='Tarife freistehend'!AS1 -> 2039 | AS1: ='Tarife freistehend'!AT1 -> 2040 | AT1: ='Tarife freistehend'!AU1 -> 2041 | AU1: ='Tarife freistehend'!AV1 -> 2042 | AV1: ='Tarife freistehend'!AW1 -> 2043 | AW1: ='Tarife freistehend'!AX1 -> 2044 | AX1: ='Tarife freistehend'!AY1 -> 2045
B2: von | C2: ='Tarife freistehend'!D2 -> 2009-01-01 | D2: ='Tarife freistehend'!E2 -> 2010-01-01 | E2: ='Tarife freistehend'!F2 -> 2011-01-01 | F2: ='Tarife freistehend'!G2 -> 2012-01-01 | G2: ='Tarife freistehend'!H2 -> 2012-03-01 | H2: ='Tarife freistehend'!I2 -> 2012-10-01 | I2: ='Tarife freistehend'!J2 -> 2013-01-01 | J2: ='Tarife freistehend'!K2 -> 2014-01-01 | K2: ='Tarife freistehend'!L2 -> 2015-01-01 | L2: ='Tarife freistehend'!M2 -> 2015-04-01 | M2: ='Tarife freistehend'!N2 -> 2015-10-01 | N2: ='Tarife freistehend'!O2 -> 2016-01-01 | O2: ='Tarife freistehend'!P2 -> 2016-04-01 | P2: ='Tarife freistehend'!Q2 -> 2016-10-01 | Q2: ='Tarife freistehend'!R2 -> 2017-01-01 | R2: ='Tarife freistehend'!S2 -> 2017-04-01 | S2: ='Tarife freistehend'!T2 -> 2018-01-01 | T2: ='Tarife freistehend'!U2 -> 2018-04-01 | U2: ='Tarife freistehend'!V2 -> 2019-01-01 | V2: ='Tarife freistehend'!W2 -> 2019-04-01 | W2: ='Tarife freistehend'!X2 -> 2020-01-01 | X2: ='Tarife freistehend'!Y2 -> 2020-04-01 | Y2: ='Tarife freistehend'!Z2 -> 2021-01-01 | Z2: ='Tarife freistehend'!AA2 -> 2021-04-01 | AA2: ='Tarife freistehend'!AB2 -> 2023-01-01 | AB2: ='Tarife freistehend'!AC2 -> 2024-01-01 | AC2: ='Tarife freistehend'!AD2 -> 2025-01-01 | AD2: ='Tarife freistehend'!AE2 -> 2026-01-01 | AE2: ='Tarife freistehend'!AF2 -> 2027-01-01 | AF2: ='Tarife freistehend'!AG2 -> 2028-01-01 | AG2: ='Tarife freistehend'!AH2 -> 2029-01-01 | AH2: ='Tarife freistehend'!AI2 -> 2030-01-01 | AI2: ='Tarife freistehend'!AJ2 -> 2031-01-01 | AJ2: ='Tarife freistehend'!AK2 -> 2032-01-01 | AK2: ='Tarife freistehend'!AL2 -> 2033-01-01 | AL2: ='Tarife freistehend'!AM2 -> 2034-01-01 | AM2: ='Tarife freistehend'!AN2 -> 2035-01-01 | AN2: ='Tarife freistehend'!AO2 -> 2036-01-01 | AO2: ='Tarife freistehend'!AP2 -> 2037-01-01 | AP2: ='Tarife freistehend'!AQ2 -> 2038-01-01 | AQ2: ='Tarife freistehend'!AR2 -> 2039-01-01 | AR2: ='Tarife freistehend'!AS2 -> 2040-01-01 | AS2: ='Tarife freistehend'!AT2 -> 2041-01-01 | AT2: ='Tarife freistehend'!AU2 -> 2042-01-01 | AU2: ='Tarife freistehend'!AV2 -> 2043-01-01 | AV2: ='Tarife freistehend'!AW2 -> 2044-01-01 | AW2: ='Tarife freistehend'!AX2 -> 2045-01-01 | AX2: ='Tarife freistehend'!AY2 -> 2046-01-01
B3: bis | C3: ='Tarife freistehend'!D3 -> 2009-12-31 | D3: ='Tarife freistehend'!E3 -> 2010-12-31 | E3: ='Tarife freistehend'!F3 -> 2011-12-31 | F3: ='Tarife freistehend'!G3 -> 2012-02-29 | G3: ='Tarife freistehend'!H3 -> 2012-09-30 | H3: ='Tarife freistehend'!I3 -> 2012-12-31 | I3: ='Tarife freistehend'!J3 -> 2013-12-31 | J3: ='Tarife freistehend'!K3 -> 2014-12-31 | K3: ='Tarife freistehend'!L3 -> 2015-03-31 | L3: ='Tarife freistehend'!M3 -> 2015-09-30 | M3: ='Tarife freistehend'!N3 -> 2015-12-31 | N3: ='Tarife freistehend'!O3 -> 2016-03-31 | O3: ='Tarife freistehend'!P3 -> 2016-09-30 | P3: ='Tarife freistehend'!Q3 -> 2016-12-31 | Q3: ='Tarife freistehend'!R3 -> 2017-03-31 | R3: ='Tarife freistehend'!S3 -> 2017-12-31 | S3: ='Tarife freistehend'!T3 -> 2018-03-31 | T3: ='Tarife freistehend'!U3 -> 2018-12-31 | U3: ='Tarife freistehend'!V3 -> 2019-03-31 | V3: ='Tarife freistehend'!W3 -> 2019-12-31 | W3: ='Tarife freistehend'!X3 -> 2020-03-31 | X3: ='Tarife freistehend'!Y3 -> 2020-12-31 | Y3: ='Tarife freistehend'!Z3 -> 2021-03-31 | Z3: ='Tarife freistehend'!AA3 -> 2021-12-31 | AA3: ='Tarife freistehend'!AB3 -> 2023-12-31 | AB3: ='Tarife freistehend'!AC3 -> 2024-12-31 | AC3: ='Tarife freistehend'!AD3 -> 2025-12-31 | AD3: ='Tarife freistehend'!AE3 -> 2026-12-31 | AE3: ='Tarife freistehend'!AF3 -> 2027-12-31 | AF3: ='Tarife freistehend'!AG3 -> 2028-12-31 | AG3: ='Tarife freistehend'!AH3 -> 2029-12-31 | AH3: ='Tarife freistehend'!AI3 -> 2030-12-31 | AI3: ='Tarife freistehend'!AJ3 -> 2031-12-31 | AJ3: ='Tarife freistehend'!AK3 -> 2032-12-31 | AK3: ='Tarife freistehend'!AL3 -> 2033-12-31 | AL3: ='Tarife freistehend'!AM3 -> 2034-12-31 | AM3: ='Tarife freistehend'!AN3 -> 2035-12-31 | AN3: ='Tarife freistehend'!AO3 -> 2036-12-31 | AO3: ='Tarife freistehend'!AP3 -> 2037-12-31 | AP3: ='Tarife freistehend'!AQ3 -> 2038-12-31 | AQ3: ='Tarife freistehend'!AR3 -> 2039-12-31 | AR3: ='Tarife freistehend'!AS3 -> 2040-12-31 | AS3: ='Tarife freistehend'!AT3 -> 2041-12-31 | AT3: ='Tarife freistehend'!AU3 -> 2042-12-31 | AU3: ='Tarife freistehend'!AV3 -> 2043-12-31 | AV3: ='Tarife freistehend'!AW3 -> 2044-12-31 | AW3: ='Tarife freistehend'!AX3 -> 2045-12-31 | AX3: ='Tarife freistehend'!AY3 -> 2046-12-31
B4: Anz. Monate | C4: =DATEDIF(C2,C3,"M")+1 -> 12 | D4: 12 | E4: 12 | F4: 2 | G4: 7 | H4: 3 | I4: 12 | J4: 12 | K4: 3 | L4: 6 | M4: =DATEDIF(M2,M3,"M")+1 -> 3 | N4: 3 | O4: 6 | P4: 3 | Q4: =DATEDIF(Q2,Q3,"M")+1 -> 3 | R4: 9 | S4: 3 | T4: 9 | U4: 3 | V4: 9 | W4: 3 | X4: 9 | Y4: 3 | Z4: 9 | AA4: 12 | AB4: 12 | AC4: 12 | AD4: 12 | AE4: 12 | AF4: 12 | AG4: 12 | AH4: 12 | AI4: 12 | AJ4: 12 | AK4: 12 | AL4: 12 | AM4: 12 | AN4: 12 | AO4: 12 | AP4: 12 | AQ4: 12 | AR4: 12 | AS4: 12 | AT4: 12 | AU4: 12 | AV4: 12 | AW4: 12 | AX4: 12
B5: Untergrenze Einmalvergütung | C5: 2 | D5: 2 | E5: 2 | F5: 2 | G5: 2 | H5: 2 | I5: 2 | J5: 2 | K5: 2 | L5: 2 | M5: 2 | N5: 2 | O5: 2 | P5: 2 | Q5: 2 | R5: 2 | S5: 2 | T5: 2 | U5: 2 | V5: 2 | W5: 2 | X5: 2 | Y5: 2 | Z5: 2 | AA5: 2 | AB5: 2 | AC5: 2 | AD5: 2 | AE5: 2 | AF5: 2 | AG5: 2 | AH5: 2 | AI5: 2 | AJ5: 2 | AK5: 2 | AL5: 2 | AM5: 2 | AN5: 2 | AO5: 2 | AP5: 2 | AQ5: 2 | AR5: 2 | AS5: 2 | AT5: 2 | AU5: 2 | AV5: 2 | AW5: 2 | AX5: 2
B6: Obergrenze Einmalvergütung | C6: 50000 | D6: 50000 | E6: 50000 | F6: 50000 | G6: 50000 | H6: 50000 | I6: 50000 | J6: 50000 | K6: 50000 | L6: 50000 | M6: 50000 | N6: 50000 | O6: 50000 | P6: 50000 | Q6: 50000 | R6: 50000 | S6: 50000 | T6: 50000 | U6: 50000 | V6: 50000 | W6: 50000 | X6: 50000 | Y6: 50000 | Z6: 50000 | AA6: 50000 | AB6: 50000 | AC6: 50000 | AD6: 50000 | AE6: 50000 | AF6: 50000 | AG6: 50000 | AH6: 50000 | AI6: 50000 | AJ6: 50000 | AK6: 50000 | AL6: 50000 | AM6: 50000 | AN6: 50000 | AO6: 50000 | AP6: 50000 | AQ6: 50000 | AR6: 50000 | AS6: 50000 | AT6: 50000 | AU6: 50000 | AV6: 50000 | AW6: 50000 | AX6: 50000
A7: angebaut | B7: Grundbetrag | C7: 2450 | D7: =C7 -> 2450 | E7: 1900 | F7: 1600 | G7: =F7 -> 1600 | H7: 1600 | I7: 1500 | J7: 1400 | K7: =J7 -> 1400 | L7: 1400 | M7: 1400 | N7: =M7 -> 1400 | O7: 1400 | P7: =O7 -> 1400 | Q7: =P7 -> 1400 | R7: 1400 | S7: =R7 -> 1400 | T7: 1400 | U7: 1400 | V7: 1400 | W7: 1400 | X7: 1000 | Y7: 1000 | Z7: 700 | AA7: 700 | AB7: 700 | AC7: 700 | AD7: 700 | AE7: 700 | AF7: 700 | AG7: 700 | AH7: 700 | AI7: 700 | AJ7: 700 | AK7: 700 | AL7: 700 | AM7: 700 | AN7: 700 | AO7: 700 | AP7: 700 | AQ7: 700 | AR7: 700 | AS7: 700 | AT7: 700 | AU7: 700 | AV7: 700 | AW7: 700 | AX7: 700
B8: spezifische Vergütung (SFr./kWp) <30kWp | C8: 1850 | D8: =C8 -> 1850 | E8: 1450 | F8: 1200 | G8: 1200 | H8: 1200 | I8: 1000 | J8: 850 | K8: =J8 -> 850 | L8: 680 | M8: 500 | N8: 500 | O8: 500 | P8: =O8 -> 500 | Q8: =P8 -> 500 | R8: 450 | S8: =R8 -> 450 | T8: 400 | U8: 400 | V8: 340 | W8: 340 | X8: 340 | Y8: 340 | Z8: 380 | AA8: 380 | AB8: 380 | AC8: 380 | AD8: 380 | AE8: 380 | AF8: 380 | AG8: 380 | AH8: 380 | AI8: 380 | AJ8: 380 | AK8: 380 | AL8: 380 | AM8: 380 | AN8: 380 | AO8: 380 | AP8: 380 | AQ8: 380 | AR8: 380 | AS8: 380 | AT8: 380 | AU8: 380 | AV8: 380 | AW8: 380 | AX8: 380
B9: spezifische Vergütung (SFr./kWp) <100kWp | C9: 1500 | D9: =C9 -> 1500 | E9: 1200 | F9: 950 | G9: 950 | H9: 950 | I9: 750 | J9: 650 | K9: =J9 -> 650 | L9: 530 | M9: 450 | N9: 450 | O9: 450 | P9: 400 | Q9: =P9 -> 400 | R9: 350 | S9: =R9 -> 350 | T9: 300 | U9: =T9 -> 300 | V9: 300 | W9: 300 | X9: 300 | Y9: 300 | Z9: 290 | AA9: 290 | AB9: 290 | AC9: 290 | AD9: 290 | AE9: 290 | AF9: 290 | AG9: 290 | AH9: 290 | AI9: 290 | AJ9: 290 | AK9: 290 | AL9: 290 | AM9: 290 | AN9: 290 | AO9: 290 | AP9: 290 | AQ9: 290 | AR9: 290 | AS9: 290 | AT9: 290 | AU9: 290 | AV9: 290 | AW9: 290 | AX9: 290
B10: spezifische Vergütung (SFr./kWp) >100kWp | C10: 1300 | D10: =C10 -> 1300 | E10: 1000 | F10: 850 | G10: 850 | H10: 850 | I10: 700 | J10: 600 | K10: =J10 -> 600 | L10: 530 | M10: 450 | N10: 450 | O10: 450 | P10: 400 | Q10: =P10 -> 400 | R10: 350 | S10: =R10 -> 350 | T10: 300 | U10: =T10 -> 300 | V10: 300 | W10: 300 | X10: 300 | Y10: 300 | Z10: 290 | AA10: 290 | AB10: 290 | AC10: 290 | AD10: 290 | AE10: 290 | AF10: 290 | AG10: 290 | AH10: 290 | AI10: 290 | AJ10: 290 | AK10: 290 | AL10: 290 | AM10: 290 | AN10: 290 | AO10: 290 | AP10: 290 | AQ10: 290 | AR10: 290 | AS10: 290 | AT10: 290 | AU10: 290 | AV10: 290 | AW10: 290 | AX10: 290
B12: Betriebsjahr | C12: =YEAR(C2) -> 2009 | D12: =YEAR(D2) -> 2010 | E12: 2011 | F12: 2012 | G12: 2012 | H12: 2012 | I12: 2013 | J12: 2014 | K12: 2015 | L12: 2015 | M12: 2015 | N12: 2016 | O12: 2016 | P12: 2016 | Q12: 2017 | R12: 2017 | S12: 2018 | T12: 2018 | U12: 2019 | V12: 2019 | W12: 2020 | X12: 2020 | Y12: 2021 | Z12: 2021 | AA12: 2023 | AB12: 2024 | AC12: 2025 | AD12: 2026 | AE12: 2027 | AF12: 2028 | AG12: 2029 | AH12: 2030 | AI12: 2031 | AJ12: 2032 | AK12: 2033 | AL12: 2034 | AM12: 2035 | AN12: 2036 | AO12: 2037 | AP12: 2038 | AQ12: 2039 | AR12: 2040 | AS12: 2041 | AT12: 2042 | AU12: 2043 | AV12: 2044 | AW12: 2045 | AX12: 2046

Sheet EIV integriert (hidden)
B1: Periode | C1: ='Tarife freistehend'!D1 -> 2009 | D1: ='Tarife freistehend'!E1 -> 2010 | E1: ='Tarife freistehend'!F1 -> 2011 | F1: ='Tarife freistehend'!G1 -> 2012 (1.1.) | G1: ='Tarife freistehend'!H1 -> 2012 (1.3.) | H1: ='Tarife freistehend'!I1 -> 2012 (1.10.) | I1: ='Tarife freistehend'!J1 -> 2013 | J1: ='Tarife freistehend'!K1 -> 2014 | K1: ='Tarife freistehend'!L1 -> 2015 (1.1.) | L1: ='Tarife freistehend'!M1 -> 2015 (1.4.) | M1: ='Tarife freistehend'!N1 -> 2015 (1.10.) | N1: ='Tarife freistehend'!O1 -> 2016 (1.1) | O1: ='Tarife freistehend'!P1 -> 2016 (1.4.) | P1: ='Tarife freistehend'!Q1 -> 2016 (1.10) | Q1: ='Tarife freistehend'!R1 -> 2017 (1.1) | R1: ='Tarife freistehend'!S1 -> 2017 (1.4) | S1: ='Tarife freistehend'!T1 -> 2018 (1.1) | T1: ='Tarife freistehend'!U1 -> 2018 (1.4) | U1: ='Tarife freistehend'!V1 -> 2019 (1.1) | V1: ='Tarife freistehend'!W1 -> 2019 (1.4) | W1: ='Tarife freistehend'!X1 -> 2020 (1.1) | X1: ='Tarife freistehend'!Y1 -> 2020 (1.4) | Y1: ='Tarife freistehend'!Z1 -> 2021 (1.1.) | Z1: ='Tarife freistehend'!AA1 -> 2021 (1.4.) | AA1: ='Tarife freistehend'!AB1 -> 2022 | AB1: ='Tarife freistehend'!AC1 -> 2023 | AC1: ='Tarife freistehend'!AD1 -> 2024 | AD1: ='Tarife freistehend'!AE1 -> 2025 | AE1: ='Tarife freistehend'!AF1 -> 2026 | AF1: ='Tarife freistehend'!AG1 -> 2027 | AG1: ='Tarife freistehend'!AH1 -> 2028 | AH1: ='Tarife freistehend'!AI1 -> 2029 | AI1: ='Tarife freistehend'!AJ1 -> 2030 | AJ1: ='Tarife freistehend'!AK1 -> 2031 | AK1: ='Tarife freistehend'!AL1 -> 2032 | AL1: ='Tarife freistehend'!AM1 -> 2033 | AM1: ='Tarife freistehend'!AN1 -> 2034 | AN1: ='Tarife freistehend'!AO1 -> 2035 | AO1: ='Tarife freistehend'!AP1 -> 2036 | AP1: ='Tarife freistehend'!AQ1 -> 2037 | AQ1: ='Tarife freistehend'!AR1 -> 2038 | AR1: ='Tarife freistehend'!AS1 -> 2039 | AS1: ='Tarife freistehend'!AT1 -> 2040 | AT1: ='Tarife freistehend'!AU1 -> 2041 | AU1: ='Tarife freistehend'!AV1 -> 2042 | AV1: ='Tarife freistehend'!AW1 -> 2043 | AW1: ='Tarife freistehend'!AX1 -> 2044 | AX1: ='Tarife freistehend'!AY1 -> 2045
B2: von | C2: ='Tarife freistehend'!D2 -> 2009-01-01 | D2: ='Tarife freistehend'!E2 -> 2010-01-01 | E2: ='Tarife freistehend'!F2 -> 2011-01-01 | F2: ='Tarife freistehend'!G2 -> 2012-01-01 | G2: ='Tarife freistehend'!H2 -> 2012-03-01 | H2: ='Tarife freistehend'!I2 -> 2012-10-01 | I2: ='Tarife freistehend'!J2 -> 2013-01-01 | J2: ='Tarife freistehend'!K2 -> 2014-01-01 | K2: ='Tarife freistehend'!L2 -> 2015-01-01 | L2: ='Tarife freistehend'!M2 -> 2015-04-01 | M2: ='Tarife freistehend'!N2 -> 2015-10-01 | N2: ='Tarife freistehend'!O2 -> 2016-01-01 | O2: ='Tarife freistehend'!P2 -> 2016-04-01 | P2: ='Tarife freistehend'!Q2 -> 2016-10-01 | Q2: ='Tarife freistehend'!R2 -> 2017-01-01 | R2: ='Tarife freistehend'!S2 -> 2017-04-01 | S2: ='Tarife freistehend'!T2 -> 2018-01-01 | T2: ='Tarife freistehend'!U2 -> 2018-04-01 | U2: ='Tarife freistehend'!V2 -> 2019-01-01 | V2: ='Tarife freistehend'!W2 -> 2019-04-01 | W2: ='Tarife freistehend'!X2 -> 2020-01-01 | X2: ='Tarife freistehend'!Y2 -> 2020-04-01 | Y2: ='Tarife freistehend'!Z2 -> 2021-01-01 | Z2: ='Tarife freistehend'!AA2 -> 2021-04-01 | AA2: ='Tarife freistehend'!AB2 -> 2023-01-01 | AB2: ='Tarife freistehend'!AC2 -> 2024-01-01 | AC2: ='Tarife freistehend'!AD2 -> 2025-01-01 | AD2: ='Tarife freistehend'!AE2 -> 2026-01-01 | AE2: ='Tarife freistehend'!AF2 -> 2027-01-01 | AF2: ='Tarife freistehend'!AG2 -> 2028-01-01 | AG2: ='Tarife freistehend'!AH2 -> 2029-01-01 | AH2: ='Tarife freistehend'!AI2 -> 2030-01-01 | AI2: ='Tarife freistehend'!AJ2 -> 2031-01-01 | AJ2: ='Tarife freistehend'!AK2 -> 2032-01-01 | AK2: ='Tarife freistehend'!AL2 -> 2033-01-01 | AL2: ='Tarife freistehend'!AM2 -> 2034-01-01 | AM2: ='Tarife freistehend'!AN2 -> 2035-01-01 | AN2: ='Tarife freistehend'!AO2 -> 2036-01-01 | AO2: ='Tarife freistehend'!AP2 -> 2037-01-01 | AP2: ='Tarife freistehend'!AQ2 -> 2038-01-01 | AQ2: ='Tarife freistehend'!AR2 -> 2039-01-01 | AR2: ='Tarife freistehend'!AS2 -> 2040-01-01 | AS2: ='Tarife freistehend'!AT2 -> 2041-01-01 | AT2: ='Tarife freistehend'!AU2 -> 2042-01-01 | AU2: ='Tarife freistehend'!AV2 -> 2043-01-01 | AV2: ='Tarife freistehend'!AW2 -> 2044-01-01 | AW2: ='Tarife freistehend'!AX2 -> 2045-01-01 | AX2: ='Tarife freistehend'!AY2 -> 2046-01-01
B3: bis | C3: ='Tarife freistehend'!D3 -> 2009-12-31 | D3: ='Tarife freistehend'!E3 -> 2010-12-31 | E3: ='Tarife freistehend'!F3 -> 2011-12-31 | F3: ='Tarife freistehend'!G3 -> 2012-02-29 | G3: ='Tarife freistehend'!H3 -> 2012-09-30 | H3: ='Tarife freistehend'!I3 -> 2012-12-31 | I3: ='Tarife freistehend'!J3 -> 2013-12-31 | J3: ='Tarife freistehend'!K3 -> 2014-12-31 | K3: ='Tarife freistehend'!L3 -> 2015-03-31 | L3: ='Tarife freistehend'!M3 -> 2015-09-30 | M3: ='Tarife freistehend'!N3 -> 2015-12-31 | N3: ='Tarife freistehend'!O3 -> 2016-03-31 | O3: ='Tarife freistehend'!P3 -> 2016-09-30 | P3: ='Tarife freistehend'!Q3 -> 2016-12-31 | Q3: ='Tarife freistehend'!R3 -> 2017-03-31 | R3: ='Tarife freistehend'!S3 -> 2017-12-31 | S3: ='Tarife freistehend'!T3 -> 2018-03-31 | T3: ='Tarife freistehend'!U3 -> 2018-12-31 | U3: ='Tarife freistehend'!V3 -> 2019-03-31 | V3: ='Tarife freistehend'!W3 -> 2019-12-31 | W3: ='Tarife freistehend'!X3 -> 2020-03-31 | X3: ='Tarife freistehend'!Y3 -> 2020-12-31 | Y3: ='Tarife freistehend'!Z3 -> 2021-03-31 | Z3: ='Tarife freistehend'!AA3 -> 2021-12-31 | AA3: ='Tarife freistehend'!AB3 -> 2023-12-31 | AB3: ='Tarife freistehend'!AC3 -> 2024-12-31 | AC3: ='Tarife freistehend'!AD3 -> 2025-12-31 | AD3: ='Tarife freistehend'!AE3 -> 2026-12-31 | AE3: ='Tarife freistehend'!AF3 -> 2027-12-31 | AF3: ='Tarife freistehend'!AG3 -> 2028-12-31 | AG3: ='Tarife freistehend'!AH3 -> 2029-12-31 | AH3: ='Tarife freistehend'!AI3 -> 2030-12-31 | AI3: ='Tarife freistehend'!AJ3 -> 2031-12-31 | AJ3: ='Tarife freistehend'!AK3 -> 2032-12-31 | AK3: ='Tarife freistehend'!AL3 -> 2033-12-31 | AL3: ='Tarife freistehend'!AM3 -> 2034-12-31 | AM3: ='Tarife freistehend'!AN3 -> 2035-12-31 | AN3: ='Tarife freistehend'!AO3 -> 2036-12-31 | AO3: ='Tarife freistehend'!AP3 -> 2037-12-31 | AP3: ='Tarife freistehend'!AQ3 -> 2038-12-31 | AQ3: ='Tarife freistehend'!AR3 -> 2039-12-31 | AR3: ='Tarife freistehend'!AS3 -> 2040-12-31 | AS3: ='Tarife freistehend'!AT3 -> 2041-12-31 | AT3: ='Tarife freistehend'!AU3 -> 2042-12-31 | AU3: ='Tarife freistehend'!AV3 -> 2043-12-31 | AV3: ='Tarife freistehend'!AW3 -> 2044-12-31 | AW3: ='Tarife freistehend'!AX3 -> 2045-12-31 | AX3: ='Tarife freistehend'!AY3 -> 2046-12-31
B4: Anz. Monate | C4: =DATEDIF(C2,C3,"M")+1 -> 12 | D4: =DATEDIF(D2,D3,"M")+1 -> 12 | E4: 12 | F4: 2 | G4: 7 | H4: 3 | I4: 12 | J4: 12 | K4: 3 | L4: 6 | M4: 3 | N4: =DATEDIF(N2,N3,"M")+1 -> 3 | O4: 6 | P4: 3 | Q4: =DATEDIF(Q2,Q3,"M")+1 -> 3 | R4: 9 | S4: 3 | T4: 9 | U4: 3 | V4: 9 | W4: 3 | X4: 9 | Y4: 3 | Z4: 9 | AA4: 12 | AB4: 12 | AC4: 12 | AD4: 12 | AE4: 12 | AF4: 12 | AG4: 12 | AH4: 12 | AI4: 12 | AJ4: 12 | AK4: 12 | AL4: 12 | AM4: 12 | AN4: 12 | AO4: 12 | AP4: 12 | AQ4: 12 | AR4: 12 | AS4: 12 | AT4: 12 | AU4: 12 | AV4: 12 | AW4: 12 | AX4: 12
B5: Untergrenze Einmalvergütung | C5: 2 | D5: 2 | E5: 2 | F5: 2 | G5: 2 | H5: 2 | I5: 2 | J5: 2 | K5: 2 | L5: 2 | M5: 2 | N5: 2 | O5: 2 | P5: 2 | Q5: 2 | R5: 2 | S5: 2 | T5: 2 | U5: 2 | V5: 2 | W5: 2 | X5: 2 | Y5: 2 | Z5: 2 | AA5: 2 | AB5: 2 | AC5: 2 | AD5: 2 | AE5: 2 | AF5: 2 | AG5: 2 | AH5: 2 | AI5: 2 | AJ5: 2 | AK5: 2 | AL5: 2 | AM5: 2 | AN5: 2 | AO5: 2 | AP5: 2 | AQ5: 2 | AR5: 2 | AS5: 2 | AT5: 2 | AU5: 2 | AV5: 2 | AW5: 2 | AX5: 2
B6: Obergrenze Einmalvergütung | C6: 50000 | D6: 50000 | E6: 50000 | F6: 50000 | G6: 50000 | H6: 50000 | I6: 50000 | J6: 50000 | K6: 50000 | L6: 50000 | M6: 50000 | N6: 50000 | O6: 50000 | P6: 50000 | Q6: 50000 | R6: 50000 | S6: 50000 | T6: 50000 | U6: 50000 | V6: 50000 | W6: 50000 | X6: 50000 | Y6: 50000 | Z6: 50000 | AA6: 50000 | AB6: 50000 | AC6: 50000 | AD6: 50000 | AE6: 50000 | AF6: 50000 | AG6: 50000 | AH6: 50000 | AI6: 50000 | AJ6: 50000 | AK6: 50000 | AL6: 50000 | AM6: 50000 | AN6: 50000 | AO6: 50000 | AP6: 50000 | AQ6: 50000 | AR6: 50000 | AS6: 50000 | AT6: 50000 | AU6: 50000 | AV6: 50000 | AW6: 50000 | AX6: 50000
A7: integriert | B7: Grundbetrag | C7: 3300 | D7: =C7 -> 3300 | E7: 2650 | F7: 2200 | G7: 2200 | H7: 2200 | I7: 2000 | J7: 1800 | K7: 1800 | L7: 1800 | M7: 1800 | N7: 1800 | O7: =N7 -> 1800 | P7: =O7 -> 1800 | Q7: =P7 -> 1800 | R7: 1600 | S7: 1600 | T7: 1600 | U7: 1600 | V7: 1550 | W7: 1550 | X7: 1100 | Y7: 1100 | Z7: 770 | AA7: 770 | AB7: 770 | AC7: 770 | AD7: 770 | AE7: 770 | AF7: 770 | AG7: 770 | AH7: 770 | AI7: 770 | AJ7: 770 | AK7: 770 | AL7: 770 | AM7: 770 | AN7: 770 | AO7: 770 | AP7: 770 | AQ7: 770 | AR7: 770 | AS7: 770 | AT7: 770 | AU7: 770 | AV7: 770 | AW7: 770 | AX7: 770
B8: spezifische Vergütung (SFr./kWp) <30kWp | C8: 2100 | D8: =C8 -> 2100 | E8: 1700 | F8: 1400 | G8: =F8 -> 1400 | H8: 1400 | I8: 1200 | J8: 1050 | K8: 1050 | L8: 830 | M8: 610 | N8: 610 | O8: =N8 -> 610 | P8: =O8 -> 610 | Q8: =P8 -> 610 | R8: 520 | S8: =R8 -> 520 | T8: 460 | U8: 460 | V8: 380 | W8: 380 | X8: 380 | Y8: 380 | Z8: 420 | AA8: 420 | AB8: 420 | AC8: 420 | AD8: 420 | AE8: 420 | AF8: 420 | AG8: 420 | AH8: 420 | AI8: 420 | AJ8: 420 | AK8: 420 | AL8: 420 | AM8: 420 | AN8: 420 | AO8: 420 | AP8: 420 | AQ8: 420 | AR8: 420 | AS8: 420 | AT8: 420 | AU8: 420 | AV8: 420 | AW8: 420 | AX8: 420
B9: spezifische Vergütung (SFr./kWp) <100kWp | C9: 1700 | D9: =C9 -> 1700 | E9: 1400 | F9: 1100 | G9: 1100 | H9: 1100 | I9: 850 | J9: 750 | K9: =J9 -> 750 | L9: 630 | M9: 510 | N9: =M9 -> 510 | O9: =N9 -> 510 | P9: 460 | Q9: =P9 -> 460 | R9: 400 | S9: =R9 -> 400 | T9: 340 | U9: =T9 -> 340 | V9: 330 | W9: 330 | X9: 330 | Y9: 330 | Z9: 320 | AA9: 320 | AB9: 320 | AC9: 320 | AD9: 320 | AE9: 320 | AF9: 320 | AG9: 320 | AH9: 320 | AI9: 320 | AJ9: 320 | AK9: 320 | AL9: 320 | AM9: 320 | AN9: 320 | AO9: 320 | AP9: 320 | AQ9: 320 | AR9: 320 | AS9: 320 | AT9: 320 | AU9: 320 | AV9: 320 | AW9: 320 | AX9: 320
B10: spezifische Vergütung (SFr./kWp) >100kWp | C10: 1500 | D10: =C10 -> 1500 | E10: 1200 | F10: 980 | G10: 980 | H10: 980

Sheet Tarife freistehend (hidden)
C1: Leistung bis (kWp) | D1: 2009 | E1: 2010 | F1: 2011 | G1: 2012 (1.1.) | H1: 2012 (1.3.) | I1: 2012 (1.10.) | J1: 2013 | K1: 2014 | L1: 2015 (1.1.) | M1: 2015 (1.4.) | N1: 2015 (1.10.) | O1: 2016 (1.1) | P1: 2016 (1.4.) | Q1: 2016 (1.10) | R1: 2017 (1.1) | S1: 2017 (1.4) | T1: 2018 (1.1) | U1: 2018 (1.4) | V1: 2019 (1.1) | W1: 2019 (1.4) | X1: 2020 (1.1) | Y1: 2020 (1.4) | Z1: 2021 (1.1.) | AA1: 2021 (1.4.) | AB1: 2022 | AC1: =AB1+1 -> 2023 | AD1: 2024 | AE1: 2025 | AF1: 2026 | AG1: 2027 | AH1: 2028 | AI1: 2029 | AJ1: 2030 | AK1: 2031 | AL1: 2032 | AM1: 2033 | AN1: 2034 | AO1: 2035 | AP1: 2036 | AQ1: 2037 | AR1: 2038 | AS1: 2039 | AT1: 2040 | AU1: 2041 | AV1: 2042 | AW1: 2043 | AX1: 2044 | AY1: 2045
C2: von | D2: 2009-01-01 | E2: 2010-01-01 | F2: 2011-01-01 | G2: 2012-01-01 | H2: 2012-03-01 | I2: 2012-10-01 | J2: 2013-01-01 | K2: 2014-01-01 | L2: 2015-01-01 | M2: 2015-04-01 | N2: 2015-10-01 | O2: 2016-01-01 | P2: 2016-04-01 | Q2: 2016-10-01 | R2: 2017-01-01 | S2: 2017-04-01 | T2: 2018-01-01 | U2: 2018-04-01 | V2: 2019-01-01 | W2: 2019-04-01 | X2: 2020-01-01 | Y2: 2020-04-01 | Z2: 2021-01-01 | AA2: 2021-04-01 | AB2: 2023-01-01 | AC2: 2024-01-01 | AD2: 2025-01-01 | AE2: 2026-01-01 | AF2: 2027-01-01 | AG2: 2028-01-01 | AH2: 2029-01-01 | AI2: 2030-01-01 | AJ2: 2031-01-01 | AK2: 2032-01-01 | AL2: 2033-01-01 | AM2: 2034-01-01 | AN2: 2035-01-01 | AO2: 2036-01-01 | AP2: 2037-01-01 | AQ2: 2038-01-01 | AR2: 2039-01-01 | AS2: 2040-01-01 | AT2: 2041-01-01 | AU2: 2042-01-01 | AV2: 2043-01-01 | AW2: 2044-01-01 | AX2: 2045-01-01 | AY2: 2046-01-01
C3: bis | D3: 2009-12-31 | E3: 2010-12-31 | F3: 2011-12-31 | G3: 2012-02-29 | H3: 2012-09-30 | I3: 2012-12-31 | J3: 2013-12-31 | K3: 2014-12-31 | L3: 2015-03-31 | M3: 2015-09-30 | N3: 2015-12-31 | O3: 2016-03-31 | P3: 2016-09-30 | Q3: 2016-12-31 | R3: 2017-03-31 | S3: 2017-12-31 | T3: 2018-03-31 | U3: 2018-12-31 | V3: 2019-03-31 | W3: 2019-12-31 | X3: 2020-03-31 | Y3: 2020-12-31 | Z3: 2021-03-31 | AA3: 2021-12-31 | AB3: 2023-12-31 | AC3: 2024-12-31 | AD3: 2025-12-31 | AE3: 2026-12-31 | AF3: 2027-12-31 | AG3: 2028-12-31 | AH3: 2029-12-31 | AI3: 2030-12-31 | AJ3: 2031-12-31 | AK3: 2032-12-31 | AL3: 2033-12-31 | AM3: 2034-12-31 | AN3: 2035-12-31 | AO3: 2036-12-31 | AP3: 2037-12-31 | AQ3: 2038-12-31 | AR3: 2039-12-31 | AS3: 2040-12-31 | AT3: 2041-12-31 | AU3: 2042-12-31 | AV3: 2043-12-31 | AW3: 2044-12-31 | AX3: 2045-12-31 | AY3: 2046-12-31
C4: Anz. Monate | D4: =DATEDIF(D2,D3,"M")+1 -> 12 | E4: 12 | F4: 12 | G4: 2 | H4: 7 | I4: 3 | J4: 12 | K4: 12 | L4: 3 | M4: =DATEDIF(M2,M3,"M")+1 -> 6 | N4: 3 | O4: 3 | P4: 6 | Q4: 3 | R4: 3 | S4: 9 | T4: 3 | U4: 9 | V4: 3 | W4: 9 | X4: 3 | Y4: 9 | Z4: 3 | AA4: 9 | AB4: 12 | AC4: 12 | AD4: 12 | AE4: 12 | AF4: 12 | AG4: 12 | AH4: 12 | AI4: 12 | AJ4: 12 | AK4: 12 | AL4: 12 | AM4: 12 | AN4: 12 | AO4: 12 | AP4: 12 | AQ4: 12 | AR4: 12 | AS4: 12 | AT4: 12 | AU4: 12 | AV4: 12 | AW4: 12 | AX4: 12
D5: definitiv | E5: definitiv | F5: definitiv | G5: definitiv | H5: definitiv | I5: definitiv | J5: definitiv | K5: definitiv | L5: definitiv | M5: definitiv | N5: definitiv | O5: =M5 -> definitiv | P5: =O5 -> definitiv | Q5: definitiv | R5: definitiv | S5: definitiv | T5: definitiv | U5: definitiv | V5: definitiv | W5: definitiv | X5: definitiv | Y5: definitiv | Z5: definitiv | AA5: definitiv | AB5: definitiv | AC5: definitiv | AD5: definitiv | AE5: definitiv | AF5: definitiv | AG5: definitiv | AH5: definitiv | AI5: definitiv | AJ5: definitiv | AK5: definitiv | AL5: definitiv | AM5: definitiv | AN5: definitiv | AO5: definitiv | AP5: definitiv | AQ5: definitiv | AR5: definitiv | AS5: definitiv | AT5: definitiv | AU5: definitiv | AV5: definitiv | AW5: definitiv | AX5: definitiv | AY5: definitiv
A6: freistehend | B6: Klasse 1 | C6: 10 | D6: 0.65 | E6: 0.533 | F6: 0.427 | G6: 0.393 | H6: 0.365 | I6: 0.331 | J6: 0.212 | K6: 0.187 | L6: =K6 -> 0.187 | M6: 0.16 | N6: 0.148 | O6: =N6 -> 0.148 | P6: 0.14 | Q6: 0.133 | R6: =Q6 -> 0.133 | S6: 0.121 | T6: 0.11 | U6: =T6 -> 0.11 | V6: 0.11 | W6: 0.1 | X6: 0.1 | Y6: 0.09 | Z6: 0.09 | AA6: 0.09 | AB6: 0.09 | AC6: 0.09 | AD6: 0.09 | AE6: 0.09 | AF6: 0.09 | AG6: 0.09 | AH6: 0.09 | AI6: 0.09 | AJ6: 0.09 | AK6: 0.09 | AL6: 0.09 | AM6: 0.09 | AN6: 0.09 | AO6: 0.09 | AP6: 0.09 | AQ6: 0.09 | AR6: 0.09 | AS6: 0.09 | AT6: 0.09 | AU6: 0.09 | AV6: 0.09 | AW6: 0.09 | AX6: 0.09 | AY6: 0.09
B7: Klasse 2 | C7: 30 | D7: 0.54 | E7: 0.443 | F7: 0.393 | G7: 0.362 | H7: 0.337 | I7: 0.27 | J7: 0.212 | K7: 0.187 | L7: =K7 -> 0.187 | M7: 0.16 | N7: 0.148 | O7: =N7 -> 0.148 | P7: 0.14 | Q7: 0.133 | R7: =Q7 -> 0.133 | S7: 0.121 | T7: 0.11 | U7: 0.11 | V7: 0.11 | W7: 0.1 | X7: 0.1 | Y7: 0.09 | Z7: 0.09 | AA7: 0.09 | AB7: 0.09 | AC7: 0.09 | AD7: 0.09 | AE7: 0.09 | AF7: 0.09 | AG7: 0.09 | AH7: 0.09 | AI7: 0.09 | AJ7: 0.09 | AK7: 0.09 | AL7: 0.09 | AM7: 0.09 | AN7: 0.09 | AO7: 0.09 | AP7: 0.09 | AQ7: 0.09 | AR7: 0.09 | AS7: 0.09 | AT7: 0.09 | AU7: 0.09 | AV7: 0.09 | AW7: 0.09 | AX7: 0.09 | AY7: 0.09
B8: Klasse 3 | C8: 100 | D8: 0.51 | E8: 0.418 | F8: 0.343 | G8: 0.316 | H8: 0.32 | I8: 0.248 | J8: 0.212 | K8: 0.187 | L8: 0.187 | M8: 0.16 | N8: 0.148 | O8: 0.148 | P8: 0.14 | Q8: 0.133 | R8: 0.133 | S8: 0.121 | T8: 0.11 | U8: 0.11 | V8: 0.11 | W8: 0.1 | X8: 0.1 | Y8: 0.09 | Z8: 0.09 | AA8: 0.09 | AB8: 0.09 | AC8: 0.09 | AD8: 0.09 | AE8: 0.09 | AF8: 0.09 | AG8: 0.09 | AH8: 0.09 | AI8: 0.09 | AJ8: 0.09 | AK8: 0.09 | AL8: 0.09 | AM8: 0.09 | AN8: 0.09 | AO8: 0.09 | AP8: 0.09 | AQ8: 0.09 | AR8: 0.09 | AS8: 0.09 | AT8: 0.09 | AU8: 0.09 | AV8: 0.09 | AW8: 0.09 | AX8: 0.09 | AY8: 0.09
B9: Klasse 4 | C9: 1000 | D9: 0.49 | E9: 0.402 | F9: 0.305 | G9: 0.281 | H9: 0.29 | I9: 0.231 | J9: 0.185 | K9: 0.17 | L9: 0.17 | M9: 0.15 | N9: 0.141 | O9: 0.141 | P9: 0.131 | Q9: 0.122 | R9: 0.122 | S9: 0.115 | T9: 0.11 | U9: 0.11 | V9: 0.11 | W9: 0.1 | X9: 0.1 | Y9: 0.09 | Z9: 0.09 | AA9: 0.09 | AB9: 0.09 | AC9: 0.09 | AD9: 0.09 | AE9: 0.09 | AF9: 0.09 | AG9: 0.09 | AH9: 0.09 | AI9: 0.09 | AJ9: 0.09 | AK9: 0.09 | AL9: 0.09 | AM9: 0.09 | AN9: 0.09 | AO9: 0.09 | AP9: 0.09 | AQ9: 0.09 | AR9: 0.09 | AS9: 0.09 | AT9: 0.09 | AU9: 0.09 | AV9: 0.09 | AW9: 0.09 | AX9: 0.09 | AY9: 0.09
B10: Klasse 5 | C10: 9999999999 | D10: 0.49 | E10: 0.402 | F10: 0.289 | G10: 0.266 | H10: 0.281 | I10: 0.216 | J10: 0.173 | K10: 0.153 | L10: 0.153 | M10: 0.148 | N10: 0.141 | O10: 0.141 | P10: 0.132 | Q10: 0.122 | R10: 0.122 | S10: 0.117 | T10: 0.11 | U10: 0.11 | V10: 0.11 | W10: 0.1 | X10: 0.1 | Y10: 0.09 | Z10: 0.09 | AA10: 0.09 | AB10: 0.09 | AC10: 0.09 | AD10: 0.09 | AE10: 0.09 | AF10: 0.09 | AG10: 0.09 | AH10: 0.09 | AI10: 0.09 | AJ10: 0.09 | AK10: 0.09 | AL10: 0.09 | AM10: 0.09 | AN10: 0.09 | AO10: 0.09 | AP10: 0.09 | AQ10: 0.09 | AR10: 0.09 | AS10: 0.09 | AT10: 0.09 | AU10: 0.09 | AV10: 0.09 | AW10: 0.09 | AX10: 0.09 | AY10: 0.09
D15: 2009 | E15: 2010 | F15: 2011 | G15: 2012 (1.1.) | H15: 2012 (1.3.) | I15: 2012 (1.10.) | J15: 2013 | K15: 2014 | L15: 2015 (1.1.) | M15: 2015 (1.4.) | N15: 2015 (1.10.) | O15: 2016 (1.1) | P15: 2016 (1.4.) | Q15: 2016 (1.10) | R15: 2017 (1.1) | S15: 2017 (1.4) | T15: 2018 (1.1) | U15: 2018 (1.4) | V15: 2019 (1.1) | W15: 2019 (1.4) | X15: 2020 | Y15: 2021 | Z15: 2022 | AA15: 2023 | AB15: 2024 | AC15: 2025 | AD15: 2026 | AE15: 2027 | AF15: 2028 | AG15: 2029 | AH15: 2030 | AI15: 2031 | AJ15: 2032 | AK15: 2033 | AL15: 2034 | AM15: 2035 | AN15: 2036 | AO15: 2037 | AP15: 2038 | AQ15: 2039 | AR15: 2040 | AS15: 2041 | AT15: 2042 | AU15: 2043 | AV15: 2044 | AW15: 2045 | AX15: 2046 | AY15: 2047
A17: Laufzeit ab Inbetriebnahme [Jahre] | D17: 25 | E17: 25 | F17: 25 | G17: 25 | H17: 25 | I17: 25 | J17: 25 | K17: 20 | L17: 20 | M17: 20 | N17: 20 | O17: 20 | P17: 20 | Q17: 20 | R17: 20 | S17: 20 | T17: 15 | U17: 15 | V17: 15 | W17: 15 | X17: 15 | Y17: 15 | Z17: 15 | AA17: 15 | AB17: 15 | AC17: 15 | AD17: 15 | AE17: 15 | AF17: 15 | AG17: 15 | AH17: 15 | AI17: 15 | AJ17: 15 | AK17: 15 | AL17: 15 | AM17: 15 | AN17: 15 | AO17: 15 | AP17: 15 | AQ17: 15 | AR17: 15 | AS17: 15 | AT17: 15 | AU17: 15 | AV17: 15 | AW17: 15 | AX17: 15 | AY17: 15

Sheet Tarife angebaut (hidden)
C1: Leistung bis (kWp) | D1: ='Tarife freistehend'!D1 -> 2009 | E1: ='Tarife freistehend'!E1 -> 2010 | F1: ='Tarife freistehend'!F1 -> 2011 | G1: ='Tarife freistehend'!G1 -> 2012 (1.1.) | H1: ='Tarife freistehend'!H1 -> 2012 (1.3.) | I1: ='Tarife freistehend'!I1 -> 2012 (1.10.) | J1: ='Tarife freistehend'!J1 -> 2013 | K1: ='Tarife freistehend'!K1 -> 2014 | L1: ='Tarife freistehend'!L1 -> 2015 (1.1.) | M1: ='Tarife freistehend'!M1 -> 2015 (1.4.) | N1: ='Tarife freistehend'!N1 -> 2015 (1.10.) | O1: ='Tarife freistehend'!O1 -> 2016 (1.1) | P1: ='Tarife freistehend'!P1 -> 2016 (1.4.) | Q1: ='Tarife freistehend'!Q1 -> 2016 (1.10) | R1: ='Tarife freistehend'!R1 -> 2017 (1.1) | S1: ='Tarife freistehend'!S1 -> 2017 (1.4) | T1: ='Tarife freistehend'!T1 -> 2018 (1.1) | U1: ='Tarife freistehend'!U1 -> 2018 (1.4) | V1: ='Tarife freistehend'!V1 -> 2019 (1.1) | W1: ='Tarife freistehend'!W1 -> 2019 (1.4) | X1: ='Tarife freistehend'!X1 -> 2020 (1.1) | Y1: ='Tarife freistehend'!Y1 -> 2020 (1.4) | Z1: ='Tarife freistehend'!Z1 -> 2021 (1.1.) | AA1: ='Tarife freistehend'!AA1 -> 2021 (1.4.) | AB1: ='Tarife freistehend'!AB1 -> 2022 | AC1: ='Tarife freistehend'!AC1 -> 2023 | AD1: ='Tarife freistehend'!AD1 -> 2024 | AE1: ='Tarife freistehend'!AE1 -> 2025 | AF1: ='Tarife freistehend'!AF1 -> 2026 | AG1: ='Tarife freistehend'!AG1 -> 2027 | AH1: ='Tarife freistehend'!AH1 -> 2028 | AI1: ='Tarife freistehend'!AI1 -> 2029 | AJ1: ='Tarife freistehend'!AJ1 -> 2030 | AK1: ='Tarife freistehend'!AK1 -> 2031 | AL1: ='Tarife freistehend'!AL1 -> 2032 | AM1: ='Tarife freistehend'!AM1 -> 2033 | AN1: ='Tarife freistehend'!AN1 -> 2034 | AO1: ='Tarife freistehend'!AO1 -> 2035 | AP1: ='Tarife freistehend'!AP1 -> 2036 | AQ1: ='Tarife freistehend'!AQ1 -> 2037 | AR1: ='Tarife freistehend'!AR1 -> 2038 | AS1: ='Tarife freistehend'!AS1 -> 2039 | AT1: ='Tarife freistehend'!AT1 -> 2040 | AU1: ='Tarife freistehend'!AU1 -> 2041 | AV1: ='Tarife freistehend'!AV1 -> 2042 | AW1: ='Tarife freistehend'!AW1 -> 2043 | AX1: ='Tarife freistehend'!AX1 -> 2044 | AY1: ='Tarife freistehend'!AY1 -> 2045
C2: von | D2: ='Tarife freistehend'!D2 -> 2009-01-01 | E2: ='Tarife freistehend'!E2 -> 2010-01-01 | F2: ='Tarife freistehend'!F2 -> 2011-01-01 | G2: ='Tarife freistehend'!G2 -> 2012-01-01 | H2: ='Tarife freistehend'!H2 -> 2012-03-01 | I2: ='Tarife freistehend'!I2 -> 2012-10-01 | J2: ='Tarife freistehend'!J2 -> 2013-01-01 | K2: ='Tarife freistehend'!K2 -> 2014-01-01 | L2: ='Tarife freistehend'!L2 -> 2015-01-01 | M2: ='Tarife freistehend'!M2 -> 2015-04-01 | N2: ='Tarife freistehend'!N2 -> 2015-10-01 | O2: ='Tarife freistehend'!O2 -> 2016-01-01 | P2: ='Tarife freistehend'!P2 -> 2016-04-01 | Q2: ='Tarife freistehend'!Q2 -> 2016-10-01 | R2: ='Tarife freistehend'!R2 -> 2017-01-01 | S2: ='Tarife freistehend'!S2 -> 2017-04-01 | T2: ='Tarife freistehend'!T2 -> 2018-01-01 | U2: ='Tarife freistehend'!U2 -> 2018-04-01 | V2: ='Tarife freistehend'!V2 -> 2019-01-01 | W2: ='Tarife freistehend'!W2 -> 2019-04-01 | X2: ='Tarife freistehend'!X2 -> 2020-01-01 | Y2: ='Tarife freistehend'!Y2 -> 2020-04-01 | Z2: ='Tarife freistehend'!Z2 -> 2021-01-01 | AA2: ='Tarife freistehend'!AA2 -> 2021-04-01 | AB2: ='Tarife freistehend'!AB2 -> 2023-01-01 | AC2: ='Tarife freistehend'!AC2 -> 2024-01-01 | AD2: ='Tarife freistehend'!AD2 -> 2025-01-01 | AE2: ='Tarife freistehend'!AE2 -> 2026-01-01 | AF2: ='Tarife freistehend'!AF2 -> 2027-01-01 | AG2: ='Tarife freistehend'!AG2 -> 2028-01-01 | AH2: ='Tarife freistehend'!AH2 -> 2029-01-01 | AI2: ='Tarife freistehend'!AI2 -> 2030-01-01 | AJ2: ='Tarife freistehend'!AJ2 -> 2031-01-01 | AK2: ='Tarife freistehend'!AK2 -> 2032-01-01 | AL2: ='Tarife freistehend'!AL2 -> 2033-01-01 | AM2: ='Tarife freistehend'!AM2 -> 2034-01-01 | AN2: ='Tarife freistehend'!AN2 -> 2035-01-01 | AO2: ='Tarife freistehend'!AO2 -> 2036-01-01 | AP2: ='Tarife freistehend'!AP2 -> 2037-01-01 | AQ2: ='Tarife freistehend'!AQ2 -> 2038-01-01 | AR2: ='Tarife freistehend'!AR2 -> 2039-01-01 | AS2: ='Tarife freistehend'!AS2 -> 2040-01-01 | AT2: ='Tarife freistehend'!AT2 -> 2041-01-01 | AU2: ='Tarife freistehend'!AU2 -> 2042-01-01 | AV2: ='Tarife freistehend'!AV2 -> 2043-01-01 | AW2: ='Tarife freistehend'!AW2 -> 2044-01-01 | AX2: ='Tarife freistehend'!AX2 -> 2045-01-01 | AY2: ='Tarife freistehend'!AY2 -> 2046-01-01
C3: bis | D3: ='Tarife freistehend'!D3 -> 2009-12-31 | E3: ='Tarife freistehend'!E3 -> 2010-12-31 | F3: ='Tarife freistehend'!F3 -> 2011-12-31 | G3: ='Tarife freistehend'!G3 -> 2012-02-29 | H3: ='Tarife freistehend'!H3 -> 2012-09-30 | I3: ='Tarife freistehend'!I3 -> 2012-12-31 | J3: ='Tarife freistehend'!J3 -> 2013-12-31 | K3: ='Tarife freistehend'!K3 -> 2014-12-31 | L3: ='Tarife freistehend'!L3 -> 2015-03-31 | M3: ='Tarife freistehend'!M3 -> 2015-09-30 | N3: ='Tarife freistehend'!N3 -> 2015-12-31 | O3: ='Tarife freistehend'!O3 -> 2016-03-31 | P3: ='Tarife freistehend'!P3 -> 2016-09-30 | Q3: ='Tarife freistehend'!Q3 -> 2016-12-31 | R3: ='Tarife freistehend'!R3 -> 2017-03-31 | S3: ='Tarife freistehend'!S3 -> 2017-12-31 | T3: ='Tarife freistehend'!T3 -> 2018-03-31 | U3: ='Tarife freistehend'!U3 -> 2018-12-31 | V3: ='Tarife freistehend'!V3 -> 2019-03-31 | W3: ='Tarife freistehend'!W3 -> 2019-12-31 | X3: ='Tarife freistehend'!X3 -> 2020-03-31 | Y3: ='Tarife freistehend'!Y3 -> 2020-12-31 | Z3: ='Tarife freistehend'!Z3 -> 2021-03-31 | AA3: ='Tarife freistehend'!AA3 -> 2021-12-31 | AB3: ='Tarife freistehend'!AB3 -> 2023-12-31 | AC3: ='Tarife freistehend'!AC3 -> 2024-12-31 | AD3: ='Tarife freistehend'!AD3 -> 2025-12-31 | AE3: ='Tarife freistehend'!AE3 -> 2026-12-31 | AF3: ='Tarife freistehend'!AF3 -> 2027-12-31 | AG3: ='Tarife freistehend'!AG3 -> 2028-12-31 | AH3: ='Tarife freistehend'!AH3 -> 2029-12-31 | AI3: ='Tarife freistehend'!AI3 -> 2030-12-31 | AJ3: ='Tarife freistehend'!AJ3 -> 2031-12-31 | AK3: ='Tarife freistehend'!AK3 -> 2032-12-31 | AL3: ='Tarife freistehend'!AL3 -> 2033-12-31 | AM3: ='Tarife freistehend'!AM3 -> 2034-12-31 | AN3: ='Tarife freistehend'!AN3 -> 2035-12-31 | AO3: ='Tarife freistehend'!AO3 -> 2036-12-31 | AP3: ='Tarife freistehend'!AP3 -> 2037-12-31 | AQ3: ='Tarife freistehend'!AQ3 -> 2038-12-31 | AR3: ='Tarife freistehend'!AR3 -> 2039-12-31 | AS3: ='Tarife freistehend'!AS3 -> 2040-12-31 | AT3: ='Tarife freistehend'!AT3 -> 2041-12-31 | AU3: ='Tarife freistehend'!AU3 -> 2042-12-31 | AV3: ='Tarife freistehend'!AV3 -> 2043-12-31 | AW3: ='Tarife freistehend'!AW3 -> 2044-12-31 | AX3: ='Tarife freistehend'!AX3 -> 2045-12-31 | AY3: ='Tarife freistehend'!AY3 -> 2046-12-31
C4: Anz. Monate | D4: =DATEDIF(D2,D3,"M")+1 -> 12 | E4: 12 | F4: 12 | G4: 2 | H4: 7 | I4: 3 | J4: 12 | K4: 12 | L4: 3 | M4: =DATEDIF(M2,M3,"M")+1 -> 6 | N4: 3 | O4: ='Tarife freistehend'!O4 -> 3 | P4: ='Tarife freistehend'!P4 -> 6 | Q4: ='Tarife freistehend'!Q4 -> 3 | R4: ='Tarife freistehend'!R4 -> 3 | S4: ='Tarife freistehend'!S4 -> 9 | T4: ='Tarife freistehend'!T4 -> 3 | U4: ='Tarife freistehend'!U4 -> 9 | V4: ='Tarife freistehend'!V4 -> 3 | W4: ='Tarife freistehend'!W4 -> 9 | X4: ='Tarife freistehend'!X4 -> 3 | Y4: ='Tarife freistehend'!Y4 -> 9 | Z4: ='Tarife freistehend'!Z4 -> 3 | AA4: ='Tarife freistehend'!AA4 -> 9 | AB4: ='Tarife freistehend'!AB4 -> 12 | AC4: ='Tarife freistehend'!AC4 -> 12 | AD4: ='Tarife freistehend'!AD4 -> 12 | AE4: ='Tarife freistehend'!AE4 -> 12 | AF4: ='Tarife freistehend'!AF4 -> 12 | AG4: ='Tarife freistehend'!AG4 -> 12 | AH4: ='Tarife freistehend'!AH4 -> 12 | AI4: ='Tarife freistehend'!AI4 -> 12 | AJ4: ='Tarife freistehend'!AJ4 -> 12 | AK4: ='Tarife freistehend'!AK4 -> 12 | AL4: ='Tarife freistehend'!AL4 -> 12 | AM4: ='Tarife freistehend'!AM4 -> 12 | AN4: ='Tarife freistehend'!AN4 -> 12 | AO4: ='Tarife freistehend'!AO4 -> 12 | AP4: ='Tarife freistehend'!AP4 -> 12 | AQ4: ='Tarife freistehend'!AQ4 -> 12 | AR4: ='Tarife freistehend'!AR4 -> 12 | AS4: ='Tarife freistehend'!AS4 -> 12 | AT4: ='Tarife freistehend'!AT4 -> 12 | AU4: ='Tarife freistehend'!AU4 -> 12 | AV4: ='Tarife freistehend'!AV4 -> 12 | AW4: ='Tarife freistehend'!AW4 -> 12 | AX4: ='Tarife freistehend'!AX4 -> 12 | AY4: ='Tarife freistehend'!AY4 -> 0
D5: definitiv | E5: definitiv | F5: definitiv | G5: definitiv | H5: definitiv | I5: definitiv | J5: definitiv | K5: definitiv | L5: definitiv | M5: definitiv | N5: definitiv | O5: ='Tarife freistehend'!O5 -> definitiv | P5: ='Tarife freistehend'!P5 -> definitiv | Q5: ='Tarife freistehend'!Q5 -> definitiv | R5: ='Tarife freistehend'!R5 -> definitiv | S5: ='Tarife freistehend'!S5 -> definitiv | T5: ='Tarife freistehend'!T5 -> definitiv | U5: ='Tarife freistehend'!U5 -> definitiv | V5: ='Tarife freistehend'!V5 -> definitiv | W5: ='Tarife freistehend'!W5 -> definitiv | X5: ='Tarife freistehend'!X5 -> definitiv | Y5: ='Tarife freistehend'!Y5 -> definitiv | Z5: ='Tarife freistehend'!Z5 -> definitiv | AA5: ='Tarife freistehend'!AA5 -> definitiv | AB5: ='Tarife freistehend'!AB5 -> definitiv | AC5: ='Tarife freistehend'!AC5 -> definitiv | AD5: ='Tarife freistehend'!AD5 -> definitiv | AE5: ='Tarife freistehend'!AE5 -> definitiv | AF5: ='Tarife freistehend'!AF5 -> definitiv | AG5: ='Tarife freistehend'!AG5 -> definitiv | AH5: ='Tarife freistehend'!AH5 -> definitiv | AI5: ='Tarife freistehend'!AI5 -> definitiv | AJ5: ='Tarife freistehend'!AJ5 -> definitiv | AK5: ='Tarife freistehend'!AK5 -> definitiv | AL5: ='Tarife freistehend'!AL5 -> definitiv | AM5: ='Tarife freistehend'!AM5 -> definitiv | AN5: ='Tarife freistehend'!AN5 -> definitiv | AO5: ='Tarife freistehend'!AO5 -> definitiv | AP5: ='Tarife freistehend'!AP5 -> definitiv | AQ5: ='Tarife freistehend'!AQ5 -> definitiv | AR5: ='Tarife freistehend'!AR5 -> definitiv | AS5: ='Tarife freistehend'!AS5 -> definitiv | AT5: ='Tarife freistehend'!AT5 -> definitiv | AU5: ='Tarife freistehend'!AU5 -> definitiv | AV5: ='Tarife freistehend'!AV5 -> definitiv | AW5: ='Tarife freistehend'!AW5 -> definitiv | AX5: ='Tarife freistehend'!AX5 -> definitiv | AY5: ='Tarife freistehend'!AY5 -> definitiv
A6: angebaut | B6: Klasse 1 | C6: 10 | D6: 0.75 | E6: 0.615 | F6: 0.483 | G6: 0.444 | H6: 0.399 | I6: 0.361 | J6: 0.212 | K6: 0.187 | L6: =K6 -> 0.187 | M6: 0.16 | N6: 0.148 | O6: =N6 -> 0.148 | P6: 0.14 | Q6: 0.133 | R6: =Q6 -> 0.133 | S6: 0.121 | T6: 0.11 | U6: =T6 -> 0.11 | V6: 0.11 | W6: 0.1 | X6: 0.1 | Y6: 0.09 | Z6: 0.09 | AA6: 0.09 | AB6: 0.09 | AC6: 0.09 | AD6: 0.09 | AE6: 0.09 | AF6: 0.09 | AG6: 0.09 | AH6: 0.09 | AI6: 0.09 | AJ6: 0.09 | AK6: =AJ6 -> 0.09 | AL6: 0.09 | AM6: 0.09 | AN6: 0.09 | AO6: 0.09 | AP6: 0.09 | AQ6: 0.09 | AR6: 0.09 | AS6: 0.09 | AT6: 0.09 | AU6: 0.09 | AV6: 0.09 | AW6: 0.09 | AX6: 0.09 | AY6: 0.09
B7: Klasse 2 | C7: 30 | D7: 0.65 | E7: 0.533 | F7: 0.467 | G7: 0.43 | H7: 0.368 | I7: 0.294 | J7: 0.212 | K7: 0.187 | L7: =K7 -> 0.187 | M7: 0.16 | N7: 0.148 | O7: =N7 -> 0.148 | P7: 0.14 | Q7: 0.133 | R7: =Q7 -> 0.133 | S7: 0.121 | T7: 0.11 | U7: 0.11 | V7: 0.11 | W7: 0.1 | X7: 0.1 | Y7: 0.09 | Z7: 0.09 | AA7: 0.09 | AB7: 0.09 | AC7: 0.09 | AD7: 0.09 | AE7: 0.09 | AF7: 0.09 | AG7: 0.09 | AH7: 0.09 | AI7: 0.09 | AJ7: 0.09 | AK7: 0.09 | AL7: 0.09 | AM7: 0.09 | AN7: 0.09 | AO7: 0.09 | AP7: 0.09 | AQ7: 0.09 | AR7: 0.09 | AS7: 0.09 | AT7: 0.09 | AU7: 0.09 | AV7: 0.09 | AW7: 0.09 | AX7: 0.09 | AY7: 0.09
B8: Klasse 3 | C8: 100 | D8: 0.62 | E8: 0.508 | F8: 0.422 | G8: 0.388 | H8: 0.349 | I8: 0.269 | J8: 0.212 | K8: 0.187 | L8: 0.187 | M8: 0.16 | N8: 0.148 | O8: 0.148 | P8: 0.14 | Q8: 0.133 | R8: 0.133 | S8: 0.121 | T8: 0.11 | U8: 0.11 | V8: 0.11 | W8: 0.1 | X8: 0.1 | Y8: 0.09 | Z8: 0.09 | AA8: 0.09 | AB8: 0.09 | AC8: 0.09 | AD8: 0.09 | AE8: 0.09 | AF8: 0.09 | AG8: 0.09 | AH8: 0.09 | AI8: 0.09 | AJ8: 0.09 | AK8: 0.09 | AL8: 0.09 | AM8: 0.09 | AN8: 0.09 | AO8: 0.09 | AP8: 0.09 | AQ8: 0.09 | AR8: 0.09 | AS8: 0.09 | AT8: 0.09 | AU8: 0.09 | AV8: 0.09 | AW8: 0.09 | AX8: 0.09 | AY8: 0.09
B9: Klasse 4 | C9: 1000 | D9: 0.6 | E9: 0.492 | F9: 0.378 | G9: 0.348 | H9: 0.317 | I9: 0.251 | J9: 0.185 | K9: 0.17 | L9: 0.17 | M9: 0.15 | N9: 0.141 | O9: 0.141 | P9: 0.131 | Q9: 0.122 | R9: 0.122 | S9: 0.115 | T9: 0.11 | U9: 0.11 | V9: 0.11 | W9: 0.1 | X9: 0.1 | Y9: 0.09 | Z9: 0.09 | AA9: 0.09 | AB9: 0.09 | AC9: 0.09 | AD9: 0.09 | AE9: 0.09 | AF9: 0.09 | AG9: 0.09 | AH9: 0.09 | AI9: 0.09 | AJ9: 0.09 | AK9: 0.09 | AL9: 0.09 | AM9: 0.09 | AN9: 0.09 | AO9: 0.09 | AP9: 0.09 | AQ9: 0.09 | AR9: 0.09 | AS9: 0.09 | AT9: 0.09 | AU9: 0.09 | AV9: 0.09 | AW9: 0.09 | AX9: 0.09 | AY9: 0.09
B10: Klasse 5 | C10: 9999999999 | D10: 0.6 | E10: 0.492 | F10: 0.361 | G10: 0.332 | H10: 0.307 | I10: 0.235 | J10: 0.173 | K10: 0.153 | L10: 0.153 | M10: 0.148 | N10: 0.141 | O10: 0.141 | P10: 0.132 | Q10: 0.122 | R10: 0.122 | S10: 0.117 | T10: 0.11 | U10: 0.11 | V10: 0.11 | W10: 0.1 | X10: 0.1 | Y10: 0.09 | Z10: 0.09 | AA10: 0.09 | AB10: 0.09 | AC10: 0.09 | AD10: 0.09 | AE10: 0.09 | AF10: 0.09 | AG10: 0.09 | AH10: 0.09 | AI10: 0.09 | AJ10: 0.09 | AK10: 0.09 | AL10: 0.09 | AM10: 0.09 | AN10: 0.09 | AO10: 0.09 | AP10: 0.09 | AQ10: 0.09 | AR10: 0.09 | AS10: 0.09 | AT10: 0.09 | AU10: 0.09 | AV10: 0.09 | AW10: 0.09 | AX10: 0.09 | AY10: 0.09

Sheet Tarife integriert (hidden)
C1: Leistung bis (kWp) | D1: ='Tarife freistehend'!D1 -> 2009 | E1: ='Tarife freistehend'!E1 -> 2010 | F1: ='Tarife freistehend'!F1 -> 2011 | G1: ='Tarife freistehend'!G1 -> 2012 (1.1.) | H1: ='Tarife freistehend'!H1 -> 2012 (1.3.) | I1: ='Tarife freistehend'!I1 -> 2012 (1.10.) | J1: ='Tarife freistehend'!J1 -> 2013 | K1: ='Tarife freistehend'!K1 -> 2014 | L1: ='Tarife freistehend'!L1 -> 2015 (1.1.) | M1: ='Tarife freistehend'!M1 -> 2015 (1.4.) | N1: ='Tarife freistehend'!N1 -> 2015 (1.10.) | O1: ='Tarife freistehend'!O1 -> 2016 (1.1) | P1: ='Tarife freistehend'!P1 -> 2016 (1.4.) | Q1: ='Tarife freistehend'!Q1 -> 2016 (1.10) | R1: ='Tarife freistehend'!R1 -> 2017 (1.1) | S1: ='Tarife freistehend'!S1 -> 2017 (1.4) | T1: ='Tarife freistehend'!T1 -> 2018 (1.1) | U1: ='Tarife freistehend'!U1 -> 2018 (1.4) | V1: ='Tarife freistehend'!V1 -> 2019 (1.1) | W1: ='Tarife freistehend'!W1 -> 2019 (1.4) | X1: ='Tarife freistehend'!X1 -> 2020 (1.1) | Y1: ='Tarife freistehend'!Y1 -> 2020 (1.4) | Z1: ='Tarife freistehend'!Z1 -> 2021 (1.1.) | AA1: ='Tarife freistehend'!AA1 -> 2021 (1.4.) | AB1: ='Tarife freistehend'!AB1 -> 2022 | AC1: ='Tarife freistehend'!AC1 -> 2023 | AD1: ='Tarife freistehend'!AD1 -> 2024 | AE1: ='Tarife freistehend'!AE1 -> 2025 | AF1: ='Tarife freistehend'!AF1 -> 2026 | AG1: ='Tarife freistehend'!AG1 -> 2027 | AH1: ='Tarife freistehend'!AH1 -> 2028 | AI1: ='Tarife freistehend'!AI1 -> 2029 | AJ1: ='Tarife freistehend'!AJ1 -> 2030 | AK1: ='Tarife freistehend'!AK1 -> 2031 | AL1: ='Tarife freistehend'!AL1 -> 2032 | AM1: ='Tarife freistehend'!AM1 -> 2033 | AN1: ='Tarife freistehend'!AN1 -> 2034 | AO1: ='Tarife freistehend'!AO1 -> 2035 | AP1: ='Tarife freistehend'!AP1 -> 2036 | AQ1: ='Tarife freistehend'!AQ1 -> 2037 | AR1: ='Tarife freistehend'!AR1 -> 2038 | AS1: ='Tarife freistehend'!AS1 -> 2039 | AT1: ='Tarife freistehend'!AT1 -> 2040 | AU1: ='Tarife freistehend'!AU1 -> 2041 | AV1: ='Tarife freistehend'!AV1 -> 2042 | AW1: ='Tarife freistehend'!AW1 -> 2043 | AX1: ='Tarife freistehend'!AX1 -> 2044 | AY1: ='Tarife freistehend'!AY1 -> 2045
C2: von | D2: ='Tarife freistehend'!D2 -> 2009-01-01 | E2: ='Tarife freistehend'!E2 -> 2010-01-01 | F2: ='Tarife freistehend'!F2 -> 2011-01-01 | G2: ='Tarife freistehend'!G2 -> 2012-01-01 | H2: ='Tarife freistehend'!H2 -> 2012-03-01 | I2: ='Tarife freistehend'!I2 -> 2012-10-01 | J2: ='Tarife freistehend'!J2 -> 2013-01-01 | K2: ='Tarife freistehend'!K2 -> 2014-01-01 | L2: ='Tarife freistehend'!L2 -> 2015-01-01 | M2: ='Tarife freistehend'!M2 -> 2015-04-01 | N2: ='Tarife freistehend'!N2 -> 2015-10-01 | O2: ='Tarife freistehend'!O2 -> 2016-01-01 | P2: ='Tarife freistehend'!P2 -> 2016-04-01 | Q2: ='Tarife freistehend'!Q2 -> 2016-10-01 | R2: ='Tarife freistehend'!R2 -> 2017-01-01 | S2: ='Tarife freistehend'!S2 -> 2017-04-01 | T2: ='Tarife freistehend'!T2 -> 2018-01-01 | U2: ='Tarife freistehend'!U2 -> 2018-04-01 | V2: ='Tarife freistehend'!V2 -> 2019-01-01 | W2: ='Tarife freistehend'!W2 -> 2019-04-01 | X2: ='Tarife freistehend'!X2 -> 2020-01-01 | Y2: ='Tarife freistehend'!Y2 -> 2020-04-01 | Z2: ='Tarife freistehend'!Z2 -> 2021-01-01 | AA2: ='Tarife freistehend'!AA2 -> 2021-04-01 | AB2: ='Tarife freistehend'!AB2 -> 2023-01-01 | AC2: ='Tarife freistehend'!AC2 -> 2024-01-01 | AD2: ='Tarife freistehend'!AD2 -> 2025-01-01 | AE2: ='Tarife freistehend'!AE2 -> 2026-01-01 | AF2: ='Tarife freistehend'!AF2 -> 2027-01-01 | AG2: ='Tarife freistehend'!AG2 -> 2028-01-01 | AH2: ='Tarife freistehend'!AH2 -> 2029-01-01 | AI2: ='Tarife freistehend'!AI2 -> 2030-01-01 | AJ2: ='Tarife freistehend'!AJ2 -> 2031-01-01 | AK2: ='Tarife freistehend'!AK2 -> 2032-01-01 | AL2: ='Tarife freistehend'!AL2 -> 2033-01-01 | AM2: ='Tarife freistehend'!AM2 -> 2034-01-01 | AN2: ='Tarife freistehend'!AN2 -> 2035-01-01 | AO2: ='Tarife freistehend'!AO2 -> 2036-01-01 | AP2: ='Tarife freistehend'!AP2 -> 2037-01-01 | AQ2: ='Tarife freistehend'!AQ2 -> 2038-01-01 | AR2: ='Tarife freistehend'!AR2 -> 2039-01-01 | AS2: ='Tarife freistehend'!AS2 -> 2040-01-01 | AT2: ='Tarife freistehend'!AT2 -> 2041-01-01 | AU2: ='Tarife freistehend'!AU2 -> 2042-01-01 | AV2: ='Tarife freistehend'!AV2 -> 2043-01-01 | AW2: ='Tarife freistehend'!AW2 -> 2044-01-01 | AX2: ='Tarife freistehend'!AX2 -> 2045-01-01 | AY2: ='Tarife freistehend'!AY2 -> 2046-01-01
C3: bis | D3: ='Tarife freistehend'!D3 -> 2009-12-31 | E3: ='Tarife freistehend'!E3 -> 2010-12-31 | F3: ='Tarife freistehend'!F3 -> 2011-12-31 | G3: ='Tarife freistehend'!G3 -> 2012-02-29 | H3: ='Tarife freistehend'!H3 -> 2012-09-30 | I3: ='Tarife freistehend'!I3 -> 2012-12-31 | J3: ='Tarife freistehend'!J3 -> 2013-12-31 | K3: ='Tarife freistehend'!K3 -> 2014-12-31 | L3: ='Tarife freistehend'!L3 -> 2015-03-31 | M3: ='Tarife freistehend'!M3 -> 2015-09-30 | N3: ='Tarife freistehend'!N3 -> 2015-12-31 | O3: ='Tarife freistehend'!O3 -> 2016-03-31 | P3: ='Tarife freistehend'!P3 -> 2016-09-30 | Q3: ='Tarife freistehend'!Q3 -> 2016-12-31 | R3: ='Tarife freistehend'!R3 -> 2017-03-31 | S3: ='Tarife freistehend'!S3 -> 2017-12-31 | T3: ='Tarife freistehend'!T3 -> 2018-03-31 | U3: ='Tarife freistehend'!U3 -> 2018-12-31 | V3: ='Tarife freistehend'!V3 -> 2019-03-31 | W3: ='Tarife freistehend'!W3 -> 2019-12-31 | X3: ='Tarife freistehend'!X3 -> 2020-03-31 | Y3: ='Tarife freistehend'!Y3 -> 2020-12-31 | Z3: ='Tarife freistehend'!Z3 -> 2021-03-31 | AA3: ='Tarife freistehend'!AA3 -> 2021-12-31 | AB3: ='Tarife freistehend'!AB3 -> 2023-12-31 | AC3: ='Tarife freistehend'!AC3 -> 2024-12-31 | AD3: ='Tarife freistehend'!AD3 -> 2025-12-31 | AE3: ='Tarife freistehend'!AE3 -> 2026-12-31 | AF3: ='Tarife freistehend'!AF3 -> 2027-12-31 | AG3: ='Tarife freistehend'!AG3 -> 2028-12-31 | AH3: ='Tarife freistehend'!AH3 -> 2029-12-31 | AI3: ='Tarife freistehend'!AI3 -> 2030-12-31 | AJ3: ='Tarife freistehend'!AJ3 -> 2031-12-31 | AK3: ='Tarife freistehend'!AK3 -> 2032-12-31 | AL3: ='Tarife freistehend'!AL3 -> 2033-12-31 | AM3: ='Tarife freistehend'!AM3 -> 2034-12-31 | AN3: ='Tarife freistehend'!AN3 -> 2035-12-31 | AO3: ='Tarife freistehend'!AO3 -> 2036-12-31 | AP3: ='Tarife freistehend'!AP3 -> 2037-12-31 | AQ3: ='Tarife freistehend'!AQ3 -> 2038-12-31 | AR3: ='Tarife freistehend'!AR3 -> 2039-12-31 | AS3: ='Tarife freistehend'!AS3 -> 2040-12-31 | AT3: ='Tarife freistehend'!AT3 -> 2041-12-31 | AU3: ='Tarife freistehend'!AU3 -> 2042-12-31 | AV3: ='Tarife freistehend'!AV3 -> 2043-12-31 | AW3: ='Tarife freistehend'!AW3 -> 2044-12-31 | AX3: ='Tarife freistehend'!AX3 -> 2045-12-31 | AY3: ='Tarife freistehend'!AY3 -> 2046-12-31
C4: Anz. Monate | D4: =DATEDIF(D2,D3,"M")+1 -> 12 | E4: 12 | F4: 12 | G4: 2 | H4: 7 | I4: 3 | J4: 12 | K4: 12 | L4: 3 | M4: =DATEDIF(M2,M3,"M")+1 -> 6 | N4: 3 | O4: 3 | P4: 6 | Q4: 3 | R4: =DATEDIF(R2,R3,"M")+1 -> 3 | S4: 9 | T4: 3 | U4: 9 | V4: 3 | W4: 9 | X4: 3 | Y4: 9 | Z4: 3 | AA4: 9 | AB4: 12 | AC4: 12 | AD4: 12 | AE4: 12 | AF4: 12 | AG4: 12 | AH4: 12 | AI4: 12 | AJ4: 12 | AK4: 12 | AL4: 12 | AM4: 12 | AN4: 12 | AO4: 12 | AP4: 12 | AQ4: 12 | AR4: 12 | AS4: 12 | AT4: 12 | AU4: 12 | AV4: 12 | AW4: 12 | AX4: 12 | AY4: =DATEDIF(AY2,AY3,"M")+1 -> 12
D5: definitiv | E5: definitiv | F5: definitiv | G5: definitiv | H5: definitiv | I5: definitiv | J5: definitiv | K5: definitiv | L5: definitiv | M5: definitiv | N5: definitiv | O5: =M5 -> definitiv | P5: =O5 -> definitiv | Q5: definitiv | R5: definitiv | S5: ='Tarife freistehend'!S5 -> definitiv | T5: definitiv | U5: definitiv | V5: definitiv | W5: definitiv | X5: definitiv | Y5: definitiv | Z5: definitiv | AA5: definitiv | AB5: definitiv | AC5: definitiv | AD5: definitiv | AE5: definitiv | AF5: definitiv | AG5: definitiv | AH5: definitiv | AI5: definitiv | AJ5: definitiv | AK5: definitiv | AL5: definitiv | AM5: definitiv | AN5: definitiv | AO5: definitiv | AP5: definitiv | AQ5: definitiv | AR5: definitiv | AS5: definitiv | AT5: definitiv | AU5: definitiv | AV5: definitiv | AW5: definitiv | AX5: definitiv | AY5: definitiv
A6: integriert | B6: Klasse 1 | C6: 10 | D6: 0.9 | E6: 0.738 | F6: 0.592 | G6: 0.545 | H6: 0.488 | I6: 0.428 | J6: 0.212 | K6: 0.187 | L6: =K6 -> 0.187 | M6: 0.16 | N6: 0.148 | O6: =N6 -> 0.148 | P6: 0.14 | Q6: 0.133 | R6: =Q6 -> 0.133 | S6: 0.121 | T6: 0.11 | U6: 0.11 | V6: 0.11 | W6: 0.1 | X6: 0.1 | Y6: 0.09 | Z6: 0.09 | AA6: 0.09 | AB6: 0.09 | AC6: 0.09 | AD6: 0.09 | AE6: 0.09 | AF6: 0.09 | AG6: 0.09 | AH6: 0.09 | AI6: 0.09 | AJ6: 0.09 | AK6: 0.09 | AL6: 0.09 | AM6: 0.09 | AN6: 0.09 | AO6: 0.09 | AP6: 0.09 | AQ6: 0.09 | AR6: 0.09 | AS6: 0.09 | AT6: 0.09 | AU6: 0.09 | AV6: 0.09 | AW6: 0.09 | AX6: 0.09 | AY6: 0.09
B7: Klasse 2 | C7: 30 | D7: 0.74 | E7: 0.607 | F7: 0.542 | G7: 0.499 | H7: 0.439 | I7: 0.365 | J7: 0.212 | K7: 0.187 | L7: =K7 -> 0.187 | M7: 0.16 | N7: 0.148 | O7: =N7 -> 0.148 | P7: 0.14 | Q7: 0.133 | R7: =Q7 -> 0.133 | S7: 0.121 | T7: 0.11 | U7: 0.11 | V7: 0.11 | W7: 0.1 | X7: 0.1 | Y7: 0.09 | Z7: 0.09 | AA7: 0.09 | AB7: 0.09 | AC7: 0.09 | AD7: 0.09 | AE7: 0.09 | AF7: 0.09 | AG7: 0.09 | AH7: 0.09 | AI7: 0.09 | AJ7: 0.09 | AK7: 0.09 | AL7: 0.09 | AM7: 0.09 | AN7: 0.09 | AO7: 0.09 | AP7: 0.09 | AQ7: 0.09 | AR7: 0.09 | AS7: 0.09 | AT7: 0.09 | AU7: 0.09 | AV7: 0.09 | AW7: 0.09 | AX7: 0.09 | AY7: 0.09
B8: Klasse 3 | C8: 100 | D8: 0.67 | E8: 0.549 | F8: 0.459 | G8: 0.422 | H8: 0.391 | I8: 0.332 | J8: 0.212 | K8: 0.187 | L8: 0.187 | M8: 0.16 | N8: 0.148 | O8: 0.148 | P8: 0.14 | Q8: 0.133 | R8: 0.133 | S8: 0.121 | T8: 0.11 | U8: 0.11 | V8: 0.11 | W8: 0.1 | X8: 0.1 | Y8: 0.09 | Z8: 0.09 | AA8: 0.09 | AB8: 0.09 | AC8: 0.09 | AD8: 0.09 | AE8: 0.09 | AF8: 0.09 | AG8: 0.09 | AH8: 0.09 | AI8: 0.09 | AJ8: 0.09 | AK8: 0.09 | AL8: 0.09 | AM8: 0.09 | AN8: 0.09 | AO8: 0.09 | AP8: 0.09 | AQ8: 0.09 | AR8: 0.09 | AS8: 0.09 | AT8: 0.09 | AU8: 0.09 | AV8: 0.09 | AW8: 0.09 | AX8: 0.09 | AY8: 0.09
B9: Klasse 4 | C9: 1000 | D9: 0.62 | E9: 0.508 | F9: 0.415 | G9: 0.382 | H9: 0.349 | I9: 0.315 | J9: 0.185 | K9: 0.17 | L9: 0.17 | M9: 0.15 | N9: 0.141 | O9: 0.141 | P9: 0.131 | Q9: 0.122 | R9: 0.122 | S9: 0.115 | T9: 0.11 | U9: 0.11 | V9: 0.11 | W9: 0.1 | X9: 0.1 | Y9: 0.09 | Z9: 0.09 | AA9: 0.09 | AB9: 0.09 | AC9: 0.09 | AD9: 0.09 | AE9: 0.09 | AF9: 0.09 | AG9: 0.09 | AH9: 0.09 | AI9: 0.09 | AJ9: 0.09 | AK9: 0.09 | AL9: 0.09 | AM9: 0.09 | AN9: 0.09 | AO9: 0.09 | AP9: 0.09 | AQ9: 0.09 | AR9: 0.09 | AS9: 0.09 | AT9: 0.09 | AU9: 0.09 | AV9: 0.09 | AW9: 0.09 | AX9: 0.09 | AY9: 0.09
B10: Klasse 5 | C10: 9999999999 | D10: 0.62 | E10: 0.508 | F10: 0.391 | G10: 0.36 | H10: 0.334 | I10: 0.289 | J10: 0.173 | K10: 0.153 | L10: 0.153 | M10: 0.148 | N10: 0.141 | O10: 0.141 | P10: 0.132 | Q10: 0.122 | R10: 0.122 | S10: 0.117 | T10: 0.11 | U10: 0.11 | V10: 0.11 | W10: 0.1 | X10: 0.1 | Y10: 0.09 | Z10: 0.09 | AA10: 0.09 | AB10: 0.09 | AC10: 0.09 | AD10: 0.09 | AE10: 0.09 | AF10: 0.09 | AG10: 0.09 | AH10: 0.09 | AI10: 0.09 | AJ10: 0.09 | AK10: 0.09 | AL10: 0.09 | AM10: 0.09 | AN10: 0.09 | AO10: 0.09 | AP10: 0.09 | AQ10: 0.09 | AR10: 0.09 | AS10: 0.09 | AT10: 0.09 | AU10: 0.09 | AV10: 0.09 | AW10: 0.09 | AX10: 0.09 | AY10: 0.09

Sheet Degradation linear (hidden)
A1: Laufzeit | B1: ='Basis - base - base'!K15 -> 30 | C1: Jahre | E1: Degradation | F1: =(100-B2)/B1 -> 0.6666666667 | G1: %/Jahr von der Anfangsleistung
A2: Leistung | B2: ='Basis - base - base'!V15 -> 80 | C2: %
A4: Jahr | B4: Degradation | C4: kumuliert (Jahres-Mittelwert)
A5: 0 | B5: 1
A6: 1 | B6: =B5-($B$5*($F$1/100)) -> 0.9933333333 | C6: =(B6+B5)/2 -> 0.9966666667
A7: 2 | B7: =B6-($B$5*($F$1/100)) -> 0.9866666667 | C7: =(B7+B6)/2 -> 0.99
A8: 3 | B8: 0.98 | C8: 0.9833333333
A9: 4 | B9: 0.9733333333 | C9: 0.9766666667
A10: 5 | B10: 0.9666666667 | C10: 0.97
A11: 6 | B11: 0.96 | C11: 0.9633333333
A12: 7 | B12: 0.9533333333 | C12: 0.9566666667
A13: 8 | B13: 0.9466666667 | C13: 0.95
A14: 9 | B14: 0.94 | C14: 0.9433333333
A15: 10 | B15: 0.9333333333 | C15: 0.9366666667
A16: 11 | B16: 0.9266666667 | C16: 0.93
A17: 12 | B17: 0.92 | C17: 0.9233333333
A18: 13 | B18: 0.9133333333 | C18: 0.9166666667
A19: 14 | B19: 0.9066666667 | C19: 0.91
A20: 15 | B20: 0.9 | C20: 0.9033333333
A21: 16 | B21: 0.8933333333 | C21: 0.8966666667
A22: 17 | B22: 0.8866666667 | C22: 0.89
A23: 18 | B23: 0.88 | C23: 0.8833333333
A24: 19 | B24: 0.8733333333 | C24: 0.8766666667
A25: 20 | B25: 0.8666666667 | C25: 0.87
A26: 21 | B26: 0.86 | C26: 0.8633333333
A27: 22 | B27: 0.8533333333 | C27: 0.8566666667
A28: 23 | B28: 0.8466666667 | C28: 0.85
A29: 24 | B29: 0.84 | C29: 0.8433333333
A30: 25 | B30: 0.8333333333 | C30: 0.8366666667
A31: 26 | B31: 0.8266666667 | C31: 0.83
A32: 27 | B32: 0.82 | C32: 0.8233333333
A33: 28 | B33: 0.8133333333 | C33: 0.8166666667
A34: 29 | B34: 0.8066666667 | C34: 0.81
A35: 30 | B35: 0.8 | C35: 0.8033333333
A36: 31 | B36: 0.7933333333 | C36: 0.7966666667
A37: 32 | B37: 0.7866666667 | C37: 0.79
A38: 33 | B38: 0.78 | C38: 0.7833333333

Sheet Annuität (hidden)
A1: Basis: Annuitätsfaktor bei Laufzeit von (Jahren) | B1: Zinssatz | C1: Zinssatz | D1: Details (Eigenkapital): Annuitätsfaktor bei Laufzeit von (Jahren) | E1: Zinssatz | F1: Details (Fremdkapital 1): Annuitätsfaktor bei Laufzeit von (Jahren) | G1: Zinssatz | H1: Details (Fremdkapital 2): Annuitätsfaktor bei Laufzeit von (Jahren) | I1: Zinssatz | J1: Details (Fremdkapital 2): Annuitätsfaktor bei Laufzeit von (Jahren)
A2: ='Basis - base - base'!S35+'Basis - base - base'!S43 -> 30 | D2: ='Details - détails - dettagli'!AP4 -> 30 | F2: ='Details - détails - dettagli'!AP5 -> 10 | H2: ='Details - détails - dettagli'!AP6 -> 10 | J2: ='Details - détails - dettagli'!AS4 -> 1
A3: =(((1+B3/100)^A$2)*B3/100)/(((1+B3/100)^A$2)-1) ->  | B3: 0 | C3: 0 | D3: =(((1+C3/100)^D$2)*C3/100)/(((1+C3/100)^D$2)-1) ->  | E3: 0 | F3: =(((1+E3/100)^F$2)*E3/100)/(((1+E3/100)^F$2)-1) ->  | G3: 0 | H3: =(((1+G3/100)^H$2)*G3/100)/(((1+G3/100)^H$2)-1) ->  | I3: 0 | J3: =(((1+I3/100)^J$2)*I3/100)/(((1+I3/100)^J$2)-1) -> 
A4: =(((1+B4/100)^A$2)*B4/100)/(((1+B4/100)^A$2)-1) -> 0.03338502497 | B4: 0.01 | C4: 0.01 | D4: 0.03338502497 | E4: 0.01 | F4: 0.1000550082 | G4: 0.01 | H4: 0.1000550082 | I4: 0.01 | J4: 1.0001
A5: =(((1+B5/100)^A$2)*B5/100)/(((1+B5/100)^A$2)-1) -> 0.03343676655 | B5: =B4+0.01 -> 0.02 | C5: =ROUND(C4+0.01,2) -> 0.02 | D5: 0.03343676655 | E5: =ROUND(E4+0.01,2) -> 0.02 | F5: 0.100110033 | G5: =ROUND(G4+0.01,2) -> 0.02 | H5: 0.100110033 | I5: =ROUND(I4+0.01,2) -> 0.02 | J5: 1.0002
A6: 0.03348855805 | B6: =B5+0.01 -> 0.03 | C6: =ROUND(C5+0.01,2) -> 0.03 | D6: 0.03348855805 | E6: =ROUND(E5+0.01,2) -> 0.03 | F6: 0.1001650742 | G6: =ROUND(G5+0.01,2) -> 0.03 | H6: 0.1001650742 | I6: 0.03 | J6: 1.0003
A7: 0.03354039947 | B7: 0.04 | C7: 0.04 | D7: 0.03354039947 | E7: 0.04 | F7: 0.100220132 | G7: 0.04 | H7: 0.100220132 | I7: 0.04 | J7: 1.0004
A8: 0.03359229081 | B8: 0.05 | C8: 0.05 | D8: 0.03359229081 | E8: 0.05 | F8: 0.1002752062 | G8: 0.05 | H8: 0.1002752062 | I8: 0.05 | J8: 1.0005
A9: 0.03364423206 | B9: 0.06 | C9: 0.06 | D9: 0.03364423206 | E9: 0.06 | F9: 0.1003302969 | G9: 0.06 | H9: 0.1003302969 | I9: 0.06 | J9: 1.0006
A10: 0.0336962232 | B10: 0.07 | C10: 0.07 | D10: 0.0336962232 | E10: 0.07 | F10: 0.1003854041 | G10: 0.07 | H10: 0.1003854041 | I10: 0.07 | J10: 1.0007
A11: 0.03374826423 | B11: 0.08 | C11: 0.08 | D11: 0.03374826423 | E11: 0.08 | F11: 0.1004405278 | G11: 0.08 | H11: 0.1004405278 | I11: 0.08 | J11: 1.0008
A12: 0.03380035515 | B12: 0.09 | C12: 0.09 | D12: 0.03380035515 | E12: 0.09 | F12: 0.1004956679 | G12: 0.09 | H12: 0.1004956679 | I12: 0.09 | J12: 1.0009
A13: 0.03385249594 | B13: 0.1 | C13: 0.1 | D13: 0.03385249594 | E13: 0.1 | F13: 0.1005508246 | G13: 0.1 | H13: 0.1005508246 | I13: 0.1 | J13: 1.001
A14: 0.03390468659 | B14: 0.11 | C14: 0.11 | D14: 0.03390468659 | E14: 0.11 | F14: 0.1006059977 | G14: 0.11 | H14: 0.1006059977 | I14: 0.11 | J14: 1.0011
A15: 0.0339569271 | B15: 0.12 | C15: 0.12 | D15: 0.0339569271 | E15: 0.12 | F15: 0.1006611873 | G15: 0.12 | H15: 0.1006611873 | I15: 0.12 | J15: 1.0012
A16: 0.03400921746 | B16: 0.13 | C16: 0.13 | D16: 0.03400921746 | E16: 0.13 | F16: 0.1007163933 | G16: 0.13 | H16: 0.1007163933 | I16: 0.13 | J16: 1.0013
A17: 0.03406155766 | B17: 0.14 | C17: 0.14 | D17: 0.03406155766 | E17: 0.14 | F17: 0.1007716159 | G17: 0.14 | H17: 0.1007716159 | I17: 0.14 | J17: 1.0014
A18: 0.03411394768 | B18: 0.15 | C18: 0.15 | D18: 0.03411394768 | E18: 0.15 | F18: 0.1008268549 | G18: 0.15 | H18: 0.1008268549 | I18: 0.15 | J18: 1.0015
A19: 0.03416638753 | B19: 0.16 | C19: 0.16 | D19: 0.03416638753 | E19: 0.16 | F19: 0.1008821103 | G19: 0.16 | H19: 0.1008821103 | I19: 0.16 | J19: 1.0016
A20: 0.0342188772 | B20: 0.17 | C20: 0.17 | D20: 0.0342188772 | E20: 0.17 | F20: 0.1009373822 | G20: 0.17 | H20: 0.1009373822 | I20: 0.17 | J20: 1.0017
A21: 0.03427141667 | B21: 0.18 | C21: 0.18 | D21: 0.03427141667 | E21: 0.18 | F21: 0.1009926706 | G21: 0.18 | H21: 0.1009926706 | I21: 0.18 | J21: 1.0018
A22: 0.03432400593 | B22: 0.19 | C22: 0.19 | D22: 0.03432400593 | E22: 0.19 | F22: 0.1010479754 | G22: 0.19 | H22: 0.1010479754 | I22: 0.19 | J22: 1.0019
A23: 0.03437664498 | B23: 0.2 | C23: 0.2 | D23: 0.03437664498 | E23: 0.2 | F23: 0.1011032967 | G23: 0.2 | H23: 0.1011032967 | I23: 0.2 | J23: 1.002
A24: 0.03442933381 | B24: 0.21 | C24: 0.21 | D24: 0.03442933381 | E24: 0.21 | F24: 0.1011586344 | G24: 0.21 | H24: 0.1011586344 | I24: 0.21 | J24: 1.0021
A25: 0.0344820724 | B25: 0.22 | C25: 0.22 | D25: 0.0344820724 | E25: 0.22 | F25: 0.1012139886 | G25: 0.22 | H25: 0.1012139886 | I25: 0.22 | J25: 1.0022
A26: 0.03453486076 | B26: 0.23 | C26: 0.23 | D26: 0.03453486076 | E26: 0.23 | F26: 0.1012693592 | G26: 0.23 | H26: 0.1012693592 | I26: 0.23 | J26: 1.0023
A27: 0.03458769886 | B27: 0.24 | C27: 0.24 | D27: 0.03458769886 | E27: 0.24 | F27: 0.1013247463 | G27: 0.24 | H27: 0.1013247463 | I27: 0.24 | J27: 1.0024
A28: 0.0346405867 | B28: 0.25 | C28: 0.25 | D28: 0.0346405867 | E28: 0.25 | F28: 0.1013801498 | G28: 0.25 | H28: 0.1013801498 | I28: 0.25 | J28: 1.0025
A29: 0.03469352427 | B29: 0.26 | C29: 0.26 | D29: 0.03469352427 | E29: 0.26 | F29: 0.1014355697 | G29: 0.26 | H29: 0.1014355697 | I29: 0.26 | J29: 1.0026
A30: 0.03474651157 | B30: 0.27 | C30: 0.27 | D30: 0.03474651157 | E30: 0.27 | F30: 0.1014910061 | G30: 0.27 | H30: 0.1014910061 | I30: 0.27 | J30: 1.0027
A31: 0.03479954857 | B31: 0.28 | C31: 0.28 | D31: 0.03479954857 | E31: 0.28 | F31: 0.1015464589 | G31: 0.28 | H31: 0.1015464589 | I31: 0.28 | J31: 1.0028
A32: 0.03485263527 | B32: 0.29 | C32: 0.29 | D32: 0.03485263527 | E32: 0.29 | F32: 0.1016019281 | G32: 0.29 | H32: 0.1016019281 | I32: 0.29 | J32: 1.0029
A33: 0.03490577166 | B33: 0.3 | C33: 0.3 | D33: 0.03490577166 | E33: 0.3 | F33: 0.1016574138 | G33: 0.3 | H33: 0.1016574138 | I33: 0.3 | J33: 1.003
A34: 0.03495895774 | B34: 0.31 | C34: 0.31 | D34: 0.03495895774 | E34: 0.31 | F34: 0.1017129159 | G34: 0.31 | H34: 0.1017129159 | I34: 0.31 | J34: 1.0031
A35: 0.03501219348 | B35: 0.32 | C35: 0.32 | D35: 0.03501219348 | E35: 0.32 | F35: 0.1017684344 | G35: 0.32 | H35: 0.1017684344 | I35: 0.32 | J35: 1.0032
A36: 0.03506547889 | B36: 0.33 | C36: 0.33 | D36: 0.03506547889 | E36: 0.33 | F36: 0.1018239693 | G36: 0.33 | H36: 0.1018239693 | I36: 0.33 | J36: 1.0033
A37: 0.03511881394 | B37: 0.34 | C37: 0.34 | D37: 0.03511881394 | E37: 0.34 | F37: 0.1018795206 | G37: 0.34 | H37: 0.1018795206 | I37: 0.34 | J37: 1.0034
A38: 0.03517219863 | B38: 0.35 | C38: 0.35 | D38: 0.03517219863 | E38: 0.35 | F38: 0.1019350884 | G38: 0.35 | H38: 0.1019350884 | I38: 0.35 | J38: 1.0035
A39: 0.03522563295 | B39: 0.36 | C39: 0.36 | D39: 0.03522563295 | E39: 0.36 | F39: 0.1019906726 | G39: 0.36 | H39: 0.1019906726 | I39: 0.36 | J39: 1.0036
A40: 0.03527911689 | B40: 0.37 | C40: 0.37 | D40: 0.03527911689 | E40: 0.37 | F40: 0.1020462731 | G40: 0.37 | H40: 0.1020462731 | I40: 0.37 | J40: 1.0037
A41: 0.03533265044 | B41: 0.38 | C41: 0.38 | D41: 0.03533265044 | E41: 0.38 | F41: 0.1021018901 | G41: 0.38 | H41: 0.1021018901 | I41: 0.38 | J41: 1.0038
A42: 0.03538623359 | B42: 0.39 | C42: 0.39 | D42: 0.03538623359 | E42: 0.39 | F42: 0.1021575235 | G42: 0.39 | H42: 0.1021575235 | I42: 0.39 | J42: 1.0039
A43: 0.03543986632 | B43: 0.4 | C43: 0.4 | D43: 0.03543986632 | E43: 0.4 | F43: 0.1022131733 | G43: 0.4 | H43: 0.1022131733 | I43: 0.4 | J43: 1.004
A44: 0.03549354862 | B44: 0.41 | C44: 0.41 | D44: 0.03549354862 | E44: 0.41 | F44: 0.1022688395 | G44: 0.41 | H44: 0.1022688395 | I44: 0.41 | J44: 1.0041
A45: 0.03554728049 | B45: 0.42 | C45: 0.42 | D45: 0.03554728049 | E45: 0.42 | F45: 0.1023245221 | G45: 0.42 | H45: 0.1023245221 | I45: 0.42 | J45: 1.0042
A46: 0.03560106192 | B46: 0.43 | C46: 0.43 | D46: 0.03560106192 | E46: 0.43 | F46: 0.1023802211 | G46: 0.43 | H46: 0.1023802211 | I46: 0.43 | J46: 1.0043
A47: 0.03565489288 | B47: 0.44 | C47: 0.44 | D47: 0.03565489288 | E47: 0.44 | F47: 0.1024359364 | G47: 0.44 | H47: 0.1024359364 | I47: 0.44 | J47: 1.0044
A48: 0.03570877338 | B48: 0.45 | C48: 0.45 | D48: 0.03570877338 | E48: 0.45 | F48: 0.1024916682 | G48: 0.45 | H48: 0.1024916682 | I48: 0.45 | J48: 1.0045
A49: 0.03576270339 | B49: 0.46 | C49: 0.46 | D49: 0.03576270339 | E49: 0.46 | F49: 0.1025474164 | G49: 0.46 | H49: 0.1025474164 | I49: 0.46 | J49: 1.0046
A50: 0.03581668291 | B50: 0.47 | C50: 0.47 | D50: 0.03581668291 | E50: 0.47 | F50: 0.1026031809 | G50: 0.47 | H50: 0.1026031809 | I50: 0.47 | J50: 1.0047
A51: 0.03587071193 | B51: 0.48 | C51: 0.48 | D51: 0.03587071193 | E51: 0.48 | F51: 0.1026589618 | G51: 0.48 | H51: 0.1026589618 | I51: 0.48 | J51: 1.0048
A52: 0.03592479044 | B52: 0.49 | C52: 0.49 | D52: 0.03592479044 | E52: 0.49 | F52: 0.1027147591 | G52: 0.49 | H52: 0.1027147591 | I52: 0.49 | J52: 1.0049
A53: 0.03597891841 | B53: 0.5 | C53: 0.5 | D53: 0.03597891841 | E53: 0.5 | F53: 0.1027705727 | G53: 0.5 | H53: 0.1027705727 | I53: 0.5 | J53: 1.005
A54: 0.03603309585 | B54: 0.51 | C54: 0.51 | D54: 0.03603309585 | E54: 0.51 | F54: 0.1028264028 | G54: 0.51 | H54: 0.1028264028 | I54: 0.51 | J54: 1.0051
A55: 0.03608732274 | B55: 0.52 | C55: 0.52 | D55: 0.03608732274 | E55: 0.52 | F55: 0.1028822492 | G55: 0.52 | H55: 0.1028822492 | I55: 0.52 | J55: 1.0052
A56: 0.03614159907 | B56: 0.53 | C56: 0.53 | D56: 0.03614159907 | E56: 0.53 | F56: 0.102938112 | G56: 0.53 | H56: 0.102938112 | I56: 0.53 | J56: 1.0053
A57: 0.03619592482 | B57: 0.54 | C57: 0.54 | D57: 0.03619592482 | E57: 0.54 | F57: 0.1029939911 | G57: 0.54 | H57: 0.1029939911 | I57: 0.54 | J57: 1.0054
A58: 0.03625029998 | B58: 0.55 | C58: 0.55 | D58: 0.03625029998 | E58: 0.55 | F58: 0.1030498866 | G58: 0.55 | H58: 0.1030498866 | I58: 0.55 | J58: 1.0055
A59: 0.03630472455 | B59: 0.56 | C59: 0.56 | D59: 0.03630472455 | E59: 0.56 | F59: 0.1031057985 | G59: 0.56 | H59: 0.1031057985 | I59: 0.56 | J59: 1.0056
A60: 0.0363591985 | B60: 0.57 | C60: 0.57 | D60: 0.0363591985 | E60: 0.57 | F60: 0.1031617267 | G60: 0.57 | H60: 0.1031617267 | I60: 0.57 | J60: 1.0057
A61: 0.03641372183 | B61: 0.58 | C61: 0.58 | D61: 0.03641372183 | E61: 0.58 | F61: 0.1032176713 | G61: 0.58 | H61: 0.1032176713 | I61: 0.58 | J61: 1.0058
A62: 0.03646829453 | B62: 0.59 | C62: 0.59 | D62: 0.03646829453 | E62: 0.59 | F62: 0.1032736322 | G62: 0.59 | H62: 0.1032736322 | I62: 0.59 | J62: 1.0059
A63: 0.03652291658 | B63: 0.6 | C63: 0.6 | D63: 0.03652291658 | E63: 0.6 | F63: 0.1033296095 | G63: 0.6 | H63: 0.1033296095 | I63: 0.6 | J63: 1.006
A64: 0.03657758797 | B64: 0.61 | C64: 0.61 | D64: 0.03657758797 | E64: 0.61 | F64: 0.1033856031 | G64: 0.61 | H64: 0.1033856031 | I64: 0.61 | J64: 1.0061
A65: 0.03663230868 | B65: 0.62 | C65: 0.62 | D65: 0.03663230868 | E65: 0.62 | F65: 0.1034416131 | G65: 0.62 | H65: 0.1034416131 | I65: 0.62 | J65: 1.0062
A66: 0.03668707871 | B66: 0.63 | C66: 0.63 | D66: 0.03668707871 | E66: 0.63 | F66: 0.1034976394 | G66: 0.63 | H66: 0.1034976394 | I66: 0.63 | J66: 1.0063
A67: 0.03674189804 | B67: 0.64 | C67: 0.64 | D67: =(((1+C67/100)^D$2)*C67/100)/(((1+C67/100)^D$2)-1) -> 0.03674189804 | E67: 0.64 | F67: =(((1+E67/100)^F$2)*E67/100)/(((1+E67/100)^F$2)-1) -> 0.103553682 | G67: 0.64 | H67: =(((1+G67/100)^H$2)*G67/100)/(((1+G67/100)^H$2)-1) -> 0.103553682 | I67: 0.64 | J67: =(((1+I67/100)^J$2)*I67/100)/(((1+I67/100)^J$2)-1) -> 1.0064
A68: 0.03679676665 | B68: 0.65 | C68: 0.65 | D68: 0.03679676665 | E68: 0.65 | F68: 0.103609741 | G68: 0.65 | H68: 0.103609741 | I68: 0.65 | J68: 1.0065
A69: =(((1+B69/100)^A$2)*B69/100)/(((1+B69/100)^A$2)-1) -> 0.03685168454 | B69: 0.66 | C69: 0.66 | D69: 0.03685168454 | E69: 0.66 | F69: 0.1036658163 | G69: 0.66 | H69: 0.1036658163 | I69: 0.66 | J69: 1.0066
A70: 0.0369066517 | B70: =B69+0.01 -> 0.67 | C70: =ROUND(C69+0.01,2) -> 0.67 | D70: 0.0369066517 | E70: =ROUND(E69+0.01,2) -> 0.67 | F70: 0.103721908 | G70: =ROUND(G69+0.01,2) -> 0.67 | H70: 0.103721908 | I70: 0.67 | J70: 1.0067
A71: 0.0369616681 | B71: 0.68 | C71: 0.68 | D71: 0.0369616681 | E71: 0.68 | F71: 0.1037780159 | G71: 0.68 | H71: 0.1037780159 | I71: 0.68 | J71: 1.0068
A72: 0.03701673374 | B72: 0.69 | C72: 0.69 | D72: 0.03701673374 | E72: 0.69 | F72: 0.1038341402 | G72: 0.69 | H72: 0.1038341402 | I72: 0.69 | J72: 1.0069
A73: 0.0370718486 | B73: 0.7 | C73: 0.7 | D73: 0.0370718486 | E73: 0.7 | F73: 0.1038902809 | G73: 0.7 | H73: 0.1038902809 | I73: 0.7 | J73: 1.007
A74: 0.03712701267 | B74: 0.71 | C74: 0.71 | D74: 0.03712701267 | E74: 0.71 | F74: 0.1039464378 | G74: 0.71 | H74: 0.1039464378 | I74: 0.71 | J74: 1.0071
A75: 0.03718222593 | B75: 0.72 | C75: 0.72 | D75: 0.03718222593 | E75: 0.72 | F75: 0.1040026111 | G75: 0.72 | H75: 0.1040026111 | I75: 0.72 | J75: 1.0072
A76: 0.03723748837 | B76: 0.73 | C76: 0.73 | D76: 0.03723748837 | E76: 0.73 | F76: 0.1040588007 | G76: 0.73 | H76: 0.1040588007 | I76: 0.73 | J76: 1.0073
A77: 0.03729279999 | B77: 0.74 | C77: 0.74 | D77: 0.03729279999 | E77: 0.74 | F77: 0.1041150065 | G77: 0.74 | H77: 0.1041150065 | I77: 0.74 | J77: 1.0074
A78: 0.03734816076 | B78: 0.75 | C78: 0.75 | D78: 0.03734816076 | E78: 0.75 | F78: 0.1041712287 | G78: 0.75 | H78: 0.1041712287 | I78: 0.75 | J78: 1.0075
A79: 0.03740357066 | B79: 0.76 | C79: 0.76 | D79: 0.03740357066 | E79: 0.76 | F79: 0.1042274673 | G79: 0.76 | H79: 0.1042274673 | I79: 0.76 | J79: 1.0076
A80: 0.0374590297 | B80: 0.77 | C80: 0.77 | D80: 0.0374590297 | E80: 0.77 | F80: 0.1042837221 | G80: 0.77 | H80: 0.1042837221 | I80: 0.77 | J80: 1.0077
A81: 0.03751453785 | B81: 0.78 | C81: 0.78 | D81: 0.03751453785 | E81: 0.78 | F81: 0.1043399932 | G81: 0.78 | H81: 0.1043399932 | I81: 0.78 | J81: 1.0078
A82: 0.03757009509 | B82: 0.79 | C82: 0.79 | D82: 0.03757009509 | E82: 0.79 | F82: 0.1043962806 | G82: 0.79 | H82: 0.1043962806 | I82: 0.79 | J82: 1.0079
A83: 0.03762570142 | B83: 0.8 | C83: 0.8 | D83: 0.03762570142 | E83: 0.8 | F83: 0.1044525843 | G83: 0.8 | H83: 0.1044525843 | I83: 0.8 | J83: 1.008
A84: 0.03768135682 | B84: 0.81 | C84: 0.81 | D84: 0.03768135682 | E84: 0.81 | F84: 0.1045089043 | G84: 0.81 | H84: 0.1045089043 | I84: 0.81 | J84: 1.0081
A85: 0.03773706128 | B85: 0.82 | C85: 0.82 | D85: 0.03773706128 | E85: 0.82 | F85: 0.1045652406 | G85: 0.82 | H85: 0.1045652406 | I85: 0.82 | J85: 1.0082
A86: 0.03779281477 | B86: 0.83 | C86: 0.83 | D86: 0.03779281477 | E86: 0.83 | F86: 0.1046215932 | G86: 0.83 | H86: 0.1046215932 | I86: 0.83 | J86: 1.0083
A87: 0.0378486173 | B87: 0.84 | C87: 0.84 | D87: 0.0378486173 | E87: 0.84 | F87: 0.104677962 | G87: 0.84 | H87: 0.104677962 | I87: 0.84 | J87: 1.0084
A88: 0.03790446884 | B88: 0.85 | C88: 0.85 | D88: 0.03790446884 | E88: 0.85 | F88: 0.1047343472 | G88: 0.85 | H88: 0.1047343472 | I88: 0.85 | J88: 1.0085
A89: 0.03796036937 | B89: 0.86 | C89: 0.86 | D89: 0.03796036937 | E89: 0.86 | F89: 0.1047907486 | G89: 0.86 | H89: 0.1047907486 | I89: 0.86 | J89: 1.0086
A90: 0.03801631889 | B90: 0.87 | C90: 0.87 | D90: 0.03801631889 | E90: 0.87 | F90: 0.1048471663 | G90: 0.87 | H90: 0.1048471663 | I90: 0.87 | J90: 1.0087
A91: 0.03807231737 | B91: 0.88 | C91: 0.88 | D91: 0.03807231737 | E91: 0.88 | F91: 0.1049036003 | G91: 0.88 | H91: 0.1049036003 | I91: 0.88 | J91: 1.0088
A92: 0.03812836481 | B92: 0.89 | C92: 0.89 | D92: 0.03812836481 | E92: 0.89 | F92: 0.1049600506 | G92: 0.89 | H92: 0.1049600506 | I92: 0.89 | J92: 1.0089
A93: 0.03818446119 | B93: 0.9 | C93: 0.9 | D93: 0.03818446119 | E93: 0.9 | F93: 0.1050165171 | G93: 0.9 | H93: 0.1050165171 | I93: 0.9 | J93: 1.009
A94: 0.03824060649 | B94: 0.91 | C94: 0.91 | D94: 0.03824060649 | E94: 0.91 | F94: 0.1050729999 | G94: 0.91 | H94: 0.1050729999 | I94: 0.91 | J94: 1.0091
A95: 0.0382968007 | B95: 0.92 | C95: 0.92 | D95: 0.0382968007 | E95: 0.92 | F95: 0.1051294989 | G95: 0.92 | H95: 0.1051294989 | I95: 0.92 | J95: 1.0092
A96: 0.0383530438 | B96: 0.93 | C96: 0.93 | D96: 0.0383530438 | E96: 0.93 | F96: 0.1051860143 | G96: 0.93 | H96: 0.1051860143 | I96: 0.93 | J96: 1.0093
A97: 0.03840933578 | B97: 0.94 | C97: 0.94 | D97: 0.03840933578 | E97: 0.94 | F97: 0.1052425458 | G97: 0.94 | H97: 0.1052425458 | I97: 0.94 | J97: 1.0094
A98: 0.03846567662 | B98: 0.95 | C98: 0.95 | D98: 0.03846567662 | E98: 0.95 | F98: 0.1052990937 | G98: 0.95 | H98: 0.1052990937 | I98: 0.95 | J98: 1.0095
A99: 0.03852206631 | B99: 0.96 | C99: 0.96 | D99: 0.03852206631 | E99: 0.96 | F99: 0.1053556577 | G99: 0.96 | H99: 0.1053556577 | I99: 0.96 | J99: 1.0096
A100: 0.03857850483 | B100: 0.97 | C100: 0.97 | D100: 0.03857850483 | E100: 0.97 | F100: 0.1054122381 | G100: 0.97 | H100: 0.1054122381 | I100: 0.97 | J100: 1.0097
A101: 0.03863499216 | B101: 0.98 | C101: 0.98 | D101: 0.03863499216 | E101: 0.98 | F101: 0.1054688347 | G101: 0.98 | H101: 0.1054688347 | I101: 0.98 | J101: 1.0098
A102: 0.0386915283 | B102: 0.99 | C102: 0.99 | D102: 0.0386915283 | E102: 0.99 | F102: 0.1055254475 | G102: 0.99 | H102: 0.1055254475 | I102: 0.99 | J102: 1.0099
A103: 0.03874811322 | B103: 1 | C103: 1 | D103: 0.03874811322 | E103: 1 | F103: 0.1055820766 | G103: 1 | H103: 0.1055820766 | I103: 1 | J103: 1.01
A104: 0.0388047469 | B104: 1.01 | C104: 1.01 | D104: 0.0388047469 | E104: 1.01 | F104: 0.1056387219 | G104: 1.01 | H104: 0.1056387219 | I104: 1.01 | J104: 1.0101
A105: 0.03886142935 | B105: 1.02 | C105: 1.02 | D105: 0.03886142935 | E105: 1.02 | F105: 0.1056953834 | G105: 1.02 | H105: 0.1056953834 | I105: 1.02 | J105: 1.0102
A106: 0.03891816052 | B106: 1.03 | C106: 1.03 | D106: 0.03891816052 | E106: 1.03 | F106: 0.1057520612 | G106: 1.03 | H106: 0.1057520612 | I106: 1.03 | J106: 1.0103
A107: 0.03897494042 | B107: 1.04 | C107: 1.04 | D107: 0.03897494042 | E107: 1.04 | F107: 0.1058087552 | G107: 1.04 | H107: 0.1058087552 | I107: 1.04 | J107: 1.0104
A108: 0.03903176902 | B108: 1.05 | C108: 1.05 | D108: 0.03903176902 | E108: 1.05 | F108: 0.1058654654 | G108: 1.05 | H108: 0.1058654654 | I108: 1.05 | J108: 1.0105
A109: 0.03908864631 | B109: 1.06 | C109: 1.06 | D109: 0.03908864631 | E109: 1.06 | F109: 0.1059221919 | G109: 1.06 | H109: 0.1059221919 | I109: 1.06 | J109: 1.0106
A110: 0.03914557228 | B110: 1.07 | C110: 1.07 | D110: 0.03914557228 | E110: 1.07 | F110: 0.1059789346 | G110: 1.07 | H110: 0.1059789346 | I110: 1.07 | J110: 1.0107
A111: 0.03920254689 | B111: 1.08 | C111: 1.08 | D111: 0.03920254689 | E111: 1.08 | F111: 0.1060356935 | G111: 1.08 | H111: 0.1060356935 | I111: 1.08 | J111: 1.0108
A112: 0.03925957015 | B112: 1.09 | C112: 1.09 | D112: 0.03925957015 | E112: 1.09 | F112: 0.1060924686 | G112: 1.09 | H112: 0.1060924686 | I112: 1.09 | J112: 1.0109
A113: 0.03931664203 | B113: 1.1 | C113: 1.1 | D113: 0.03931664203 | E113: 1.1 | F113: 0.10614926 | G113: 1.1 | H113: 0.10614926 | I113: 1.1 | J113: 1.011
A114: 0.03937376252 | B114: 1.11 | C114: 1.11 | D114: 0.03937376252 | E114: 1.11 | F114: 0.1062060675 | G114: 1.11 | H114: 0.1062060675 | I114: 1.11 | J114: 1.0111
A115: 0.03943093159 | B115: 1.12 | C115: 1.12 | D115: 0.03943093159 | E115: 1.12 | F115: 0.1062628913 | G115: 1.12 | H115: 0.1062628913 | I115: 1.12 | J115: 1.0112
A116: 0.03948814924 | B116: 1.13 | C116: 1.13 | D116: 0.03948814924 | E116: 1.13 | F116: 0.1063197312 | G116: 1.13 | H116: 0.1063197312 | I116: 1.13 | J116: 1.0113
A117: 0.03954541544 | B117: 1.14 | C117: 1.14 | D117: 0.03954541544 | E117: 1.14 | F117: 0.1063765874 | G117: 1.14 | H117: 0.1063765874 | I117: 1.14 | J117: 1.0114
A118: 0.03960273018 | B118: 1.15 | C118: 1.15 | D118: 0.03960273018 | E118: 1.15 | F118: 0.1064334598 | G118: 1.15 | H118: 0.1064334598 | I118: 1.15 | J118: 1.0115
A119: 0.03966009344 | B119: 1.16 | C119: 1.16 | D119: 0.03966009344 | E119: 1.16 | F119: 0.1064903484 | G119: 1.16 | H119: 0.1064903484 | I119: 1.16 | J119: 1.0116
A120: 0.03971750521 | B120: 1.17 | C120: 1.17 | D120: 0.03971750521 | E120: 1.17 | F120: 0.1065472531 | G120: 1.17 | H120: 0.1065472531 | I120: 1.17 | J120: 1.0117
A121: 0.03977496546 | B121: 1.18 | C121: 1.18 | D121: 0.03977496546 | E121: 1.18 | F121: 0.1066041741 | G121: 1.18 | H121: 0.1066041741 | I121: 1.18 | J121: 1.0118
A122: 0.03983247419 | B122: 1.19 | C122: 1.19 | D122: 0.03983247419 | E122: 1.19 | F122: 0.1066611112 | G122: 1.19 | H122: 0.1066611112 | I122: 1.19 | J122: 1.0119
A123: 0.03989003137 | B123: 1.2 | C123: 1.2 | D123: 0.03989003137 | E123: 1.2 | F123: 0.1067180646 | G123: 1.2 | H123: 0.1067180646 | I123: 1.2 | J123: 1.012
A124: 0.03994763698 | B124: 1.21 | C124: 1.21 | D124: 0.03994763698 | E124: 1.21 | F124: 0.1067750341 | G124: 1.21 | H124: 0.1067750341 | I124: 1.21 | J124: 1.0121
A125: 0.04000529101 | B125: 1.22 | C125: 1.22 | D125: 0.04000529101 | E125: 1.22 | F125: 0.1068320198 | G125: 1.22 | H125: 0.1068320198 | I125: 1.22 | J125: 1.0122
A126: 0.04006299344 | B126: 1.23 | C126: 1.23 | D126: 0.04006299344 | E126: 1.23 | F126: 0.1068890217 | G126: 1.23 | H126: 0.1068890217 | I126: 1.23 | J126: 1.0123
A127: 0.04012074425 | B127: 1.24 | C127: 1.24 | D127: 0.04012074425 | E127: 1.24 | F127: 0.1069460397 | G127: 1.24 | H127: 0.1069460397 | I127: 1.24 | J127: 1.0124
A128: 0.04017854343 | B128: 1.25 | C128: 1.25 | D128: 0.04017854343 | E128: 1.25 | F128: 0.107003074 | G128: 1.25 | H128: 0.107003074 | I128: 1.25 | J128: 1.0125
A129: 0.04023639096 | B129: 1.26 | C129: 1.26 | D129: 0.04023639096 | E129: 1.26 | F129: 0.1070601244 | G129: 1.26 | H129: 0.1070601244 | I129: 1.26 | J129: 1.0126
A130: 0.04029428682 | B130: 1.27 | C130: 1.27 | D130: 0.04029428682 | E130: 1.27 | F130: 0.1071171909 | G130: 1.27 | H130: 0.1071171909 | I130: 1.27 | J130: 1.0127
A131: 0.04035223098 | B131: 1.28 | C131: 1.28 | D131: =(((1+C131/100)^D$2)*C131/100)/(((1+C131/100)^D$2)-1) -> 0.04035223098 | E131: 1.28 | F131: =(((1+E131/100)^F$2)*E131/100)/(((1+E131/100)^F$2)-1) -> 0.1071742737 | G131: 1.28 | H131: =(((1+G131/100)^H$2)*G131/100)/(((1+G131/100)^H$2)-1) -> 0.1071742737 | I131: 1.28 | J131: =(((1+I131/100)^J$2)*I131/100)/(((1+I131/100)^J$2)-1) -> 1.0128
A132: 0.04041022344 | B132: 1.29 | C132: 1.29 | D132: 0.04041022344 | E132: 1.29 | F132: 0.1072313726 | G132: 1.29 | H132: 0.1072313726 | I132: 1.29 | J132: 1.0129
A133: =(((1+B133/100)^A$2)*B133/100)/(((1+B133/100)^A$2)-1) -> 0.04046826418 | B133: 1.3 | C133: 1.3 | D133: 0.04046826418 | E133: 1.3 | F133: 0.1072884876 | G133: 1.3 | H133: 0.1072884876 | I133: 1.3 | J133: 1.013
A134: 0.04052635317 | B134: =B133+0.01 -> 1.31 | C134: =ROUND(C133+0.01,2) -> 1.31 | D134: 0.04052635317 | E134: =ROUND(E133+0.01,2) -> 1.31 | F134: 0.1073456188 | G134: =ROUND(G133+0.01,2) -> 1.31 | H134: 0.1073456188 | I134: 1.31 | J134: 1.0131
A135: 0.04058449041 | B135: 1.32 | C135: 1.32 | D135: 0.04058449041 | E135: 1.32 | F135: 0.1074027662 | G135: 1.32 | H135: 0.1074027662 | I135: 1.32 | J135: 1.0132
A136: 0.04064267586 | B136: 1.33 | C136: 1.33 | D136: 0.04064267586 | E136: 1.33 | F136: 0.1074599297 | G136: 1.33 | H136: 0.1074599297 | I136: 1.33 | J136: 1.0133
A137: 0.04070090952 | B137: 1.34 | C137: 1.34 | D137: 0.04070090952 | E137: 1.34 | F137: 0.1075171094 | G137: 1.34 | H137: 0.1075171094 | I137: 1.34 | J137: 1.0134
A138: 0.04075919136 | B138: 1.35 | C138: 1.35 | D138: 0.04075919136 | E138: 1.35 | F138: 0.1075743052 | G138: 1.35 | H138: 0.1075743052 | I138: 1.35 | J138: 1.0135
A139: 0.04081752136 | B139: 1.36 | C139: 1.36 | D139: 0.04081752136 | E139: 1.36 | F139: 0.1076315172 | G139: 1.36 | H139: 0.1076315172 | I139: 1.36 | J139: 1.0136
A140: 0.04087589951 | B140: 1.37 | C140: 1.37 | D140: 0.04087589951 | E140: 1.37 | F140: 0.1076887452 | G140: 1.37 | H140: 0.1076887452 | I140: 1.37 | J140: 1.0137
A141: 0.04093432579 | B141: 1.38 | C141: 1.38 | D141: 0.04093432579 | E141: 1.38 | F141: 0.1077459895 | G141: 1.38 | H141: 0.1077459895 | I141: 1.38 | J141: 1.0138
A142: 0.04099280018 | B142: 1.39 | C142: 1.39 | D142: 0.04099280018 | E142: 1.39 | F142: 0.1078032498 | G142: 1.39 | H142: 0.1078032498 | I142: 1.39 | J142: 1.0139
A143: 0.04105132266 | B143: 1.4 | C143: 1.4 | D143: 0.04105132266 | E143: 1.4 | F143: 0.1078605263 | G143: 1.4 | H143: 0.1078605263 | I143: 1.4 | J143: 1.014
A144: 0.04110989322 | B144: 1.41 | C144: 1.41 | D144: 0.04110989322 | E144: 1.41 | F144: 0.107917819 | G144: 1.41 | H144: 0.107917819 | I144: 1.41 | J144: 1.0141
A145: 0.04116851182 | B145: 1.42 | C145: 1.42 | D145: 0.04116851182 | E145: 1.42 | F145: 0.1079751277 | G145: 1.42 | H145: 0.1079751277 | I145: 1.42 | J145: 1.0142
A146: 0.04122717846 | B146: 1.43 | C146: 1.43 | D146: 0.04122717846 | E146: 1.43 | F146: 0.1080324526 | G146: 1.43 | H146: 0.1080324526 | I146: 1.43 | J146: 1.0143
A147: 0.04128589311 | B147: 1.44 | C147: 1.44 | D147: 0.04128589311 | E147: 1.44 | F147: 0.1080897936 | G147: 1.44 | H147: 0.1080897936 | I147: 1.44 | J147: 1.0144
A148: 0.04134465576 | B148: 1.45 | C148: 1.45 | D148: 0.04134465576 | E148: 1.45 | F148: 0.1081471507 | G148: 1.45 | H148: 0.1081471507 | I148: 1.45 | J148: 1.0145
A149: 0.04140346639 | B149: 1.46 | C149: 1.46 | D149: 0.04140346639 | E149: 1.46 | F149: 0.1082045239 | G149: 1.46 | H149: 0.1082045239 | I149: 1.46 | J149: 1.0146
A150: 0.04146232497 | B150: 1.47 | C150: 1.47 | D150: 0.04146232497 | E150: 1.47 | F150: 0.1082619132 | G150: 1.47 | H150: 0.1082619132 | I150: 1.47 | J150: 1.0147
A151: 0.04152123149 | B151: 1.48 | C151: 1.48 | D151: 0.04152123149 | E151: 1.48 | F151: 0.1083193187 | G151: 1.48 | H151: 0.1083193187 | I151: 1.48 | J151: 1.0148
A152: 0.04158018593 | B152: 1.49 | C152: 1.49 | D152: 0.04158018593 | E152: 1.49 | F152: 0.1083767402 | G152: 1.49 | H152: 0.1083767402 | I152: 1.49 | J152: 1.0149
A153: 0.04163918826 | B153: 1.5 | C153: 1.5 | D153: 0.04163918826 | E153: 1.5 | F153: 0.1084341779 | G153: 1.5 | H153: 0.1084341779 | I153: 1.5 | J153: 1.015
A154: 0.04169823848 | B154: 1.51 | C154: 1.51 | D154: 0.04169823848 | E154: 1.51 | F154: 0.1084916316 | G154: 1.51 | H154: 0.1084916316 | I154: 1.51 | J154: 1.0151
A155: 0.04175733655 | B155: 1.52 | C155: 1.52 | D155: 0.04175733655 | E155: 1.52 | F155: 0.1085491015 | G155: 1.52 | H155: 0.1085491015 | I155: 1.52 | J155: 1.0152
A156: 0.04181648246 | B156: 1.53 | C156: 1.53 | D156: 0.04181648246 | E156: 1.53 | F156: 0.1086065874 | G156: 1.53 | H156: 0.1086065874 | I156: 1.53 | J156: 1.0153
A157: 0.04187567619 | B157: 1.54 | C157: 1.54 | D157: 0.04187567619 | E157: 1.54 | F157: 0.1086640894 | G157: 1.54 | H157: 0.1086640894 | I157: 1.54 | J157: 1.0154
A158: 0.04193491772 | B158: 1.55 | C158: 1.55 | D158: 0.04193491772 | E158: 1.55 | F158: 0.1087216076 | G158: 1.55 | H158: 0.1087216076 | I158: 1.55 | J158: 1.0155
A159: 0.04199420703 | B159: 1.56 | C159: 1.56 | D159: 0.04199420703 | E159: 1.56 | F159: 0.1087791418 | G159: 1.56 | H159: 0.1087791418 | I159: 1.56 | J159: 1.0156
A160: 0.04205354411 | B160: 1.57 | C160: 1.57 | D160: 0.04205354411 | E160: 1.57 | F160: 0.1088366921 | G160: 1.57 | H160: 0.1088366921 | I160: 1.57 | J160: 1.0157
A161: 0.04211292891 | B161: 1.58 | C161: 1.58 | D161: 0.04211292891 | E161: 1.58 | F161: 0.1088942584 | G161: 1.58 | H161: 0.1088942584 | I161: 1.58 | J161: 1.0158
A162: 0.04217236144 | B162: 1.59 | C162: 1.59 | D162: 0.04217236144 | E162: 1.59 | F162: 0.1089518409 | G162: 1.59 | H162: 0.1089518409 | I162: 1.59 | J162: 1.0159
A163: 0.04223184167 | B163: 1.6 | C163: 1.6 | D163: 0.04223184167 | E163: 1.6 | F163: 0.1090094394 | G163: 1.6 | H163: 0.1090094394 | I163: 1.6 | J163: 1.016
A164: 0.04229136958 | B164: 1.61 | C164: 1.61 | D164: 0.04229136958 | E164: 1.61 | F164: 0.109067054 | G164: 1.61 | H164: 0.109067054 | I164: 1.61 | J164: 1.0161
A165: 0.04235094514 | B165: 1.62 | C165: 1.62 | D165: 0.04235094514 | E165: 1.62 | F165: 0.1091246846 | G165: 1.62 | H165: 0.1091246846 | I165: 1.62 | J165: 1.0162
A166: 0.04241056834 | B166: 1.63 | C166: 1.63 | D166: 0.04241056834 | E166: 1.63 | F166: 0.1091823314 | G166: 1.63 | H166: 0.1091823314 | I166: 1.63 | J166: 1.0163
A167: 0.04247023916 | B167: 1.64 | C167: 1.64 | D167: 0.04247023916 | E167: 1.64 | F167: 0.1092399942 | G167: 1.64 | H167: 0.1092399942 | I167: 1.64 | J167: 1.0164
A168: 0.04252995757 | B168: 1.65 | C168: 1.65 | D168: 0.04252995757 | E168: 1.65 | F168: 0.109297673 | G168: 1.65 | H168: 0.109297673 | I168: 1.65 | J168: 1.0165
A169: 0.04258972356 | B169: 1.66 | C169: 1.66 | D169: 0.04258972356 | E169: 1.66 | F169: 0.1093553679 | G169: 1.66 | H169: 0.1093553679 | I169: 1.66 | J169: 1.0166
A170: 0.04264953711 | B170: 1.67 | C170: 1.67 | D170: 0.04264953711 | E170: 1.67 | F170: 0.1094130789 | G170: 1.67 | H170: 0.1094130789 | I170: 1.67 | J170: 1.0167
A171: 0.04270939819 | B171: 1.68 | C171: 1.68 | D171: 0.04270939819 | E171: 1.68 | F171: 0.1094708059 | G171: 1.68 | H171: 0.1094708059 | I171: 1.68 | J171: 1.0168
A172: 0.04276930678 | B172: 1.69 | C172: 1.69 | D172: 0.04276930678 | E172: 1.69 | F172: 0.1095285489 | G172: 1.69 | H172: 0.1095285489 | I172: 1.69 | J172: 1.0169
A173: 0.04282926287 | B173: 1.7 | C173: 1.7 | D173: 0.04282926287 | E173: 1.7 | F173: 0.1095863081 | G173: 1.7 | H173: 0.1095863081 | I173: 1.7 | J173: 1.017
A174: 0.04288926642 | B174: 1.71 | C174: 1.71 | D174: 0.04288926642 | E174: 1.71 | F174: 0.1096440832 | G174: 1.71 | H174: 0.1096440832 | I174: 1.71 | J174: 1.0171
A175: 0.04294931743 | B175: 1.72 | C175: 1.72 | D175: 0.04294931743 | E175: 1.72 | F175: 0.1097018744 | G175: 1.72 | H175: 0.1097018744 | I175: 1.72 | J175: 1.0172
A176: 0.04300941586 | B176: 1.73 | C176: 1.73 | D176: 0.04300941586 | E176: 1.73 | F176: 0.1097596816 | G176: 1.73 | H176: 0.1097596816 | I176: 1.73 | J176: 1.0173
A177: 0.0430695617 | B177: 1.74 | C177: 1.74 | D177: 0.0430695617 | E177: 1.74 | F177: 0.1098175049 | G177: 1.74 | H177: 0.1098175049 | I177: 1.74 | J177: 1.0174
A178: 0.04312975493 | B178: 1.75 | C178: 1.75 | D178: 0.04312975493 | E178: 1.75 | F178: 0.1098753442 | G178: 1.75 | H178: 0.1098753442 | I178: 1.75 | J178: 1.0175
A179: 0.04318999552 | B179: 1.76 | C179: 1.76 | D179: 0.04318999552 | E179: 1.76 | F179: 0.1099331995 | G179: 1.76 | H179: 0.1099331995 | I179: 1.76 | J179: 1.0176
A180: 0.04325028346 | B180: 1.77 | C180: 1.77 | D180: 0.04325028346 | E180: 1.77 | F180: 0.1099910708 | G180: 1.77 | H180: 0.1099910708 | I180: 1.77 | J180: 1.0177
A181: 0.04331061871 | B181: 1.78 | C181: 1.78 | D181: 0.04331061871 | E181: 1.78 | F181: 0.1100489582 | G181: 1.78 | H181: 0.1100489582 | I181: 1.78 | J181: 1.0178
A182: 0.04337100127 | B182: 1.79 | C182: 1.79 | D182: 0.04337100127 | E182: 1.79 | F182: 0.1101068616 | G182: 1.79 | H182: 0.1101068616 | I182: 1.79 | J182: 1.0179
A183: 0.04343143111 | B183: 1.8 | C183: 1.8 | D183: 0.04343143111 | E183: 1.8 | F183: 0.110164781 | G183: 1.8 | H183: 0.110164781 | I183: 1.8 | J183: 1.018
A184: 0.0434919082 | B184: 1.81 | C184: 1.81 | D184: 0.0434919082 | E184: 1.81 | F184: 0.1102227164 | G184: 1.81 | H184: 0.1102227164 | I184: 1.81 | J184: 1.0181
A185: 0.04355243253 | B185: 1.82 | C185: 1.82 | D185: 0.04355243253 | E185: 1.82 | F185: 0.1102806678 | G185: 1.82 | H185: 0.1102806678 | I185: 1.82 | J185: 1.0182
A186: 0.04361300407 | B186: 1.83 | C186: 1.83 | D186: 0.04361300407 | E186: 1.83 | F186: 0.1103386352 | G186: 1.83 | H186: 0.1103386352 | I186: 1.83 | J186: 1.0183
A187: 0.0436736228 | B187: 1.84 | C187: 1.84 | D187: 0.0436736228 | E187: 1.84 | F187: 0.1103966187 | G187: 1.84 | H187: 0.1103966187 | I187: 1.84 | J187: 1.0184
A188: 0.0437342887 | B188: 1.85 | C188: 1.85 | D188: 0.0437342887 | E188: 1.85 | F188: 0.1104546181 | G188: 1.85 | H188: 0.1104546181 | I188: 1.85 | J188: 1.0185
A189: 0.04379500175 | B189: 1.86 | C189: 1.86 | D189: 0.04379500175 | E189: 1.86 | F189: 0.1105126335 | G189: 1.86 | H189: 0.1105126335 | I189: 1.86 | J189: 1.0186
A190: 0.04385576192 | B190: 1.87 | C190: 1.87 | D190: 0.04385576192 | E190: 1.87 | F190: 0.110570665 | G190: 1.87 | H190: 0.110570665 | I190: 1.87 | J190: 1.0187
A191: 0.04391656919 | B191: 1.88 | C191: 1.88 | D191: 0.04391656919 | E191: 1.88 | F191: 0.1106287124 | G191: 1.88 | H191: 0.1106287124 | I191: 1.88 | J191: 1.0188
A192: 0.04397742355 | B192: 1.89 | C192: 1.89 | D192: 0.04397742355 | E192: 1.89 | F192: 0.1106867758 | G192: 1.89 | H192: 0.1106867758 | I192: 1.89 | J192: 1.0189
A193: 0.04403832496 | B193: 1.9 | C193: 1.9 | D193: 0.04403832496 | E193: 1.9 | F193: 0.1107448552 | G193: 1.9 | H193: 0.1107448552 | I193: 1.9 | J193: 1.019
A194: 0.04409927341 | B194: 1.91 | C194: 1.91 | D194: 0.04409927341 | E194: 1.91 | F194: 0.1108029506 | G194: 1.91 | H194: 0.1108029506 | I194: 1.91 | J194: 1.0191
A195: 0.04416026887 | B195: 1.92 | C195: 1.92 | D195: =(((1+C195/100)^D$2)*C195/100)/(((1+C195/100)^D$2)-1) -> 0.04416026887 | E195: 1.92 | F195: =(((1+E195/100)^F$2)*E195/100)/(((1+E195/100)^F$2)-1) -> 0.110861062 | G195: 1.92 | H195: =(((1+G195/100)^H$2)*G195/100)/(((1+G195/100)^H$2)-1) -> 0.110861062 | I195: 1.92 | J195: =(((1+I195/100)^J$2)*I195/100)/(((1+I195/100)^J$2)-1) -> 1.0192
A196: 0.04422131132 | B196: 1.93 | C196: 1.93 | D196: 0.04422131132 | E196: 1.93 | F196: 0.1109191893 | G196: 1.93 | H196: 0.1109191893 | I196: 1.93 | J196: 1.0193
A197: =(((1+B197/100)^A$2)*B197/100)/(((1+B197/100)^A$2)-1) -> 0.04428240074 | B197: 1.94 | C197: 1.94 | D197: 0.04428240074 | E197: 1.94 | F197: 0.1109773326 | G197: 1.94 | H197: 0.1109773326 | I197: 1.94 | J197: 1.0194
A198: 0.0443435371 | B198: =B197+0.01 -> 1.95 | C198: =ROUND(C197+0.01,2) -> 1.95 | D198: 0.0443435371 | E198: =ROUND(E197+0.01,2) -> 1.95 | F198: 0.1110354919 | G198: =ROUND(G197+0.01,2) -> 1.95 | H198: 0.1110354919 | I198: 1.95 | J198: 1.0195
A199: 0.04440472039 | B199: 1.96 | C199: 1.96 | D199: 0.04440472039 | E199: 1.96 | F199: 0.1110936672 | G199: 1.96 | H199: 0.1110936672 | I199: 1.96 | J199: 1.0196
A200: 0.04446595057 | B200: 1.97 | C200: 1.97 | D200: 0.04446595057 | E200: 1.97 | F200: 0.1111518584 | G200: 1.97 | H200: 0.1111518584 | I200: 1.97 | J200: 1.0197
... 4300 more rows

Sheet Varianten (hidden)
A1: Phase 1 | B1: ='Basis - base - base'!G27 -> tarif propre
A2: Phase 2 | B2: ='Basis - base - base'!G28 -> -
A3: Phase 3 | B3: ='Basis - base - base'!G29 -> -
A4: gewählte Variante: | B4: =VLOOKUP(B1&B2&B3,E7:F27,2,FALSE) -> C
A6: Sprache | B6: Phase 1 | C6: Phase 2 | D6: Phase 3 | F6: Variante
A7: deutsch | B7: =Sprachentabelle!M5 -> KEV | C7: =Sprachentabelle!P4 -> - | D7: =Sprachentabelle!S4 -> - | E7: =B7&C7&D7 -> KEV-- | F7: A
A8: deutsch | B8: =Sprachentabelle!M5 -> KEV | C8: =Sprachentabelle!P5 -> eigener Tarif | D8: =Sprachentabelle!S4 -> - | E8: =B8&C8&D8 -> KEVeigener Tarif- | F8: B
A9: deutsch | B9: =Sprachentabelle!M4 -> eigener Tarif | C9: =Sprachentabelle!P4 -> - | D9: =Sprachentabelle!S4 -> - | E9: eigener Tarif-- | F9: C
A10: deutsch | B10: =Sprachentabelle!M4 -> eigener Tarif | C10: =Sprachentabelle!P6 -> KEV | D10: =Sprachentabelle!S4 -> - | E10: eigener TarifKEV- | F10: D
A11: deutsch | B11: =Sprachentabelle!M4 -> eigener Tarif | C11: =Sprachentabelle!P6 -> KEV | D11: =Sprachentabelle!S5 -> eigener Tarif | E11: eigener TarifKEVeigener Tarif | F11: E
A12: deutsch | B12: =Sprachentabelle!M4 -> eigener Tarif | C12: =Sprachentabelle!P5 -> eigener Tarif | D12: =Sprachentabelle!S4 -> - | E12: eigener Tarifeigener Tarif- | F12: F
A13: deutsch | B13: =Sprachentabelle!M4 -> eigener Tarif | C13: =Sprachentabelle!P5 -> eigener Tarif | D13: =Sprachentabelle!S5 -> eigener Tarif | E13: eigener Tarifeigener Tarifeigener Tarif | F13: G
A14: français | B14: =Sprachentabelle!M7 -> RPC | C14: =Sprachentabelle!P7 -> - | D14: =Sprachentabelle!S6 -> - | E14: RPC-- | F14: A
A15: français | B15: =Sprachentabelle!M7 -> RPC | C15: =Sprachentabelle!P8 -> tarif propre | D15: =Sprachentabelle!S6 -> - | E15: RPCtarif propre- | F15: B
A16: français | B16: =Sprachentabelle!M6 -> tarif propre | C16: =Sprachentabelle!P7 -> - | D16: =Sprachentabelle!S6 -> - | E16: tarif propre-- | F16: C
A17: français | B17: =Sprachentabelle!M6 -> tarif propre | C17: =Sprachentabelle!P9 -> RPC | D17: =Sprachentabelle!S6 -> - | E17: tarif propreRPC- | F17: D
A18: français | B18: =Sprachentabelle!M6 -> tarif propre | C18: =Sprachentabelle!P9 -> RPC | D18: =Sprachentabelle!S7 -> tarif propre | E18: tarif propreRPCtarif propre | F18: E
A19: français | B19: =Sprachentabelle!M6 -> tarif propre | C19: =Sprachentabelle!P8 -> tarif propre | D19: =Sprachentabelle!S6 -> - | E19: tarif propretarif propre- | F19: F
A20: français | B20: =Sprachentabelle!M6 -> tarif propre | C20: =Sprachentabelle!P8 -> tarif propre | D20: =Sprachentabelle!S7 -> tarif propre | E20: tarif propretarif propretarif propre | F20: G
A21: italiano | B21: =Sprachentabelle!M9 -> RIC | C21: =Sprachentabelle!P10 -> - | D21: =Sprachentabelle!S8 -> - | E21: RIC-- | F21: A
A22: italiano | B22: =Sprachentabelle!M9 -> RIC | C22: =Sprachentabelle!P11 -> tariffa az. el. | D22: =Sprachentabelle!S8 -> - | E22: RICtariffa az. el.- | F22: B
A23: italiano | B23: =Sprachentabelle!M8 -> tariffa az. el. | C23: =Sprachentabelle!P10 -> - | D23: =Sprachentabelle!S8 -> - | E23: tariffa az. el.-- | F23: C
A24: italiano | B24: =Sprachentabelle!M8 -> tariffa az. el. | C24: =Sprachentabelle!P12 -> RIC | D24: =Sprachentabelle!S8 -> - | E24: tariffa az. el.RIC- | F24: D
A25: italiano | B25: =Sprachentabelle!M8 -> tariffa az. el. | C25: =Sprachentabelle!P12 -> RIC | D25: =Sprachentabelle!S9 -> tariffa az. el. | E25: tariffa az. el.RICtariffa az. el. | F25: E
A26: italiano | B26: =Sprachentabelle!M8 -> tariffa az. el. | C26: =Sprachentabelle!P11 -> tariffa az. el. | D26: =Sprachentabelle!S8 -> - | E26: tariffa az. el.tariffa az. el.- | F26: F
A27: italiano | B27: =Sprachentabelle!M8 -> tariffa az. el. | C27: =Sprachentabelle!P11 -> tariffa az. el. | D27: =Sprachentabelle!S9 -> tariffa az. el. | E27: tariffa az. el.tariffa az. el.tariffa az. el. | F27: G

Sheet Fehlerhandling (hidden)
A1: Fehlersituation | C1: fehlende zwingende Eingaben | G1: Anlagen-Lebensdauer < KEV-Vergütungsdauer | K1: Anlagen-Lebensdauer < Laufzeit Fremdkapital 1 | O1: Anlagen-Lebensdauer < Laufzeit Fremdkapital 2 | S1: kleiner <= 10 kWp, IBN >= 1.1.2014 und KEV-Tarif gewählt | W1: IBN < 1.1.2014, KEV-Tarif gewählt und Eigennutzungsgrad KEV-Phase > 0 | AA1: falsche Varianten-Wahl | AE1: IBN-Periode leer | AI1: Periode ab' für Phase 2 leer | AM1: Periode ab' für Phase 3 leer | AQ1: IBN-Periode bis' >= 'Periode ab' Phase 2 | AU1: Periode bis' Phase 2 >= 'Periode ab' Phase 3 | AY1: KEV bis' >= 'Periode ab' Phase 2 | BC1: KEV bis' >= 'Periode ab' Phase 3 | BG1: Zeitüberschneidung Anlagen-Lebensdauer (bei 2 Phasen) | BK1: Zeitüberschneidung Anlagen-Lebensdauer (bei 3 Phasen)
C2: Beschreibung | D2: Wert | E2: Vergleichswert | F2: Formel | G2: Beschreibung | H2: Wert | I2: Vergleichswert | J2: Formel | K2: Beschreibung | L2: Wert | M2: Vergleichswert | N2: Formel | O2: Beschreibung | P2: Wert | Q2: Vergleichswert | R2: Formel | S2: Beschreibung | T2: Wert | U2: Vergleichswert | V2: Formel | W2: Beschreibung | X2: Wert | Y2: Vergleichswert | Z2: Formel | AA2: Beschreibung | AB2: Wert | AC2: Vergleichswert | AD2: Formel | AE2: Beschreibung | AF2: Wert | AG2: Vergleichswert | AH2: Formel | AI2: Beschreibung | AJ2: Wert | AK2: Vergleichswert | AL2: Formel | AM2: Beschreibung | AN2: Wert | AO2: Vergleichswert | AP2: Formel | AQ2: Beschreibung | AR2: Wert | AS2: Vergleichswert | AT2: Formel | AU2: Beschreibung | AV2: Wert | AW2: Vergleichswert | AX2: Formel | AY2: Beschreibung | AZ2: Wert | BA2: Vergleichswert | BB2: Formel | BC2: Beschreibung | BD2: Wert | BE2: Vergleichswert | BF2: Formel | BG2: Beschreibung | BH2: Wert | BI2: Vergleichswert | BJ2: Formel | BK2: Beschreibung | BL2: Wert | BM2: Vergleichswert | BN2: Formel | BO2: Beschreibung | BP2: Wert | BQ2: Vergleichswert | BR2: Formel
A3: Bedingung 1 | C3: MWST-Pflicht | D3: ='Basis - base - base'!K8 -> non assujetti à la TVA | E3: <>0 | F3: =IF(D3<>0,FALSE,TRUE) -> FALSE | G3: Anlagen-Lebensdauer | H3: ='Basis - base - base'!V12 -> 30 | I3: KEV-Vergütungsdauer | J3: =IF(H3<H4,TRUE,FALSE) -> FALSE | K3: Anlagen-Lebensdauer | L3: ='Basis - base - base'!V12 -> 30 | M3: Laufzeit Fremdkapital 1 | N3: =IF(L3<L4,TRUE,FALSE) -> FALSE | O3: Anlagen-Lebensdauer | P3: ='Basis - base - base'!V12 -> 30 | Q3: Laufzeit Fremdkapital 2 | R3: =IF(P3<P4,TRUE,FALSE) -> FALSE | S3: Anlagen-Nennleistung | T3: ='Basis - base - base'!V11 -> 2 | U3: 10 | V3: =IF(T3<=U3,TRUE,FALSE) -> TRUE | W3: IBN-Datum | X3: ='Basis - base - base'!O27 -> 2024-01-01 | Z3: =IF(X3<DATE(2014,1,1),TRUE,FALSE) -> FALSE | AA3: Variante | AB3: =Varianten!B4 -> C | AC3: Fehler | AD3: =ISERROR(AB3) -> FALSE | AE3: IBN-Periode | AF3: ='Basis - base - base'!J27 -> 2023 | AG3: 0 | AH3: =IF(AF3=AG3,TRUE,FALSE) -> FALSE | AI3: Periode ab' Phase 2 | AJ3: ='Basis - base - base'!J28 ->  | AK3: 0 | AL3: =IF(AJ3=AK3,TRUE,FALSE) -> FALSE | AM3: Periode ab' Phase 3 | AN3: ='Basis - base - base'!J29 ->  | AO3: 0 | AP3: =IF(AN3=AO3,TRUE,FALSE) -> FALSE | AQ3: Variante | AR3: =Varianten!B4 -> C | AS3: <>A und <>C | AT3: =IF(AND(AR3<>"A",AR3<>"C"),TRUE,FALSE) -> FALSE | AU3: Variante | AV3: =Varianten!B4 -> C | AW3: E oder G | AX3: =IF(OR(AV3="E",AV3="G"),TRUE,FALSE) -> FALSE | AY3: Variante | AZ3: =Varianten!B4 -> C | BA3: B | BB3: =IF(AZ3=BA3,TRUE,FALSE) -> FALSE | BC3: Variante | BD3: =Varianten!B4 -> C | BE3: E | BF3: =IF(BD3=BE3,TRUE,FALSE) -> FALSE | BG3: Variante | BH3: =Varianten!B4 -> C | BI3: B, D oder F | BJ3: =IF(OR(BH3="B",BH3="D",BH3="F"),TRUE,FALSE) -> FALSE | BK3: Variante | BL3: =Varianten!B4 -> C | BM3: E oder G | BN3: =IF(OR(BL3="E",BL3="G"),TRUE,FALSE) -> FALSE
A4: Bedingung 2 | C4: Anlagen-Kategorie | D4: ='Basis - base - base'!V10 -> ajoutée | E4: <>0 | F4: FALSE | G4: KEV-Vergütungsdauer | H4: ='Basis - base - base'!V13 -> 1 | K4: Laufzeit Fremdkapital 1 | L4: ='Basis - base - base'!Y24 -> 10 | O4: Laufzeit Fremdkapital 2 | P4: ='Basis - base - base'!Y25 -> 10 | S4: IBN-Datum | T4: ='Basis - base - base'!O27 -> 2024-01-01 | U4: 2014-01-01 | V4: =IF(T4>=U4,TRUE,FALSE) -> TRUE | W4: Variante | X4: =Varianten!B4 -> C | Z4: =IF(OR(T5="A",T5="B",T5="D",T5="E"),TRUE,FALSE) -> FALSE | AI4: Variante | AJ4: =Varianten!B4 -> C | AK4: A | AL4: =IF(AJ4<>AK4,TRUE,FALSE) -> TRUE | AM4: Variante | AN4: =Varianten!B4 -> C | AO4: E, G | AP4: =IF(OR(AN4="E",AN4="G"),TRUE,FALSE) -> FALSE | AQ4: IBN-Periode bis' | AR4: ='Basis - base - base'!P27 -> 2024-12-31 | AS4: Periode ab' Phase 2 | AT4: =IF(AR4>=AR5,TRUE,FALSE) -> FALSE | AU4: Periode bis' Phase 2 | AV4: ='Basis - base - base'!P28 ->  | AW4: Periode ab' Phase 3 | AX4: =IF(AV4>=AV5,TRUE,FALSE) -> TRUE | AY4: KEV bis' | AZ4: ='Basis - base - base'!Q27 -> 2025-12-31 | BA4: Periode ab' Phase 2 | BB4: =IF(AZ4>=AZ5,TRUE,FALSE) -> FALSE | BC4: KEV bis' | BD4: ='Basis - base - base'!Q27 -> 2025-12-31 | BE4: Periode ab' Phase 3 | BF4: =IF(BD4>=BD5,TRUE,FALSE) -> FALSE | BG4: Laufzeit bis' | BH4: ='Basis - base - base'!R27 -> 2053-12-31 | BI4: Periode ab' Phase 2 | BJ4: =IF(BH5>BH4,TRUE,FALSE) -> TRUE | BK4: Laufzeit bis' | BL4: ='Basis - base - base'!R27 -> 2053-12-31 | BM4: 'Periode ab' Phase 3 | BN4: =IF(BL5>BL4,TRUE,FALSE) -> TRUE
A5: Bedingung 3 | C5: Anlagen-Nennleistung | D5: ='Basis - base - base'!V11 -> 2 | E5: <>0 | F5: FALSE | K5: Fremdkapital 1 | L5: ='Basis - base - base'!V24 -> 0 | M5: >0 | N5: =IF(L5>0,TRUE,FALSE) -> FALSE | O5: Fremdkapital 2 | P5: ='Basis - base - base'!V25 -> 0 | Q5: >0 | R5: =IF(P5>0,TRUE,FALSE) -> FALSE | S5: Variante | T5: =Varianten!B4 -> C | U5: A, B, D oder E | V5: =IF(OR(T5="A",T5="B",T5="D",T5="E"),TRUE,FALSE) -> FALSE | W5: Eigennutzungsgrad KEV-Phase | X5: ='Basis - base - base'!Z40 -> 0 | Z5: =IF(X5>0,TRUE,FALSE) -> FALSE | AI5: Variante | AJ5: =Varianten!B4 -> C | AK5: C | AL5: =IF(AJ5<>AK5,TRUE,FALSE) -> FALSE | AQ5: Periode ab' Phase 2 | AR5: ='Basis - base - base'!O28 ->  | AU5: Periode ab' Phase 3 | AV5: ='Basis - base - base'!O29 ->  | AY5: Periode ab' Phase 2 | AZ5: ='Basis - base - base'!O28 ->  | BC5: Periode ab' Phase 3 | BD5: ='Basis - base - base'!O29 ->  | BG5: Periode ab' Phase 2 | BH5: ='Basis - base - base'!O28 ->  | BK5: Periode ab' Phase 3 | BL5: ='Basis - base - base'!O29 -> 
A6: Bedingung 4 | C6: Anlagen-Lebensdauer | D6: ='Basis - base - base'!V12 -> 30 | E6: <>0 | F6: FALSE
A7: Bedingung 5 | C7: KEV-Vergütungsdauer | D7: ='Basis - base - base'!V13 -> 1 | E7: <>0 | F7: FALSE
A8: Bedingung 6 | C8: spez. Jahresenergieertrag | D8: ='Basis - base - base'!V14 -> 1000 | E8: <>0 | F8: FALSE
A9: Bedingung 7 | C9: Degradation (Jahre) | D9: ='Basis - base - base'!K15 -> 30 | E9: <>0 | F9: FALSE
A10: Bedingung 8 | C10: Degradation (%) | D10: ='Basis - base - base'!V15 -> 80 | E10: <>0 | F10: FALSE
A11: Bedingung 9
A12: Bedingung 10
A13: Vorgänger-Fehler | H13: =OR(D13,F14) -> FALSE | L13: =OR(H13,J14) -> FALSE | P13: =OR(L13,N14) -> FALSE | T13: =OR(P13,R14) -> FALSE | X13: =OR(T13,V14) -> FALSE | AB13: =OR(X13,Z14) -> FALSE | AF13: =OR(AB13,AD14) -> FALSE | AJ13: =OR(AF13,AH14) -> FALSE | AN13: =OR(AJ13,AL14) -> FALSE | AR13: =OR(AN13,AP14) -> FALSE | AV13: =OR(AR13,AT14) -> FALSE | AZ13: =OR(AV13,AX14) -> FALSE | BD13: =OR(AZ13,BB14) -> FALSE | BH13: =OR(BD13,BF14) -> FALSE | BL13: =OR(BH13,BJ14) -> FALSE | BP13: =OR(BL13,BN14) -> FALSE
A14: Fehlerstatus | F14: =IFERROR(OR(F3:F12),FALSE) -> FALSE | J14: =IFERROR(IF(H13=FALSE,AND(J3:J12),FALSE),FALSE) -> FALSE | N14: =IFERROR(IF(L13=FALSE,AND(N3:N12),FALSE),FALSE) -> FALSE | R14: =IFERROR(IF(P13=FALSE,AND(R3:R12),FALSE),FALSE) -> FALSE | V14: =IFERROR(IF(T13=FALSE,AND(V3:V12),FALSE),FALSE) -> FALSE | Z14: =IFERROR(IF(X13=FALSE,AND(Z3:Z12),FALSE),FALSE) -> FALSE | AD14: =IFERROR(IF(AB13=FALSE,AND(AD3:AD12),FALSE),FALSE) -> FALSE | AH14: =IFERROR(IF(AF13=FALSE,AND(AH3:AH12),FALSE),FALSE) -> FALSE | AL14: =IFERROR(IF(AJ13=FALSE,AND(AL3:AL12),FALSE),FALSE) -> FALSE | AP14: =IFERROR(IF(AN13=FALSE,AND(AP3:AP12),FALSE),FALSE) -> FALSE | AT14: =IFERROR(IF(AR13=FALSE,AND(AT3:AT12),FALSE),FALSE) -> FALSE | AX14: =IFERROR(IF(AV13=FALSE,AND(AX3:AX12),FALSE),FALSE) -> FALSE | BB14: =IFERROR(IF(AZ13=FALSE,AND(BB3:BB12),FALSE),FALSE) -> FALSE | BF14: =IFERROR(IF(BD13=FALSE,AND(BF3:BF12),FALSE),FALSE) -> FALSE | BJ14: =IFERROR(IF(BH13=FALSE,AND(BJ3:BJ12),FALSE),FALSE) -> FALSE | BN14: =IFERROR(IF(BL13=FALSE,AND(BN3:BN12),FALSE),FALSE) -> FALSE | BR14: =IFERROR(IF(BP13=FALSE,AND(BR3:BR12),FALSE),FALSE) -> FALSE
A15: Fehlermeldung | C15: =IF(F14=TRUE,HLOOKUP('Basis - base - base'!AD3,Sprachentabelle!B2:D201,154,FALSE),"") ->  | G15: =IF(J14=TRUE,HLOOKUP('Basis - base - base'!AD3,Sprachentabelle!B2:D201,155,FALSE),"") ->  | K15: =IF(N14=TRUE,HLOOKUP('Basis - base - base'!AD3,Sprachentabelle!B2:D201,156,FALSE),"") ->  | O15: =IF(R14=TRUE,HLOOKUP('Basis - base - base'!AD3,Sprachentabelle!B2:D201,157,FALSE),"") ->  | S15: =IF(V14=TRUE,HLOOKUP('Basis - base - base'!AD3,Sprachentabelle!B2:D201,140,FALSE),"") ->  | W15: =IF(Z14=TRUE,HLOOKUP('Basis - base - base'!AD3,Sprachentabelle!B2:D201,141,FALSE),"") ->  | AA15: =IF(AD14=TRUE,HLOOKUP('Basis - base - base'!AD3,Sprachentabelle!B2:D201,143,FALSE),"") ->  | AE15: =IF(AH14=TRUE,HLOOKUP('Basis - base - base'!AD3,Sprachentabelle!B2:D201,144,FALSE),"") ->  | AI15: =IF(AL14=TRUE,HLOOKUP('Basis - base - base'!AD3,Sprachentabelle!B2:D201,145,FALSE),"") ->  | AM15: =IF(AP14=TRUE,HLOOKUP('Basis - base - base'!AD3,Sprachentabelle!B2:D201,146,FALSE),"") ->  | AQ15: =IF(AT14=TRUE,HLOOKUP('Basis - base - base'!AD3,Sprachentabelle!B2:D201,147,FALSE),"") ->  | AU15: =IF(AX14=TRUE,HLOOKUP('Basis - base - base'!AD3,Sprachentabelle!B2:D201,148,FALSE),"") ->  | AY15: =IF(BB14=TRUE,HLOOKUP('Basis - base - base'!AD3,Sprachentabelle!B2:D201,149,FALSE),"") ->  | BC15: =IF(BF14=TRUE,HLOOKUP('Basis - base - base'!AD3,Sprachentabelle!B2:D201,150,FALSE),"") ->  | BG15: =IF(BJ14=TRUE,HLOOKUP('Basis - base - base'!AD3,Sprachentabelle!B2:D201,151,FALSE),"") ->  | BK15: =IF(BN14=TRUE,HLOOKUP('Basis - base - base'!AD3,Sprachentabelle!B2:D201,152,FALSE),"") -> 
A17: angezeigte Fehlermeldung in Tabellenblatt 'Basis' (Priorität von links nach rechts) | B17: =VLOOKUP(A15,A15:BR15,MATCH("?*",INDEX(B15:BR15&"",0),0)+1,FALSE) -> 
